Workbook

Sheet Baza
B2: Столбец1 | C2: № | D2: G | E2: NN | F2: DN | G2: M | H2: Date | I2: Start | J2: B | K2: Room | L2: Name | M2: Y | N2: T | O2: K | P2: A | Q2: GTD | R2: KO | S2: Win | T2: R | U2: F | V2: B$ | W2: KO$ | X2: WIN$ | Y2: Profit | Z2: AFS | AA2: Grafik
B3: =TEXT(Baza[[#This Row],[Start]],"ч:мм")&" "&IF(OR(Baza[[#This Row],[Room]]="ES",Baza[[#This Row],[Room]]="WN"),"€","$")&Baza[[#This Row],[B]]&" ["&Baza[[#This Row],[Room]]&"] "&Baza[[#This Row],[Name]] -> 11:00 $1,1 [PP] Bounty Hunter | C3: 1 | D3: =YEAR(Baza[[#This Row],[Date]]) -> 2021 | E3: =WEEKNUM(Baza[[#This Row],[Date]],2) -> 1 | F3: =CHOOSE(WEEKDAY(Baza[[#This Row],[Date]],2),"понедельник","вторник","среда","четверг","пятница","суббота","воскресенье") -> пятница | G3: =CHOOSE(MONTH(Baza[[#This Row],[Date]]),"январь","февраль","март","апрель","май","июнь","июль","август","сентябрь","октябрь","ноябрь","декабрь") -> январь | H3: 2021-01-01 | I3: 11:00:00 | J3: 1.1 | K3: PP | L3: Bounty Hunter | M3: 8 | N3: - | O3: K | P3: - | Q3: 50 | U3: - | V3: =IF(OR(Baza[[#This Row],[Room]]="ES",Baza[[#This Row],[Room]]="WN"),(Baza[[#This Row],[B]]*1.12) +(Baza[[#This Row],[R]]*Baza[[#This Row],[B]]*1.12),Baza[[#This Row],[B]]*Baza[[#This Row],[R]]+Baza[[#This Row],[B]]) -> 1.1 | W3: =IF(OR(Baza[[#This Row],[Room]]="ES",Baza[[#This Row],[Room]]="WN"),Baza[[#This Row],[KO]]*1.12,Baza[[#This Row],[KO]]) -> 0 | X3: =IF(OR(Baza[[#This Row],[Room]]="ES",Baza[[#This Row],[Room]]="WN"),Baza[[#This Row],[Win]]*1.12,Baza[[#This Row],[Win]]) -> 0 | Y3: =Baza[[#This Row],[WIN$]]+Baza[[#This Row],[KO$]]-Baza[[#This Row],[B$]] -> -1.1 | Z3: =IF(OR(Baza[[#This Row],[A]]="XP",Baza[[#This Row],[A]]="XP2",Baza[[#This Row],[A]]="F"),AVERAGEIFS(Baza[AFS],Baza[A],"-"),Baza[[#This Row],[GTD]]/Baza[[#This Row],[B]]) -> 45.45454545 | AA3: =SUM($Y$2:Y3) -> -1.1
B4: =TEXT(Baza[[#This Row],[Start]],"ч:мм")&" "&IF(OR(Baza[[#This Row],[Room]]="ES",Baza[[#This Row],[Room]]="WN"),"€","$")&Baza[[#This Row],[B]]&" ["&Baza[[#This Row],[Room]]&"] "&Baza[[#This Row],[Name]] -> 11:00 €1 [WN] Monster Stack | C4: 2 | D4: =YEAR(Baza[[#This Row],[Date]]) -> 2021 | E4: =WEEKNUM(Baza[[#This Row],[Date]],2) -> 1 | F4: =CHOOSE(WEEKDAY(Baza[[#This Row],[Date]],2),"понедельник","вторник","среда","четверг","пятница","суббота","воскресенье") -> пятница | G4: =CHOOSE(MONTH(Baza[[#This Row],[Date]]),"январь","февраль","март","апрель","май","июнь","июль","август","сентябрь","октябрь","ноябрь","декабрь") -> январь | H4: 2021-01-01 | I4: 11:00:00 | J4: 1 | K4: WN | L4: Monster Stack | M4: 6 | N4: - | O4: - | P4: - | Q4: 150 | U4: - | V4: =IF(OR(Baza[[#This Row],[Room]]="ES",Baza[[#This Row],[Room]]="WN"),(Baza[[#This Row],[B]]*1.12) +(Baza[[#This Row],[R]]*Baza[[#This Row],[B]]*1.12),Baza[[#This Row],[B]]*Baza[[#This Row],[R]]+Baza[[#This Row],[B]]) -> 1.12 | W4: =IF(OR(Baza[[#This Row],[Room]]="ES",Baza[[#This Row],[Room]]="WN"),Baza[[#This Row],[KO]]*1.12,Baza[[#This Row],[KO]]) -> 0 | X4: =IF(OR(Baza[[#This Row],[Room]]="ES",Baza[[#This Row],[Room]]="WN"),Baza[[#This Row],[Win]]*1.12,Baza[[#This Row],[Win]]) -> 0 | Y4: =Baza[[#This Row],[WIN$]]+Baza[[#This Row],[KO$]]-Baza[[#This Row],[B$]] -> -1.12 | Z4: =IF(OR(Baza[[#This Row],[A]]="XP",Baza[[#This Row],[A]]="XP2",Baza[[#This Row],[A]]="F"),AVERAGEIFS(Baza[AFS],Baza[A],"-"),Baza[[#This Row],[GTD]]/Baza[[#This Row],[B]]) -> 150 | AA4: =SUM($Y$2:Y4) -> -2.22
B5: =TEXT(Baza[[#This Row],[Start]],"ч:мм")&" "&IF(OR(Baza[[#This Row],[Room]]="ES",Baza[[#This Row],[Room]]="WN"),"€","$")&Baza[[#This Row],[B]]&" ["&Baza[[#This Row],[Room]]&"] "&Baza[[#This Row],[Name]] -> 11:15 $2,2 [PP] Deepstack | C5: 3 | D5: =YEAR(Baza[[#This Row],[Date]]) -> 2021 | E5: =WEEKNUM(Baza[[#This Row],[Date]],2) -> 1 | F5: =CHOOSE(WEEKDAY(Baza[[#This Row],[Date]],2),"понедельник","вторник","среда","четверг","пятница","суббота","воскресенье") -> пятница | G5: =CHOOSE(MONTH(Baza[[#This Row],[Date]]),"январь","февраль","март","апрель","май","июнь","июль","август","сентябрь","октябрь","ноябрь","декабрь") -> январь | H5: 2021-01-01 | I5: 11:15:00 | J5: 2.2 | K5: PP | L5: Deepstack | M5: 8 | N5: - | O5: - | P5: - | Q5: 200 | U5: - | V5: =IF(OR(Baza[[#This Row],[Room]]="ES",Baza[[#This Row],[Room]]="WN"),(Baza[[#This Row],[B]]*1.12) +(Baza[[#This Row],[R]]*Baza[[#This Row],[B]]*1.12),Baza[[#This Row],[B]]*Baza[[#This Row],[R]]+Baza[[#This Row],[B]]) -> 2.2 | W5: =IF(OR(Baza[[#This Row],[Room]]="ES",Baza[[#This Row],[Room]]="WN"),Baza[[#This Row],[KO]]*1.12,Baza[[#This Row],[KO]]) -> 0 | X5: =IF(OR(Baza[[#This Row],[Room]]="ES",Baza[[#This Row],[Room]]="WN"),Baza[[#This Row],[Win]]*1.12,Baza[[#This Row],[Win]]) -> 0 | Y5: =Baza[[#This Row],[WIN$]]+Baza[[#This Row],[KO$]]-Baza[[#This Row],[B$]] -> -2.2 | Z5: =IF(OR(Baza[[#This Row],[A]]="XP",Baza[[#This Row],[A]]="XP2",Baza[[#This Row],[A]]="F"),AVERAGEIFS(Baza[AFS],Baza[A],"-"),Baza[[#This Row],[GTD]]/Baza[[#This Row],[B]]) -> 90.90909091 | AA5: =SUM($Y$2:Y5) -> -4.42
B6: =TEXT(Baza[[#This Row],[Start]],"ч:мм")&" "&IF(OR(Baza[[#This Row],[Room]]="ES",Baza[[#This Row],[Room]]="WN"),"€","$")&Baza[[#This Row],[B]]&" ["&Baza[[#This Row],[Room]]&"] "&Baza[[#This Row],[Name]] -> 11:30 $2,1 [GG] Bounty Hunters | C6: 4 | D6: =YEAR(Baza[[#This Row],[Date]]) -> 2021 | E6: =WEEKNUM(Baza[[#This Row],[Date]],2) -> 1 | F6: =CHOOSE(WEEKDAY(Baza[[#This Row],[Date]],2),"понедельник","вторник","среда","четверг","пятница","суббота","воскресенье") -> пятница | G6: =CHOOSE(MONTH(Baza[[#This Row],[Date]]),"январь","февраль","март","апрель","май","июнь","июль","август","сентябрь","октябрь","ноябрь","декабрь") -> январь | H6: 2021-01-01 | I6: 11:30:00 | J6: 2.1 | K6: GG | L6: Bounty Hunters | M6: 8 | N6: - | O6: K | P6: - | Q6: 1200 | U6: - | V6: =IF(OR(Baza[[#This Row],[Room]]="ES",Baza[[#This Row],[Room]]="WN"),(Baza[[#This Row],[B]]*1.12) +(Baza[[#This Row],[R]]*Baza[[#This Row],[B]]*1.12),Baza[[#This Row],[B]]*Baza[[#This Row],[R]]+Baza[[#This Row],[B]]) -> 2.1 | W6: =IF(OR(Baza[[#This Row],[Room]]="ES",Baza[[#This Row],[Room]]="WN"),Baza[[#This Row],[KO]]*1.12,Baza[[#This Row],[KO]]) -> 0 | X6: =IF(OR(Baza[[#This Row],[Room]]="ES",Baza[[#This Row],[Room]]="WN"),Baza[[#This Row],[Win]]*1.12,Baza[[#This Row],[Win]]) -> 0 | Y6: =Baza[[#This Row],[WIN$]]+Baza[[#This Row],[KO$]]-Baza[[#This Row],[B$]] -> -2.1 | Z6: =IF(OR(Baza[[#This Row],[A]]="XP",Baza[[#This Row],[A]]="XP2",Baza[[#This Row],[A]]="F"),AVERAGEIFS(Baza[AFS],Baza[A],"-"),Baza[[#This Row],[GTD]]/Baza[[#This Row],[B]]) -> 571.4285714 | AA6: =SUM($Y$2:Y6) -> -6.52
B7: =TEXT(Baza[[#This Row],[Start]],"ч:мм")&" "&IF(OR(Baza[[#This Row],[Room]]="ES",Baza[[#This Row],[Room]]="WN"),"€","$")&Baza[[#This Row],[B]]&" ["&Baza[[#This Row],[Room]]&"] "&Baza[[#This Row],[Name]] -> 12:00 $1,1 [PP] Deepstack | C7: 5 | D7: =YEAR(Baza[[#This Row],[Date]]) -> 2021 | E7: =WEEKNUM(Baza[[#This Row],[Date]],2) -> 1 | F7: =CHOOSE(WEEKDAY(Baza[[#This Row],[Date]],2),"понедельник","вторник","среда","четверг","пятница","суббота","воскресенье") -> пятница | G7: =CHOOSE(MONTH(Baza[[#This Row],[Date]]),"январь","февраль","март","апрель","май","июнь","июль","август","сентябрь","октябрь","ноябрь","декабрь") -> январь | H7: 2021-01-01 | I7: 12:00:00 | J7: 1.1 | K7: PP | L7: Deepstack | M7: 8 | N7: - | O7: - | P7: - | Q7: 150 | U7: - | V7: =IF(OR(Baza[[#This Row],[Room]]="ES",Baza[[#This Row],[Room]]="WN"),(Baza[[#This Row],[B]]*1.12) +(Baza[[#This Row],[R]]*Baza[[#This Row],[B]]*1.12),Baza[[#This Row],[B]]*Baza[[#This Row],[R]]+Baza[[#This Row],[B]]) -> 1.1 | W7: =IF(OR(Baza[[#This Row],[Room]]="ES",Baza[[#This Row],[Room]]="WN"),Baza[[#This Row],[KO]]*1.12,Baza[[#This Row],[KO]]) -> 0 | X7: =IF(OR(Baza[[#This Row],[Room]]="ES",Baza[[#This Row],[Room]]="WN"),Baza[[#This Row],[Win]]*1.12,Baza[[#This Row],[Win]]) -> 0 | Y7: =Baza[[#This Row],[WIN$]]+Baza[[#This Row],[KO$]]-Baza[[#This Row],[B$]] -> -1.1 | Z7: =IF(OR(Baza[[#This Row],[A]]="XP",Baza[[#This Row],[A]]="XP2",Baza[[#This Row],[A]]="F"),AVERAGEIFS(Baza[AFS],Baza[A],"-"),Baza[[#This Row],[GTD]]/Baza[[#This Row],[B]]) -> 136.3636364 | AA7: =SUM($Y$2:Y7) -> -7.62
B8: =TEXT(Baza[[#This Row],[Start]],"ч:мм")&" "&IF(OR(Baza[[#This Row],[Room]]="ES",Baza[[#This Row],[Room]]="WN"),"€","$")&Baza[[#This Row],[B]]&" ["&Baza[[#This Row],[Room]]&"] "&Baza[[#This Row],[Name]] -> 12:00 $1,1 [PS] Big | C8: 6 | D8: =YEAR(Baza[[#This Row],[Date]]) -> 2021 | E8: =WEEKNUM(Baza[[#This Row],[Date]],2) -> 1 | F8: =CHOOSE(WEEKDAY(Baza[[#This Row],[Date]],2),"понедельник","вторник","среда","четверг","пятница","суббота","воскресенье") -> пятница | G8: =CHOOSE(MONTH(Baza[[#This Row],[Date]]),"январь","февраль","март","апрель","май","июнь","июль","август","сентябрь","октябрь","ноябрь","декабрь") -> январь | H8: 2021-01-01 | I8: 12:00:00 | J8: 1.1 | K8: PS | L8: Big | M8: 9 | N8: - | O8: - | P8: - | Q8: 500 | S8: 6.26 | U8: 42 | V8: =IF(OR(Baza[[#This Row],[Room]]="ES",Baza[[#This Row],[Room]]="WN"),(Baza[[#This Row],[B]]*1.12) +(Baza[[#This Row],[R]]*Baza[[#This Row],[B]]*1.12),Baza[[#This Row],[B]]*Baza[[#This Row],[R]]+Baza[[#This Row],[B]]) -> 1.1 | W8: =IF(OR(Baza[[#This Row],[Room]]="ES",Baza[[#This Row],[Room]]="WN"),Baza[[#This Row],[KO]]*1.12,Baza[[#This Row],[KO]]) -> 0 | X8: =IF(OR(Baza[[#This Row],[Room]]="ES",Baza[[#This Row],[Room]]="WN"),Baza[[#This Row],[Win]]*1.12,Baza[[#This Row],[Win]]) -> 6.26 | Y8: =Baza[[#This Row],[WIN$]]+Baza[[#This Row],[KO$]]-Baza[[#This Row],[B$]] -> 5.16 | Z8: =IF(OR(Baza[[#This Row],[A]]="XP",Baza[[#This Row],[A]]="XP2",Baza[[#This Row],[A]]="F"),AVERAGEIFS(Baza[AFS],Baza[A],"-"),Baza[[#This Row],[GTD]]/Baza[[#This Row],[B]]) -> 454.5454545 | AA8: =SUM($Y$2:Y8) -> -2.46
B9: =TEXT(Baza[[#This Row],[Start]],"ч:мм")&" "&IF(OR(Baza[[#This Row],[Room]]="ES",Baza[[#This Row],[Room]]="WN"),"€","$")&Baza[[#This Row],[B]]&" ["&Baza[[#This Row],[Room]]&"] "&Baza[[#This Row],[Name]] -> 12:00 €2 [WN] Monster Stack | C9: 7 | D9: =YEAR(Baza[[#This Row],[Date]]) -> 2021 | E9: =WEEKNUM(Baza[[#This Row],[Date]],2) -> 1 | F9: =CHOOSE(WEEKDAY(Baza[[#This Row],[Date]],2),"понедельник","вторник","среда","четверг","пятница","суббота","воскресенье") -> пятница | G9: =CHOOSE(MONTH(Baza[[#This Row],[Date]]),"январь","февраль","март","апрель","май","июнь","июль","август","сентябрь","октябрь","ноябрь","декабрь") -> январь | H9: 2021-01-01 | I9: 12:00:00 | J9: 2 | K9: WN | L9: Monster Stack | M9: 6 | N9: - | O9: - | P9: - | Q9: 200 | U9: - | V9: =IF(OR(Baza[[#This Row],[Room]]="ES",Baza[[#This Row],[Room]]="WN"),(Baza[[#This Row],[B]]*1.12) +(Baza[[#This Row],[R]]*Baza[[#This Row],[B]]*1.12),Baza[[#This Row],[B]]*Baza[[#This Row],[R]]+Baza[[#This Row],[B]]) -> 2.24 | W9: =IF(OR(Baza[[#This Row],[Room]]="ES",Baza[[#This Row],[Room]]="WN"),Baza[[#This Row],[KO]]*1.12,Baza[[#This Row],[KO]]) -> 0 | X9: =IF(OR(Baza[[#This Row],[Room]]="ES",Baza[[#This Row],[Room]]="WN"),Baza[[#This Row],[Win]]*1.12,Baza[[#This Row],[Win]]) -> 0 | Y9: =Baza[[#This Row],[WIN$]]+Baza[[#This Row],[KO$]]-Baza[[#This Row],[B$]] -> -2.24 | Z9: =IF(OR(Baza[[#This Row],[A]]="XP",Baza[[#This Row],[A]]="XP2",Baza[[#This Row],[A]]="F"),AVERAGEIFS(Baza[AFS],Baza[A],"-"),Baza[[#This Row],[GTD]]/Baza[[#This Row],[B]]) -> 100 | AA9: =SUM($Y$2:Y9) -> -4.7
B10: =TEXT(Baza[[#This Row],[Start]],"ч:мм")&" "&IF(OR(Baza[[#This Row],[Room]]="ES",Baza[[#This Row],[Room]]="WN"),"€","$")&Baza[[#This Row],[B]]&" ["&Baza[[#This Row],[Room]]&"] "&Baza[[#This Row],[Name]] -> 12:30 $1,05 [GG] Bounty Hunters | C10: 8 | D10: =YEAR(Baza[[#This Row],[Date]]) -> 2021 | E10: =WEEKNUM(Baza[[#This Row],[Date]],2) -> 1 | F10: =CHOOSE(WEEKDAY(Baza[[#This Row],[Date]],2),"понедельник","вторник","среда","четверг","пятница","суббота","воскресенье") -> пятница | G10: =CHOOSE(MONTH(Baza[[#This Row],[Date]]),"январь","февраль","март","апрель","май","июнь","июль","август","сентябрь","октябрь","ноябрь","декабрь") -> январь | H10: 2021-01-01 | I10: 12:30:00 | J10: 1.05 | K10: GG | L10: Bounty Hunters | M10: 8 | N10: - | O10: K | P10: - | Q10: 750 | R10: 5.04 | S10: 3.98 | U10: 20 | V10: =IF(OR(Baza[[#This Row],[Room]]="ES",Baza[[#This Row],[Room]]="WN"),(Baza[[#This Row],[B]]*1.12) +(Baza[[#This Row],[R]]*Baza[[#This Row],[B]]*1.12),Baza[[#This Row],[B]]*Baza[[#This Row],[R]]+Baza[[#This Row],[B]]) -> 1.05 | W10: =IF(OR(Baza[[#This Row],[Room]]="ES",Baza[[#This Row],[Room]]="WN"),Baza[[#This Row],[KO]]*1.12,Baza[[#This Row],[KO]]) -> 5.04 | X10: =IF(OR(Baza[[#This Row],[Room]]="ES",Baza[[#This Row],[Room]]="WN"),Baza[[#This Row],[Win]]*1.12,Baza[[#This Row],[Win]]) -> 3.98 | Y10: =Baza[[#This Row],[WIN$]]+Baza[[#This Row],[KO$]]-Baza[[#This Row],[B$]] -> 7.97 | Z10: =IF(OR(Baza[[#This Row],[A]]="XP",Baza[[#This Row],[A]]="XP2",Baza[[#This Row],[A]]="F"),AVERAGEIFS(Baza[AFS],Baza[A],"-"),Baza[[#This Row],[GTD]]/Baza[[#This Row],[B]]) -> 714.2857143 | AA10: =SUM($Y$2:Y10) -> 3.27
B11: =TEXT(Baza[[#This Row],[Start]],"ч:мм")&" "&IF(OR(Baza[[#This Row],[Room]]="ES",Baza[[#This Row],[Room]]="WN"),"€","$")&Baza[[#This Row],[B]]&" ["&Baza[[#This Row],[Room]]&"] "&Baza[[#This Row],[Name]] -> 12:30 $1 [PAC] Guaranteed | C11: 9 | D11: =YEAR(Baza[[#This Row],[Date]]) -> 2021 | E11: =WEEKNUM(Baza[[#This Row],[Date]],2) -> 1 | F11: =CHOOSE(WEEKDAY(Baza[[#This Row],[Date]],2),"понедельник","вторник","среда","четверг","пятница","суббота","воскресенье") -> пятница | G11: =CHOOSE(MONTH(Baza[[#This Row],[Date]]),"январь","февраль","март","апрель","май","июнь","июль","август","сентябрь","октябрь","ноябрь","декабрь") -> январь | H11: 2021-01-01 | I11: 12:30:00 | J11: 1 | K11: PAC | L11: Guaranteed | M11: 9 | N11: - | O11: - | P11: - | Q11: 200 | U11: - | V11: =IF(OR(Baza[[#This Row],[Room]]="ES",Baza[[#This Row],[Room]]="WN"),(Baza[[#This Row],[B]]*1.12) +(Baza[[#This Row],[R]]*Baza[[#This Row],[B]]*1.12),Baza[[#This Row],[B]]*Baza[[#This Row],[R]]+Baza[[#This Row],[B]]) -> 1 | W11: =IF(OR(Baza[[#This Row],[Room]]="ES",Baza[[#This Row],[Room]]="WN"),Baza[[#This Row],[KO]]*1.12,Baza[[#This Row],[KO]]) -> 0 | X11: =IF(OR(Baza[[#This Row],[Room]]="ES",Baza[[#This Row],[Room]]="WN"),Baza[[#This Row],[Win]]*1.12,Baza[[#This Row],[Win]]) -> 0 | Y11: =Baza[[#This Row],[WIN$]]+Baza[[#This Row],[KO$]]-Baza[[#This Row],[B$]] -> -1 | Z11: =IF(OR(Baza[[#This Row],[A]]="XP",Baza[[#This Row],[A]]="XP2",Baza[[#This Row],[A]]="F"),AVERAGEIFS(Baza[AFS],Baza[A],"-"),Baza[[#This Row],[GTD]]/Baza[[#This Row],[B]]) -> 200 | AA11: =SUM($Y$2:Y11) -> 2.27
B12: =TEXT(Baza[[#This Row],[Start]],"ч:мм")&" "&IF(OR(Baza[[#This Row],[Room]]="ES",Baza[[#This Row],[Room]]="WN"),"€","$")&Baza[[#This Row],[B]]&" ["&Baza[[#This Row],[Room]]&"] "&Baza[[#This Row],[Name]] -> 12:30 $2,2 [PP] Bounty Hunter | C12: 10 | D12: =YEAR(Baza[[#This Row],[Date]]) -> 2021 | E12: =WEEKNUM(Baza[[#This Row],[Date]],2) -> 1 | F12: =CHOOSE(WEEKDAY(Baza[[#This Row],[Date]],2),"понедельник","вторник","среда","четверг","пятница","суббота","воскресенье") -> пятница | G12: =CHOOSE(MONTH(Baza[[#This Row],[Date]]),"январь","февраль","март","апрель","май","июнь","июль","август","сентябрь","октябрь","ноябрь","декабрь") -> январь | H12: 2021-01-01 | I12: 12:30:00 | J12: 2.2 | K12: PP | L12: Bounty Hunter | M12: 8 | N12: - | O12: K | P12: - | Q12: 200 | U12: - | V12: =IF(OR(Baza[[#This Row],[Room]]="ES",Baza[[#This Row],[Room]]="WN"),(Baza[[#This Row],[B]]*1.12) +(Baza[[#This Row],[R]]*Baza[[#This Row],[B]]*1.12),Baza[[#This Row],[B]]*Baza[[#This Row],[R]]+Baza[[#This Row],[B]]) -> 2.2 | W12: =IF(OR(Baza[[#This Row],[Room]]="ES",Baza[[#This Row],[Room]]="WN"),Baza[[#This Row],[KO]]*1.12,Baza[[#This Row],[KO]]) -> 0 | X12: =IF(OR(Baza[[#This Row],[Room]]="ES",Baza[[#This Row],[Room]]="WN"),Baza[[#This Row],[Win]]*1.12,Baza[[#This Row],[Win]]) -> 0 | Y12: =Baza[[#This Row],[WIN$]]+Baza[[#This Row],[KO$]]-Baza[[#This Row],[B$]] -> -2.2 | Z12: =IF(OR(Baza[[#This Row],[A]]="XP",Baza[[#This Row],[A]]="XP2",Baza[[#This Row],[A]]="F"),AVERAGEIFS(Baza[AFS],Baza[A],"-"),Baza[[#This Row],[GTD]]/Baza[[#This Row],[B]]) -> 90.90909091 | AA12: =SUM($Y$2:Y12) -> 0.07
B13: =TEXT(Baza[[#This Row],[Start]],"ч:мм")&" "&IF(OR(Baza[[#This Row],[Room]]="ES",Baza[[#This Row],[Room]]="WN"),"€","$")&Baza[[#This Row],[B]]&" ["&Baza[[#This Row],[Room]]&"] "&Baza[[#This Row],[Name]] -> 13:00 $2 [GG] Big | C13: 11 | D13: =YEAR(Baza[[#This Row],[Date]]) -> 2021 | E13: =WEEKNUM(Baza[[#This Row],[Date]],2) -> 1 | F13: =CHOOSE(WEEKDAY(Baza[[#This Row],[Date]],2),"понедельник","вторник","среда","четверг","пятница","суббота","воскресенье") -> пятница | G13: =CHOOSE(MONTH(Baza[[#This Row],[Date]]),"январь","февраль","март","апрель","май","июнь","июль","август","сентябрь","октябрь","ноябрь","декабрь") -> январь | H13: 2021-01-01 | I13: 13:00:00 | J13: 2 | K13: GG | L13: Big | M13: 8 | N13: - | O13: - | P13: - | Q13: 750 | U13: - | V13: =IF(OR(Baza[[#This Row],[Room]]="ES",Baza[[#This Row],[Room]]="WN"),(Baza[[#This Row],[B]]*1.12) +(Baza[[#This Row],[R]]*Baza[[#This Row],[B]]*1.12),Baza[[#This Row],[B]]*Baza[[#This Row],[R]]+Baza[[#This Row],[B]]) -> 2 | W13: =IF(OR(Baza[[#This Row],[Room]]="ES",Baza[[#This Row],[Room]]="WN"),Baza[[#This Row],[KO]]*1.12,Baza[[#This Row],[KO]]) -> 0 | X13: =IF(OR(Baza[[#This Row],[Room]]="ES",Baza[[#This Row],[Room]]="WN"),Baza[[#This Row],[Win]]*1.12,Baza[[#This Row],[Win]]) -> 0 | Y13: =Baza[[#This Row],[WIN$]]+Baza[[#This Row],[KO$]]-Baza[[#This Row],[B$]] -> -2 | Z13: =IF(OR(Baza[[#This Row],[A]]="XP",Baza[[#This Row],[A]]="XP2",Baza[[#This Row],[A]]="F"),AVERAGEIFS(Baza[AFS],Baza[A],"-"),Baza[[#This Row],[GTD]]/Baza[[#This Row],[B]]) -> 375 | AA13: =SUM($Y$2:Y13) -> -1.93
B14: =TEXT(Baza[[#This Row],[Start]],"ч:мм")&" "&IF(OR(Baza[[#This Row],[Room]]="ES",Baza[[#This Row],[Room]]="WN"),"€","$")&Baza[[#This Row],[B]]&" ["&Baza[[#This Row],[Room]]&"] "&Baza[[#This Row],[Name]] -> 13:00 $1,1 [PP] Bounty Hunter | C14: 12 | D14: =YEAR(Baza[[#This Row],[Date]]) -> 2021 | E14: =WEEKNUM(Baza[[#This Row],[Date]],2) -> 1 | F14: =CHOOSE(WEEKDAY(Baza[[#This Row],[Date]],2),"понедельник","вторник","среда","четверг","пятница","суббота","воскресенье") -> пятница | G14: =CHOOSE(MONTH(Baza[[#This Row],[Date]]),"январь","февраль","март","апрель","май","июнь","июль","август","сентябрь","октябрь","ноябрь","декабрь") -> январь | H14: 2021-01-01 | I14: 13:00:00 | J14: 1.1 | K14: PP | L14: Bounty Hunter | M14: 8 | N14: - | O14: K | P14: - | Q14: 100 | R14: 1.37 | S14: 1.25 | U14: 18 | V14: =IF(OR(Baza[[#This Row],[Room]]="ES",Baza[[#This Row],[Room]]="WN"),(Baza[[#This Row],[B]]*1.12) +(Baza[[#This Row],[R]]*Baza[[#This Row],[B]]*1.12),Baza[[#This Row],[B]]*Baza[[#This Row],[R]]+Baza[[#This Row],[B]]) -> 1.1 | W14: =IF(OR(Baza[[#This Row],[Room]]="ES",Baza[[#This Row],[Room]]="WN"),Baza[[#This Row],[KO]]*1.12,Baza[[#This Row],[KO]]) -> 1.37 | X14: =IF(OR(Baza[[#This Row],[Room]]="ES",Baza[[#This Row],[Room]]="WN"),Baza[[#This Row],[Win]]*1.12,Baza[[#This Row],[Win]]) -> 1.25 | Y14: =Baza[[#This Row],[WIN$]]+Baza[[#This Row],[KO$]]-Baza[[#This Row],[B$]] -> 1.52 | Z14: =IF(OR(Baza[[#This Row],[A]]="XP",Baza[[#This Row],[A]]="XP2",Baza[[#This Row],[A]]="F"),AVERAGEIFS(Baza[AFS],Baza[A],"-"),Baza[[#This Row],[GTD]]/Baza[[#This Row],[B]]) -> 90.90909091 | AA14: =SUM($Y$2:Y14) -> -0.41
B15: =TEXT(Baza[[#This Row],[Start]],"ч:мм")&" "&IF(OR(Baza[[#This Row],[Room]]="ES",Baza[[#This Row],[Room]]="WN"),"€","$")&Baza[[#This Row],[B]]&" ["&Baza[[#This Row],[Room]]&"] "&Baza[[#This Row],[Name]] -> 14:00 $2,2 [PAC] Guaranteed | C15: 13 | D15: =YEAR(Baza[[#This Row],[Date]]) -> 2021 | E15: =WEEKNUM(Baza[[#This Row],[Date]],2) -> 1 | F15: =CHOOSE(WEEKDAY(Baza[[#This Row],[Date]],2),"понедельник","вторник","среда","четверг","пятница","суббота","воскресенье") -> пятница | G15: =CHOOSE(MONTH(Baza[[#This Row],[Date]]),"январь","февраль","март","апрель","май","июнь","июль","август","сентябрь","октябрь","ноябрь","декабрь") -> январь | H15: 2021-01-01 | I15: 14:00:00 | J15: 2.2 | K15: PAC | L15: Guaranteed | M15: 9 | N15: - | O15: - | P15: - | Q15: 500 | U15: - | V15: =IF(OR(Baza[[#This Row],[Room]]="ES",Baza[[#This Row],[Room]]="WN"),(Baza[[#This Row],[B]]*1.12) +(Baza[[#This Row],[R]]*Baza[[#This Row],[B]]*1.12),Baza[[#This Row],[B]]*Baza[[#This Row],[R]]+Baza[[#This Row],[B]]) -> 2.2 | W15: =IF(OR(Baza[[#This Row],[Room]]="ES",Baza[[#This Row],[Room]]="WN"),Baza[[#This Row],[KO]]*1.12,Baza[[#This Row],[KO]]) -> 0 | X15: =IF(OR(Baza[[#This Row],[Room]]="ES",Baza[[#This Row],[Room]]="WN"),Baza[[#This Row],[Win]]*1.12,Baza[[#This Row],[Win]]) -> 0 | Y15: =Baza[[#This Row],[WIN$]]+Baza[[#This Row],[KO$]]-Baza[[#This Row],[B$]] -> -2.2 | Z15: =IF(OR(Baza[[#This Row],[A]]="XP",Baza[[#This Row],[A]]="XP2",Baza[[#This Row],[A]]="F"),AVERAGEIFS(Baza[AFS],Baza[A],"-"),Baza[[#This Row],[GTD]]/Baza[[#This Row],[B]]) -> 227.2727273 | AA15: =SUM($Y$2:Y15) -> -2.61
B16: =TEXT(Baza[[#This Row],[Start]],"ч:мм")&" "&IF(OR(Baza[[#This Row],[Room]]="ES",Baza[[#This Row],[Room]]="WN"),"€","$")&Baza[[#This Row],[B]]&" ["&Baza[[#This Row],[Room]]&"] "&Baza[[#This Row],[Name]] -> 14:20 $1,1 [PS] Progressive KO | C16: 14 | D16: =YEAR(Baza[[#This Row],[Date]]) -> 2021 | E16: =WEEKNUM(Baza[[#This Row],[Date]],2) -> 1 | F16: =CHOOSE(WEEKDAY(Baza[[#This Row],[Date]],2),"понедельник","вторник","среда","четверг","пятница","суббота","воскресенье") -> пятница | G16: =CHOOSE(MONTH(Baza[[#This Row],[Date]]),"январь","февраль","март","апрель","май","июнь","июль","август","сентябрь","октябрь","ноябрь","декабрь") -> январь | H16: 2021-01-01 | I16: 14:20:00 | J16: 1.1 | K16: PS | L16: Progressive KO | M16: 9 | N16: - | O16: K | P16: - | Q16: 2000 | U16: - | V16: =IF(OR(Baza[[#This Row],[Room]]="ES",Baza[[#This Row],[Room]]="WN"),(Baza[[#This Row],[B]]*1.12) +(Baza[[#This Row],[R]]*Baza[[#This Row],[B]]*1.12),Baza[[#This Row],[B]]*Baza[[#This Row],[R]]+Baza[[#This Row],[B]]) -> 1.1 | W16: =IF(OR(Baza[[#This Row],[Room]]="ES",Baza[[#This Row],[Room]]="WN"),Baza[[#This Row],[KO]]*1.12,Baza[[#This Row],[KO]]) -> 0 | X16: =IF(OR(Baza[[#This Row],[Room]]="ES",Baza[[#This Row],[Room]]="WN"),Baza[[#This Row],[Win]]*1.12,Baza[[#This Row],[Win]]) -> 0 | Y16: =Baza[[#This Row],[WIN$]]+Baza[[#This Row],[KO$]]-Baza[[#This Row],[B$]] -> -1.1 | Z16: =IF(OR(Baza[[#This Row],[A]]="XP",Baza[[#This Row],[A]]="XP2",Baza[[#This Row],[A]]="F"),AVERAGEIFS(Baza[AFS],Baza[A],"-"),Baza[[#This Row],[GTD]]/Baza[[#This Row],[B]]) -> 1818.181818 | AA16: =SUM($Y$2:Y16) -> -3.71
B17: =TEXT(Baza[[#This Row],[Start]],"ч:мм")&" "&IF(OR(Baza[[#This Row],[Room]]="ES",Baza[[#This Row],[Room]]="WN"),"€","$")&Baza[[#This Row],[B]]&" ["&Baza[[#This Row],[Room]]&"] "&Baza[[#This Row],[Name]] -> 14:30 $1,05 [GG] Bounty Hunters | C17: 15 | D17: =YEAR(Baza[[#This Row],[Date]]) -> 2021 | E17: =WEEKNUM(Baza[[#This Row],[Date]],2) -> 1 | F17: =CHOOSE(WEEKDAY(Baza[[#This Row],[Date]],2),"понедельник","вторник","среда","четверг","пятница","суббота","воскресенье") -> пятница | G17: =CHOOSE(MONTH(Baza[[#This Row],[Date]]),"январь","февраль","март","апрель","май","июнь","июль","август","сентябрь","октябрь","ноябрь","декабрь") -> январь | H17: 2021-01-01 | I17: 14:30:00 | J17: 1.05 | K17: GG | L17: Bounty Hunters | M17: 8 | N17: - | O17: K | P17: - | Q17: 750 | U17: - | V17: =IF(OR(Baza[[#This Row],[Room]]="ES",Baza[[#This Row],[Room]]="WN"),(Baza[[#This Row],[B]]*1.12) +(Baza[[#This Row],[R]]*Baza[[#This Row],[B]]*1.12),Baza[[#This Row],[B]]*Baza[[#This Row],[R]]+Baza[[#This Row],[B]]) -> 1.05 | W17: =IF(OR(Baza[[#This Row],[Room]]="ES",Baza[[#This Row],[Room]]="WN"),Baza[[#This Row],[KO]]*1.12,Baza[[#This Row],[KO]]) -> 0 | X17: =IF(OR(Baza[[#This Row],[Room]]="ES",Baza[[#This Row],[Room]]="WN"),Baza[[#This Row],[Win]]*1.12,Baza[[#This Row],[Win]]) -> 0 | Y17: =Baza[[#This Row],[WIN$]]+Baza[[#This Row],[KO$]]-Baza[[#This Row],[B$]] -> -1.05 | Z17: =IF(OR(Baza[[#This Row],[A]]="XP",Baza[[#This Row],[A]]="XP2",Baza[[#This Row],[A]]="F"),AVERAGEIFS(Baza[AFS],Baza[A],"-"),Baza[[#This Row],[GTD]]/Baza[[#This Row],[B]]) -> 714.2857143 | AA17: =SUM($Y$2:Y17) -> -4.76
B18: =TEXT(Baza[[#This Row],[Start]],"ч:мм")&" "&IF(OR(Baza[[#This Row],[Room]]="ES",Baza[[#This Row],[Room]]="WN"),"€","$")&Baza[[#This Row],[B]]&" ["&Baza[[#This Row],[Room]]&"] "&Baza[[#This Row],[Name]] -> 15:00 $1,1 [PP] Bounty Hunter | C18: 16 | D18: =YEAR(Baza[[#This Row],[Date]]) -> 2021 | E18: =WEEKNUM(Baza[[#This Row],[Date]],2) -> 1 | F18: =CHOOSE(WEEKDAY(Baza[[#This Row],[Date]],2),"понедельник","вторник","среда","четверг","пятница","суббота","воскресенье") -> пятница | G18: =CHOOSE(MONTH(Baza[[#This Row],[Date]]),"январь","февраль","март","апрель","май","июнь","июль","август","сентябрь","октябрь","ноябрь","декабрь") -> январь | H18: 2021-01-01 | I18: 15:00:00 | J18: 1.1 | K18: PP | L18: Bounty Hunter | M18: 8 | N18: - | O18: K | P18: - | Q18: 200 | U18: - | V18: =IF(OR(Baza[[#This Row],[Room]]="ES",Baza[[#This Row],[Room]]="WN"),(Baza[[#This Row],[B]]*1.12) +(Baza[[#This Row],[R]]*Baza[[#This Row],[B]]*1.12),Baza[[#This Row],[B]]*Baza[[#This Row],[R]]+Baza[[#This Row],[B]]) -> 1.1 | W18: =IF(OR(Baza[[#This Row],[Room]]="ES",Baza[[#This Row],[Room]]="WN"),Baza[[#This Row],[KO]]*1.12,Baza[[#This Row],[KO]]) -> 0 | X18: =IF(OR(Baza[[#This Row],[Room]]="ES",Baza[[#This Row],[Room]]="WN"),Baza[[#This Row],[Win]]*1.12,Baza[[#This Row],[Win]]) -> 0 | Y18: =Baza[[#This Row],[WIN$]]+Baza[[#This Row],[KO$]]-Baza[[#This Row],[B$]] -> -1.1 | Z18: =IF(OR(Baza[[#This Row],[A]]="XP",Baza[[#This Row],[A]]="XP2",Baza[[#This Row],[A]]="F"),AVERAGEIFS(Baza[AFS],Baza[A],"-"),Baza[[#This Row],[GTD]]/Baza[[#This Row],[B]]) -> 181.8181818 | AA18: =SUM($Y$2:Y18) -> -5.86
B19: =TEXT(Baza[[#This Row],[Start]],"ч:мм")&" "&IF(OR(Baza[[#This Row],[Room]]="ES",Baza[[#This Row],[Room]]="WN"),"€","$")&Baza[[#This Row],[B]]&" ["&Baza[[#This Row],[Room]]&"] "&Baza[[#This Row],[Name]] -> 15:00 $1,1 [PS] GTD | C19: 17 | D19: =YEAR(Baza[[#This Row],[Date]]) -> 2021 | E19: =WEEKNUM(Baza[[#This Row],[Date]],2) -> 1 | F19: =CHOOSE(WEEKDAY(Baza[[#This Row],[Date]],2),"понедельник","вторник","среда","четверг","пятница","суббота","воскресенье") -> пятница | G19: =CHOOSE(MONTH(Baza[[#This Row],[Date]]),"январь","февраль","март","апрель","май","июнь","июль","август","сентябрь","октябрь","ноябрь","декабрь") -> январь | H19: 2021-01-01 | I19: 15:00:00 | J19: 1.1 | K19: PS | L19: GTD | M19: 9 | N19: - | O19: - | P19: - | Q19: 750 | S19: 6.47 | U19: 19 | V19: =IF(OR(Baza[[#This Row],[Room]]="ES",Baza[[#This Row],[Room]]="WN"),(Baza[[#This Row],[B]]*1.12) +(Baza[[#This Row],[R]]*Baza[[#This Row],[B]]*1.12),Baza[[#This Row],[B]]*Baza[[#This Row],[R]]+Baza[[#This Row],[B]]) -> 1.1 | W19: =IF(OR(Baza[[#This Row],[Room]]="ES",Baza[[#This Row],[Room]]="WN"),Baza[[#This Row],[KO]]*1.12,Baza[[#This Row],[KO]]) -> 0 | X19: =IF(OR(Baza[[#This Row],[Room]]="ES",Baza[[#This Row],[Room]]="WN"),Baza[[#This Row],[Win]]*1.12,Baza[[#This Row],[Win]]) -> 6.47 | Y19: =Baza[[#This Row],[WIN$]]+Baza[[#This Row],[KO$]]-Baza[[#This Row],[B$]] -> 5.37 | Z19: =IF(OR(Baza[[#This Row],[A]]="XP",Baza[[#This Row],[A]]="XP2",Baza[[#This Row],[A]]="F"),AVERAGEIFS(Baza[AFS],Baza[A],"-"),Baza[[#This Row],[GTD]]/Baza[[#This Row],[B]]) -> 681.8181818 | AA19: =SUM($Y$2:Y19) -> -0.49
B20: =TEXT(Baza[[#This Row],[Start]],"ч:мм")&" "&IF(OR(Baza[[#This Row],[Room]]="ES",Baza[[#This Row],[Room]]="WN"),"€","$")&Baza[[#This Row],[B]]&" ["&Baza[[#This Row],[Room]]&"] "&Baza[[#This Row],[Name]] -> 15:00 €1 [WN] Monster Stack | C20: 18 | D20: =YEAR(Baza[[#This Row],[Date]]) -> 2021 | E20: =WEEKNUM(Baza[[#This Row],[Date]],2) -> 1 | F20: =CHOOSE(WEEKDAY(Baza[[#This Row],[Date]],2),"понедельник","вторник","среда","четверг","пятница","суббота","воскресенье") -> пятница | G20: =CHOOSE(MONTH(Baza[[#This Row],[Date]]),"январь","февраль","март","апрель","май","июнь","июль","август","сентябрь","октябрь","ноябрь","декабрь") -> январь | H20: 2021-01-01 | I20: 15:00:00 | J20: 1 | K20: WN | L20: Monster Stack | M20: 6 | N20: - | O20: - | P20: - | Q20: 250 | U20: - | V20: =IF(OR(Baza[[#This Row],[Room]]="ES",Baza[[#This Row],[Room]]="WN"),(Baza[[#This Row],[B]]*1.12) +(Baza[[#This Row],[R]]*Baza[[#This Row],[B]]*1.12),Baza[[#This Row],[B]]*Baza[[#This Row],[R]]+Baza[[#This Row],[B]]) -> 1.12 | W20: =IF(OR(Baza[[#This Row],[Room]]="ES",Baza[[#This Row],[Room]]="WN"),Baza[[#This Row],[KO]]*1.12,Baza[[#This Row],[KO]]) -> 0 | X20: =IF(OR(Baza[[#This Row],[Room]]="ES",Baza[[#This Row],[Room]]="WN"),Baza[[#This Row],[Win]]*1.12,Baza[[#This Row],[Win]]) -> 0 | Y20: =Baza[[#This Row],[WIN$]]+Baza[[#This Row],[KO$]]-Baza[[#This Row],[B$]] -> -1.12 | Z20: =IF(OR(Baza[[#This Row],[A]]="XP",Baza[[#This Row],[A]]="XP2",Baza[[#This Row],[A]]="F"),AVERAGEIFS(Baza[AFS],Baza[A],"-"),Baza[[#This Row],[GTD]]/Baza[[#This Row],[B]]) -> 250 | AA20: =SUM($Y$2:Y20) -> -1.61
B21: =TEXT(Baza[[#This Row],[Start]],"ч:мм")&" "&IF(OR(Baza[[#This Row],[Room]]="ES",Baza[[#This Row],[Room]]="WN"),"€","$")&Baza[[#This Row],[B]]&" ["&Baza[[#This Row],[Room]]&"] "&Baza[[#This Row],[Name]] -> 16:00 $1 [PAC] 6-Max Think Fast | C21: 19 | D21: =YEAR(Baza[[#This Row],[Date]]) -> 2021 | E21: =WEEKNUM(Baza[[#This Row],[Date]],2) -> 1 | F21: =CHOOSE(WEEKDAY(Baza[[#This Row],[Date]],2),"понедельник","вторник","среда","четверг","пятница","суббота","воскресенье") -> пятница | G21: =CHOOSE(MONTH(Baza[[#This Row],[Date]]),"январь","февраль","март","апрель","май","июнь","июль","август","сентябрь","октябрь","ноябрь","декабрь") -> январь | H21: 2021-01-01 | I21: 16:00:00 | J21: 1 | K21: PAC | L21: 6-Max Think Fast | M21: 6 | N21: - | O21: - | P21: - | Q21: 300 | U21: - | V21: =IF(OR(Baza[[#This Row],[Room]]="ES",Baza[[#This Row],[Room]]="WN"),(Baza[[#This Row],[B]]*1.12) +(Baza[[#This Row],[R]]*Baza[[#This Row],[B]]*1.12),Baza[[#This Row],[B]]*Baza[[#This Row],[R]]+Baza[[#This Row],[B]]) -> 1 | W21: =IF(OR(Baza[[#This Row],[Room]]="ES",Baza[[#This Row],[Room]]="WN"),Baza[[#This Row],[KO]]*1.12,Baza[[#This Row],[KO]]) -> 0 | X21: =IF(OR(Baza[[#This Row],[Room]]="ES",Baza[[#This Row],[Room]]="WN"),Baza[[#This Row],[Win]]*1.12,Baza[[#This Row],[Win]]) -> 0 | Y21: =Baza[[#This Row],[WIN$]]+Baza[[#This Row],[KO$]]-Baza[[#This Row],[B$]] -> -1 | Z21: =IF(OR(Baza[[#This Row],[A]]="XP",Baza[[#This Row],[A]]="XP2",Baza[[#This Row],[A]]="F"),AVERAGEIFS(Baza[AFS],Baza[A],"-"),Baza[[#This Row],[GTD]]/Baza[[#This Row],[B]]) -> 300 | AA21: =SUM($Y$2:Y21) -> -2.61
B22: =TEXT(Baza[[#This Row],[Start]],"ч:мм")&" "&IF(OR(Baza[[#This Row],[Room]]="ES",Baza[[#This Row],[Room]]="WN"),"€","$")&Baza[[#This Row],[B]]&" ["&Baza[[#This Row],[Room]]&"] "&Baza[[#This Row],[Name]] -> 16:15 $1,1 [PAC] Guaranteed PKO | C22: 20 | D22: =YEAR(Baza[[#This Row],[Date]]) -> 2021 | E22: =WEEKNUM(Baza[[#This Row],[Date]],2) -> 1 | F22: =CHOOSE(WEEKDAY(Baza[[#This Row],[Date]],2),"понедельник","вторник","среда","четверг","пятница","суббота","воскресенье") -> пятница | G22: =CHOOSE(MONTH(Baza[[#This Row],[Date]]),"январь","февраль","март","апрель","май","июнь","июль","август","сентябрь","октябрь","ноябрь","декабрь") -> январь | H22: 2021-01-01 | I22: 16:15:00 | J22: 1.1 | K22: PAC | L22: Guaranteed PKO | M22: 9 | N22: - | O22: K | P22: - | Q22: 300 | R22: 0.25 | U22: - | V22: =IF(OR(Baza[[#This Row],[Room]]="ES",Baza[[#This Row],[Room]]="WN"),(Baza[[#This Row],[B]]*1.12) +(Baza[[#This Row],[R]]*Baza[[#This Row],[B]]*1.12),Baza[[#This Row],[B]]*Baza[[#This Row],[R]]+Baza[[#This Row],[B]]) -> 1.1 | W22: =IF(OR(Baza[[#This Row],[Room]]="ES",Baza[[#This Row],[Room]]="WN"),Baza[[#This Row],[KO]]*1.12,Baza[[#This Row],[KO]]) -> 0.25 | X22: =IF(OR(Baza[[#This Row],[Room]]="ES",Baza[[#This Row],[Room]]="WN"),Baza[[#This Row],[Win]]*1.12,Baza[[#This Row],[Win]]) -> 0 | Y22: =Baza[[#This Row],[WIN$]]+Baza[[#This Row],[KO$]]-Baza[[#This Row],[B$]] -> -0.85 | Z22: =IF(OR(Baza[[#This Row],[A]]="XP",Baza[[#This Row],[A]]="XP2",Baza[[#This Row],[A]]="F"),AVERAGEIFS(Baza[AFS],Baza[A],"-"),Baza[[#This Row],[GTD]]/Baza[[#This Row],[B]]) -> 272.7272727 | AA22: =SUM($Y$2:Y22) -> -3.46
B23: =TEXT(Baza[[#This Row],[Start]],"ч:мм")&" "&IF(OR(Baza[[#This Row],[Room]]="ES",Baza[[#This Row],[Room]]="WN"),"€","$")&Baza[[#This Row],[B]]&" ["&Baza[[#This Row],[Room]]&"] "&Baza[[#This Row],[Name]] -> 16:15 $1,1 [PS] GTD | C23: 21 | D23: =YEAR(Baza[[#This Row],[Date]]) -> 2021 | E23: =WEEKNUM(Baza[[#This Row],[Date]],2) -> 1 | F23: =CHOOSE(WEEKDAY(Baza[[#This Row],[Date]],2),"понедельник","вторник","среда","четверг","пятница","суббота","воскресенье") -> пятница | G23: =CHOOSE(MONTH(Baza[[#This Row],[Date]]),"январь","февраль","март","апрель","май","июнь","июль","август","сентябрь","октябрь","ноябрь","декабрь") -> январь | H23: 2021-01-01 | I23: 16:15:00 | J23: 1.1 | K23: PS | L23: GTD | M23: 9 | N23: - | O23: - | P23: - | Q23: 1500 | S23: 3.97 | U23: 145 | V23: =IF(OR(Baza[[#This Row],[Room]]="ES",Baza[[#This Row],[Room]]="WN"),(Baza[[#This Row],[B]]*1.12) +(Baza[[#This Row],[R]]*Baza[[#This Row],[B]]*1.12),Baza[[#This Row],[B]]*Baza[[#This Row],[R]]+Baza[[#This Row],[B]]) -> 1.1 | W23: =IF(OR(Baza[[#This Row],[Room]]="ES",Baza[[#This Row],[Room]]="WN"),Baza[[#This Row],[KO]]*1.12,Baza[[#This Row],[KO]]) -> 0 | X23: =IF(OR(Baza[[#This Row],[Room]]="ES",Baza[[#This Row],[Room]]="WN"),Baza[[#This Row],[Win]]*1.12,Baza[[#This Row],[Win]]) -> 3.97 | Y23: =Baza[[#This Row],[WIN$]]+Baza[[#This Row],[KO$]]-Baza[[#This Row],[B$]] -> 2.87 | Z23: =IF(OR(Baza[[#This Row],[A]]="XP",Baza[[#This Row],[A]]="XP2",Baza[[#This Row],[A]]="F"),AVERAGEIFS(Baza[AFS],Baza[A],"-"),Baza[[#This Row],[GTD]]/Baza[[#This Row],[B]]) -> 1363.636364 | AA23: =SUM($Y$2:Y23) -> -0.59
B24: =TEXT(Baza[[#This Row],[Start]],"ч:мм")&" "&IF(OR(Baza[[#This Row],[Room]]="ES",Baza[[#This Row],[Room]]="WN"),"€","$")&Baza[[#This Row],[B]]&" ["&Baza[[#This Row],[Room]]&"] "&Baza[[#This Row],[Name]] -> 16:30 $2,2 [PAC] Guaranteed | C24: 22 | D24: =YEAR(Baza[[#This Row],[Date]]) -> 2021 | E24: =WEEKNUM(Baza[[#This Row],[Date]],2) -> 1 | F24: =CHOOSE(WEEKDAY(Baza[[#This Row],[Date]],2),"понедельник","вторник","среда","четверг","пятница","суббота","воскресенье") -> пятница | G24: =CHOOSE(MONTH(Baza[[#This Row],[Date]]),"январь","февраль","март","апрель","май","июнь","июль","август","сентябрь","октябрь","ноябрь","декабрь") -> январь | H24: 2021-01-01 | I24: 16:30:00 | J24: 2.2 | K24: PAC | L24: Guaranteed | M24: 9 | N24: - | O24: - | P24: - | Q24: 500 | U24: - | V24: =IF(OR(Baza[[#This Row],[Room]]="ES",Baza[[#This Row],[Room]]="WN"),(Baza[[#This Row],[B]]*1.12) +(Baza[[#This Row],[R]]*Baza[[#This Row],[B]]*1.12),Baza[[#This Row],[B]]*Baza[[#This Row],[R]]+Baza[[#This Row],[B]]) -> 2.2 | W24: =IF(OR(Baza[[#This Row],[Room]]="ES",Baza[[#This Row],[Room]]="WN"),Baza[[#This Row],[KO]]*1.12,Baza[[#This Row],[KO]]) -> 0 | X24: =IF(OR(Baza[[#This Row],[Room]]="ES",Baza[[#This Row],[Room]]="WN"),Baza[[#This Row],[Win]]*1.12,Baza[[#This Row],[Win]]) -> 0 | Y24: =Baza[[#This Row],[WIN$]]+Baza[[#This Row],[KO$]]-Baza[[#This Row],[B$]] -> -2.2 | Z24: =IF(OR(Baza[[#This Row],[A]]="XP",Baza[[#This Row],[A]]="XP2",Baza[[#This Row],[A]]="F"),AVERAGEIFS(Baza[AFS],Baza[A],"-"),Baza[[#This Row],[GTD]]/Baza[[#This Row],[B]]) -> 227.2727273 | AA24: =SUM($Y$2:Y24) -> -2.79
B25: =TEXT(Baza[[#This Row],[Start]],"ч:мм")&" "&IF(OR(Baza[[#This Row],[Room]]="ES",Baza[[#This Row],[Room]]="WN"),"€","$")&Baza[[#This Row],[B]]&" ["&Baza[[#This Row],[Room]]&"] "&Baza[[#This Row],[Name]] -> 11:00 $1,1 [PP] Bounty Hunter | C25: 23 | D25: =YEAR(Baza[[#This Row],[Date]]) -> 2021 | E25: =WEEKNUM(Baza[[#This Row],[Date]],2) -> 1 | F25: =CHOOSE(WEEKDAY(Baza[[#This Row],[Date]],2),"понедельник","вторник","среда","четверг","пятница","суббота","воскресенье") -> суббота | G25: =CHOOSE(MONTH(Baza[[#This Row],[Date]]),"январь","февраль","март","апрель","май","июнь","июль","август","сентябрь","октябрь","ноябрь","декабрь") -> январь | H25: 2021-01-02 | I25: 11:00:00 | J25: 1.1 | K25: PP | L25: Bounty Hunter | M25: 8 | N25: - | O25: K | P25: - | Q25: 75 | U25: - | V25: =IF(OR(Baza[[#This Row],[Room]]="ES",Baza[[#This Row],[Room]]="WN"),(Baza[[#This Row],[B]]*1.12) +(Baza[[#This Row],[R]]*Baza[[#This Row],[B]]*1.12),Baza[[#This Row],[B]]*Baza[[#This Row],[R]]+Baza[[#This Row],[B]]) -> 1.1 | W25: =IF(OR(Baza[[#This Row],[Room]]="ES",Baza[[#This Row],[Room]]="WN"),Baza[[#This Row],[KO]]*1.12,Baza[[#This Row],[KO]]) -> 0 | X25: =IF(OR(Baza[[#This Row],[Room]]="ES",Baza[[#This Row],[Room]]="WN"),Baza[[#This Row],[Win]]*1.12,Baza[[#This Row],[Win]]) -> 0 | Y25: =Baza[[#This Row],[WIN$]]+Baza[[#This Row],[KO$]]-Baza[[#This Row],[B$]] -> -1.1 | Z25: =IF(OR(Baza[[#This Row],[A]]="XP",Baza[[#This Row],[A]]="XP2",Baza[[#This Row],[A]]="F"),AVERAGEIFS(Baza[AFS],Baza[A],"-"),Baza[[#This Row],[GTD]]/Baza[[#This Row],[B]]) -> 68.18181818 | AA25: =SUM($Y$2:Y25) -> -3.89
B26: =TEXT(Baza[[#This Row],[Start]],"ч:мм")&" "&IF(OR(Baza[[#This Row],[Room]]="ES",Baza[[#This Row],[Room]]="WN"),"€","$")&Baza[[#This Row],[B]]&" ["&Baza[[#This Row],[Room]]&"] "&Baza[[#This Row],[Name]] -> 11:00 €1 [WN] Monster Stack | C26: 24 | D26: =YEAR(Baza[[#This Row],[Date]]) -> 2021 | E26: =WEEKNUM(Baza[[#This Row],[Date]],2) -> 1 | F26: =CHOOSE(WEEKDAY(Baza[[#This Row],[Date]],2),"понедельник","вторник","среда","четверг","пятница","суббота","воскресенье") -> суббота | G26: =CHOOSE(MONTH(Baza[[#This Row],[Date]]),"январь","февраль","март","апрель","май","июнь","июль","август","сентябрь","октябрь","ноябрь","декабрь") -> январь | H26: 2021-01-02 | I26: 11:00:00 | J26: 1 | K26: WN | L26: Monster Stack | M26: 6 | N26: - | O26: - | P26: - | Q26: 150 | S26: 62.92 | U26: 1 | V26: =IF(OR(Baza[[#This Row],[Room]]="ES",Baza[[#This Row],[Room]]="WN"),(Baza[[#This Row],[B]]*1.12) +(Baza[[#This Row],[R]]*Baza[[#This Row],[B]]*1.12),Baza[[#This Row],[B]]*Baza[[#This Row],[R]]+Baza[[#This Row],[B]]) -> 1.12 | W26: =IF(OR(Baza[[#This Row],[Room]]="ES",Baza[[#This Row],[Room]]="WN"),Baza[[#This Row],[KO]]*1.12,Baza[[#This Row],[KO]]) -> 0 | X26: =IF(OR(Baza[[#This Row],[Room]]="ES",Baza[[#This Row],[Room]]="WN"),Baza[[#This Row],[Win]]*1.12,Baza[[#This Row],[Win]]) -> 70.4704 | Y26: =Baza[[#This Row],[WIN$]]+Baza[[#This Row],[KO$]]-Baza[[#This Row],[B$]] -> 69.3504 | Z26: =IF(OR(Baza[[#This Row],[A]]="XP",Baza[[#This Row],[A]]="XP2",Baza[[#This Row],[A]]="F"),AVERAGEIFS(Baza[AFS],Baza[A],"-"),Baza[[#This Row],[GTD]]/Baza[[#This Row],[B]]) -> 150 | AA26: =SUM($Y$2:Y26) -> 65.4604
B27: =TEXT(Baza[[#This Row],[Start]],"ч:мм")&" "&IF(OR(Baza[[#This Row],[Room]]="ES",Baza[[#This Row],[Room]]="WN"),"€","$")&Baza[[#This Row],[B]]&" ["&Baza[[#This Row],[Room]]&"] "&Baza[[#This Row],[Name]] -> 11:15 $2,2 [PP] Deepstack | C27: 25 | D27: =YEAR(Baza[[#This Row],[Date]]) -> 2021 | E27: =WEEKNUM(Baza[[#This Row],[Date]],2) -> 1 | F27: =CHOOSE(WEEKDAY(Baza[[#This Row],[Date]],2),"понедельник","вторник","среда","четверг","пятница","суббота","воскресенье") -> суббота | G27: =CHOOSE(MONTH(Baza[[#This Row],[Date]]),"январь","февраль","март","апрель","май","июнь","июль","август","сентябрь","октябрь","ноябрь","декабрь") -> январь | H27: 2021-01-02 | I27: 11:15:00 | J27: 2.2 | K27: PP | L27: Deepstack | M27: 8 | N27: - | O27: - | P27: - | Q27: 300 | U27: - | V27: =IF(OR(Baza[[#This Row],[Room]]="ES",Baza[[#This Row],[Room]]="WN"),(Baza[[#This Row],[B]]*1.12) +(Baza[[#This Row],[R]]*Baza[[#This Row],[B]]*1.12),Baza[[#This Row],[B]]*Baza[[#This Row],[R]]+Baza[[#This Row],[B]]) -> 2.2 | W27: =IF(OR(Baza[[#This Row],[Room]]="ES",Baza[[#This Row],[Room]]="WN"),Baza[[#This Row],[KO]]*1.12,Baza[[#This Row],[KO]]) -> 0 | X27: =IF(OR(Baza[[#This Row],[Room]]="ES",Baza[[#This Row],[Room]]="WN"),Baza[[#This Row],[Win]]*1.12,Baza[[#This Row],[Win]]) -> 0 | Y27: =Baza[[#This Row],[WIN$]]+Baza[[#This Row],[KO$]]-Baza[[#This Row],[B$]] -> -2.2 | Z27: =IF(OR(Baza[[#This Row],[A]]="XP",Baza[[#This Row],[A]]="XP2",Baza[[#This Row],[A]]="F"),AVERAGEIFS(Baza[AFS],Baza[A],"-"),Baza[[#This Row],[GTD]]/Baza[[#This Row],[B]]) -> 136.3636364 | AA27: =SUM($Y$2:Y27) -> 63.2604
B28: =TEXT(Baza[[#This Row],[Start]],"ч:мм")&" "&IF(OR(Baza[[#This Row],[Room]]="ES",Baza[[#This Row],[Room]]="WN"),"€","$")&Baza[[#This Row],[B]]&" ["&Baza[[#This Row],[Room]]&"] "&Baza[[#This Row],[Name]] -> 11:30 $2,1 [GG] Bounty Hunters | C28: 26 | D28: =YEAR(Baza[[#This Row],[Date]]) -> 2021 | E28: =WEEKNUM(Baza[[#This Row],[Date]],2) -> 1 | F28: =CHOOSE(WEEKDAY(Baza[[#This Row],[Date]],2),"понедельник","вторник","среда","четверг","пятница","суббота","воскресенье") -> суббота | G28: =CHOOSE(MONTH(Baza[[#This Row],[Date]]),"январь","февраль","март","апрель","май","июнь","июль","август","сентябрь","октябрь","ноябрь","декабрь") -> январь | H28: 2021-01-02 | I28: 11:30:00 | J28: 2.1 | K28: GG | L28: Bounty Hunters | M28: 8 | N28: - | O28: K | P28: - | Q28: 1200 | R28: 0.5 | U28: - | V28: =IF(OR(Baza[[#This Row],[Room]]="ES",Baza[[#This Row],[Room]]="WN"),(Baza[[#This Row],[B]]*1.12) +(Baza[[#This Row],[R]]*Baza[[#This Row],[B]]*1.12),Baza[[#This Row],[B]]*Baza[[#This Row],[R]]+Baza[[#This Row],[B]]) -> 2.1 | W28: =IF(OR(Baza[[#This Row],[Room]]="ES",Baza[[#This Row],[Room]]="WN"),Baza[[#This Row],[KO]]*1.12,Baza[[#This Row],[KO]]) -> 0.5 | X28: =IF(OR(Baza[[#This Row],[Room]]="ES",Baza[[#This Row],[Room]]="WN"),Baza[[#This Row],[Win]]*1.12,Baza[[#This Row],[Win]]) -> 0 | Y28: =Baza[[#This Row],[WIN$]]+Baza[[#This Row],[KO$]]-Baza[[#This Row],[B$]] -> -1.6 | Z28: =IF(OR(Baza[[#This Row],[A]]="XP",Baza[[#This Row],[A]]="XP2",Baza[[#This Row],[A]]="F"),AVERAGEIFS(Baza[AFS],Baza[A],"-"),Baza[[#This Row],[GTD]]/Baza[[#This Row],[B]]) -> 571.4285714 | AA28: =SUM($Y$2:Y28) -> 61.6604
B29: =TEXT(Baza[[#This Row],[Start]],"ч:мм")&" "&IF(OR(Baza[[#This Row],[Room]]="ES",Baza[[#This Row],[Room]]="WN"),"€","$")&Baza[[#This Row],[B]]&" ["&Baza[[#This Row],[Room]]&"] "&Baza[[#This Row],[Name]] -> 11:30 $3,3 [PP] Bounty Hunter | C29: 27 | D29: =YEAR(Baza[[#This Row],[Date]]) -> 2021 | E29: =WEEKNUM(Baza[[#This Row],[Date]],2) -> 1 | F29: =CHOOSE(WEEKDAY(Baza[[#This Row],[Date]],2),"понедельник","вторник","среда","четверг","пятница","суббота","воскресенье") -> суббота | G29: =CHOOSE(MONTH(Baza[[#This Row],[Date]]),"январь","февраль","март","апрель","май","июнь","июль","август","сентябрь","октябрь","ноябрь","декабрь") -> январь | H29: 2021-01-02 | I29: 11:30:00 | J29: 3.3 | K29: PP | L29: Bounty Hunter | M29: 8 | N29: - | O29: K | P29: - | Q29: 500 | U29: - | V29: =IF(OR(Baza[[#This Row],[Room]]="ES",Baza[[#This Row],[Room]]="WN"),(Baza[[#This Row],[B]]*1.12) +(Baza[[#This Row],[R]]*Baza[[#This Row],[B]]*1.12),Baza[[#This Row],[B]]*Baza[[#This Row],[R]]+Baza[[#This Row],[B]]) -> 3.3 | W29: =IF(OR(Baza[[#This Row],[Room]]="ES",Baza[[#This Row],[Room]]="WN"),Baza[[#This Row],[KO]]*1.12,Baza[[#This Row],[KO]]) -> 0 | X29: =IF(OR(Baza[[#This Row],[Room]]="ES",Baza[[#This Row],[Room]]="WN"),Baza[[#This Row],[Win]]*1.12,Baza[[#This Row],[Win]]) -> 0 | Y29: =Baza[[#This Row],[WIN$]]+Baza[[#This Row],[KO$]]-Baza[[#This Row],[B$]] -> -3.3 | Z29: =IF(OR(Baza[[#This Row],[A]]="XP",Baza[[#This Row],[A]]="XP2",Baza[[#This Row],[A]]="F"),AVERAGEIFS(Baza[AFS],Baza[A],"-"),Baza[[#This Row],[GTD]]/Baza[[#This Row],[B]]) -> 151.5151515 | AA29: =SUM($Y$2:Y29) -> 58.3604
B30: =TEXT(Baza[[#This Row],[Start]],"ч:мм")&" "&IF(OR(Baza[[#This Row],[Room]]="ES",Baza[[#This Row],[Room]]="WN"),"€","$")&Baza[[#This Row],[B]]&" ["&Baza[[#This Row],[Room]]&"] "&Baza[[#This Row],[Name]] -> 11:40 $3,3 [PS] GTD | C30: 28 | D30: =YEAR(Baza[[#This Row],[Date]]) -> 2021 | E30: =WEEKNUM(Baza[[#This Row],[Date]],2) -> 1 | F30: =CHOOSE(WEEKDAY(Baza[[#This Row],[Date]],2),"понедельник","вторник","среда","четверг","пятница","суббота","воскресенье") -> суббота | G30: =CHOOSE(MONTH(Baza[[#This Row],[Date]]),"январь","февраль","март","апрель","май","июнь","июль","август","сентябрь","октябрь","ноябрь","декабрь") -> январь | H30: 2021-01-02 | I30: 11:40:00 | J30: 3.3 | K30: PS | L30: GTD | M30: 9 | N30: - | O30: - | P30: - | Q30: 1000 | U30: - | V30: =IF(OR(Baza[[#This Row],[Room]]="ES",Baza[[#This Row],[Room]]="WN"),(Baza[[#This Row],[B]]*1.12) +(Baza[[#This Row],[R]]*Baza[[#This Row],[B]]*1.12),Baza[[#This Row],[B]]*Baza[[#This Row],[R]]+Baza[[#This Row],[B]]) -> 3.3 | W30: =IF(OR(Baza[[#This Row],[Room]]="ES",Baza[[#This Row],[Room]]="WN"),Baza[[#This Row],[KO]]*1.12,Baza[[#This Row],[KO]]) -> 0 | X30: =IF(OR(Baza[[#This Row],[Room]]="ES",Baza[[#This Row],[Room]]="WN"),Baza[[#This Row],[Win]]*1.12,Baza[[#This Row],[Win]]) -> 0 | Y30: =Baza[[#This Row],[WIN$]]+Baza[[#This Row],[KO$]]-Baza[[#This Row],[B$]] -> -3.3 | Z30: =IF(OR(Baza[[#This Row],[A]]="XP",Baza[[#This Row],[A]]="XP2",Baza[[#This Row],[A]]="F"),AVERAGEIFS(Baza[AFS],Baza[A],"-"),Baza[[#This Row],[GTD]]/Baza[[#This Row],[B]]) -> 303.030303 | AA30: =SUM($Y$2:Y30) -> 55.0604
B31: =TEXT(Baza[[#This Row],[Start]],"ч:мм")&" "&IF(OR(Baza[[#This Row],[Room]]="ES",Baza[[#This Row],[Room]]="WN"),"€","$")&Baza[[#This Row],[B]]&" ["&Baza[[#This Row],[Room]]&"] "&Baza[[#This Row],[Name]] -> 12:00 $1,1 [PP] Deepstack | C31: 29 | D31: =YEAR(Baza[[#This Row],[Date]]) -> 2021 | E31: =WEEKNUM(Baza[[#This Row],[Date]],2) -> 1 | F31: =CHOOSE(WEEKDAY(Baza[[#This Row],[Date]],2),"понедельник","вторник","среда","четверг","пятница","суббота","воскресенье") -> суббота | G31: =CHOOSE(MONTH(Baza[[#This Row],[Date]]),"январь","февраль","март","апрель","май","июнь","июль","август","сентябрь","октябрь","ноябрь","декабрь") -> январь | H31: 2021-01-02 | I31: 12:00:00 | J31: 1.1 | K31: PP | L31: Deepstack | M31: 8 | N31: - | O31: - | P31: - | Q31: 200 | U31: - | V31: =IF(OR(Baza[[#This Row],[Room]]="ES",Baza[[#This Row],[Room]]="WN"),(Baza[[#This Row],[B]]*1.12) +(Baza[[#This Row],[R]]*Baza[[#This Row],[B]]*1.12),Baza[[#This Row],[B]]*Baza[[#This Row],[R]]+Baza[[#This Row],[B]]) -> 1.1 | W31: =IF(OR(Baza[[#This Row],[Room]]="ES",Baza[[#This Row],[Room]]="WN"),Baza[[#This Row],[KO]]*1.12,Baza[[#This Row],[KO]]) -> 0 | X31: =IF(OR(Baza[[#This Row],[Room]]="ES",Baza[[#This Row],[Room]]="WN"),Baza[[#This Row],[Win]]*1.12,Baza[[#This Row],[Win]]) -> 0 | Y31: =Baza[[#This Row],[WIN$]]+Baza[[#This Row],[KO$]]-Baza[[#This Row],[B$]] -> -1.1 | Z31: =IF(OR(Baza[[#This Row],[A]]="XP",Baza[[#This Row],[A]]="XP2",Baza[[#This Row],[A]]="F"),AVERAGEIFS(Baza[AFS],Baza[A],"-"),Baza[[#This Row],[GTD]]/Baza[[#This Row],[B]]) -> 181.8181818 | AA31: =SUM($Y$2:Y31) -> 53.9604
B32: =TEXT(Baza[[#This Row],[Start]],"ч:мм")&" "&IF(OR(Baza[[#This Row],[Room]]="ES",Baza[[#This Row],[Room]]="WN"),"€","$")&Baza[[#This Row],[B]]&" ["&Baza[[#This Row],[Room]]&"] "&Baza[[#This Row],[Name]] -> 12:00 $1,1 [PS] Big | C32: 30 | D32: =YEAR(Baza[[#This Row],[Date]]) -> 2021 | E32: =WEEKNUM(Baza[[#This Row],[Date]],2) -> 1 | F32: =CHOOSE(WEEKDAY(Baza[[#This Row],[Date]],2),"понедельник","вторник","среда","четверг","пятница","суббота","воскресенье") -> суббота | G32: =CHOOSE(MONTH(Baza[[#This Row],[Date]]),"январь","февраль","март","апрель","май","июнь","июль","август","сентябрь","октябрь","ноябрь","декабрь") -> январь | H32: 2021-01-02 | I32: 12:00:00 | J32: 1.1 | K32: PS | L32: Big | M32: 9 | N32: - | O32: - | P32: - | Q32: 1500 | S32: 4.52 | U32: 74 | V32: =IF(OR(Baza[[#This Row],[Room]]="ES",Baza[[#This Row],[Room]]="WN"),(Baza[[#This Row],[B]]*1.12) +(Baza[[#This Row],[R]]*Baza[[#This Row],[B]]*1.12),Baza[[#This Row],[B]]*Baza[[#This Row],[R]]+Baza[[#This Row],[B]]) -> 1.1 | W32: =IF(OR(Baza[[#This Row],[Room]]="ES",Baza[[#This Row],[Room]]="WN"),Baza[[#This Row],[KO]]*1.12,Baza[[#This Row],[KO]]) -> 0 | X32: =IF(OR(Baza[[#This Row],[Room]]="ES",Baza[[#This Row],[Room]]="WN"),Baza[[#This Row],[Win]]*1.12,Baza[[#This Row],[Win]]) -> 4.52 | Y32: =Baza[[#This Row],[WIN$]]+Baza[[#This Row],[KO$]]-Baza[[#This Row],[B$]] -> 3.42 | Z32: =IF(OR(Baza[[#This Row],[A]]="XP",Baza[[#This Row],[A]]="XP2",Baza[[#This Row],[A]]="F"),AVERAGEIFS(Baza[AFS],Baza[A],"-"),Baza[[#This Row],[GTD]]/Baza[[#This Row],[B]]) -> 1363.636364 | AA32: =SUM($Y$2:Y32) -> 57.3804
B33: =TEXT(Baza[[#This Row],[Start]],"ч:мм")&" "&IF(OR(Baza[[#This Row],[Room]]="ES",Baza[[#This Row],[Room]]="WN"),"€","$")&Baza[[#This Row],[B]]&" ["&Baza[[#This Row],[Room]]&"] "&Baza[[#This Row],[Name]] -> 12:00 €2 [WN] Monster Stack | C33: 31 | D33: =YEAR(Baza[[#This Row],[Date]]) -> 2021 | E33: =WEEKNUM(Baza[[#This Row],[Date]],2) -> 1 | F33: =CHOOSE(WEEKDAY(Baza[[#This Row],[Date]],2),"понедельник","вторник","среда","четверг","пятница","суббота","воскресенье") -> суббота | G33: =CHOOSE(MONTH(Baza[[#This Row],[Date]]),"январь","февраль","март","апрель","май","июнь","июль","август","сентябрь","октябрь","ноябрь","декабрь") -> январь | H33: 2021-01-02 | I33: 12:00:00 | J33: 2 | K33: WN | L33: Monster Stack | M33: 6 | N33: - | O33: - | P33: - | Q33: 200 | U33: - | V33: =IF(OR(Baza[[#This Row],[Room]]="ES",Baza[[#This Row],[Room]]="WN"),(Baza[[#This Row],[B]]*1.12) +(Baza[[#This Row],[R]]*Baza[[#This Row],[B]]*1.12),Baza[[#This Row],[B]]*Baza[[#This Row],[R]]+Baza[[#This Row],[B]]) -> 2.24 | W33: =IF(OR(Baza[[#This Row],[Room]]="ES",Baza[[#This Row],[Room]]="WN"),Baza[[#This Row],[KO]]*1.12,Baza[[#This Row],[KO]]) -> 0 | X33: =IF(OR(Baza[[#This Row],[Room]]="ES",Baza[[#This Row],[Room]]="WN"),Baza[[#This Row],[Win]]*1.12,Baza[[#This Row],[Win]]) -> 0 | Y33: =Baza[[#This Row],[WIN$]]+Baza[[#This Row],[KO$]]-Baza[[#This Row],[B$]] -> -2.24 | Z33: =IF(OR(Baza[[#This Row],[A]]="XP",Baza[[#This Row],[A]]="XP2",Baza[[#This Row],[A]]="F"),AVERAGEIFS(Baza[AFS],Baza[A],"-"),Baza[[#This Row],[GTD]]/Baza[[#This Row],[B]]) -> 100 | AA33: =SUM($Y$2:Y33) -> 55.1404

Sheet Start
B2: # | C2: Games | D2: Buy-in | E2: AFS | F2: ROI | G2: ITM | H2: Bounty | I2: WIN | J2: PROF
B3: =IFERROR(INDEX(Baza[Столбец1],SMALL(IF(SMALL(IF(COUNTIF($B$2:$B2,Baza[Столбец1])=0,COUNTIF(Baza[Столбец1],"<"&Baza[Столбец1])+1,""),1)=COUNTIF(Baza[Столбец1],"<"&Baza[Столбец1])+1,ROW(Baza[Столбец1])-MIN(ROW(Baza[Столбец1]))+1),1)),"") -> 11:00 $1,1 [PP] Bounty Hunter | C3: =IF(Таблица4[[#This Row],['#]]="","",COUNTIFS(Baza[Столбец1],Таблица4[[#This Row],['#]])+SUMIFS(Baza[R],Baza[Столбец1],Таблица4[[#This Row],['#]])) -> 2 | D3: =IF(Таблица4[[#This Row],['#]]="","",SUMIFS(Baza[B$],Baza[Столбец1],Таблица4[[#This Row],['#]])) -> 2.2 | E3: =IFERROR(AVERAGEIFS(Baza[AFS],Baza[Столбец1],Таблица4[[#This Row],['#]])+(AVERAGEIFS(Baza[AFS],Baza[Столбец1],Таблица4[[#This Row],['#]])*0.2),"") -> 68.18181818 | F3: =IFERROR(J3/D3*100,"") -> -100 | G3: =IFERROR(COUNTIFS(Baza[Столбец1],Таблица4[[#This Row],['#]],Baza[Win],">0")/C3*100,"") -> 0 | H3: =IF(SUMIFS(Baza[KO$],Baza[Столбец1],Таблица4[[#This Row],['#]])=0,"",SUMIFS(Baza[KO$],Baza[Столбец1],Таблица4[[#This Row],['#]])) ->  | I3: =IF(SUMIFS(Baza[WIN$],Baza[Столбец1],Таблица4[[#This Row],['#]])=0,"",SUMIFS(Baza[WIN$],Baza[Столбец1],Таблица4[[#This Row],['#]])) ->  | J3: =IFERROR(IF(I3="",0,I3)+IF(H3="",0,H3)-D3,"") -> -2.2
B4: =IFERROR(INDEX(Baza[Столбец1],SMALL(IF(SMALL(IF(COUNTIF($B$2:$B3,Baza[Столбец1])=0,COUNTIF(Baza[Столбец1],"<"&Baza[Столбец1])+1,""),1)=COUNTIF(Baza[Столбец1],"<"&Baza[Столбец1])+1,ROW(Baza[Столбец1])-MIN(ROW(Baza[Столбец1]))+1),1)),"") -> 11:00 €1 [WN] Monster Stack | C4: =IF(Таблица4[[#This Row],['#]]="","",COUNTIFS(Baza[Столбец1],Таблица4[[#This Row],['#]])+SUMIFS(Baza[R],Baza[Столбец1],Таблица4[[#This Row],['#]])) -> 2 | D4: =IF(Таблица4[[#This Row],['#]]="","",SUMIFS(Baza[B$],Baza[Столбец1],Таблица4[[#This Row],['#]])) -> 2.24 | E4: =IFERROR(AVERAGEIFS(Baza[AFS],Baza[Столбец1],Таблица4[[#This Row],['#]])+(AVERAGEIFS(Baza[AFS],Baza[Столбец1],Таблица4[[#This Row],['#]])*0.2),"") -> 180 | F4: 3046 | G4: =IFERROR(COUNTIFS(Baza[Столбец1],Таблица4[[#This Row],['#]],Baza[Win],">0")/C4*100,"") -> 50 | H4: =IF(SUMIFS(Baza[KO$],Baza[Столбец1],Таблица4[[#This Row],['#]])=0,"",SUMIFS(Baza[KO$],Baza[Столбец1],Таблица4[[#This Row],['#]])) ->  | I4: =IF(SUMIFS(Baza[WIN$],Baza[Столбец1],Таблица4[[#This Row],['#]])=0,"",SUMIFS(Baza[WIN$],Baza[Столбец1],Таблица4[[#This Row],['#]])) -> 70.4704 | J4: 68.2304
B5: =IFERROR(INDEX(Baza[Столбец1],SMALL(IF(SMALL(IF(COUNTIF($B$2:$B4,Baza[Столбец1])=0,COUNTIF(Baza[Столбец1],"<"&Baza[Столбец1])+1,""),1)=COUNTIF(Baza[Столбец1],"<"&Baza[Столбец1])+1,ROW(Baza[Столбец1])-MIN(ROW(Baza[Столбец1]))+1),1)),"") -> 11:15 $2,2 [PP] Deepstack | C5: =IF(Таблица4[[#This Row],['#]]="","",COUNTIFS(Baza[Столбец1],Таблица4[[#This Row],['#]])+SUMIFS(Baza[R],Baza[Столбец1],Таблица4[[#This Row],['#]])) -> 2 | D5: =IF(Таблица4[[#This Row],['#]]="","",SUMIFS(Baza[B$],Baza[Столбец1],Таблица4[[#This Row],['#]])) -> 4.4 | E5: =IFERROR(AVERAGEIFS(Baza[AFS],Baza[Столбец1],Таблица4[[#This Row],['#]])+(AVERAGEIFS(Baza[AFS],Baza[Столбец1],Таблица4[[#This Row],['#]])*0.2),"") -> 136.3636364 | F5: -100 | G5: =IFERROR(COUNTIFS(Baza[Столбец1],Таблица4[[#This Row],['#]],Baza[Win],">0")/C5*100,"") -> 0 | H5: =IF(SUMIFS(Baza[KO$],Baza[Столбец1],Таблица4[[#This Row],['#]])=0,"",SUMIFS(Baza[KO$],Baza[Столбец1],Таблица4[[#This Row],['#]])) ->  | I5: =IF(SUMIFS(Baza[WIN$],Baza[Столбец1],Таблица4[[#This Row],['#]])=0,"",SUMIFS(Baza[WIN$],Baza[Столбец1],Таблица4[[#This Row],['#]])) ->  | J5: -4.4
B6: =IFERROR(INDEX(Baza[Столбец1],SMALL(IF(SMALL(IF(COUNTIF($B$2:$B5,Baza[Столбец1])=0,COUNTIF(Baza[Столбец1],"<"&Baza[Столбец1])+1,""),1)=COUNTIF(Baza[Столбец1],"<"&Baza[Столбец1])+1,ROW(Baza[Столбец1])-MIN(ROW(Baza[Столбец1]))+1),1)),"") -> 11:30 $2,1 [GG] Bounty Hunters | C6: =IF(Таблица4[[#This Row],['#]]="","",COUNTIFS(Baza[Столбец1],Таблица4[[#This Row],['#]])+SUMIFS(Baza[R],Baza[Столбец1],Таблица4[[#This Row],['#]])) -> 2 | D6: =IF(Таблица4[[#This Row],['#]]="","",SUMIFS(Baza[B$],Baza[Столбец1],Таблица4[[#This Row],['#]])) -> 4.2 | E6: =IFERROR(AVERAGEIFS(Baza[AFS],Baza[Столбец1],Таблица4[[#This Row],['#]])+(AVERAGEIFS(Baza[AFS],Baza[Столбец1],Таблица4[[#This Row],['#]])*0.2),"") -> 685.7142857 | F6: -88.0952381 | G6: =IFERROR(COUNTIFS(Baza[Столбец1],Таблица4[[#This Row],['#]],Baza[Win],">0")/C6*100,"") -> 0 | H6: =IF(SUMIFS(Baza[KO$],Baza[Столбец1],Таблица4[[#This Row],['#]])=0,"",SUMIFS(Baza[KO$],Baza[Столбец1],Таблица4[[#This Row],['#]])) -> 0.5 | I6: =IF(SUMIFS(Baza[WIN$],Baza[Столбец1],Таблица4[[#This Row],['#]])=0,"",SUMIFS(Baza[WIN$],Baza[Столбец1],Таблица4[[#This Row],['#]])) ->  | J6: -3.7
B7: =IFERROR(INDEX(Baza[Столбец1],SMALL(IF(SMALL(IF(COUNTIF($B$2:$B6,Baza[Столбец1])=0,COUNTIF(Baza[Столбец1],"<"&Baza[Столбец1])+1,""),1)=COUNTIF(Baza[Столбец1],"<"&Baza[Столбец1])+1,ROW(Baza[Столбец1])-MIN(ROW(Baza[Столбец1]))+1),1)),"") -> 11:30 $3,3 [PP] Bounty Hunter | C7: =IF(Таблица4[[#This Row],['#]]="","",COUNTIFS(Baza[Столбец1],Таблица4[[#This Row],['#]])+SUMIFS(Baza[R],Baza[Столбец1],Таблица4[[#This Row],['#]])) -> 1 | D7: =IF(Таблица4[[#This Row],['#]]="","",SUMIFS(Baza[B$],Baza[Столбец1],Таблица4[[#This Row],['#]])) -> 3.3 | E7: =IFERROR(AVERAGEIFS(Baza[AFS],Baza[Столбец1],Таблица4[[#This Row],['#]])+(AVERAGEIFS(Baza[AFS],Baza[Столбец1],Таблица4[[#This Row],['#]])*0.2),"") -> 181.8181818 | F7: -100 | G7: =IFERROR(COUNTIFS(Baza[Столбец1],Таблица4[[#This Row],['#]],Baza[Win],">0")/C7*100,"") -> 0 | H7: =IF(SUMIFS(Baza[KO$],Baza[Столбец1],Таблица4[[#This Row],['#]])=0,"",SUMIFS(Baza[KO$],Baza[Столбец1],Таблица4[[#This Row],['#]])) ->  | I7: =IF(SUMIFS(Baza[WIN$],Baza[Столбец1],Таблица4[[#This Row],['#]])=0,"",SUMIFS(Baza[WIN$],Baza[Столбец1],Таблица4[[#This Row],['#]])) ->  | J7: -3.3
B8: =IFERROR(INDEX(Baza[Столбец1],SMALL(IF(SMALL(IF(COUNTIF($B$2:$B7,Baza[Столбец1])=0,COUNTIF(Baza[Столбец1],"<"&Baza[Столбец1])+1,""),1)=COUNTIF(Baza[Столбец1],"<"&Baza[Столбец1])+1,ROW(Baza[Столбец1])-MIN(ROW(Baza[Столбец1]))+1),1)),"") -> 11:40 $3,3 [PS] GTD | C8: =IF(Таблица4[[#This Row],['#]]="","",COUNTIFS(Baza[Столбец1],Таблица4[[#This Row],['#]])+SUMIFS(Baza[R],Baza[Столбец1],Таблица4[[#This Row],['#]])) -> 1 | D8: =IF(Таблица4[[#This Row],['#]]="","",SUMIFS(Baza[B$],Baza[Столбец1],Таблица4[[#This Row],['#]])) -> 3.3 | E8: =IFERROR(AVERAGEIFS(Baza[AFS],Baza[Столбец1],Таблица4[[#This Row],['#]])+(AVERAGEIFS(Baza[AFS],Baza[Столбец1],Таблица4[[#This Row],['#]])*0.2),"") -> 363.6363636 | F8: -100 | G8: =IFERROR(COUNTIFS(Baza[Столбец1],Таблица4[[#This Row],['#]],Baza[Win],">0")/C8*100,"") -> 0 | H8: =IF(SUMIFS(Baza[KO$],Baza[Столбец1],Таблица4[[#This Row],['#]])=0,"",SUMIFS(Baza[KO$],Baza[Столбец1],Таблица4[[#This Row],['#]])) ->  | I8: =IF(SUMIFS(Baza[WIN$],Baza[Столбец1],Таблица4[[#This Row],['#]])=0,"",SUMIFS(Baza[WIN$],Baza[Столбец1],Таблица4[[#This Row],['#]])) ->  | J8: -3.3
B9: =IFERROR(INDEX(Baza[Столбец1],SMALL(IF(SMALL(IF(COUNTIF($B$2:$B8,Baza[Столбец1])=0,COUNTIF(Baza[Столбец1],"<"&Baza[Столбец1])+1,""),1)=COUNTIF(Baza[Столбец1],"<"&Baza[Столбец1])+1,ROW(Baza[Столбец1])-MIN(ROW(Baza[Столбец1]))+1),1)),"") -> 12:00 $1,1 [PP] Deepstack | C9: =IF(Таблица4[[#This Row],['#]]="","",COUNTIFS(Baza[Столбец1],Таблица4[[#This Row],['#]])+SUMIFS(Baza[R],Baza[Столбец1],Таблица4[[#This Row],['#]])) -> 2 | D9: =IF(Таблица4[[#This Row],['#]]="","",SUMIFS(Baza[B$],Baza[Столбец1],Таблица4[[#This Row],['#]])) -> 2.2 | E9: =IFERROR(AVERAGEIFS(Baza[AFS],Baza[Столбец1],Таблица4[[#This Row],['#]])+(AVERAGEIFS(Baza[AFS],Baza[Столбец1],Таблица4[[#This Row],['#]])*0.2),"") -> 190.9090909 | F9: -100 | G9: =IFERROR(COUNTIFS(Baza[Столбец1],Таблица4[[#This Row],['#]],Baza[Win],">0")/C9*100,"") -> 0 | H9: =IF(SUMIFS(Baza[KO$],Baza[Столбец1],Таблица4[[#This Row],['#]])=0,"",SUMIFS(Baza[KO$],Baza[Столбец1],Таблица4[[#This Row],['#]])) ->  | I9: =IF(SUMIFS(Baza[WIN$],Baza[Столбец1],Таблица4[[#This Row],['#]])=0,"",SUMIFS(Baza[WIN$],Baza[Столбец1],Таблица4[[#This Row],['#]])) ->  | J9: -2.2
B10: =IFERROR(INDEX(Baza[Столбец1],SMALL(IF(SMALL(IF(COUNTIF($B$2:$B9,Baza[Столбец1])=0,COUNTIF(Baza[Столбец1],"<"&Baza[Столбец1])+1,""),1)=COUNTIF(Baza[Столбец1],"<"&Baza[Столбец1])+1,ROW(Baza[Столбец1])-MIN(ROW(Baza[Столбец1]))+1),1)),"") -> 12:00 $1,1 [PS] Big | C10: =IF(Таблица4[[#This Row],['#]]="","",COUNTIFS(Baza[Столбец1],Таблица4[[#This Row],['#]])+SUMIFS(Baza[R],Baza[Столбец1],Таблица4[[#This Row],['#]])) -> 2 | D10: =IF(Таблица4[[#This Row],['#]]="","",SUMIFS(Baza[B$],Baza[Столбец1],Таблица4[[#This Row],['#]])) -> 2.2 | E10: =IFERROR(AVERAGEIFS(Baza[AFS],Baza[Столбец1],Таблица4[[#This Row],['#]])+(AVERAGEIFS(Baza[AFS],Baza[Столбец1],Таблица4[[#This Row],['#]])*0.2),"") -> 1090.909091 | F10: 390 | G10: =IFERROR(COUNTIFS(Baza[Столбец1],Таблица4[[#This Row],['#]],Baza[Win],">0")/C10*100,"") -> 100 | H10: =IF(SUMIFS(Baza[KO$],Baza[Столбец1],Таблица4[[#This Row],['#]])=0,"",SUMIFS(Baza[KO$],Baza[Столбец1],Таблица4[[#This Row],['#]])) ->  | I10: =IF(SUMIFS(Baza[WIN$],Baza[Столбец1],Таблица4[[#This Row],['#]])=0,"",SUMIFS(Baza[WIN$],Baza[Столбец1],Таблица4[[#This Row],['#]])) -> 10.78 | J10: 8.58
B11: =IFERROR(INDEX(Baza[Столбец1],SMALL(IF(SMALL(IF(COUNTIF($B$2:$B10,Baza[Столбец1])=0,COUNTIF(Baza[Столбец1],"<"&Baza[Столбец1])+1,""),1)=COUNTIF(Baza[Столбец1],"<"&Baza[Столбец1])+1,ROW(Baza[Столбец1])-MIN(ROW(Baza[Столбец1]))+1),1)),"") -> 12:00 €2 [WN] Monster Stack | C11: =IF(Таблица4[[#This Row],['#]]="","",COUNTIFS(Baza[Столбец1],Таблица4[[#This Row],['#]])+SUMIFS(Baza[R],Baza[Столбец1],Таблица4[[#This Row],['#]])) -> 2 | D11: =IF(Таблица4[[#This Row],['#]]="","",SUMIFS(Baza[B$],Baza[Столбец1],Таблица4[[#This Row],['#]])) -> 4.48 | E11: =IFERROR(AVERAGEIFS(Baza[AFS],Baza[Столбец1],Таблица4[[#This Row],['#]])+(AVERAGEIFS(Baza[AFS],Baza[Столбец1],Таблица4[[#This Row],['#]])*0.2),"") -> 120 | F11: -100 | G11: =IFERROR(COUNTIFS(Baza[Столбец1],Таблица4[[#This Row],['#]],Baza[Win],">0")/C11*100,"") -> 0 | H11: =IF(SUMIFS(Baza[KO$],Baza[Столбец1],Таблица4[[#This Row],['#]])=0,"",SUMIFS(Baza[KO$],Baza[Столбец1],Таблица4[[#This Row],['#]])) ->  | I11: =IF(SUMIFS(Baza[WIN$],Baza[Столбец1],Таблица4[[#This Row],['#]])=0,"",SUMIFS(Baza[WIN$],Baza[Столбец1],Таблица4[[#This Row],['#]])) ->  | J11: -4.48
B12: =IFERROR(INDEX(Baza[Столбец1],SMALL(IF(SMALL(IF(COUNTIF($B$2:$B11,Baza[Столбец1])=0,COUNTIF(Baza[Столбец1],"<"&Baza[Столбец1])+1,""),1)=COUNTIF(Baza[Столбец1],"<"&Baza[Столбец1])+1,ROW(Baza[Столбец1])-MIN(ROW(Baza[Столбец1]))+1),1)),"") -> 12:30 $1 [PAC] Guaranteed | C12: =IF(Таблица4[[#This Row],['#]]="","",COUNTIFS(Baza[Столбец1],Таблица4[[#This Row],['#]])+SUMIFS(Baza[R],Baza[Столбец1],Таблица4[[#This Row],['#]])) -> 1 | D12: =IF(Таблица4[[#This Row],['#]]="","",SUMIFS(Baza[B$],Baza[Столбец1],Таблица4[[#This Row],['#]])) -> 1 | E12: =IFERROR(AVERAGEIFS(Baza[AFS],Baza[Столбец1],Таблица4[[#This Row],['#]])+(AVERAGEIFS(Baza[AFS],Baza[Столбец1],Таблица4[[#This Row],['#]])*0.2),"") -> 240 | F12: -100 | G12: =IFERROR(COUNTIFS(Baza[Столбец1],Таблица4[[#This Row],['#]],Baza[Win],">0")/C12*100,"") -> 0 | H12: =IF(SUMIFS(Baza[KO$],Baza[Столбец1],Таблица4[[#This Row],['#]])=0,"",SUMIFS(Baza[KO$],Baza[Столбец1],Таблица4[[#This Row],['#]])) ->  | I12: =IF(SUMIFS(Baza[WIN$],Baza[Столбец1],Таблица4[[#This Row],['#]])=0,"",SUMIFS(Baza[WIN$],Baza[Столбец1],Таблица4[[#This Row],['#]])) ->  | J12: -1
B13: =IFERROR(INDEX(Baza[Столбец1],SMALL(IF(SMALL(IF(COUNTIF($B$2:$B12,Baza[Столбец1])=0,COUNTIF(Baza[Столбец1],"<"&Baza[Столбец1])+1,""),1)=COUNTIF(Baza[Столбец1],"<"&Baza[Столбец1])+1,ROW(Baza[Столбец1])-MIN(ROW(Baza[Столбец1]))+1),1)),"") -> 12:30 $1,05 [GG] Bounty Hunters | C13: =IF(Таблица4[[#This Row],['#]]="","",COUNTIFS(Baza[Столбец1],Таблица4[[#This Row],['#]])+SUMIFS(Baza[R],Baza[Столбец1],Таблица4[[#This Row],['#]])) -> 1 | D13: =IF(Таблица4[[#This Row],['#]]="","",SUMIFS(Baza[B$],Baza[Столбец1],Таблица4[[#This Row],['#]])) -> 1.05 | E13: =IFERROR(AVERAGEIFS(Baza[AFS],Baza[Столбец1],Таблица4[[#This Row],['#]])+(AVERAGEIFS(Baza[AFS],Baza[Столбец1],Таблица4[[#This Row],['#]])*0.2),"") -> 857.1428571 | F13: 759.047619 | G13: =IFERROR(COUNTIFS(Baza[Столбец1],Таблица4[[#This Row],['#]],Baza[Win],">0")/C13*100,"") -> 100 | H13: =IF(SUMIFS(Baza[KO$],Baza[Столбец1],Таблица4[[#This Row],['#]])=0,"",SUMIFS(Baza[KO$],Baza[Столбец1],Таблица4[[#This Row],['#]])) -> 5.04 | I13: =IF(SUMIFS(Baza[WIN$],Baza[Столбец1],Таблица4[[#This Row],['#]])=0,"",SUMIFS(Baza[WIN$],Baza[Столбец1],Таблица4[[#This Row],['#]])) -> 3.98 | J13: 7.97
B14: =IFERROR(INDEX(Baza[Столбец1],SMALL(IF(SMALL(IF(COUNTIF($B$2:$B13,Baza[Столбец1])=0,COUNTIF(Baza[Столбец1],"<"&Baza[Столбец1])+1,""),1)=COUNTIF(Baza[Столбец1],"<"&Baza[Столбец1])+1,ROW(Baza[Столбец1])-MIN(ROW(Baza[Столбец1]))+1),1)),"") -> 12:30 $2,2 [PP] Bounty Hunter | C14: =IF(Таблица4[[#This Row],['#]]="","",COUNTIFS(Baza[Столбец1],Таблица4[[#This Row],['#]])+SUMIFS(Baza[R],Baza[Столбец1],Таблица4[[#This Row],['#]])) -> 1 | D14: =IF(Таблица4[[#This Row],['#]]="","",SUMIFS(Baza[B$],Baza[Столбец1],Таблица4[[#This Row],['#]])) -> 2.2 | E14: =IFERROR(AVERAGEIFS(Baza[AFS],Baza[Столбец1],Таблица4[[#This Row],['#]])+(AVERAGEIFS(Baza[AFS],Baza[Столбец1],Таблица4[[#This Row],['#]])*0.2),"") -> 109.0909091 | F14: -100 | G14: =IFERROR(COUNTIFS(Baza[Столбец1],Таблица4[[#This Row],['#]],Baza[Win],">0")/C14*100,"") -> 0 | H14: =IF(SUMIFS(Baza[KO$],Baza[Столбец1],Таблица4[[#This Row],['#]])=0,"",SUMIFS(Baza[KO$],Baza[Столбец1],Таблица4[[#This Row],['#]])) ->  | I14: =IF(SUMIFS(Baza[WIN$],Baza[Столбец1],Таблица4[[#This Row],['#]])=0,"",SUMIFS(Baza[WIN$],Baza[Столбец1],Таблица4[[#This Row],['#]])) ->  | J14: -2.2
B15: =IFERROR(INDEX(Baza[Столбец1],SMALL(IF(SMALL(IF(COUNTIF($B$2:$B14,Baza[Столбец1])=0,COUNTIF(Baza[Столбец1],"<"&Baza[Столбец1])+1,""),1)=COUNTIF(Baza[Столбец1],"<"&Baza[Столбец1])+1,ROW(Baza[Столбец1])-MIN(ROW(Baza[Столбец1]))+1),1)),"") -> 13:00 $1,1 [PP] Bounty Hunter | C15: =IF(Таблица4[[#This Row],['#]]="","",COUNTIFS(Baza[Столбец1],Таблица4[[#This Row],['#]])+SUMIFS(Baza[R],Baza[Столбец1],Таблица4[[#This Row],['#]])) -> 1 | D15: =IF(Таблица4[[#This Row],['#]]="","",SUMIFS(Baza[B$],Baza[Столбец1],Таблица4[[#This Row],['#]])) -> 1.1 | E15: =IFERROR(AVERAGEIFS(Baza[AFS],Baza[Столбец1],Таблица4[[#This Row],['#]])+(AVERAGEIFS(Baza[AFS],Baza[Столбец1],Таблица4[[#This Row],['#]])*0.2),"") -> 109.0909091 | F15: 138.1818182 | G15: =IFERROR(COUNTIFS(Baza[Столбец1],Таблица4[[#This Row],['#]],Baza[Win],">0")/C15*100,"") -> 100 | H15: =IF(SUMIFS(Baza[KO$],Baza[Столбец1],Таблица4[[#This Row],['#]])=0,"",SUMIFS(Baza[KO$],Baza[Столбец1],Таблица4[[#This Row],['#]])) -> 1.37 | I15: =IF(SUMIFS(Baza[WIN$],Baza[Столбец1],Таблица4[[#This Row],['#]])=0,"",SUMIFS(Baza[WIN$],Baza[Столбец1],Таблица4[[#This Row],['#]])) -> 1.25 | J15: 1.52
B16: =IFERROR(INDEX(Baza[Столбец1],SMALL(IF(SMALL(IF(COUNTIF($B$2:$B15,Baza[Столбец1])=0,COUNTIF(Baza[Столбец1],"<"&Baza[Столбец1])+1,""),1)=COUNTIF(Baza[Столбец1],"<"&Baza[Столбец1])+1,ROW(Baza[Столбец1])-MIN(ROW(Baza[Столбец1]))+1),1)),"") -> 13:00 $2 [GG] Big | C16: =IF(Таблица4[[#This Row],['#]]="","",COUNTIFS(Baza[Столбец1],Таблица4[[#This Row],['#]])+SUMIFS(Baza[R],Baza[Столбец1],Таблица4[[#This Row],['#]])) -> 1 | D16: =IF(Таблица4[[#This Row],['#]]="","",SUMIFS(Baza[B$],Baza[Столбец1],Таблица4[[#This Row],['#]])) -> 2 | E16: =IFERROR(AVERAGEIFS(Baza[AFS],Baza[Столбец1],Таблица4[[#This Row],['#]])+(AVERAGEIFS(Baza[AFS],Baza[Столбец1],Таблица4[[#This Row],['#]])*0.2),"") -> 450 | F16: -100 | G16: =IFERROR(COUNTIFS(Baza[Столбец1],Таблица4[[#This Row],['#]],Baza[Win],">0")/C16*100,"") -> 0 | H16: =IF(SUMIFS(Baza[KO$],Baza[Столбец1],Таблица4[[#This Row],['#]])=0,"",SUMIFS(Baza[KO$],Baza[Столбец1],Таблица4[[#This Row],['#]])) ->  | I16: =IF(SUMIFS(Baza[WIN$],Baza[Столбец1],Таблица4[[#This Row],['#]])=0,"",SUMIFS(Baza[WIN$],Baza[Столбец1],Таблица4[[#This Row],['#]])) ->  | J16: -2
B17: =IFERROR(INDEX(Baza[Столбец1],SMALL(IF(SMALL(IF(COUNTIF($B$2:$B16,Baza[Столбец1])=0,COUNTIF(Baza[Столбец1],"<"&Baza[Столбец1])+1,""),1)=COUNTIF(Baza[Столбец1],"<"&Baza[Столбец1])+1,ROW(Baza[Столбец1])-MIN(ROW(Baza[Столбец1]))+1),1)),"") -> 14:00 $2,2 [PAC] Guaranteed | C17: =IF(Таблица4[[#This Row],['#]]="","",COUNTIFS(Baza[Столбец1],Таблица4[[#This Row],['#]])+SUMIFS(Baza[R],Baza[Столбец1],Таблица4[[#This Row],['#]])) -> 1 | D17: =IF(Таблица4[[#This Row],['#]]="","",SUMIFS(Baza[B$],Baza[Столбец1],Таблица4[[#This Row],['#]])) -> 2.2 | E17: =IFERROR(AVERAGEIFS(Baza[AFS],Baza[Столбец1],Таблица4[[#This Row],['#]])+(AVERAGEIFS(Baza[AFS],Baza[Столбец1],Таблица4[[#This Row],['#]])*0.2),"") -> 272.7272727 | F17: -100 | G17: =IFERROR(COUNTIFS(Baza[Столбец1],Таблица4[[#This Row],['#]],Baza[Win],">0")/C17*100,"") -> 0 | H17: =IF(SUMIFS(Baza[KO$],Baza[Столбец1],Таблица4[[#This Row],['#]])=0,"",SUMIFS(Baza[KO$],Baza[Столбец1],Таблица4[[#This Row],['#]])) ->  | I17: =IF(SUMIFS(Baza[WIN$],Baza[Столбец1],Таблица4[[#This Row],['#]])=0,"",SUMIFS(Baza[WIN$],Baza[Столбец1],Таблица4[[#This Row],['#]])) ->  | J17: -2.2
B18: =IFERROR(INDEX(Baza[Столбец1],SMALL(IF(SMALL(IF(COUNTIF($B$2:$B17,Baza[Столбец1])=0,COUNTIF(Baza[Столбец1],"<"&Baza[Столбец1])+1,""),1)=COUNTIF(Baza[Столбец1],"<"&Baza[Столбец1])+1,ROW(Baza[Столбец1])-MIN(ROW(Baza[Столбец1]))+1),1)),"") -> 14:20 $1,1 [PS] Progressive KO | C18: =IF(Таблица4[[#This Row],['#]]="","",COUNTIFS(Baza[Столбец1],Таблица4[[#This Row],['#]])+SUMIFS(Baza[R],Baza[Столбец1],Таблица4[[#This Row],['#]])) -> 1 | D18: =IF(Таблица4[[#This Row],['#]]="","",SUMIFS(Baza[B$],Baza[Столбец1],Таблица4[[#This Row],['#]])) -> 1.1 | E18: =IFERROR(AVERAGEIFS(Baza[AFS],Baza[Столбец1],Таблица4[[#This Row],['#]])+(AVERAGEIFS(Baza[AFS],Baza[Столбец1],Таблица4[[#This Row],['#]])*0.2),"") -> 2181.818182 | F18: -100 | G18: =IFERROR(COUNTIFS(Baza[Столбец1],Таблица4[[#This Row],['#]],Baza[Win],">0")/C18*100,"") -> 0 | H18: =IF(SUMIFS(Baza[KO$],Baza[Столбец1],Таблица4[[#This Row],['#]])=0,"",SUMIFS(Baza[KO$],Baza[Столбец1],Таблица4[[#This Row],['#]])) ->  | I18: =IF(SUMIFS(Baza[WIN$],Baza[Столбец1],Таблица4[[#This Row],['#]])=0,"",SUMIFS(Baza[WIN$],Baza[Столбец1],Таблица4[[#This Row],['#]])) ->  | J18: -1.1
B19: =IFERROR(INDEX(Baza[Столбец1],SMALL(IF(SMALL(IF(COUNTIF($B$2:$B18,Baza[Столбец1])=0,COUNTIF(Baza[Столбец1],"<"&Baza[Столбец1])+1,""),1)=COUNTIF(Baza[Столбец1],"<"&Baza[Столбец1])+1,ROW(Baza[Столбец1])-MIN(ROW(Baza[Столбец1]))+1),1)),"") -> 14:30 $1,05 [GG] Bounty Hunters | C19: =IF(Таблица4[[#This Row],['#]]="","",COUNTIFS(Baza[Столбец1],Таблица4[[#This Row],['#]])+SUMIFS(Baza[R],Baza[Столбец1],Таблица4[[#This Row],['#]])) -> 1 | D19: =IF(Таблица4[[#This Row],['#]]="","",SUMIFS(Baza[B$],Baza[Столбец1],Таблица4[[#This Row],['#]])) -> 1.05 | E19: =IFERROR(AVERAGEIFS(Baza[AFS],Baza[Столбец1],Таблица4[[#This Row],['#]])+(AVERAGEIFS(Baza[AFS],Baza[Столбец1],Таблица4[[#This Row],['#]])*0.2),"") -> 857.1428571 | F19: -100 | G19: =IFERROR(COUNTIFS(Baza[Столбец1],Таблица4[[#This Row],['#]],Baza[Win],">0")/C19*100,"") -> 0 | H19: =IF(SUMIFS(Baza[KO$],Baza[Столбец1],Таблица4[[#This Row],['#]])=0,"",SUMIFS(Baza[KO$],Baza[Столбец1],Таблица4[[#This Row],['#]])) ->  | I19: =IF(SUMIFS(Baza[WIN$],Baza[Столбец1],Таблица4[[#This Row],['#]])=0,"",SUMIFS(Baza[WIN$],Baza[Столбец1],Таблица4[[#This Row],['#]])) ->  | J19: -1.05
B20: =IFERROR(INDEX(Baza[Столбец1],SMALL(IF(SMALL(IF(COUNTIF($B$2:$B19,Baza[Столбец1])=0,COUNTIF(Baza[Столбец1],"<"&Baza[Столбец1])+1,""),1)=COUNTIF(Baza[Столбец1],"<"&Baza[Столбец1])+1,ROW(Baza[Столбец1])-MIN(ROW(Baza[Столбец1]))+1),1)),"") -> 15:00 $1,1 [PP] Bounty Hunter | C20: =IF(Таблица4[[#This Row],['#]]="","",COUNTIFS(Baza[Столбец1],Таблица4[[#This Row],['#]])+SUMIFS(Baza[R],Baza[Столбец1],Таблица4[[#This Row],['#]])) -> 1 | D20: =IF(Таблица4[[#This Row],['#]]="","",SUMIFS(Baza[B$],Baza[Столбец1],Таблица4[[#This Row],['#]])) -> 1.1 | E20: =IFERROR(AVERAGEIFS(Baza[AFS],Baza[Столбец1],Таблица4[[#This Row],['#]])+(AVERAGEIFS(Baza[AFS],Baza[Столбец1],Таблица4[[#This Row],['#]])*0.2),"") -> 218.1818182 | F20: -100 | G20: =IFERROR(COUNTIFS(Baza[Столбец1],Таблица4[[#This Row],['#]],Baza[Win],">0")/C20*100,"") -> 0 | H20: =IF(SUMIFS(Baza[KO$],Baza[Столбец1],Таблица4[[#This Row],['#]])=0,"",SUMIFS(Baza[KO$],Baza[Столбец1],Таблица4[[#This Row],['#]])) ->  | I20: =IF(SUMIFS(Baza[WIN$],Baza[Столбец1],Таблица4[[#This Row],['#]])=0,"",SUMIFS(Baza[WIN$],Baza[Столбец1],Таблица4[[#This Row],['#]])) ->  | J20: -1.1
B21: =IFERROR(INDEX(Baza[Столбец1],SMALL(IF(SMALL(IF(COUNTIF($B$2:$B20,Baza[Столбец1])=0,COUNTIF(Baza[Столбец1],"<"&Baza[Столбец1])+1,""),1)=COUNTIF(Baza[Столбец1],"<"&Baza[Столбец1])+1,ROW(Baza[Столбец1])-MIN(ROW(Baza[Столбец1]))+1),1)),"") -> 15:00 $1,1 [PS] GTD | C21: =IF(Таблица4[[#This Row],['#]]="","",COUNTIFS(Baza[Столбец1],Таблица4[[#This Row],['#]])+SUMIFS(Baza[R],Baza[Столбец1],Таблица4[[#This Row],['#]])) -> 1 | D21: =IF(Таблица4[[#This Row],['#]]="","",SUMIFS(Baza[B$],Baza[Столбец1],Таблица4[[#This Row],['#]])) -> 1.1 | E21: =IFERROR(AVERAGEIFS(Baza[AFS],Baza[Столбец1],Таблица4[[#This Row],['#]])+(AVERAGEIFS(Baza[AFS],Baza[Столбец1],Таблица4[[#This Row],['#]])*0.2),"") -> 818.1818182 | F21: 488.1818182 | G21: =IFERROR(COUNTIFS(Baza[Столбец1],Таблица4[[#This Row],['#]],Baza[Win],">0")/C21*100,"") -> 100 | H21: =IF(SUMIFS(Baza[KO$],Baza[Столбец1],Таблица4[[#This Row],['#]])=0,"",SUMIFS(Baza[KO$],Baza[Столбец1],Таблица4[[#This Row],['#]])) ->  | I21: =IF(SUMIFS(Baza[WIN$],Baza[Столбец1],Таблица4[[#This Row],['#]])=0,"",SUMIFS(Baza[WIN$],Baza[Столбец1],Таблица4[[#This Row],['#]])) -> 6.47 | J21: 5.37
B22: =IFERROR(INDEX(Baza[Столбец1],SMALL(IF(SMALL(IF(COUNTIF($B$2:$B21,Baza[Столбец1])=0,COUNTIF(Baza[Столбец1],"<"&Baza[Столбец1])+1,""),1)=COUNTIF(Baza[Столбец1],"<"&Baza[Столбец1])+1,ROW(Baza[Столбец1])-MIN(ROW(Baza[Столбец1]))+1),1)),"") -> 15:00 €1 [WN] Monster Stack | C22: =IF(Таблица4[[#This Row],['#]]="","",COUNTIFS(Baza[Столбец1],Таблица4[[#This Row],['#]])+SUMIFS(Baza[R],Baza[Столбец1],Таблица4[[#This Row],['#]])) -> 1 | D22: =IF(Таблица4[[#This Row],['#]]="","",SUMIFS(Baza[B$],Baza[Столбец1],Таблица4[[#This Row],['#]])) -> 1.12 | E22: =IFERROR(AVERAGEIFS(Baza[AFS],Baza[Столбец1],Таблица4[[#This Row],['#]])+(AVERAGEIFS(Baza[AFS],Baza[Столбец1],Таблица4[[#This Row],['#]])*0.2),"") -> 300 | F22: -100 | G22: =IFERROR(COUNTIFS(Baza[Столбец1],Таблица4[[#This Row],['#]],Baza[Win],">0")/C22*100,"") -> 0 | H22: =IF(SUMIFS(Baza[KO$],Baza[Столбец1],Таблица4[[#This Row],['#]])=0,"",SUMIFS(Baza[KO$],Baza[Столбец1],Таблица4[[#This Row],['#]])) ->  | I22: =IF(SUMIFS(Baza[WIN$],Baza[Столбец1],Таблица4[[#This Row],['#]])=0,"",SUMIFS(Baza[WIN$],Baza[Столбец1],Таблица4[[#This Row],['#]])) ->  | J22: -1.12
B23: =IFERROR(INDEX(Baza[Столбец1],SMALL(IF(SMALL(IF(COUNTIF($B$2:$B22,Baza[Столбец1])=0,COUNTIF(Baza[Столбец1],"<"&Baza[Столбец1])+1,""),1)=COUNTIF(Baza[Столбец1],"<"&Baza[Столбец1])+1,ROW(Baza[Столбец1])-MIN(ROW(Baza[Столбец1]))+1),1)),"") -> 16:00 $1 [PAC] 6-Max Think Fast | C23: =IF(Таблица4[[#This Row],['#]]="","",COUNTIFS(Baza[Столбец1],Таблица4[[#This Row],['#]])+SUMIFS(Baza[R],Baza[Столбец1],Таблица4[[#This Row],['#]])) -> 1 | D23: =IF(Таблица4[[#This Row],['#]]="","",SUMIFS(Baza[B$],Baza[Столбец1],Таблица4[[#This Row],['#]])) -> 1 | E23: =IFERROR(AVERAGEIFS(Baza[AFS],Baza[Столбец1],Таблица4[[#This Row],['#]])+(AVERAGEIFS(Baza[AFS],Baza[Столбец1],Таблица4[[#This Row],['#]])*0.2),"") -> 360 | F23: -100 | G23: =IFERROR(COUNTIFS(Baza[Столбец1],Таблица4[[#This Row],['#]],Baza[Win],">0")/C23*100,"") -> 0 | H23: =IF(SUMIFS(Baza[KO$],Baza[Столбец1],Таблица4[[#This Row],['#]])=0,"",SUMIFS(Baza[KO$],Baza[Столбец1],Таблица4[[#This Row],['#]])) ->  | I23: =IF(SUMIFS(Baza[WIN$],Baza[Столбец1],Таблица4[[#This Row],['#]])=0,"",SUMIFS(Baza[WIN$],Baza[Столбец1],Таблица4[[#This Row],['#]])) ->  | J23: -1
B24: =IFERROR(INDEX(Baza[Столбец1],SMALL(IF(SMALL(IF(COUNTIF($B$2:$B23,Baza[Столбец1])=0,COUNTIF(Baza[Столбец1],"<"&Baza[Столбец1])+1,""),1)=COUNTIF(Baza[Столбец1],"<"&Baza[Столбец1])+1,ROW(Baza[Столбец1])-MIN(ROW(Baza[Столбец1]))+1),1)),"") -> 16:15 $1,1 [PAC] Guaranteed PKO | C24: =IF(Таблица4[[#This Row],['#]]="","",COUNTIFS(Baza[Столбец1],Таблица4[[#This Row],['#]])+SUMIFS(Baza[R],Baza[Столбец1],Таблица4[[#This Row],['#]])) -> 1 | D24: =IF(Таблица4[[#This Row],['#]]="","",SUMIFS(Baza[B$],Baza[Столбец1],Таблица4[[#This Row],['#]])) -> 1.1 | E24: =IFERROR(AVERAGEIFS(Baza[AFS],Baza[Столбец1],Таблица4[[#This Row],['#]])+(AVERAGEIFS(Baza[AFS],Baza[Столбец1],Таблица4[[#This Row],['#]])*0.2),"") -> 327.2727273 | F24: -77.27272727 | G24: =IFERROR(COUNTIFS(Baza[Столбец1],Таблица4[[#This Row],['#]],Baza[Win],">0")/C24*100,"") -> 0 | H24: =IF(SUMIFS(Baza[KO$],Baza[Столбец1],Таблица4[[#This Row],['#]])=0,"",SUMIFS(Baza[KO$],Baza[Столбец1],Таблица4[[#This Row],['#]])) -> 0.25 | I24: =IF(SUMIFS(Baza[WIN$],Baza[Столбец1],Таблица4[[#This Row],['#]])=0,"",SUMIFS(Baza[WIN$],Baza[Столбец1],Таблица4[[#This Row],['#]])) ->  | J24: -0.85
B25: =IFERROR(INDEX(Baza[Столбец1],SMALL(IF(SMALL(IF(COUNTIF($B$2:$B24,Baza[Столбец1])=0,COUNTIF(Baza[Столбец1],"<"&Baza[Столбец1])+1,""),1)=COUNTIF(Baza[Столбец1],"<"&Baza[Столбец1])+1,ROW(Baza[Столбец1])-MIN(ROW(Baza[Столбец1]))+1),1)),"") -> 16:15 $1,1 [PS] GTD | C25: =IF(Таблица4[[#This Row],['#]]="","",COUNTIFS(Baza[Столбец1],Таблица4[[#This Row],['#]])+SUMIFS(Baza[R],Baza[Столбец1],Таблица4[[#This Row],['#]])) -> 1 | D25: =IF(Таблица4[[#This Row],['#]]="","",SUMIFS(Baza[B$],Baza[Столбец1],Таблица4[[#This Row],['#]])) -> 1.1 | E25: =IFERROR(AVERAGEIFS(Baza[AFS],Baza[Столбец1],Таблица4[[#This Row],['#]])+(AVERAGEIFS(Baza[AFS],Baza[Столбец1],Таблица4[[#This Row],['#]])*0.2),"") -> 1636.363636 | F25: 260.9090909 | G25: =IFERROR(COUNTIFS(Baza[Столбец1],Таблица4[[#This Row],['#]],Baza[Win],">0")/C25*100,"") -> 100 | H25: =IF(SUMIFS(Baza[KO$],Baza[Столбец1],Таблица4[[#This Row],['#]])=0,"",SUMIFS(Baza[KO$],Baza[Столбец1],Таблица4[[#This Row],['#]])) ->  | I25: =IF(SUMIFS(Baza[WIN$],Baza[Столбец1],Таблица4[[#This Row],['#]])=0,"",SUMIFS(Baza[WIN$],Baza[Столбец1],Таблица4[[#This Row],['#]])) -> 3.97 | J25: 2.87
B26: =IFERROR(INDEX(Baza[Столбец1],SMALL(IF(SMALL(IF(COUNTIF($B$2:$B25,Baza[Столбец1])=0,COUNTIF(Baza[Столбец1],"<"&Baza[Столбец1])+1,""),1)=COUNTIF(Baza[Столбец1],"<"&Baza[Столбец1])+1,ROW(Baza[Столбец1])-MIN(ROW(Baza[Столбец1]))+1),1)),"") -> 16:30 $2,2 [PAC] Guaranteed | C26: =IF(Таблица4[[#This Row],['#]]="","",COUNTIFS(Baza[Столбец1],Таблица4[[#This Row],['#]])+SUMIFS(Baza[R],Baza[Столбец1],Таблица4[[#This Row],['#]])) -> 1 | D26: =IF(Таблица4[[#This Row],['#]]="","",SUMIFS(Baza[B$],Baza[Столбец1],Таблица4[[#This Row],['#]])) -> 2.2 | E26: =IFERROR(AVERAGEIFS(Baza[AFS],Baza[Столбец1],Таблица4[[#This Row],['#]])+(AVERAGEIFS(Baza[AFS],Baza[Столбец1],Таблица4[[#This Row],['#]])*0.2),"") -> 272.7272727 | F26: -100 | G26: =IFERROR(COUNTIFS(Baza[Столбец1],Таблица4[[#This Row],['#]],Baza[Win],">0")/C26*100,"") -> 0 | H26: =IF(SUMIFS(Baza[KO$],Baza[Столбец1],Таблица4[[#This Row],['#]])=0,"",SUMIFS(Baza[KO$],Baza[Столбец1],Таблица4[[#This Row],['#]])) ->  | I26: =IF(SUMIFS(Baza[WIN$],Baza[Столбец1],Таблица4[[#This Row],['#]])=0,"",SUMIFS(Baza[WIN$],Baza[Столбец1],Таблица4[[#This Row],['#]])) ->  | J26: -2.2
B27: =IFERROR(INDEX(Baza[Столбец1],SMALL(IF(SMALL(IF(COUNTIF($B$2:$B26,Baza[Столбец1])=0,COUNTIF(Baza[Столбец1],"<"&Baza[Столбец1])+1,""),1)=COUNTIF(Baza[Столбец1],"<"&Baza[Столбец1])+1,ROW(Baza[Столбец1])-MIN(ROW(Baza[Столбец1]))+1),1)),"") ->  | C27: =IF(Таблица4[[#This Row],['#]]="","",COUNTIFS(Baza[Столбец1],Таблица4[[#This Row],['#]])+SUMIFS(Baza[R],Baza[Столбец1],Таблица4[[#This Row],['#]])) ->  | D27: =IF(Таблица4[[#This Row],['#]]="","",SUMIFS(Baza[B$],Baza[Столбец1],Таблица4[[#This Row],['#]])) ->  | E27: =IFERROR(AVERAGEIFS(Baza[AFS],Baza[Столбец1],Таблица4[[#This Row],['#]])+(AVERAGEIFS(Baza[AFS],Baza[Столбец1],Таблица4[[#This Row],['#]])*0.2),"") ->  | G27: =IFERROR(COUNTIFS(Baza[Столбец1],Таблица4[[#This Row],['#]],Baza[Win],">0")/C27*100,"") ->  | H27: =IF(SUMIFS(Baza[KO$],Baza[Столбец1],Таблица4[[#This Row],['#]])=0,"",SUMIFS(Baza[KO$],Baza[Столбец1],Таблица4[[#This Row],['#]])) ->  | I27: =IF(SUMIFS(Baza[WIN$],Baza[Столбец1],Таблица4[[#This Row],['#]])=0,"",SUMIFS(Baza[WIN$],Baza[Столбец1],Таблица4[[#This Row],['#]])) -> 
B28: =IFERROR(INDEX(Baza[Столбец1],SMALL(IF(SMALL(IF(COUNTIF($B$2:$B27,Baza[Столбец1])=0,COUNTIF(Baza[Столбец1],"<"&Baza[Столбец1])+1,""),1)=COUNTIF(Baza[Столбец1],"<"&Baza[Столбец1])+1,ROW(Baza[Столбец1])-MIN(ROW(Baza[Столбец1]))+1),1)),"") ->  | C28: =IF(Таблица4[[#This Row],['#]]="","",COUNTIFS(Baza[Столбец1],Таблица4[[#This Row],['#]])+SUMIFS(Baza[R],Baza[Столбец1],Таблица4[[#This Row],['#]])) ->  | D28: =IF(Таблица4[[#This Row],['#]]="","",SUMIFS(Baza[B$],Baza[Столбец1],Таблица4[[#This Row],['#]])) ->  | E28: =IFERROR(AVERAGEIFS(Baza[AFS],Baza[Столбец1],Таблица4[[#This Row],['#]])+(AVERAGEIFS(Baza[AFS],Baza[Столбец1],Таблица4[[#This Row],['#]])*0.2),"") ->  | G28: =IFERROR(COUNTIFS(Baza[Столбец1],Таблица4[[#This Row],['#]],Baza[Win],">0")/C28*100,"") ->  | H28: =IF(SUMIFS(Baza[KO$],Baza[Столбец1],Таблица4[[#This Row],['#]])=0,"",SUMIFS(Baza[KO$],Baza[Столбец1],Таблица4[[#This Row],['#]])) ->  | I28: =IF(SUMIFS(Baza[WIN$],Baza[Столбец1],Таблица4[[#This Row],['#]])=0,"",SUMIFS(Baza[WIN$],Baza[Столбец1],Таблица4[[#This Row],['#]])) -> 
B29: =IFERROR(INDEX(Baza[Столбец1],SMALL(IF(SMALL(IF(COUNTIF($B$2:$B28,Baza[Столбец1])=0,COUNTIF(Baza[Столбец1],"<"&Baza[Столбец1])+1,""),1)=COUNTIF(Baza[Столбец1],"<"&Baza[Столбец1])+1,ROW(Baza[Столбец1])-MIN(ROW(Baza[Столбец1]))+1),1)),"") ->  | C29: =IF(Таблица4[[#This Row],['#]]="","",COUNTIFS(Baza[Столбец1],Таблица4[[#This Row],['#]])+SUMIFS(Baza[R],Baza[Столбец1],Таблица4[[#This Row],['#]])) ->  | D29: =IF(Таблица4[[#This Row],['#]]="","",SUMIFS(Baza[B$],Baza[Столбец1],Таблица4[[#This Row],['#]])) ->  | E29: =IFERROR(AVERAGEIFS(Baza[AFS],Baza[Столбец1],Таблица4[[#This Row],['#]])+(AVERAGEIFS(Baza[AFS],Baza[Столбец1],Таблица4[[#This Row],['#]])*0.2),"") ->  | G29: =IFERROR(COUNTIFS(Baza[Столбец1],Таблица4[[#This Row],['#]],Baza[Win],">0")/C29*100,"") ->  | H29: =IF(SUMIFS(Baza[KO$],Baza[Столбец1],Таблица4[[#This Row],['#]])=0,"",SUMIFS(Baza[KO$],Baza[Столбец1],Таблица4[[#This Row],['#]])) ->  | I29: =IF(SUMIFS(Baza[WIN$],Baza[Столбец1],Таблица4[[#This Row],['#]])=0,"",SUMIFS(Baza[WIN$],Baza[Столбец1],Таблица4[[#This Row],['#]])) -> 
B30: =IFERROR(INDEX(Baza[Столбец1],SMALL(IF(SMALL(IF(COUNTIF($B$2:$B29,Baza[Столбец1])=0,COUNTIF(Baza[Столбец1],"<"&Baza[Столбец1])+1,""),1)=COUNTIF(Baza[Столбец1],"<"&Baza[Столбец1])+1,ROW(Baza[Столбец1])-MIN(ROW(Baza[Столбец1]))+1),1)),"") ->  | C30: =IF(Таблица4[[#This Row],['#]]="","",COUNTIFS(Baza[Столбец1],Таблица4[[#This Row],['#]])+SUMIFS(Baza[R],Baza[Столбец1],Таблица4[[#This Row],['#]])) ->  | D30: =IF(Таблица4[[#This Row],['#]]="","",SUMIFS(Baza[B$],Baza[Столбец1],Таблица4[[#This Row],['#]])) ->  | E30: =IFERROR(AVERAGEIFS(Baza[AFS],Baza[Столбец1],Таблица4[[#This Row],['#]])+(AVERAGEIFS(Baza[AFS],Baza[Столбец1],Таблица4[[#This Row],['#]])*0.2),"") ->  | G30: =IFERROR(COUNTIFS(Baza[Столбец1],Таблица4[[#This Row],['#]],Baza[Win],">0")/C30*100,"") ->  | H30: =IF(SUMIFS(Baza[KO$],Baza[Столбец1],Таблица4[[#This Row],['#]])=0,"",SUMIFS(Baza[KO$],Baza[Столбец1],Таблица4[[#This Row],['#]])) ->  | I30: =IF(SUMIFS(Baza[WIN$],Baza[Столбец1],Таблица4[[#This Row],['#]])=0,"",SUMIFS(Baza[WIN$],Baza[Столбец1],Таблица4[[#This Row],['#]])) -> 
B31: =IFERROR(INDEX(Baza[Столбец1],SMALL(IF(SMALL(IF(COUNTIF($B$2:$B30,Baza[Столбец1])=0,COUNTIF(Baza[Столбец1],"<"&Baza[Столбец1])+1,""),1)=COUNTIF(Baza[Столбец1],"<"&Baza[Столбец1])+1,ROW(Baza[Столбец1])-MIN(ROW(Baza[Столбец1]))+1),1)),"") ->  | C31: =IF(Таблица4[[#This Row],['#]]="","",COUNTIFS(Baza[Столбец1],Таблица4[[#This Row],['#]])+SUMIFS(Baza[R],Baza[Столбец1],Таблица4[[#This Row],['#]])) ->  | D31: =IF(Таблица4[[#This Row],['#]]="","",SUMIFS(Baza[B$],Baza[Столбец1],Таблица4[[#This Row],['#]])) ->  | E31: =IFERROR(AVERAGEIFS(Baza[AFS],Baza[Столбец1],Таблица4[[#This Row],['#]])+(AVERAGEIFS(Baza[AFS],Baza[Столбец1],Таблица4[[#This Row],['#]])*0.2),"") ->  | G31: =IFERROR(COUNTIFS(Baza[Столбец1],Таблица4[[#This Row],['#]],Baza[Win],">0")/C31*100,"") ->  | H31: =IF(SUMIFS(Baza[KO$],Baza[Столбец1],Таблица4[[#This Row],['#]])=0,"",SUMIFS(Baza[KO$],Baza[Столбец1],Таблица4[[#This Row],['#]])) ->  | I31: =IF(SUMIFS(Baza[WIN$],Baza[Столбец1],Таблица4[[#This Row],['#]])=0,"",SUMIFS(Baza[WIN$],Baza[Столбец1],Таблица4[[#This Row],['#]])) -> 
B32: =IFERROR(INDEX(Baza[Столбец1],SMALL(IF(SMALL(IF(COUNTIF($B$2:$B31,Baza[Столбец1])=0,COUNTIF(Baza[Столбец1],"<"&Baza[Столбец1])+1,""),1)=COUNTIF(Baza[Столбец1],"<"&Baza[Столбец1])+1,ROW(Baza[Столбец1])-MIN(ROW(Baza[Столбец1]))+1),1)),"") ->  | C32: =IF(Таблица4[[#This Row],['#]]="","",COUNTIFS(Baza[Столбец1],Таблица4[[#This Row],['#]])+SUMIFS(Baza[R],Baza[Столбец1],Таблица4[[#This Row],['#]])) ->  | D32: =IF(Таблица4[[#This Row],['#]]="","",SUMIFS(Baza[B$],Baza[Столбец1],Таблица4[[#This Row],['#]])) ->  | E32: =IFERROR(AVERAGEIFS(Baza[AFS],Baza[Столбец1],Таблица4[[#This Row],['#]])+(AVERAGEIFS(Baza[AFS],Baza[Столбец1],Таблица4[[#This Row],['#]])*0.2),"") ->  | G32: =IFERROR(COUNTIFS(Baza[Столбец1],Таблица4[[#This Row],['#]],Baza[Win],">0")/C32*100,"") ->  | H32: =IF(SUMIFS(Baza[KO$],Baza[Столбец1],Таблица4[[#This Row],['#]])=0,"",SUMIFS(Baza[KO$],Baza[Столбец1],Таблица4[[#This Row],['#]])) ->  | I32: =IF(SUMIFS(Baza[WIN$],Baza[Столбец1],Таблица4[[#This Row],['#]])=0,"",SUMIFS(Baza[WIN$],Baza[Столбец1],Таблица4[[#This Row],['#]])) -> 
B33: =IFERROR(INDEX(Baza[Столбец1],SMALL(IF(SMALL(IF(COUNTIF($B$2:$B32,Baza[Столбец1])=0,COUNTIF(Baza[Столбец1],"<"&Baza[Столбец1])+1,""),1)=COUNTIF(Baza[Столбец1],"<"&Baza[Столбец1])+1,ROW(Baza[Столбец1])-MIN(ROW(Baza[Столбец1]))+1),1)),"") ->  | C33: =IF(Таблица4[[#This Row],['#]]="","",COUNTIFS(Baza[Столбец1],Таблица4[[#This Row],['#]])+SUMIFS(Baza[R],Baza[Столбец1],Таблица4[[#This Row],['#]])) ->  | D33: =IF(Таблица4[[#This Row],['#]]="","",SUMIFS(Baza[B$],Baza[Столбец1],Таблица4[[#This Row],['#]])) ->  | E33: =IFERROR(AVERAGEIFS(Baza[AFS],Baza[Столбец1],Таблица4[[#This Row],['#]])+(AVERAGEIFS(Baza[AFS],Baza[Столбец1],Таблица4[[#This Row],['#]])*0.2),"") ->  | G33: =IFERROR(COUNTIFS(Baza[Столбец1],Таблица4[[#This Row],['#]],Baza[Win],">0")/C33*100,"") ->  | H33: =IF(SUMIFS(Baza[KO$],Baza[Столбец1],Таблица4[[#This Row],['#]])=0,"",SUMIFS(Baza[KO$],Baza[Столбец1],Таблица4[[#This Row],['#]])) ->  | I33: =IF(SUMIFS(Baza[WIN$],Baza[Столбец1],Таблица4[[#This Row],['#]])=0,"",SUMIFS(Baza[WIN$],Baza[Столбец1],Таблица4[[#This Row],['#]])) -> 
B34: =IFERROR(INDEX(Baza[Столбец1],SMALL(IF(SMALL(IF(COUNTIF($B$2:$B33,Baza[Столбец1])=0,COUNTIF(Baza[Столбец1],"<"&Baza[Столбец1])+1,""),1)=COUNTIF(Baza[Столбец1],"<"&Baza[Столбец1])+1,ROW(Baza[Столбец1])-MIN(ROW(Baza[Столбец1]))+1),1)),"") ->  | C34: =IF(Таблица4[[#This Row],['#]]="","",COUNTIFS(Baza[Столбец1],Таблица4[[#This Row],['#]])+SUMIFS(Baza[R],Baza[Столбец1],Таблица4[[#This Row],['#]])) ->  | D34: =IF(Таблица4[[#This Row],['#]]="","",SUMIFS(Baza[B$],Baza[Столбец1],Таблица4[[#This Row],['#]])) ->  | E34: =IFERROR(AVERAGEIFS(Baza[AFS],Baza[Столбец1],Таблица4[[#This Row],['#]])+(AVERAGEIFS(Baza[AFS],Baza[Столбец1],Таблица4[[#This Row],['#]])*0.2),"") ->  | G34: =IFERROR(COUNTIFS(Baza[Столбец1],Таблица4[[#This Row],['#]],Baza[Win],">0")/C34*100,"") ->  | H34: =IF(SUMIFS(Baza[KO$],Baza[Столбец1],Таблица4[[#This Row],['#]])=0,"",SUMIFS(Baza[KO$],Baza[Столбец1],Таблица4[[#This Row],['#]])) ->  | I34: =IF(SUMIFS(Baza[WIN$],Baza[Столбец1],Таблица4[[#This Row],['#]])=0,"",SUMIFS(Baza[WIN$],Baza[Столбец1],Таблица4[[#This Row],['#]])) -> 
B35: =IFERROR(INDEX(Baza[Столбец1],SMALL(IF(SMALL(IF(COUNTIF($B$2:$B34,Baza[Столбец1])=0,COUNTIF(Baza[Столбец1],"<"&Baza[Столбец1])+1,""),1)=COUNTIF(Baza[Столбец1],"<"&Baza[Столбец1])+1,ROW(Baza[Столбец1])-MIN(ROW(Baza[Столбец1]))+1),1)),"") ->  | C35: =IF(Таблица4[[#This Row],['#]]="","",COUNTIFS(Baza[Столбец1],Таблица4[[#This Row],['#]])+SUMIFS(Baza[R],Baza[Столбец1],Таблица4[[#This Row],['#]])) ->  | D35: =IF(Таблица4[[#This Row],['#]]="","",SUMIFS(Baza[B$],Baza[Столбец1],Таблица4[[#This Row],['#]])) ->  | E35: =IFERROR(AVERAGEIFS(Baza[AFS],Baza[Столбец1],Таблица4[[#This Row],['#]])+(AVERAGEIFS(Baza[AFS],Baza[Столбец1],Таблица4[[#This Row],['#]])*0.2),"") ->  | F35: =IFERROR(J35/D35*100,"") ->  | G35: =IFERROR(COUNTIFS(Baza[Столбец1],Таблица4[[#This Row],['#]],Baza[Win],">0")/C35*100,"") ->  | H35: =IF(SUMIFS(Baza[KO$],Baza[Столбец1],Таблица4[[#This Row],['#]])=0,"",SUMIFS(Baza[KO$],Baza[Столбец1],Таблица4[[#This Row],['#]])) ->  | I35: =IF(SUMIFS(Baza[WIN$],Baza[Столбец1],Таблица4[[#This Row],['#]])=0,"",SUMIFS(Baza[WIN$],Baza[Столбец1],Таблица4[[#This Row],['#]])) ->  | J35: =IFERROR(IF(I35="",0,I35)+IF(H35="",0,H35)-D35,"") -> 
B36: =IFERROR(INDEX(Baza[Столбец1],SMALL(IF(SMALL(IF(COUNTIF($B$2:$B35,Baza[Столбец1])=0,COUNTIF(Baza[Столбец1],"<"&Baza[Столбец1])+1,""),1)=COUNTIF(Baza[Столбец1],"<"&Baza[Столбец1])+1,ROW(Baza[Столбец1])-MIN(ROW(Baza[Столбец1]))+1),1)),"") ->  | C36: =IF(Таблица4[[#This Row],['#]]="","",COUNTIFS(Baza[Столбец1],Таблица4[[#This Row],['#]])+SUMIFS(Baza[R],Baza[Столбец1],Таблица4[[#This Row],['#]])) ->  | D36: =IF(Таблица4[[#This Row],['#]]="","",SUMIFS(Baza[B$],Baza[Столбец1],Таблица4[[#This Row],['#]])) ->  | E36: =IFERROR(AVERAGEIFS(Baza[AFS],Baza[Столбец1],Таблица4[[#This Row],['#]])+(AVERAGEIFS(Baza[AFS],Baza[Столбец1],Таблица4[[#This Row],['#]])*0.2),"") ->  | G36: =IFERROR(COUNTIFS(Baza[Столбец1],Таблица4[[#This Row],['#]],Baza[Win],">0")/C36*100,"") ->  | H36: =IF(SUMIFS(Baza[KO$],Baza[Столбец1],Таблица4[[#This Row],['#]])=0,"",SUMIFS(Baza[KO$],Baza[Столбец1],Таблица4[[#This Row],['#]])) ->  | I36: =IF(SUMIFS(Baza[WIN$],Baza[Столбец1],Таблица4[[#This Row],['#]])=0,"",SUMIFS(Baza[WIN$],Baza[Столбец1],Таблица4[[#This Row],['#]])) -> 
B37: =IFERROR(INDEX(Baza[Столбец1],SMALL(IF(SMALL(IF(COUNTIF($B$2:$B36,Baza[Столбец1])=0,COUNTIF(Baza[Столбец1],"<"&Baza[Столбец1])+1,""),1)=COUNTIF(Baza[Столбец1],"<"&Baza[Столбец1])+1,ROW(Baza[Столбец1])-MIN(ROW(Baza[Столбец1]))+1),1)),"") ->  | C37: =IF(Таблица4[[#This Row],['#]]="","",COUNTIFS(Baza[Столбец1],Таблица4[[#This Row],['#]])+SUMIFS(Baza[R],Baza[Столбец1],Таблица4[[#This Row],['#]])) ->  | D37: =IF(Таблица4[[#This Row],['#]]="","",SUMIFS(Baza[B$],Baza[Столбец1],Таблица4[[#This Row],['#]])) ->  | E37: =IFERROR(AVERAGEIFS(Baza[AFS],Baza[Столбец1],Таблица4[[#This Row],['#]])+(AVERAGEIFS(Baza[AFS],Baza[Столбец1],Таблица4[[#This Row],['#]])*0.2),"") ->  | G37: =IFERROR(COUNTIFS(Baza[Столбец1],Таблица4[[#This Row],['#]],Baza[Win],">0")/C37*100,"") ->  | H37: =IF(SUMIFS(Baza[KO$],Baza[Столбец1],Таблица4[[#This Row],['#]])=0,"",SUMIFS(Baza[KO$],Baza[Столбец1],Таблица4[[#This Row],['#]])) ->  | I37: =IF(SUMIFS(Baza[WIN$],Baza[Столбец1],Таблица4[[#This Row],['#]])=0,"",SUMIFS(Baza[WIN$],Baza[Столбец1],Таблица4[[#This Row],['#]])) -> 
B38: =IFERROR(INDEX(Baza[Столбец1],SMALL(IF(SMALL(IF(COUNTIF($B$2:$B37,Baza[Столбец1])=0,COUNTIF(Baza[Столбец1],"<"&Baza[Столбец1])+1,""),1)=COUNTIF(Baza[Столбец1],"<"&Baza[Столбец1])+1,ROW(Baza[Столбец1])-MIN(ROW(Baza[Столбец1]))+1),1)),"") ->  | C38: =IF(Таблица4[[#This Row],['#]]="","",COUNTIFS(Baza[Столбец1],Таблица4[[#This Row],['#]])+SUMIFS(Baza[R],Baza[Столбец1],Таблица4[[#This Row],['#]])) ->  | D38: =IF(Таблица4[[#This Row],['#]]="","",SUMIFS(Baza[B$],Baza[Столбец1],Таблица4[[#This Row],['#]])) ->  | E38: =IFERROR(AVERAGEIFS(Baza[AFS],Baza[Столбец1],Таблица4[[#This Row],['#]])+(AVERAGEIFS(Baza[AFS],Baza[Столбец1],Таблица4[[#This Row],['#]])*0.2),"") ->  | G38: =IFERROR(COUNTIFS(Baza[Столбец1],Таблица4[[#This Row],['#]],Baza[Win],">0")/C38*100,"") ->  | H38: =IF(SUMIFS(Baza[KO$],Baza[Столбец1],Таблица4[[#This Row],['#]])=0,"",SUMIFS(Baza[KO$],Baza[Столбец1],Таблица4[[#This Row],['#]])) ->  | I38: =IF(SUMIFS(Baza[WIN$],Baza[Столбец1],Таблица4[[#This Row],['#]])=0,"",SUMIFS(Baza[WIN$],Baza[Столбец1],Таблица4[[#This Row],['#]])) -> 
B39: =IFERROR(INDEX(Baza[Столбец1],SMALL(IF(SMALL(IF(COUNTIF($B$2:$B38,Baza[Столбец1])=0,COUNTIF(Baza[Столбец1],"<"&Baza[Столбец1])+1,""),1)=COUNTIF(Baza[Столбец1],"<"&Baza[Столбец1])+1,ROW(Baza[Столбец1])-MIN(ROW(Baza[Столбец1]))+1),1)),"") ->  | C39: =IF(Таблица4[[#This Row],['#]]="","",COUNTIFS(Baza[Столбец1],Таблица4[[#This Row],['#]])+SUMIFS(Baza[R],Baza[Столбец1],Таблица4[[#This Row],['#]])) ->  | D39: =IF(Таблица4[[#This Row],['#]]="","",SUMIFS(Baza[B$],Baza[Столбец1],Таблица4[[#This Row],['#]])) ->  | E39: =IFERROR(AVERAGEIFS(Baza[AFS],Baza[Столбец1],Таблица4[[#This Row],['#]])+(AVERAGEIFS(Baza[AFS],Baza[Столбец1],Таблица4[[#This Row],['#]])*0.2),"") ->  | G39: =IFERROR(COUNTIFS(Baza[Столбец1],Таблица4[[#This Row],['#]],Baza[Win],">0")/C39*100,"") ->  | H39: =IF(SUMIFS(Baza[KO$],Baza[Столбец1],Таблица4[[#This Row],['#]])=0,"",SUMIFS(Baza[KO$],Baza[Столбец1],Таблица4[[#This Row],['#]])) ->  | I39: =IF(SUMIFS(Baza[WIN$],Baza[Столбец1],Таблица4[[#This Row],['#]])=0,"",SUMIFS(Baza[WIN$],Baza[Столбец1],Таблица4[[#This Row],['#]])) -> 
B40: =IFERROR(INDEX(Baza[Столбец1],SMALL(IF(SMALL(IF(COUNTIF($B$2:$B39,Baza[Столбец1])=0,COUNTIF(Baza[Столбец1],"<"&Baza[Столбец1])+1,""),1)=COUNTIF(Baza[Столбец1],"<"&Baza[Столбец1])+1,ROW(Baza[Столбец1])-MIN(ROW(Baza[Столбец1]))+1),1)),"") ->  | C40: =IF(Таблица4[[#This Row],['#]]="","",COUNTIFS(Baza[Столбец1],Таблица4[[#This Row],['#]])+SUMIFS(Baza[R],Baza[Столбец1],Таблица4[[#This Row],['#]])) ->  | D40: =IF(Таблица4[[#This Row],['#]]="","",SUMIFS(Baza[B$],Baza[Столбец1],Таблица4[[#This Row],['#]])) ->  | E40: =IFERROR(AVERAGEIFS(Baza[AFS],Baza[Столбец1],Таблица4[[#This Row],['#]])+(AVERAGEIFS(Baza[AFS],Baza[Столбец1],Таблица4[[#This Row],['#]])*0.2),"") ->  | G40: =IFERROR(COUNTIFS(Baza[Столбец1],Таблица4[[#This Row],['#]],Baza[Win],">0")/C40*100,"") ->  | H40: =IF(SUMIFS(Baza[KO$],Baza[Столбец1],Таблица4[[#This Row],['#]])=0,"",SUMIFS(Baza[KO$],Baza[Столбец1],Таблица4[[#This Row],['#]])) ->  | I40: =IF(SUMIFS(Baza[WIN$],Baza[Столбец1],Таблица4[[#This Row],['#]])=0,"",SUMIFS(Baza[WIN$],Baza[Столбец1],Таблица4[[#This Row],['#]])) -> 
B41: =IFERROR(INDEX(Baza[Столбец1],SMALL(IF(SMALL(IF(COUNTIF($B$2:$B40,Baza[Столбец1])=0,COUNTIF(Baza[Столбец1],"<"&Baza[Столбец1])+1,""),1)=COUNTIF(Baza[Столбец1],"<"&Baza[Столбец1])+1,ROW(Baza[Столбец1])-MIN(ROW(Baza[Столбец1]))+1),1)),"") ->  | C41: =IF(Таблица4[[#This Row],['#]]="","",COUNTIFS(Baza[Столбец1],Таблица4[[#This Row],['#]])+SUMIFS(Baza[R],Baza[Столбец1],Таблица4[[#This Row],['#]])) ->  | D41: =IF(Таблица4[[#This Row],['#]]="","",SUMIFS(Baza[B$],Baza[Столбец1],Таблица4[[#This Row],['#]])) ->  | E41: =IFERROR(AVERAGEIFS(Baza[AFS],Baza[Столбец1],Таблица4[[#This Row],['#]])+(AVERAGEIFS(Baza[AFS],Baza[Столбец1],Таблица4[[#This Row],['#]])*0.2),"") ->  | G41: =IFERROR(COUNTIFS(Baza[Столбец1],Таблица4[[#This Row],['#]],Baza[Win],">0")/C41*100,"") ->  | H41: =IF(SUMIFS(Baza[KO$],Baza[Столбец1],Таблица4[[#This Row],['#]])=0,"",SUMIFS(Baza[KO$],Baza[Столбец1],Таблица4[[#This Row],['#]])) ->  | I41: =IF(SUMIFS(Baza[WIN$],Baza[Столбец1],Таблица4[[#This Row],['#]])=0,"",SUMIFS(Baza[WIN$],Baza[Столбец1],Таблица4[[#This Row],['#]])) -> 
B42: =IFERROR(INDEX(Baza[Столбец1],SMALL(IF(SMALL(IF(COUNTIF($B$2:$B41,Baza[Столбец1])=0,COUNTIF(Baza[Столбец1],"<"&Baza[Столбец1])+1,""),1)=COUNTIF(Baza[Столбец1],"<"&Baza[Столбец1])+1,ROW(Baza[Столбец1])-MIN(ROW(Baza[Столбец1]))+1),1)),"") ->  | C42: =IF(Таблица4[[#This Row],['#]]="","",COUNTIFS(Baza[Столбец1],Таблица4[[#This Row],['#]])+SUMIFS(Baza[R],Baza[Столбец1],Таблица4[[#This Row],['#]])) ->  | D42: =IF(Таблица4[[#This Row],['#]]="","",SUMIFS(Baza[B$],Baza[Столбец1],Таблица4[[#This Row],['#]])) ->  | E42: =IFERROR(AVERAGEIFS(Baza[AFS],Baza[Столбец1],Таблица4[[#This Row],['#]])+(AVERAGEIFS(Baza[AFS],Baza[Столбец1],Таблица4[[#This Row],['#]])*0.2),"") ->  | G42: =IFERROR(COUNTIFS(Baza[Столбец1],Таблица4[[#This Row],['#]],Baza[Win],">0")/C42*100,"") ->  | H42: =IF(SUMIFS(Baza[KO$],Baza[Столбец1],Таблица4[[#This Row],['#]])=0,"",SUMIFS(Baza[KO$],Baza[Столбец1],Таблица4[[#This Row],['#]])) ->  | I42: =IF(SUMIFS(Baza[WIN$],Baza[Столбец1],Таблица4[[#This Row],['#]])=0,"",SUMIFS(Baza[WIN$],Baza[Столбец1],Таблица4[[#This Row],['#]])) -> 
B43: =IFERROR(INDEX(Baza[Столбец1],SMALL(IF(SMALL(IF(COUNTIF($B$2:$B42,Baza[Столбец1])=0,COUNTIF(Baza[Столбец1],"<"&Baza[Столбец1])+1,""),1)=COUNTIF(Baza[Столбец1],"<"&Baza[Столбец1])+1,ROW(Baza[Столбец1])-MIN(ROW(Baza[Столбец1]))+1),1)),"") ->  | C43: =IF(Таблица4[[#This Row],['#]]="","",COUNTIFS(Baza[Столбец1],Таблица4[[#This Row],['#]])+SUMIFS(Baza[R],Baza[Столбец1],Таблица4[[#This Row],['#]])) ->  | D43: =IF(Таблица4[[#This Row],['#]]="","",SUMIFS(Baza[B$],Baza[Столбец1],Таблица4[[#This Row],['#]])) ->  | E43: =IFERROR(AVERAGEIFS(Baza[AFS],Baza[Столбец1],Таблица4[[#This Row],['#]])+(AVERAGEIFS(Baza[AFS],Baza[Столбец1],Таблица4[[#This Row],['#]])*0.2),"") ->  | G43: =IFERROR(COUNTIFS(Baza[Столбец1],Таблица4[[#This Row],['#]],Baza[Win],">0")/C43*100,"") ->  | H43: =IF(SUMIFS(Baza[KO$],Baza[Столбец1],Таблица4[[#This Row],['#]])=0,"",SUMIFS(Baza[KO$],Baza[Столбец1],Таблица4[[#This Row],['#]])) ->  | I43: =IF(SUMIFS(Baza[WIN$],Baza[Столбец1],Таблица4[[#This Row],['#]])=0,"",SUMIFS(Baza[WIN$],Baza[Столбец1],Таблица4[[#This Row],['#]])) -> 
B44: =IFERROR(INDEX(Baza[Столбец1],SMALL(IF(SMALL(IF(COUNTIF($B$2:$B43,Baza[Столбец1])=0,COUNTIF(Baza[Столбец1],"<"&Baza[Столбец1])+1,""),1)=COUNTIF(Baza[Столбец1],"<"&Baza[Столбец1])+1,ROW(Baza[Столбец1])-MIN(ROW(Baza[Столбец1]))+1),1)),"") ->  | C44: =IF(Таблица4[[#This Row],['#]]="","",COUNTIFS(Baza[Столбец1],Таблица4[[#This Row],['#]])+SUMIFS(Baza[R],Baza[Столбец1],Таблица4[[#This Row],['#]])) ->  | D44: =IF(Таблица4[[#This Row],['#]]="","",SUMIFS(Baza[B$],Baza[Столбец1],Таблица4[[#This Row],['#]])) ->  | E44: =IFERROR(AVERAGEIFS(Baza[AFS],Baza[Столбец1],Таблица4[[#This Row],['#]])+(AVERAGEIFS(Baza[AFS],Baza[Столбец1],Таблица4[[#This Row],['#]])*0.2),"") ->  | G44: =IFERROR(COUNTIFS(Baza[Столбец1],Таблица4[[#This Row],['#]],Baza[Win],">0")/C44*100,"") ->  | H44: =IF(SUMIFS(Baza[KO$],Baza[Столбец1],Таблица4[[#This Row],['#]])=0,"",SUMIFS(Baza[KO$],Baza[Столбец1],Таблица4[[#This Row],['#]])) ->  | I44: =IF(SUMIFS(Baza[WIN$],Baza[Столбец1],Таблица4[[#This Row],['#]])=0,"",SUMIFS(Baza[WIN$],Baza[Столбец1],Таблица4[[#This Row],['#]])) -> 
B45: =IFERROR(INDEX(Baza[Столбец1],SMALL(IF(SMALL(IF(COUNTIF($B$2:$B44,Baza[Столбец1])=0,COUNTIF(Baza[Столбец1],"<"&Baza[Столбец1])+1,""),1)=COUNTIF(Baza[Столбец1],"<"&Baza[Столбец1])+1,ROW(Baza[Столбец1])-MIN(ROW(Baza[Столбец1]))+1),1)),"") ->  | C45: =IF(Таблица4[[#This Row],['#]]="","",COUNTIFS(Baza[Столбец1],Таблица4[[#This Row],['#]])+SUMIFS(Baza[R],Baza[Столбец1],Таблица4[[#This Row],['#]])) ->  | D45: =IF(Таблица4[[#This Row],['#]]="","",SUMIFS(Baza[B$],Baza[Столбец1],Таблица4[[#This Row],['#]])) ->  | E45: =IFERROR(AVERAGEIFS(Baza[AFS],Baza[Столбец1],Таблица4[[#This Row],['#]])+(AVERAGEIFS(Baza[AFS],Baza[Столбец1],Таблица4[[#This Row],['#]])*0.2),"") ->  | G45: =IFERROR(COUNTIFS(Baza[Столбец1],Таблица4[[#This Row],['#]],Baza[Win],">0")/C45*100,"") ->  | H45: =IF(SUMIFS(Baza[KO$],Baza[Столбец1],Таблица4[[#This Row],['#]])=0,"",SUMIFS(Baza[KO$],Baza[Столбец1],Таблица4[[#This Row],['#]])) ->  | I45: =IF(SUMIFS(Baza[WIN$],Baza[Столбец1],Таблица4[[#This Row],['#]])=0,"",SUMIFS(Baza[WIN$],Baza[Столбец1],Таблица4[[#This Row],['#]])) -> 
B46: =IFERROR(INDEX(Baza[Столбец1],SMALL(IF(SMALL(IF(COUNTIF($B$2:$B45,Baza[Столбец1])=0,COUNTIF(Baza[Столбец1],"<"&Baza[Столбец1])+1,""),1)=COUNTIF(Baza[Столбец1],"<"&Baza[Столбец1])+1,ROW(Baza[Столбец1])-MIN(ROW(Baza[Столбец1]))+1),1)),"") ->  | C46: =IF(Таблица4[[#This Row],['#]]="","",COUNTIFS(Baza[Столбец1],Таблица4[[#This Row],['#]])+SUMIFS(Baza[R],Baza[Столбец1],Таблица4[[#This Row],['#]])) ->  | D46: =IF(Таблица4[[#This Row],['#]]="","",SUMIFS(Baza[B$],Baza[Столбец1],Таблица4[[#This Row],['#]])) ->  | E46: =IFERROR(AVERAGEIFS(Baza[AFS],Baza[Столбец1],Таблица4[[#This Row],['#]])+(AVERAGEIFS(Baza[AFS],Baza[Столбец1],Таблица4[[#This Row],['#]])*0.2),"") ->  | G46: =IFERROR(COUNTIFS(Baza[Столбец1],Таблица4[[#This Row],['#]],Baza[Win],">0")/C46*100,"") ->  | H46: =IF(SUMIFS(Baza[KO$],Baza[Столбец1],Таблица4[[#This Row],['#]])=0,"",SUMIFS(Baza[KO$],Baza[Столбец1],Таблица4[[#This Row],['#]])) ->  | I46: =IF(SUMIFS(Baza[WIN$],Baza[Столбец1],Таблица4[[#This Row],['#]])=0,"",SUMIFS(Baza[WIN$],Baza[Столбец1],Таблица4[[#This Row],['#]])) -> 
B47: =IFERROR(INDEX(Baza[Столбец1],SMALL(IF(SMALL(IF(COUNTIF($B$2:$B46,Baza[Столбец1])=0,COUNTIF(Baza[Столбец1],"<"&Baza[Столбец1])+1,""),1)=COUNTIF(Baza[Столбец1],"<"&Baza[Столбец1])+1,ROW(Baza[Столбец1])-MIN(ROW(Baza[Столбец1]))+1),1)),"") ->  | C47: =IF(Таблица4[[#This Row],['#]]="","",COUNTIFS(Baza[Столбец1],Таблица4[[#This Row],['#]])+SUMIFS(Baza[R],Baza[Столбец1],Таблица4[[#This Row],['#]])) ->  | D47: =IF(Таблица4[[#This Row],['#]]="","",SUMIFS(Baza[B$],Baza[Столбец1],Таблица4[[#This Row],['#]])) ->  | E47: =IFERROR(AVERAGEIFS(Baza[AFS],Baza[Столбец1],Таблица4[[#This Row],['#]])+(AVERAGEIFS(Baza[AFS],Baza[Столбец1],Таблица4[[#This Row],['#]])*0.2),"") ->  | G47: =IFERROR(COUNTIFS(Baza[Столбец1],Таблица4[[#This Row],['#]],Baza[Win],">0")/C47*100,"") ->  | H47: =IF(SUMIFS(Baza[KO$],Baza[Столбец1],Таблица4[[#This Row],['#]])=0,"",SUMIFS(Baza[KO$],Baza[Столбец1],Таблица4[[#This Row],['#]])) ->  | I47: =IF(SUMIFS(Baza[WIN$],Baza[Столбец1],Таблица4[[#This Row],['#]])=0,"",SUMIFS(Baza[WIN$],Baza[Столбец1],Таблица4[[#This Row],['#]])) -> 
B48: =IFERROR(INDEX(Baza[Столбец1],SMALL(IF(SMALL(IF(COUNTIF($B$2:$B47,Baza[Столбец1])=0,COUNTIF(Baza[Столбец1],"<"&Baza[Столбец1])+1,""),1)=COUNTIF(Baza[Столбец1],"<"&Baza[Столбец1])+1,ROW(Baza[Столбец1])-MIN(ROW(Baza[Столбец1]))+1),1)),"") ->  | C48: =IF(Таблица4[[#This Row],['#]]="","",COUNTIFS(Baza[Столбец1],Таблица4[[#This Row],['#]])+SUMIFS(Baza[R],Baza[Столбец1],Таблица4[[#This Row],['#]])) ->  | D48: =IF(Таблица4[[#This Row],['#]]="","",SUMIFS(Baza[B$],Baza[Столбец1],Таблица4[[#This Row],['#]])) ->  | E48: =IFERROR(AVERAGEIFS(Baza[AFS],Baza[Столбец1],Таблица4[[#This Row],['#]])+(AVERAGEIFS(Baza[AFS],Baza[Столбец1],Таблица4[[#This Row],['#]])*0.2),"") ->  | G48: =IFERROR(COUNTIFS(Baza[Столбец1],Таблица4[[#This Row],['#]],Baza[Win],">0")/C48*100,"") ->  | H48: =IF(SUMIFS(Baza[KO$],Baza[Столбец1],Таблица4[[#This Row],['#]])=0,"",SUMIFS(Baza[KO$],Baza[Столбец1],Таблица4[[#This Row],['#]])) ->  | I48: =IF(SUMIFS(Baza[WIN$],Baza[Столбец1],Таблица4[[#This Row],['#]])=0,"",SUMIFS(Baza[WIN$],Baza[Столбец1],Таблица4[[#This Row],['#]])) -> 
B49: =IFERROR(INDEX(Baza[Столбец1],SMALL(IF(SMALL(IF(COUNTIF($B$2:$B48,Baza[Столбец1])=0,COUNTIF(Baza[Столбец1],"<"&Baza[Столбец1])+1,""),1)=COUNTIF(Baza[Столбец1],"<"&Baza[Столбец1])+1,ROW(Baza[Столбец1])-MIN(ROW(Baza[Столбец1]))+1),1)),"") ->  | C49: =IF(Таблица4[[#This Row],['#]]="","",COUNTIFS(Baza[Столбец1],Таблица4[[#This Row],['#]])+SUMIFS(Baza[R],Baza[Столбец1],Таблица4[[#This Row],['#]])) ->  | D49: =IF(Таблица4[[#This Row],['#]]="","",SUMIFS(Baza[B$],Baza[Столбец1],Таблица4[[#This Row],['#]])) ->  | E49: =IFERROR(AVERAGEIFS(Baza[AFS],Baza[Столбец1],Таблица4[[#This Row],['#]])+(AVERAGEIFS(Baza[AFS],Baza[Столбец1],Таблица4[[#This Row],['#]])*0.2),"") ->  | G49: =IFERROR(COUNTIFS(Baza[Столбец1],Таблица4[[#This Row],['#]],Baza[Win],">0")/C49*100,"") ->  | H49: =IF(SUMIFS(Baza[KO$],Baza[Столбец1],Таблица4[[#This Row],['#]])=0,"",SUMIFS(Baza[KO$],Baza[Столбец1],Таблица4[[#This Row],['#]])) ->  | I49: =IF(SUMIFS(Baza[WIN$],Baza[Столбец1],Таблица4[[#This Row],['#]])=0,"",SUMIFS(Baza[WIN$],Baza[Столбец1],Таблица4[[#This Row],['#]])) -> 
B50: =IFERROR(INDEX(Baza[Столбец1],SMALL(IF(SMALL(IF(COUNTIF($B$2:$B49,Baza[Столбец1])=0,COUNTIF(Baza[Столбец1],"<"&Baza[Столбец1])+1,""),1)=COUNTIF(Baza[Столбец1],"<"&Baza[Столбец1])+1,ROW(Baza[Столбец1])-MIN(ROW(Baza[Столбец1]))+1),1)),"") ->  | C50: =IF(Таблица4[[#This Row],['#]]="","",COUNTIFS(Baza[Столбец1],Таблица4[[#This Row],['#]])+SUMIFS(Baza[R],Baza[Столбец1],Таблица4[[#This Row],['#]])) ->  | D50: =IF(Таблица4[[#This Row],['#]]="","",SUMIFS(Baza[B$],Baza[Столбец1],Таблица4[[#This Row],['#]])) ->  | E50: =IFERROR(AVERAGEIFS(Baza[AFS],Baza[Столбец1],Таблица4[[#This Row],['#]])+(AVERAGEIFS(Baza[AFS],Baza[Столбец1],Таблица4[[#This Row],['#]])*0.2),"") ->  | G50: =IFERROR(COUNTIFS(Baza[Столбец1],Таблица4[[#This Row],['#]],Baza[Win],">0")/C50*100,"") ->  | H50: =IF(SUMIFS(Baza[KO$],Baza[Столбец1],Таблица4[[#This Row],['#]])=0,"",SUMIFS(Baza[KO$],Baza[Столбец1],Таблица4[[#This Row],['#]])) ->  | I50: =IF(SUMIFS(Baza[WIN$],Baza[Столбец1],Таблица4[[#This Row],['#]])=0,"",SUMIFS(Baza[WIN$],Baza[Столбец1],Таблица4[[#This Row],['#]])) -> 
B51: =IFERROR(INDEX(Baza[Столбец1],SMALL(IF(SMALL(IF(COUNTIF($B$2:$B50,Baza[Столбец1])=0,COUNTIF(Baza[Столбец1],"<"&Baza[Столбец1])+1,""),1)=COUNTIF(Baza[Столбец1],"<"&Baza[Столбец1])+1,ROW(Baza[Столбец1])-MIN(ROW(Baza[Столбец1]))+1),1)),"") ->  | C51: =IF(Таблица4[[#This Row],['#]]="","",COUNTIFS(Baza[Столбец1],Таблица4[[#This Row],['#]])+SUMIFS(Baza[R],Baza[Столбец1],Таблица4[[#This Row],['#]])) ->  | D51: =IF(Таблица4[[#This Row],['#]]="","",SUMIFS(Baza[B$],Baza[Столбец1],Таблица4[[#This Row],['#]])) ->  | E51: =IFERROR(AVERAGEIFS(Baza[AFS],Baza[Столбец1],Таблица4[[#This Row],['#]])+(AVERAGEIFS(Baza[AFS],Baza[Столбец1],Таблица4[[#This Row],['#]])*0.2),"") ->  | G51: =IFERROR(COUNTIFS(Baza[Столбец1],Таблица4[[#This Row],['#]],Baza[Win],">0")/C51*100,"") ->  | H51: =IF(SUMIFS(Baza[KO$],Baza[Столбец1],Таблица4[[#This Row],['#]])=0,"",SUMIFS(Baza[KO$],Baza[Столбец1],Таблица4[[#This Row],['#]])) ->  | I51: =IF(SUMIFS(Baza[WIN$],Baza[Столбец1],Таблица4[[#This Row],['#]])=0,"",SUMIFS(Baza[WIN$],Baza[Столбец1],Таблица4[[#This Row],['#]])) -> 
B52: =IFERROR(INDEX(Baza[Столбец1],SMALL(IF(SMALL(IF(COUNTIF($B$2:$B51,Baza[Столбец1])=0,COUNTIF(Baza[Столбец1],"<"&Baza[Столбец1])+1,""),1)=COUNTIF(Baza[Столбец1],"<"&Baza[Столбец1])+1,ROW(Baza[Столбец1])-MIN(ROW(Baza[Столбец1]))+1),1)),"") ->  | C52: =IF(Таблица4[[#This Row],['#]]="","",COUNTIFS(Baza[Столбец1],Таблица4[[#This Row],['#]])+SUMIFS(Baza[R],Baza[Столбец1],Таблица4[[#This Row],['#]])) ->  | D52: =IF(Таблица4[[#This Row],['#]]="","",SUMIFS(Baza[B$],Baza[Столбец1],Таблица4[[#This Row],['#]])) ->  | E52: =IFERROR(AVERAGEIFS(Baza[AFS],Baza[Столбец1],Таблица4[[#This Row],['#]])+(AVERAGEIFS(Baza[AFS],Baza[Столбец1],Таблица4[[#This Row],['#]])*0.2),"") ->  | G52: =IFERROR(COUNTIFS(Baza[Столбец1],Таблица4[[#This Row],['#]],Baza[Win],">0")/C52*100,"") ->  | H52: =IF(SUMIFS(Baza[KO$],Baza[Столбец1],Таблица4[[#This Row],['#]])=0,"",SUMIFS(Baza[KO$],Baza[Столбец1],Таблица4[[#This Row],['#]])) ->  | I52: =IF(SUMIFS(Baza[WIN$],Baza[Столбец1],Таблица4[[#This Row],['#]])=0,"",SUMIFS(Baza[WIN$],Baza[Столбец1],Таблица4[[#This Row],['#]])) -> 
B53: =IFERROR(INDEX(Baza[Столбец1],SMALL(IF(SMALL(IF(COUNTIF($B$2:$B52,Baza[Столбец1])=0,COUNTIF(Baza[Столбец1],"<"&Baza[Столбец1])+1,""),1)=COUNTIF(Baza[Столбец1],"<"&Baza[Столбец1])+1,ROW(Baza[Столбец1])-MIN(ROW(Baza[Столбец1]))+1),1)),"") ->  | C53: =IF(Таблица4[[#This Row],['#]]="","",COUNTIFS(Baza[Столбец1],Таблица4[[#This Row],['#]])+SUMIFS(Baza[R],Baza[Столбец1],Таблица4[[#This Row],['#]])) ->  | D53: =IF(Таблица4[[#This Row],['#]]="","",SUMIFS(Baza[B$],Baza[Столбец1],Таблица4[[#This Row],['#]])) ->  | E53: =IFERROR(AVERAGEIFS(Baza[AFS],Baza[Столбец1],Таблица4[[#This Row],['#]])+(AVERAGEIFS(Baza[AFS],Baza[Столбец1],Таблица4[[#This Row],['#]])*0.2),"") ->  | G53: =IFERROR(COUNTIFS(Baza[Столбец1],Таблица4[[#This Row],['#]],Baza[Win],">0")/C53*100,"") ->  | H53: =IF(SUMIFS(Baza[KO$],Baza[Столбец1],Таблица4[[#This Row],['#]])=0,"",SUMIFS(Baza[KO$],Baza[Столбец1],Таблица4[[#This Row],['#]])) ->  | I53: =IF(SUMIFS(Baza[WIN$],Baza[Столбец1],Таблица4[[#This Row],['#]])=0,"",SUMIFS(Baza[WIN$],Baza[Столбец1],Таблица4[[#This Row],['#]])) -> 
B54: =IFERROR(INDEX(Baza[Столбец1],SMALL(IF(SMALL(IF(COUNTIF($B$2:$B53,Baza[Столбец1])=0,COUNTIF(Baza[Столбец1],"<"&Baza[Столбец1])+1,""),1)=COUNTIF(Baza[Столбец1],"<"&Baza[Столбец1])+1,ROW(Baza[Столбец1])-MIN(ROW(Baza[Столбец1]))+1),1)),"") ->  | C54: =IF(Таблица4[[#This Row],['#]]="","",COUNTIFS(Baza[Столбец1],Таблица4[[#This Row],['#]])+SUMIFS(Baza[R],Baza[Столбец1],Таблица4[[#This Row],['#]])) ->  | D54: =IF(Таблица4[[#This Row],['#]]="","",SUMIFS(Baza[B$],Baza[Столбец1],Таблица4[[#This Row],['#]])) ->  | E54: =IFERROR(AVERAGEIFS(Baza[AFS],Baza[Столбец1],Таблица4[[#This Row],['#]])+(AVERAGEIFS(Baza[AFS],Baza[Столбец1],Таблица4[[#This Row],['#]])*0.2),"") ->  | G54: =IFERROR(COUNTIFS(Baza[Столбец1],Таблица4[[#This Row],['#]],Baza[Win],">0")/C54*100,"") ->  | H54: =IF(SUMIFS(Baza[KO$],Baza[Столбец1],Таблица4[[#This Row],['#]])=0,"",SUMIFS(Baza[KO$],Baza[Столбец1],Таблица4[[#This Row],['#]])) ->  | I54: =IF(SUMIFS(Baza[WIN$],Baza[Столбец1],Таблица4[[#This Row],['#]])=0,"",SUMIFS(Baza[WIN$],Baza[Столбец1],Таблица4[[#This Row],['#]])) -> 
B55: =IFERROR(INDEX(Baza[Столбец1],SMALL(IF(SMALL(IF(COUNTIF($B$2:$B54,Baza[Столбец1])=0,COUNTIF(Baza[Столбец1],"<"&Baza[Столбец1])+1,""),1)=COUNTIF(Baza[Столбец1],"<"&Baza[Столбец1])+1,ROW(Baza[Столбец1])-MIN(ROW(Baza[Столбец1]))+1),1)),"") ->  | C55: =IF(Таблица4[[#This Row],['#]]="","",COUNTIFS(Baza[Столбец1],Таблица4[[#This Row],['#]])+SUMIFS(Baza[R],Baza[Столбец1],Таблица4[[#This Row],['#]])) ->  | D55: =IF(Таблица4[[#This Row],['#]]="","",SUMIFS(Baza[B$],Baza[Столбец1],Таблица4[[#This Row],['#]])) ->  | E55: =IFERROR(AVERAGEIFS(Baza[AFS],Baza[Столбец1],Таблица4[[#This Row],['#]])+(AVERAGEIFS(Baza[AFS],Baza[Столбец1],Таблица4[[#This Row],['#]])*0.2),"") ->  | G55: =IFERROR(COUNTIFS(Baza[Столбец1],Таблица4[[#This Row],['#]],Baza[Win],">0")/C55*100,"") ->  | H55: =IF(SUMIFS(Baza[KO$],Baza[Столбец1],Таблица4[[#This Row],['#]])=0,"",SUMIFS(Baza[KO$],Baza[Столбец1],Таблица4[[#This Row],['#]])) ->  | I55: =IF(SUMIFS(Baza[WIN$],Baza[Столбец1],Таблица4[[#This Row],['#]])=0,"",SUMIFS(Baza[WIN$],Baza[Столбец1],Таблица4[[#This Row],['#]])) -> 
B56: =IFERROR(INDEX(Baza[Столбец1],SMALL(IF(SMALL(IF(COUNTIF($B$2:$B55,Baza[Столбец1])=0,COUNTIF(Baza[Столбец1],"<"&Baza[Столбец1])+1,""),1)=COUNTIF(Baza[Столбец1],"<"&Baza[Столбец1])+1,ROW(Baza[Столбец1])-MIN(ROW(Baza[Столбец1]))+1),1)),"") ->  | C56: =IF(Таблица4[[#This Row],['#]]="","",COUNTIFS(Baza[Столбец1],Таблица4[[#This Row],['#]])+SUMIFS(Baza[R],Baza[Столбец1],Таблица4[[#This Row],['#]])) ->  | D56: =IF(Таблица4[[#This Row],['#]]="","",SUMIFS(Baza[B$],Baza[Столбец1],Таблица4[[#This Row],['#]])) ->  | E56: =IFERROR(AVERAGEIFS(Baza[AFS],Baza[Столбец1],Таблица4[[#This Row],['#]])+(AVERAGEIFS(Baza[AFS],Baza[Столбец1],Таблица4[[#This Row],['#]])*0.2),"") ->  | G56: =IFERROR(COUNTIFS(Baza[Столбец1],Таблица4[[#This Row],['#]],Baza[Win],">0")/C56*100,"") ->  | H56: =IF(SUMIFS(Baza[KO$],Baza[Столбец1],Таблица4[[#This Row],['#]])=0,"",SUMIFS(Baza[KO$],Baza[Столбец1],Таблица4[[#This Row],['#]])) ->  | I56: =IF(SUMIFS(Baza[WIN$],Baza[Столбец1],Таблица4[[#This Row],['#]])=0,"",SUMIFS(Baza[WIN$],Baza[Столбец1],Таблица4[[#This Row],['#]])) -> 
B57: =IFERROR(INDEX(Baza[Столбец1],SMALL(IF(SMALL(IF(COUNTIF($B$2:$B56,Baza[Столбец1])=0,COUNTIF(Baza[Столбец1],"<"&Baza[Столбец1])+1,""),1)=COUNTIF(Baza[Столбец1],"<"&Baza[Столбец1])+1,ROW(Baza[Столбец1])-MIN(ROW(Baza[Столбец1]))+1),1)),"") ->  | C57: =IF(Таблица4[[#This Row],['#]]="","",COUNTIFS(Baza[Столбец1],Таблица4[[#This Row],['#]])+SUMIFS(Baza[R],Baza[Столбец1],Таблица4[[#This Row],['#]])) ->  | D57: =IF(Таблица4[[#This Row],['#]]="","",SUMIFS(Baza[B$],Baza[Столбец1],Таблица4[[#This Row],['#]])) ->  | E57: =IFERROR(AVERAGEIFS(Baza[AFS],Baza[Столбец1],Таблица4[[#This Row],['#]])+(AVERAGEIFS(Baza[AFS],Baza[Столбец1],Таблица4[[#This Row],['#]])*0.2),"") ->  | G57: =IFERROR(COUNTIFS(Baza[Столбец1],Таблица4[[#This Row],['#]],Baza[Win],">0")/C57*100,"") ->  | H57: =IF(SUMIFS(Baza[KO$],Baza[Столбец1],Таблица4[[#This Row],['#]])=0,"",SUMIFS(Baza[KO$],Baza[Столбец1],Таблица4[[#This Row],['#]])) ->  | I57: =IF(SUMIFS(Baza[WIN$],Baza[Столбец1],Таблица4[[#This Row],['#]])=0,"",SUMIFS(Baza[WIN$],Baza[Столбец1],Таблица4[[#This Row],['#]])) -> 
B58: =IFERROR(INDEX(Baza[Столбец1],SMALL(IF(SMALL(IF(COUNTIF($B$2:$B57,Baza[Столбец1])=0,COUNTIF(Baza[Столбец1],"<"&Baza[Столбец1])+1,""),1)=COUNTIF(Baza[Столбец1],"<"&Baza[Столбец1])+1,ROW(Baza[Столбец1])-MIN(ROW(Baza[Столбец1]))+1),1)),"") ->  | C58: =IF(Таблица4[[#This Row],['#]]="","",COUNTIFS(Baza[Столбец1],Таблица4[[#This Row],['#]])+SUMIFS(Baza[R],Baza[Столбец1],Таблица4[[#This Row],['#]])) ->  | D58: =IF(Таблица4[[#This Row],['#]]="","",SUMIFS(Baza[B$],Baza[Столбец1],Таблица4[[#This Row],['#]])) ->  | E58: =IFERROR(AVERAGEIFS(Baza[AFS],Baza[Столбец1],Таблица4[[#This Row],['#]])+(AVERAGEIFS(Baza[AFS],Baza[Столбец1],Таблица4[[#This Row],['#]])*0.2),"") ->  | G58: =IFERROR(COUNTIFS(Baza[Столбец1],Таблица4[[#This Row],['#]],Baza[Win],">0")/C58*100,"") ->  | H58: =IF(SUMIFS(Baza[KO$],Baza[Столбец1],Таблица4[[#This Row],['#]])=0,"",SUMIFS(Baza[KO$],Baza[Столбец1],Таблица4[[#This Row],['#]])) ->  | I58: =IF(SUMIFS(Baza[WIN$],Baza[Столбец1],Таблица4[[#This Row],['#]])=0,"",SUMIFS(Baza[WIN$],Baza[Столбец1],Таблица4[[#This Row],['#]])) -> 
B59: =IFERROR(INDEX(Baza[Столбец1],SMALL(IF(SMALL(IF(COUNTIF($B$2:$B58,Baza[Столбец1])=0,COUNTIF(Baza[Столбец1],"<"&Baza[Столбец1])+1,""),1)=COUNTIF(Baza[Столбец1],"<"&Baza[Столбец1])+1,ROW(Baza[Столбец1])-MIN(ROW(Baza[Столбец1]))+1),1)),"") ->  | C59: =IF(Таблица4[[#This Row],['#]]="","",COUNTIFS(Baza[Столбец1],Таблица4[[#This Row],['#]])+SUMIFS(Baza[R],Baza[Столбец1],Таблица4[[#This Row],['#]])) ->  | D59: =IF(Таблица4[[#This Row],['#]]="","",SUMIFS(Baza[B$],Baza[Столбец1],Таблица4[[#This Row],['#]])) ->  | E59: =IFERROR(AVERAGEIFS(Baza[AFS],Baza[Столбец1],Таблица4[[#This Row],['#]])+(AVERAGEIFS(Baza[AFS],Baza[Столбец1],Таблица4[[#This Row],['#]])*0.2),"") ->  | G59: =IFERROR(COUNTIFS(Baza[Столбец1],Таблица4[[#This Row],['#]],Baza[Win],">0")/C59*100,"") ->  | H59: =IF(SUMIFS(Baza[KO$],Baza[Столбец1],Таблица4[[#This Row],['#]])=0,"",SUMIFS(Baza[KO$],Baza[Столбец1],Таблица4[[#This Row],['#]])) ->  | I59: =IF(SUMIFS(Baza[WIN$],Baza[Столбец1],Таблица4[[#This Row],['#]])=0,"",SUMIFS(Baza[WIN$],Baza[Столбец1],Таблица4[[#This Row],['#]])) -> 
B60: =IFERROR(INDEX(Baza[Столбец1],SMALL(IF(SMALL(IF(COUNTIF($B$2:$B59,Baza[Столбец1])=0,COUNTIF(Baza[Столбец1],"<"&Baza[Столбец1])+1,""),1)=COUNTIF(Baza[Столбец1],"<"&Baza[Столбец1])+1,ROW(Baza[Столбец1])-MIN(ROW(Baza[Столбец1]))+1),1)),"") ->  | C60: =IF(Таблица4[[#This Row],['#]]="","",COUNTIFS(Baza[Столбец1],Таблица4[[#This Row],['#]])+SUMIFS(Baza[R],Baza[Столбец1],Таблица4[[#This Row],['#]])) ->  | D60: =IF(Таблица4[[#This Row],['#]]="","",SUMIFS(Baza[B$],Baza[Столбец1],Таблица4[[#This Row],['#]])) ->  | E60: =IFERROR(AVERAGEIFS(Baza[AFS],Baza[Столбец1],Таблица4[[#This Row],['#]])+(AVERAGEIFS(Baza[AFS],Baza[Столбец1],Таблица4[[#This Row],['#]])*0.2),"") ->  | G60: =IFERROR(COUNTIFS(Baza[Столбец1],Таблица4[[#This Row],['#]],Baza[Win],">0")/C60*100,"") ->  | H60: =IF(SUMIFS(Baza[KO$],Baza[Столбец1],Таблица4[[#This Row],['#]])=0,"",SUMIFS(Baza[KO$],Baza[Столбец1],Таблица4[[#This Row],['#]])) ->  | I60: =IF(SUMIFS(Baza[WIN$],Baza[Столбец1],Таблица4[[#This Row],['#]])=0,"",SUMIFS(Baza[WIN$],Baza[Столбец1],Таблица4[[#This Row],['#]])) -> 
B61: =IFERROR(INDEX(Baza[Столбец1],SMALL(IF(SMALL(IF(COUNTIF($B$2:$B60,Baza[Столбец1])=0,COUNTIF(Baza[Столбец1],"<"&Baza[Столбец1])+1,""),1)=COUNTIF(Baza[Столбец1],"<"&Baza[Столбец1])+1,ROW(Baza[Столбец1])-MIN(ROW(Baza[Столбец1]))+1),1)),"") ->  | C61: =IF(Таблица4[[#This Row],['#]]="","",COUNTIFS(Baza[Столбец1],Таблица4[[#This Row],['#]])+SUMIFS(Baza[R],Baza[Столбец1],Таблица4[[#This Row],['#]])) ->  | D61: =IF(Таблица4[[#This Row],['#]]="","",SUMIFS(Baza[B$],Baza[Столбец1],Таблица4[[#This Row],['#]])) ->  | E61: =IFERROR(AVERAGEIFS(Baza[AFS],Baza[Столбец1],Таблица4[[#This Row],['#]])+(AVERAGEIFS(Baza[AFS],Baza[Столбец1],Таблица4[[#This Row],['#]])*0.2),"") ->  | G61: =IFERROR(COUNTIFS(Baza[Столбец1],Таблица4[[#This Row],['#]],Baza[Win],">0")/C61*100,"") ->  | H61: =IF(SUMIFS(Baza[KO$],Baza[Столбец1],Таблица4[[#This Row],['#]])=0,"",SUMIFS(Baza[KO$],Baza[Столбец1],Таблица4[[#This Row],['#]])) ->  | I61: =IF(SUMIFS(Baza[WIN$],Baza[Столбец1],Таблица4[[#This Row],['#]])=0,"",SUMIFS(Baza[WIN$],Baza[Столбец1],Таблица4[[#This Row],['#]])) -> 
B62: =IFERROR(INDEX(Baza[Столбец1],SMALL(IF(SMALL(IF(COUNTIF($B$2:$B61,Baza[Столбец1])=0,COUNTIF(Baza[Столбец1],"<"&Baza[Столбец1])+1,""),1)=COUNTIF(Baza[Столбец1],"<"&Baza[Столбец1])+1,ROW(Baza[Столбец1])-MIN(ROW(Baza[Столбец1]))+1),1)),"") ->  | C62: =IF(Таблица4[[#This Row],['#]]="","",COUNTIFS(Baza[Столбец1],Таблица4[[#This Row],['#]])+SUMIFS(Baza[R],Baza[Столбец1],Таблица4[[#This Row],['#]])) ->  | D62: =IF(Таблица4[[#This Row],['#]]="","",SUMIFS(Baza[B$],Baza[Столбец1],Таблица4[[#This Row],['#]])) ->  | E62: =IFERROR(AVERAGEIFS(Baza[AFS],Baza[Столбец1],Таблица4[[#This Row],['#]])+(AVERAGEIFS(Baza[AFS],Baza[Столбец1],Таблица4[[#This Row],['#]])*0.2),"") ->  | G62: =IFERROR(COUNTIFS(Baza[Столбец1],Таблица4[[#This Row],['#]],Baza[Win],">0")/C62*100,"") ->  | H62: =IF(SUMIFS(Baza[KO$],Baza[Столбец1],Таблица4[[#This Row],['#]])=0,"",SUMIFS(Baza[KO$],Baza[Столбец1],Таблица4[[#This Row],['#]])) ->  | I62: =IF(SUMIFS(Baza[WIN$],Baza[Столбец1],Таблица4[[#This Row],['#]])=0,"",SUMIFS(Baza[WIN$],Baza[Столбец1],Таблица4[[#This Row],['#]])) -> 
B63: =IFERROR(INDEX(Baza[Столбец1],SMALL(IF(SMALL(IF(COUNTIF($B$2:$B62,Baza[Столбец1])=0,COUNTIF(Baza[Столбец1],"<"&Baza[Столбец1])+1,""),1)=COUNTIF(Baza[Столбец1],"<"&Baza[Столбец1])+1,ROW(Baza[Столбец1])-MIN(ROW(Baza[Столбец1]))+1),1)),"") ->  | C63: =IF(Таблица4[[#This Row],['#]]="","",COUNTIFS(Baza[Столбец1],Таблица4[[#This Row],['#]])+SUMIFS(Baza[R],Baza[Столбец1],Таблица4[[#This Row],['#]])) ->  | D63: =IF(Таблица4[[#This Row],['#]]="","",SUMIFS(Baza[B$],Baza[Столбец1],Таблица4[[#This Row],['#]])) ->  | E63: =IFERROR(AVERAGEIFS(Baza[AFS],Baza[Столбец1],Таблица4[[#This Row],['#]])+(AVERAGEIFS(Baza[AFS],Baza[Столбец1],Таблица4[[#This Row],['#]])*0.2),"") ->  | G63: =IFERROR(COUNTIFS(Baza[Столбец1],Таблица4[[#This Row],['#]],Baza[Win],">0")/C63*100,"") ->  | H63: =IF(SUMIFS(Baza[KO$],Baza[Столбец1],Таблица4[[#This Row],['#]])=0,"",SUMIFS(Baza[KO$],Baza[Столбец1],Таблица4[[#This Row],['#]])) ->  | I63: =IF(SUMIFS(Baza[WIN$],Baza[Столбец1],Таблица4[[#This Row],['#]])=0,"",SUMIFS(Baza[WIN$],Baza[Столбец1],Таблица4[[#This Row],['#]])) -> 
B64: =IFERROR(INDEX(Baza[Столбец1],SMALL(IF(SMALL(IF(COUNTIF($B$2:$B63,Baza[Столбец1])=0,COUNTIF(Baza[Столбец1],"<"&Baza[Столбец1])+1,""),1)=COUNTIF(Baza[Столбец1],"<"&Baza[Столбец1])+1,ROW(Baza[Столбец1])-MIN(ROW(Baza[Столбец1]))+1),1)),"") ->  | C64: =IF(Таблица4[[#This Row],['#]]="","",COUNTIFS(Baza[Столбец1],Таблица4[[#This Row],['#]])+SUMIFS(Baza[R],Baza[Столбец1],Таблица4[[#This Row],['#]])) ->  | D64: =IF(Таблица4[[#This Row],['#]]="","",SUMIFS(Baza[B$],Baza[Столбец1],Таблица4[[#This Row],['#]])) ->  | E64: =IFERROR(AVERAGEIFS(Baza[AFS],Baza[Столбец1],Таблица4[[#This Row],['#]])+(AVERAGEIFS(Baza[AFS],Baza[Столбец1],Таблица4[[#This Row],['#]])*0.2),"") ->  | G64: =IFERROR(COUNTIFS(Baza[Столбец1],Таблица4[[#This Row],['#]],Baza[Win],">0")/C64*100,"") ->  | H64: =IF(SUMIFS(Baza[KO$],Baza[Столбец1],Таблица4[[#This Row],['#]])=0,"",SUMIFS(Baza[KO$],Baza[Столбец1],Таблица4[[#This Row],['#]])) ->  | I64: =IF(SUMIFS(Baza[WIN$],Baza[Столбец1],Таблица4[[#This Row],['#]])=0,"",SUMIFS(Baza[WIN$],Baza[Столбец1],Таблица4[[#This Row],['#]])) -> 
B65: =IFERROR(INDEX(Baza[Столбец1],SMALL(IF(SMALL(IF(COUNTIF($B$2:$B64,Baza[Столбец1])=0,COUNTIF(Baza[Столбец1],"<"&Baza[Столбец1])+1,""),1)=COUNTIF(Baza[Столбец1],"<"&Baza[Столбец1])+1,ROW(Baza[Столбец1])-MIN(ROW(Baza[Столбец1]))+1),1)),"") ->  | C65: =IF(Таблица4[[#This Row],['#]]="","",COUNTIFS(Baza[Столбец1],Таблица4[[#This Row],['#]])+SUMIFS(Baza[R],Baza[Столбец1],Таблица4[[#This Row],['#]])) ->  | D65: =IF(Таблица4[[#This Row],['#]]="","",SUMIFS(Baza[B$],Baza[Столбец1],Таблица4[[#This Row],['#]])) ->  | E65: =IFERROR(AVERAGEIFS(Baza[AFS],Baza[Столбец1],Таблица4[[#This Row],['#]])+(AVERAGEIFS(Baza[AFS],Baza[Столбец1],Таблица4[[#This Row],['#]])*0.2),"") ->  | G65: =IFERROR(COUNTIFS(Baza[Столбец1],Таблица4[[#This Row],['#]],Baza[Win],">0")/C65*100,"") ->  | H65: =IF(SUMIFS(Baza[KO$],Baza[Столбец1],Таблица4[[#This Row],['#]])=0,"",SUMIFS(Baza[KO$],Baza[Столбец1],Таблица4[[#This Row],['#]])) ->  | I65: =IF(SUMIFS(Baza[WIN$],Baza[Столбец1],Таблица4[[#This Row],['#]])=0,"",SUMIFS(Baza[WIN$],Baza[Столбец1],Таблица4[[#This Row],['#]])) -> 
B66: =IFERROR(INDEX(Baza[Столбец1],SMALL(IF(SMALL(IF(COUNTIF($B$2:$B65,Baza[Столбец1])=0,COUNTIF(Baza[Столбец1],"<"&Baza[Столбец1])+1,""),1)=COUNTIF(Baza[Столбец1],"<"&Baza[Столбец1])+1,ROW(Baza[Столбец1])-MIN(ROW(Baza[Столбец1]))+1),1)),"") ->  | C66: =IF(Таблица4[[#This Row],['#]]="","",COUNTIFS(Baza[Столбец1],Таблица4[[#This Row],['#]])+SUMIFS(Baza[R],Baza[Столбец1],Таблица4[[#This Row],['#]])) ->  | D66: =IF(Таблица4[[#This Row],['#]]="","",SUMIFS(Baza[B$],Baza[Столбец1],Таблица4[[#This Row],['#]])) ->  | E66: =IFERROR(AVERAGEIFS(Baza[AFS],Baza[Столбец1],Таблица4[[#This Row],['#]])+(AVERAGEIFS(Baza[AFS],Baza[Столбец1],Таблица4[[#This Row],['#]])*0.2),"") ->  | G66: =IFERROR(COUNTIFS(Baza[Столбец1],Таблица4[[#This Row],['#]],Baza[Win],">0")/C66*100,"") ->  | H66: =IF(SUMIFS(Baza[KO$],Baza[Столбец1],Таблица4[[#This Row],['#]])=0,"",SUMIFS(Baza[KO$],Baza[Столбец1],Таблица4[[#This Row],['#]])) ->  | I66: =IF(SUMIFS(Baza[WIN$],Baza[Столбец1],Таблица4[[#This Row],['#]])=0,"",SUMIFS(Baza[WIN$],Baza[Столбец1],Таблица4[[#This Row],['#]])) -> 
B67: =IFERROR(INDEX(Baza[Столбец1],SMALL(IF(SMALL(IF(COUNTIF($B$2:$B66,Baza[Столбец1])=0,COUNTIF(Baza[Столбец1],"<"&Baza[Столбец1])+1,""),1)=COUNTIF(Baza[Столбец1],"<"&Baza[Столбец1])+1,ROW(Baza[Столбец1])-MIN(ROW(Baza[Столбец1]))+1),1)),"") ->  | C67: =IF(Таблица4[[#This Row],['#]]="","",COUNTIFS(Baza[Столбец1],Таблица4[[#This Row],['#]])+SUMIFS(Baza[R],Baza[Столбец1],Таблица4[[#This Row],['#]])) ->  | D67: =IF(Таблица4[[#This Row],['#]]="","",SUMIFS(Baza[B$],Baza[Столбец1],Таблица4[[#This Row],['#]])) ->  | E67: =IFERROR(AVERAGEIFS(Baza[AFS],Baza[Столбец1],Таблица4[[#This Row],['#]])+(AVERAGEIFS(Baza[AFS],Baza[Столбец1],Таблица4[[#This Row],['#]])*0.2),"") ->  | F67: =IFERROR(J67/D67*100,"") ->  | G67: =IFERROR(COUNTIFS(Baza[Столбец1],Таблица4[[#This Row],['#]],Baza[Win],">0")/C67*100,"") ->  | H67: =IF(SUMIFS(Baza[KO$],Baza[Столбец1],Таблица4[[#This Row],['#]])=0,"",SUMIFS(Baza[KO$],Baza[Столбец1],Таблица4[[#This Row],['#]])) ->  | I67: =IF(SUMIFS(Baza[WIN$],Baza[Столбец1],Таблица4[[#This Row],['#]])=0,"",SUMIFS(Baza[WIN$],Baza[Столбец1],Таблица4[[#This Row],['#]])) ->  | J67: =IFERROR(IF(I67="",0,I67)+IF(H67="",0,H67)-D67,"") -> 
B68: =IFERROR(INDEX(Baza[Столбец1],SMALL(IF(SMALL(IF(COUNTIF($B$2:$B67,Baza[Столбец1])=0,COUNTIF(Baza[Столбец1],"<"&Baza[Столбец1])+1,""),1)=COUNTIF(Baza[Столбец1],"<"&Baza[Столбец1])+1,ROW(Baza[Столбец1])-MIN(ROW(Baza[Столбец1]))+1),1)),"") ->  | C68: =IF(Таблица4[[#This Row],['#]]="","",COUNTIFS(Baza[Столбец1],Таблица4[[#This Row],['#]])+SUMIFS(Baza[R],Baza[Столбец1],Таблица4[[#This Row],['#]])) ->  | D68: =IF(Таблица4[[#This Row],['#]]="","",SUMIFS(Baza[B$],Baza[Столбец1],Таблица4[[#This Row],['#]])) ->  | E68: =IFERROR(AVERAGEIFS(Baza[AFS],Baza[Столбец1],Таблица4[[#This Row],['#]])+(AVERAGEIFS(Baza[AFS],Baza[Столбец1],Таблица4[[#This Row],['#]])*0.2),"") ->  | G68: =IFERROR(COUNTIFS(Baza[Столбец1],Таблица4[[#This Row],['#]],Baza[Win],">0")/C68*100,"") ->  | H68: =IF(SUMIFS(Baza[KO$],Baza[Столбец1],Таблица4[[#This Row],['#]])=0,"",SUMIFS(Baza[KO$],Baza[Столбец1],Таблица4[[#This Row],['#]])) ->  | I68: =IF(SUMIFS(Baza[WIN$],Baza[Столбец1],Таблица4[[#This Row],['#]])=0,"",SUMIFS(Baza[WIN$],Baza[Столбец1],Таблица4[[#This Row],['#]])) -> 
B69: =IFERROR(INDEX(Baza[Столбец1],SMALL(IF(SMALL(IF(COUNTIF($B$2:$B68,Baza[Столбец1])=0,COUNTIF(Baza[Столбец1],"<"&Baza[Столбец1])+1,""),1)=COUNTIF(Baza[Столбец1],"<"&Baza[Столбец1])+1,ROW(Baza[Столбец1])-MIN(ROW(Baza[Столбец1]))+1),1)),"") ->  | C69: =IF(Таблица4[[#This Row],['#]]="","",COUNTIFS(Baza[Столбец1],Таблица4[[#This Row],['#]])+SUMIFS(Baza[R],Baza[Столбец1],Таблица4[[#This Row],['#]])) ->  | D69: =IF(Таблица4[[#This Row],['#]]="","",SUMIFS(Baza[B$],Baza[Столбец1],Таблица4[[#This Row],['#]])) ->  | E69: =IFERROR(AVERAGEIFS(Baza[AFS],Baza[Столбец1],Таблица4[[#This Row],['#]])+(AVERAGEIFS(Baza[AFS],Baza[Столбец1],Таблица4[[#This Row],['#]])*0.2),"") ->  | G69: =IFERROR(COUNTIFS(Baza[Столбец1],Таблица4[[#This Row],['#]],Baza[Win],">0")/C69*100,"") ->  | H69: =IF(SUMIFS(Baza[KO$],Baza[Столбец1],Таблица4[[#This Row],['#]])=0,"",SUMIFS(Baza[KO$],Baza[Столбец1],Таблица4[[#This Row],['#]])) ->  | I69: =IF(SUMIFS(Baza[WIN$],Baza[Столбец1],Таблица4[[#This Row],['#]])=0,"",SUMIFS(Baza[WIN$],Baza[Столбец1],Таблица4[[#This Row],['#]])) -> 
B70: =IFERROR(INDEX(Baza[Столбец1],SMALL(IF(SMALL(IF(COUNTIF($B$2:$B69,Baza[Столбец1])=0,COUNTIF(Baza[Столбец1],"<"&Baza[Столбец1])+1,""),1)=COUNTIF(Baza[Столбец1],"<"&Baza[Столбец1])+1,ROW(Baza[Столбец1])-MIN(ROW(Baza[Столбец1]))+1),1)),"") ->  | C70: =IF(Таблица4[[#This Row],['#]]="","",COUNTIFS(Baza[Столбец1],Таблица4[[#This Row],['#]])+SUMIFS(Baza[R],Baza[Столбец1],Таблица4[[#This Row],['#]])) ->  | D70: =IF(Таблица4[[#This Row],['#]]="","",SUMIFS(Baza[B$],Baza[Столбец1],Таблица4[[#This Row],['#]])) ->  | E70: =IFERROR(AVERAGEIFS(Baza[AFS],Baza[Столбец1],Таблица4[[#This Row],['#]])+(AVERAGEIFS(Baza[AFS],Baza[Столбец1],Таблица4[[#This Row],['#]])*0.2),"") ->  | G70: =IFERROR(COUNTIFS(Baza[Столбец1],Таблица4[[#This Row],['#]],Baza[Win],">0")/C70*100,"") ->  | H70: =IF(SUMIFS(Baza[KO$],Baza[Столбец1],Таблица4[[#This Row],['#]])=0,"",SUMIFS(Baza[KO$],Baza[Столбец1],Таблица4[[#This Row],['#]])) ->  | I70: =IF(SUMIFS(Baza[WIN$],Baza[Столбец1],Таблица4[[#This Row],['#]])=0,"",SUMIFS(Baza[WIN$],Baza[Столбец1],Таблица4[[#This Row],['#]])) -> 
B71: =IFERROR(INDEX(Baza[Столбец1],SMALL(IF(SMALL(IF(COUNTIF($B$2:$B70,Baza[Столбец1])=0,COUNTIF(Baza[Столбец1],"<"&Baza[Столбец1])+1,""),1)=COUNTIF(Baza[Столбец1],"<"&Baza[Столбец1])+1,ROW(Baza[Столбец1])-MIN(ROW(Baza[Столбец1]))+1),1)),"") ->  | C71: =IF(Таблица4[[#This Row],['#]]="","",COUNTIFS(Baza[Столбец1],Таблица4[[#This Row],['#]])+SUMIFS(Baza[R],Baza[Столбец1],Таблица4[[#This Row],['#]])) ->  | D71: =IF(Таблица4[[#This Row],['#]]="","",SUMIFS(Baza[B$],Baza[Столбец1],Таблица4[[#This Row],['#]])) ->  | E71: =IFERROR(AVERAGEIFS(Baza[AFS],Baza[Столбец1],Таблица4[[#This Row],['#]])+(AVERAGEIFS(Baza[AFS],Baza[Столбец1],Таблица4[[#This Row],['#]])*0.2),"") ->  | G71: =IFERROR(COUNTIFS(Baza[Столбец1],Таблица4[[#This Row],['#]],Baza[Win],">0")/C71*100,"") ->  | H71: =IF(SUMIFS(Baza[KO$],Baza[Столбец1],Таблица4[[#This Row],['#]])=0,"",SUMIFS(Baza[KO$],Baza[Столбец1],Таблица4[[#This Row],['#]])) ->  | I71: =IF(SUMIFS(Baza[WIN$],Baza[Столбец1],Таблица4[[#This Row],['#]])=0,"",SUMIFS(Baza[WIN$],Baza[Столбец1],Таблица4[[#This Row],['#]])) -> 
B72: =IFERROR(INDEX(Baza[Столбец1],SMALL(IF(SMALL(IF(COUNTIF($B$2:$B71,Baza[Столбец1])=0,COUNTIF(Baza[Столбец1],"<"&Baza[Столбец1])+1,""),1)=COUNTIF(Baza[Столбец1],"<"&Baza[Столбец1])+1,ROW(Baza[Столбец1])-MIN(ROW(Baza[Столбец1]))+1),1)),"") ->  | C72: =IF(Таблица4[[#This Row],['#]]="","",COUNTIFS(Baza[Столбец1],Таблица4[[#This Row],['#]])+SUMIFS(Baza[R],Baza[Столбец1],Таблица4[[#This Row],['#]])) ->  | D72: =IF(Таблица4[[#This Row],['#]]="","",SUMIFS(Baza[B$],Baza[Столбец1],Таблица4[[#This Row],['#]])) ->  | E72: =IFERROR(AVERAGEIFS(Baza[AFS],Baza[Столбец1],Таблица4[[#This Row],['#]])+(AVERAGEIFS(Baza[AFS],Baza[Столбец1],Таблица4[[#This Row],['#]])*0.2),"") ->  | G72: =IFERROR(COUNTIFS(Baza[Столбец1],Таблица4[[#This Row],['#]],Baza[Win],">0")/C72*100,"") ->  | H72: =IF(SUMIFS(Baza[KO$],Baza[Столбец1],Таблица4[[#This Row],['#]])=0,"",SUMIFS(Baza[KO$],Baza[Столбец1],Таблица4[[#This Row],['#]])) ->  | I72: =IF(SUMIFS(Baza[WIN$],Baza[Столбец1],Таблица4[[#This Row],['#]])=0,"",SUMIFS(Baza[WIN$],Baza[Столбец1],Таблица4[[#This Row],['#]])) -> 
B73: =IFERROR(INDEX(Baza[Столбец1],SMALL(IF(SMALL(IF(COUNTIF($B$2:$B72,Baza[Столбец1])=0,COUNTIF(Baza[Столбец1],"<"&Baza[Столбец1])+1,""),1)=COUNTIF(Baza[Столбец1],"<"&Baza[Столбец1])+1,ROW(Baza[Столбец1])-MIN(ROW(Baza[Столбец1]))+1),1)),"") ->  | C73: =IF(Таблица4[[#This Row],['#]]="","",COUNTIFS(Baza[Столбец1],Таблица4[[#This Row],['#]])+SUMIFS(Baza[R],Baza[Столбец1],Таблица4[[#This Row],['#]])) ->  | D73: =IF(Таблица4[[#This Row],['#]]="","",SUMIFS(Baza[B$],Baza[Столбец1],Таблица4[[#This Row],['#]])) ->  | E73: =IFERROR(AVERAGEIFS(Baza[AFS],Baza[Столбец1],Таблица4[[#This Row],['#]])+(AVERAGEIFS(Baza[AFS],Baza[Столбец1],Таблица4[[#This Row],['#]])*0.2),"") ->  | G73: =IFERROR(COUNTIFS(Baza[Столбец1],Таблица4[[#This Row],['#]],Baza[Win],">0")/C73*100,"") ->  | H73: =IF(SUMIFS(Baza[KO$],Baza[Столбец1],Таблица4[[#This Row],['#]])=0,"",SUMIFS(Baza[KO$],Baza[Столбец1],Таблица4[[#This Row],['#]])) ->  | I73: =IF(SUMIFS(Baza[WIN$],Baza[Столбец1],Таблица4[[#This Row],['#]])=0,"",SUMIFS(Baza[WIN$],Baza[Столбец1],Таблица4[[#This Row],['#]])) -> 
B74: =IFERROR(INDEX(Baza[Столбец1],SMALL(IF(SMALL(IF(COUNTIF($B$2:$B73,Baza[Столбец1])=0,COUNTIF(Baza[Столбец1],"<"&Baza[Столбец1])+1,""),1)=COUNTIF(Baza[Столбец1],"<"&Baza[Столбец1])+1,ROW(Baza[Столбец1])-MIN(ROW(Baza[Столбец1]))+1),1)),"") ->  | C74: =IF(Таблица4[[#This Row],['#]]="","",COUNTIFS(Baza[Столбец1],Таблица4[[#This Row],['#]])+SUMIFS(Baza[R],Baza[Столбец1],Таблица4[[#This Row],['#]])) ->  | D74: =IF(Таблица4[[#This Row],['#]]="","",SUMIFS(Baza[B$],Baza[Столбец1],Таблица4[[#This Row],['#]])) ->  | E74: =IFERROR(AVERAGEIFS(Baza[AFS],Baza[Столбец1],Таблица4[[#This Row],['#]])+(AVERAGEIFS(Baza[AFS],Baza[Столбец1],Таблица4[[#This Row],['#]])*0.2),"") ->  | G74: =IFERROR(COUNTIFS(Baza[Столбец1],Таблица4[[#This Row],['#]],Baza[Win],">0")/C74*100,"") ->  | H74: =IF(SUMIFS(Baza[KO$],Baza[Столбец1],Таблица4[[#This Row],['#]])=0,"",SUMIFS(Baza[KO$],Baza[Столбец1],Таблица4[[#This Row],['#]])) ->  | I74: =IF(SUMIFS(Baza[WIN$],Baza[Столбец1],Таблица4[[#This Row],['#]])=0,"",SUMIFS(Baza[WIN$],Baza[Столбец1],Таблица4[[#This Row],['#]])) -> 
B75: =IFERROR(INDEX(Baza[Столбец1],SMALL(IF(SMALL(IF(COUNTIF($B$2:$B74,Baza[Столбец1])=0,COUNTIF(Baza[Столбец1],"<"&Baza[Столбец1])+1,""),1)=COUNTIF(Baza[Столбец1],"<"&Baza[Столбец1])+1,ROW(Baza[Столбец1])-MIN(ROW(Baza[Столбец1]))+1),1)),"") ->  | C75: =IF(Таблица4[[#This Row],['#]]="","",COUNTIFS(Baza[Столбец1],Таблица4[[#This Row],['#]])+SUMIFS(Baza[R],Baza[Столбец1],Таблица4[[#This Row],['#]])) ->  | D75: =IF(Таблица4[[#This Row],['#]]="","",SUMIFS(Baza[B$],Baza[Столбец1],Таблица4[[#This Row],['#]])) ->  | E75: =IFERROR(AVERAGEIFS(Baza[AFS],Baza[Столбец1],Таблица4[[#This Row],['#]])+(AVERAGEIFS(Baza[AFS],Baza[Столбец1],Таблица4[[#This Row],['#]])*0.2),"") ->  | G75: =IFERROR(COUNTIFS(Baza[Столбец1],Таблица4[[#This Row],['#]],Baza[Win],">0")/C75*100,"") ->  | H75: =IF(SUMIFS(Baza[KO$],Baza[Столбец1],Таблица4[[#This Row],['#]])=0,"",SUMIFS(Baza[KO$],Baza[Столбец1],Таблица4[[#This Row],['#]])) ->  | I75: =IF(SUMIFS(Baza[WIN$],Baza[Столбец1],Таблица4[[#This Row],['#]])=0,"",SUMIFS(Baza[WIN$],Baza[Столбец1],Таблица4[[#This Row],['#]])) -> 
B76: =IFERROR(INDEX(Baza[Столбец1],SMALL(IF(SMALL(IF(COUNTIF($B$2:$B75,Baza[Столбец1])=0,COUNTIF(Baza[Столбец1],"<"&Baza[Столбец1])+1,""),1)=COUNTIF(Baza[Столбец1],"<"&Baza[Столбец1])+1,ROW(Baza[Столбец1])-MIN(ROW(Baza[Столбец1]))+1),1)),"") ->  | C76: =IF(Таблица4[[#This Row],['#]]="","",COUNTIFS(Baza[Столбец1],Таблица4[[#This Row],['#]])+SUMIFS(Baza[R],Baza[Столбец1],Таблица4[[#This Row],['#]])) ->  | D76: =IF(Таблица4[[#This Row],['#]]="","",SUMIFS(Baza[B$],Baza[Столбец1],Таблица4[[#This Row],['#]])) ->  | E76: =IFERROR(AVERAGEIFS(Baza[AFS],Baza[Столбец1],Таблица4[[#This Row],['#]])+(AVERAGEIFS(Baza[AFS],Baza[Столбец1],Таблица4[[#This Row],['#]])*0.2),"") ->  | G76: =IFERROR(COUNTIFS(Baza[Столбец1],Таблица4[[#This Row],['#]],Baza[Win],">0")/C76*100,"") ->  | H76: =IF(SUMIFS(Baza[KO$],Baza[Столбец1],Таблица4[[#This Row],['#]])=0,"",SUMIFS(Baza[KO$],Baza[Столбец1],Таблица4[[#This Row],['#]])) ->  | I76: =IF(SUMIFS(Baza[WIN$],Baza[Столбец1],Таблица4[[#This Row],['#]])=0,"",SUMIFS(Baza[WIN$],Baza[Столбец1],Таблица4[[#This Row],['#]])) -> 
B77: =IFERROR(INDEX(Baza[Столбец1],SMALL(IF(SMALL(IF(COUNTIF($B$2:$B76,Baza[Столбец1])=0,COUNTIF(Baza[Столбец1],"<"&Baza[Столбец1])+1,""),1)=COUNTIF(Baza[Столбец1],"<"&Baza[Столбец1])+1,ROW(Baza[Столбец1])-MIN(ROW(Baza[Столбец1]))+1),1)),"") ->  | C77: =IF(Таблица4[[#This Row],['#]]="","",COUNTIFS(Baza[Столбец1],Таблица4[[#This Row],['#]])+SUMIFS(Baza[R],Baza[Столбец1],Таблица4[[#This Row],['#]])) ->  | D77: =IF(Таблица4[[#This Row],['#]]="","",SUMIFS(Baza[B$],Baza[Столбец1],Таблица4[[#This Row],['#]])) ->  | E77: =IFERROR(AVERAGEIFS(Baza[AFS],Baza[Столбец1],Таблица4[[#This Row],['#]])+(AVERAGEIFS(Baza[AFS],Baza[Столбец1],Таблица4[[#This Row],['#]])*0.2),"") ->  | G77: =IFERROR(COUNTIFS(Baza[Столбец1],Таблица4[[#This Row],['#]],Baza[Win],">0")/C77*100,"") ->  | H77: =IF(SUMIFS(Baza[KO$],Baza[Столбец1],Таблица4[[#This Row],['#]])=0,"",SUMIFS(Baza[KO$],Baza[Столбец1],Таблица4[[#This Row],['#]])) ->  | I77: =IF(SUMIFS(Baza[WIN$],Baza[Столбец1],Таблица4[[#This Row],['#]])=0,"",SUMIFS(Baza[WIN$],Baza[Столбец1],Таблица4[[#This Row],['#]])) -> 
B78: =IFERROR(INDEX(Baza[Столбец1],SMALL(IF(SMALL(IF(COUNTIF($B$2:$B77,Baza[Столбец1])=0,COUNTIF(Baza[Столбец1],"<"&Baza[Столбец1])+1,""),1)=COUNTIF(Baza[Столбец1],"<"&Baza[Столбец1])+1,ROW(Baza[Столбец1])-MIN(ROW(Baza[Столбец1]))+1),1)),"") ->  | C78: =IF(Таблица4[[#This Row],['#]]="","",COUNTIFS(Baza[Столбец1],Таблица4[[#This Row],['#]])+SUMIFS(Baza[R],Baza[Столбец1],Таблица4[[#This Row],['#]])) ->  | D78: =IF(Таблица4[[#This Row],['#]]="","",SUMIFS(Baza[B$],Baza[Столбец1],Таблица4[[#This Row],['#]])) ->  | E78: =IFERROR(AVERAGEIFS(Baza[AFS],Baza[Столбец1],Таблица4[[#This Row],['#]])+(AVERAGEIFS(Baza[AFS],Baza[Столбец1],Таблица4[[#This Row],['#]])*0.2),"") ->  | G78: =IFERROR(COUNTIFS(Baza[Столбец1],Таблица4[[#This Row],['#]],Baza[Win],">0")/C78*100,"") ->  | H78: =IF(SUMIFS(Baza[KO$],Baza[Столбец1],Таблица4[[#This Row],['#]])=0,"",SUMIFS(Baza[KO$],Baza[Столбец1],Таблица4[[#This Row],['#]])) ->  | I78: =IF(SUMIFS(Baza[WIN$],Baza[Столбец1],Таблица4[[#This Row],['#]])=0,"",SUMIFS(Baza[WIN$],Baza[Столбец1],Таблица4[[#This Row],['#]])) -> 
B79: =IFERROR(INDEX(Baza[Столбец1],SMALL(IF(SMALL(IF(COUNTIF($B$2:$B78,Baza[Столбец1])=0,COUNTIF(Baza[Столбец1],"<"&Baza[Столбец1])+1,""),1)=COUNTIF(Baza[Столбец1],"<"&Baza[Столбец1])+1,ROW(Baza[Столбец1])-MIN(ROW(Baza[Столбец1]))+1),1)),"") ->  | C79: =IF(Таблица4[[#This Row],['#]]="","",COUNTIFS(Baza[Столбец1],Таблица4[[#This Row],['#]])+SUMIFS(Baza[R],Baza[Столбец1],Таблица4[[#This Row],['#]])) ->  | D79: =IF(Таблица4[[#This Row],['#]]="","",SUMIFS(Baza[B$],Baza[Столбец1],Таблица4[[#This Row],['#]])) ->  | E79: =IFERROR(AVERAGEIFS(Baza[AFS],Baza[Столбец1],Таблица4[[#This Row],['#]])+(AVERAGEIFS(Baza[AFS],Baza[Столбец1],Таблица4[[#This Row],['#]])*0.2),"") ->  | G79: =IFERROR(COUNTIFS(Baza[Столбец1],Таблица4[[#This Row],['#]],Baza[Win],">0")/C79*100,"") ->  | H79: =IF(SUMIFS(Baza[KO$],Baza[Столбец1],Таблица4[[#This Row],['#]])=0,"",SUMIFS(Baza[KO$],Baza[Столбец1],Таблица4[[#This Row],['#]])) ->  | I79: =IF(SUMIFS(Baza[WIN$],Baza[Столбец1],Таблица4[[#This Row],['#]])=0,"",SUMIFS(Baza[WIN$],Baza[Столбец1],Таблица4[[#This Row],['#]])) -> 
B80: =IFERROR(INDEX(Baza[Столбец1],SMALL(IF(SMALL(IF(COUNTIF($B$2:$B79,Baza[Столбец1])=0,COUNTIF(Baza[Столбец1],"<"&Baza[Столбец1])+1,""),1)=COUNTIF(Baza[Столбец1],"<"&Baza[Столбец1])+1,ROW(Baza[Столбец1])-MIN(ROW(Baza[Столбец1]))+1),1)),"") ->  | C80: =IF(Таблица4[[#This Row],['#]]="","",COUNTIFS(Baza[Столбец1],Таблица4[[#This Row],['#]])+SUMIFS(Baza[R],Baza[Столбец1],Таблица4[[#This Row],['#]])) ->  | D80: =IF(Таблица4[[#This Row],['#]]="","",SUMIFS(Baza[B$],Baza[Столбец1],Таблица4[[#This Row],['#]])) ->  | E80: =IFERROR(AVERAGEIFS(Baza[AFS],Baza[Столбец1],Таблица4[[#This Row],['#]])+(AVERAGEIFS(Baza[AFS],Baza[Столбец1],Таблица4[[#This Row],['#]])*0.2),"") ->  | G80: =IFERROR(COUNTIFS(Baza[Столбец1],Таблица4[[#This Row],['#]],Baza[Win],">0")/C80*100,"") ->  | H80: =IF(SUMIFS(Baza[KO$],Baza[Столбец1],Таблица4[[#This Row],['#]])=0,"",SUMIFS(Baza[KO$],Baza[Столбец1],Таблица4[[#This Row],['#]])) ->  | I80: =IF(SUMIFS(Baza[WIN$],Baza[Столбец1],Таблица4[[#This Row],['#]])=0,"",SUMIFS(Baza[WIN$],Baza[Столбец1],Таблица4[[#This Row],['#]])) -> 

Sheet Data
B2: # | C2: Games | D2: Buy-in | E2: ABI | F2: AFS | G2: ROI | H2: ITM | I2: Bounty | J2: WIN | K2: PROF
B3: =IFERROR(INDEX(Baza[Date],SMALL(IF(SMALL(IF(COUNTIF($B$2:$B2,Baza[Date])=0,COUNTIF(Baza[Date],"<"&Baza[Date])+1,""),1)=COUNTIF(Baza[Date],"<"&Baza[Date])+1,ROW(Baza[Date])-MIN(ROW(Baza[Date]))+1),1)),"") -> 2021-01-01 | C3: =IF(Таблица46[[#This Row],['#]]="","",COUNTIFS(Baza[Date],Таблица46[[#This Row],['#]])+SUMIFS(Baza[R],Baza[Date],Таблица46[[#This Row],['#]])) -> 22 | D3: =IF(Таблица46[[#This Row],['#]]="","",SUMIFS(Baza[B$],Baza[Date],Таблица46[[#This Row],['#]])) -> 31.38 | E3: =IFERROR(D3/C3,"") -> 1.426363636 | F3: =IFERROR(AVERAGEIFS(Baza[AFS],Baza[Date],Таблица46[[#This Row],['#]])+(AVERAGEIFS(Baza[AFS],Baza[Date],Таблица46[[#This Row],['#]])*0.2),"") -> 494.0082645 | G3: =IFERROR(K3/D3*100,"") -> -8.891013384 | H3: =IFERROR(COUNTIFS(Baza[Date],Таблица46[[#This Row],['#]],Baza[Win],">0")/C3*100,"") -> 22.72727273 | I3: =IF(SUMIFS(Baza[KO$],Baza[Date],Таблица46[[#This Row],['#]])=0,"",SUMIFS(Baza[KO$],Baza[Date],Таблица46[[#This Row],['#]])) -> 6.66 | J3: =IF(SUMIFS(Baza[WIN$],Baza[Date],Таблица46[[#This Row],['#]])=0,"",SUMIFS(Baza[WIN$],Baza[Date],Таблица46[[#This Row],['#]])) -> 21.93 | K3: =IFERROR(IF(J3="",0,J3)+IF(I3="",0,I3)-D3,"") -> -2.79
B4: =IFERROR(INDEX(Baza[Date],SMALL(IF(SMALL(IF(COUNTIF($B$2:$B3,Baza[Date])=0,COUNTIF(Baza[Date],"<"&Baza[Date])+1,""),1)=COUNTIF(Baza[Date],"<"&Baza[Date])+1,ROW(Baza[Date])-MIN(ROW(Baza[Date]))+1),1)),"") -> 2021-01-02 | C4: =IF(Таблица46[[#This Row],['#]]="","",COUNTIFS(Baza[Date],Таблица46[[#This Row],['#]])+SUMIFS(Baza[R],Baza[Date],Таблица46[[#This Row],['#]])) -> 9 | D4: =IF(Таблица46[[#This Row],['#]]="","",SUMIFS(Baza[B$],Baza[Date],Таблица46[[#This Row],['#]])) -> 17.56 | E4: 1.951111111 | F4: =IFERROR(AVERAGEIFS(Baza[AFS],Baza[Date],Таблица46[[#This Row],['#]])+(AVERAGEIFS(Baza[AFS],Baza[Date],Таблица46[[#This Row],['#]])*0.2),"") -> 403.4632035 | G4: 329.8997722 | H4: =IFERROR(COUNTIFS(Baza[Date],Таблица46[[#This Row],['#]],Baza[Win],">0")/C4*100,"") -> 22.22222222 | I4: =IF(SUMIFS(Baza[KO$],Baza[Date],Таблица46[[#This Row],['#]])=0,"",SUMIFS(Baza[KO$],Baza[Date],Таблица46[[#This Row],['#]])) -> 0.5 | J4: =IF(SUMIFS(Baza[WIN$],Baza[Date],Таблица46[[#This Row],['#]])=0,"",SUMIFS(Baza[WIN$],Baza[Date],Таблица46[[#This Row],['#]])) -> 74.9904 | K4: 57.9304
B5: =IFERROR(INDEX(Baza[Date],SMALL(IF(SMALL(IF(COUNTIF($B$2:$B4,Baza[Date])=0,COUNTIF(Baza[Date],"<"&Baza[Date])+1,""),1)=COUNTIF(Baza[Date],"<"&Baza[Date])+1,ROW(Baza[Date])-MIN(ROW(Baza[Date]))+1),1)),"") ->  | C5: =IF(Таблица46[[#This Row],['#]]="","",COUNTIFS(Baza[Date],Таблица46[[#This Row],['#]])+SUMIFS(Baza[R],Baza[Date],Таблица46[[#This Row],['#]])) ->  | D5: =IF(Таблица46[[#This Row],['#]]="","",SUMIFS(Baza[B$],Baza[Date],Таблица46[[#This Row],['#]])) ->  | F5: =IFERROR(AVERAGEIFS(Baza[AFS],Baza[Date],Таблица46[[#This Row],['#]])+(AVERAGEIFS(Baza[AFS],Baza[Date],Таблица46[[#This Row],['#]])*0.2),"") ->  | H5: =IFERROR(COUNTIFS(Baza[Date],Таблица46[[#This Row],['#]],Baza[Win],">0")/C5*100,"") ->  | I5: =IF(SUMIFS(Baza[KO$],Baza[Date],Таблица46[[#This Row],['#]])=0,"",SUMIFS(Baza[KO$],Baza[Date],Таблица46[[#This Row],['#]])) ->  | J5: =IF(SUMIFS(Baza[WIN$],Baza[Date],Таблица46[[#This Row],['#]])=0,"",SUMIFS(Baza[WIN$],Baza[Date],Таблица46[[#This Row],['#]])) -> 
B6: =IFERROR(INDEX(Baza[Date],SMALL(IF(SMALL(IF(COUNTIF($B$2:$B5,Baza[Date])=0,COUNTIF(Baza[Date],"<"&Baza[Date])+1,""),1)=COUNTIF(Baza[Date],"<"&Baza[Date])+1,ROW(Baza[Date])-MIN(ROW(Baza[Date]))+1),1)),"") ->  | C6: =IF(Таблица46[[#This Row],['#]]="","",COUNTIFS(Baza[Date],Таблица46[[#This Row],['#]])+SUMIFS(Baza[R],Baza[Date],Таблица46[[#This Row],['#]])) ->  | D6: =IF(Таблица46[[#This Row],['#]]="","",SUMIFS(Baza[B$],Baza[Date],Таблица46[[#This Row],['#]])) ->  | E6: =IFERROR(D6/C6,"") ->  | F6: =IFERROR(AVERAGEIFS(Baza[AFS],Baza[Date],Таблица46[[#This Row],['#]])+(AVERAGEIFS(Baza[AFS],Baza[Date],Таблица46[[#This Row],['#]])*0.2),"") ->  | H6: =IFERROR(COUNTIFS(Baza[Date],Таблица46[[#This Row],['#]],Baza[Win],">0")/C6*100,"") ->  | I6: =IF(SUMIFS(Baza[KO$],Baza[Date],Таблица46[[#This Row],['#]])=0,"",SUMIFS(Baza[KO$],Baza[Date],Таблица46[[#This Row],['#]])) ->  | J6: =IF(SUMIFS(Baza[WIN$],Baza[Date],Таблица46[[#This Row],['#]])=0,"",SUMIFS(Baza[WIN$],Baza[Date],Таблица46[[#This Row],['#]])) -> 
B7: =IFERROR(INDEX(Baza[Date],SMALL(IF(SMALL(IF(COUNTIF($B$2:$B6,Baza[Date])=0,COUNTIF(Baza[Date],"<"&Baza[Date])+1,""),1)=COUNTIF(Baza[Date],"<"&Baza[Date])+1,ROW(Baza[Date])-MIN(ROW(Baza[Date]))+1),1)),"") ->  | C7: =IF(Таблица46[[#This Row],['#]]="","",COUNTIFS(Baza[Date],Таблица46[[#This Row],['#]])+SUMIFS(Baza[R],Baza[Date],Таблица46[[#This Row],['#]])) ->  | D7: =IF(Таблица46[[#This Row],['#]]="","",SUMIFS(Baza[B$],Baza[Date],Таблица46[[#This Row],['#]])) ->  | F7: =IFERROR(AVERAGEIFS(Baza[AFS],Baza[Date],Таблица46[[#This Row],['#]])+(AVERAGEIFS(Baza[AFS],Baza[Date],Таблица46[[#This Row],['#]])*0.2),"") ->  | H7: =IFERROR(COUNTIFS(Baza[Date],Таблица46[[#This Row],['#]],Baza[Win],">0")/C7*100,"") ->  | I7: =IF(SUMIFS(Baza[KO$],Baza[Date],Таблица46[[#This Row],['#]])=0,"",SUMIFS(Baza[KO$],Baza[Date],Таблица46[[#This Row],['#]])) ->  | J7: =IF(SUMIFS(Baza[WIN$],Baza[Date],Таблица46[[#This Row],['#]])=0,"",SUMIFS(Baza[WIN$],Baza[Date],Таблица46[[#This Row],['#]])) -> 
B8: =IFERROR(INDEX(Baza[Date],SMALL(IF(SMALL(IF(COUNTIF($B$2:$B7,Baza[Date])=0,COUNTIF(Baza[Date],"<"&Baza[Date])+1,""),1)=COUNTIF(Baza[Date],"<"&Baza[Date])+1,ROW(Baza[Date])-MIN(ROW(Baza[Date]))+1),1)),"") ->  | C8: =IF(Таблица46[[#This Row],['#]]="","",COUNTIFS(Baza[Date],Таблица46[[#This Row],['#]])+SUMIFS(Baza[R],Baza[Date],Таблица46[[#This Row],['#]])) ->  | D8: =IF(Таблица46[[#This Row],['#]]="","",SUMIFS(Baza[B$],Baza[Date],Таблица46[[#This Row],['#]])) ->  | F8: =IFERROR(AVERAGEIFS(Baza[AFS],Baza[Date],Таблица46[[#This Row],['#]])+(AVERAGEIFS(Baza[AFS],Baza[Date],Таблица46[[#This Row],['#]])*0.2),"") ->  | H8: =IFERROR(COUNTIFS(Baza[Date],Таблица46[[#This Row],['#]],Baza[Win],">0")/C8*100,"") ->  | I8: =IF(SUMIFS(Baza[KO$],Baza[Date],Таблица46[[#This Row],['#]])=0,"",SUMIFS(Baza[KO$],Baza[Date],Таблица46[[#This Row],['#]])) ->  | J8: =IF(SUMIFS(Baza[WIN$],Baza[Date],Таблица46[[#This Row],['#]])=0,"",SUMIFS(Baza[WIN$],Baza[Date],Таблица46[[#This Row],['#]])) -> 
B9: =IFERROR(INDEX(Baza[Date],SMALL(IF(SMALL(IF(COUNTIF($B$2:$B8,Baza[Date])=0,COUNTIF(Baza[Date],"<"&Baza[Date])+1,""),1)=COUNTIF(Baza[Date],"<"&Baza[Date])+1,ROW(Baza[Date])-MIN(ROW(Baza[Date]))+1),1)),"") ->  | C9: =IF(Таблица46[[#This Row],['#]]="","",COUNTIFS(Baza[Date],Таблица46[[#This Row],['#]])+SUMIFS(Baza[R],Baza[Date],Таблица46[[#This Row],['#]])) ->  | D9: =IF(Таблица46[[#This Row],['#]]="","",SUMIFS(Baza[B$],Baza[Date],Таблица46[[#This Row],['#]])) ->  | F9: =IFERROR(AVERAGEIFS(Baza[AFS],Baza[Date],Таблица46[[#This Row],['#]])+(AVERAGEIFS(Baza[AFS],Baza[Date],Таблица46[[#This Row],['#]])*0.2),"") ->  | H9: =IFERROR(COUNTIFS(Baza[Date],Таблица46[[#This Row],['#]],Baza[Win],">0")/C9*100,"") ->  | I9: =IF(SUMIFS(Baza[KO$],Baza[Date],Таблица46[[#This Row],['#]])=0,"",SUMIFS(Baza[KO$],Baza[Date],Таблица46[[#This Row],['#]])) ->  | J9: =IF(SUMIFS(Baza[WIN$],Baza[Date],Таблица46[[#This Row],['#]])=0,"",SUMIFS(Baza[WIN$],Baza[Date],Таблица46[[#This Row],['#]])) -> 
B10: =IFERROR(INDEX(Baza[Date],SMALL(IF(SMALL(IF(COUNTIF($B$2:$B9,Baza[Date])=0,COUNTIF(Baza[Date],"<"&Baza[Date])+1,""),1)=COUNTIF(Baza[Date],"<"&Baza[Date])+1,ROW(Baza[Date])-MIN(ROW(Baza[Date]))+1),1)),"") ->  | C10: =IF(Таблица46[[#This Row],['#]]="","",COUNTIFS(Baza[Date],Таблица46[[#This Row],['#]])+SUMIFS(Baza[R],Baza[Date],Таблица46[[#This Row],['#]])) ->  | D10: =IF(Таблица46[[#This Row],['#]]="","",SUMIFS(Baza[B$],Baza[Date],Таблица46[[#This Row],['#]])) ->  | F10: =IFERROR(AVERAGEIFS(Baza[AFS],Baza[Date],Таблица46[[#This Row],['#]])+(AVERAGEIFS(Baza[AFS],Baza[Date],Таблица46[[#This Row],['#]])*0.2),"") ->  | H10: =IFERROR(COUNTIFS(Baza[Date],Таблица46[[#This Row],['#]],Baza[Win],">0")/C10*100,"") ->  | I10: =IF(SUMIFS(Baza[KO$],Baza[Date],Таблица46[[#This Row],['#]])=0,"",SUMIFS(Baza[KO$],Baza[Date],Таблица46[[#This Row],['#]])) ->  | J10: =IF(SUMIFS(Baza[WIN$],Baza[Date],Таблица46[[#This Row],['#]])=0,"",SUMIFS(Baza[WIN$],Baza[Date],Таблица46[[#This Row],['#]])) -> 
B11: =IFERROR(INDEX(Baza[Date],SMALL(IF(SMALL(IF(COUNTIF($B$2:$B10,Baza[Date])=0,COUNTIF(Baza[Date],"<"&Baza[Date])+1,""),1)=COUNTIF(Baza[Date],"<"&Baza[Date])+1,ROW(Baza[Date])-MIN(ROW(Baza[Date]))+1),1)),"") ->  | C11: =IF(Таблица46[[#This Row],['#]]="","",COUNTIFS(Baza[Date],Таблица46[[#This Row],['#]])+SUMIFS(Baza[R],Baza[Date],Таблица46[[#This Row],['#]])) ->  | D11: =IF(Таблица46[[#This Row],['#]]="","",SUMIFS(Baza[B$],Baza[Date],Таблица46[[#This Row],['#]])) ->  | F11: =IFERROR(AVERAGEIFS(Baza[AFS],Baza[Date],Таблица46[[#This Row],['#]])+(AVERAGEIFS(Baza[AFS],Baza[Date],Таблица46[[#This Row],['#]])*0.2),"") ->  | H11: =IFERROR(COUNTIFS(Baza[Date],Таблица46[[#This Row],['#]],Baza[Win],">0")/C11*100,"") ->  | I11: =IF(SUMIFS(Baza[KO$],Baza[Date],Таблица46[[#This Row],['#]])=0,"",SUMIFS(Baza[KO$],Baza[Date],Таблица46[[#This Row],['#]])) ->  | J11: =IF(SUMIFS(Baza[WIN$],Baza[Date],Таблица46[[#This Row],['#]])=0,"",SUMIFS(Baza[WIN$],Baza[Date],Таблица46[[#This Row],['#]])) -> 
B12: =IFERROR(INDEX(Baza[Date],SMALL(IF(SMALL(IF(COUNTIF($B$2:$B11,Baza[Date])=0,COUNTIF(Baza[Date],"<"&Baza[Date])+1,""),1)=COUNTIF(Baza[Date],"<"&Baza[Date])+1,ROW(Baza[Date])-MIN(ROW(Baza[Date]))+1),1)),"") ->  | C12: =IF(Таблица46[[#This Row],['#]]="","",COUNTIFS(Baza[Date],Таблица46[[#This Row],['#]])+SUMIFS(Baza[R],Baza[Date],Таблица46[[#This Row],['#]])) ->  | D12: =IF(Таблица46[[#This Row],['#]]="","",SUMIFS(Baza[B$],Baza[Date],Таблица46[[#This Row],['#]])) ->  | F12: =IFERROR(AVERAGEIFS(Baza[AFS],Baza[Date],Таблица46[[#This Row],['#]])+(AVERAGEIFS(Baza[AFS],Baza[Date],Таблица46[[#This Row],['#]])*0.2),"") ->  | H12: =IFERROR(COUNTIFS(Baza[Date],Таблица46[[#This Row],['#]],Baza[Win],">0")/C12*100,"") ->  | I12: =IF(SUMIFS(Baza[KO$],Baza[Date],Таблица46[[#This Row],['#]])=0,"",SUMIFS(Baza[KO$],Baza[Date],Таблица46[[#This Row],['#]])) ->  | J12: =IF(SUMIFS(Baza[WIN$],Baza[Date],Таблица46[[#This Row],['#]])=0,"",SUMIFS(Baza[WIN$],Baza[Date],Таблица46[[#This Row],['#]])) -> 
B13: =IFERROR(INDEX(Baza[Date],SMALL(IF(SMALL(IF(COUNTIF($B$2:$B12,Baza[Date])=0,COUNTIF(Baza[Date],"<"&Baza[Date])+1,""),1)=COUNTIF(Baza[Date],"<"&Baza[Date])+1,ROW(Baza[Date])-MIN(ROW(Baza[Date]))+1),1)),"") ->  | C13: =IF(Таблица46[[#This Row],['#]]="","",COUNTIFS(Baza[Date],Таблица46[[#This Row],['#]])+SUMIFS(Baza[R],Baza[Date],Таблица46[[#This Row],['#]])) ->  | D13: =IF(Таблица46[[#This Row],['#]]="","",SUMIFS(Baza[B$],Baza[Date],Таблица46[[#This Row],['#]])) ->  | F13: =IFERROR(AVERAGEIFS(Baza[AFS],Baza[Date],Таблица46[[#This Row],['#]])+(AVERAGEIFS(Baza[AFS],Baza[Date],Таблица46[[#This Row],['#]])*0.2),"") ->  | H13: =IFERROR(COUNTIFS(Baza[Date],Таблица46[[#This Row],['#]],Baza[Win],">0")/C13*100,"") ->  | I13: =IF(SUMIFS(Baza[KO$],Baza[Date],Таблица46[[#This Row],['#]])=0,"",SUMIFS(Baza[KO$],Baza[Date],Таблица46[[#This Row],['#]])) ->  | J13: =IF(SUMIFS(Baza[WIN$],Baza[Date],Таблица46[[#This Row],['#]])=0,"",SUMIFS(Baza[WIN$],Baza[Date],Таблица46[[#This Row],['#]])) -> 
B14: =IFERROR(INDEX(Baza[Date],SMALL(IF(SMALL(IF(COUNTIF($B$2:$B13,Baza[Date])=0,COUNTIF(Baza[Date],"<"&Baza[Date])+1,""),1)=COUNTIF(Baza[Date],"<"&Baza[Date])+1,ROW(Baza[Date])-MIN(ROW(Baza[Date]))+1),1)),"") ->  | C14: =IF(Таблица46[[#This Row],['#]]="","",COUNTIFS(Baza[Date],Таблица46[[#This Row],['#]])+SUMIFS(Baza[R],Baza[Date],Таблица46[[#This Row],['#]])) ->  | D14: =IF(Таблица46[[#This Row],['#]]="","",SUMIFS(Baza[B$],Baza[Date],Таблица46[[#This Row],['#]])) ->  | F14: =IFERROR(AVERAGEIFS(Baza[AFS],Baza[Date],Таблица46[[#This Row],['#]])+(AVERAGEIFS(Baza[AFS],Baza[Date],Таблица46[[#This Row],['#]])*0.2),"") ->  | H14: =IFERROR(COUNTIFS(Baza[Date],Таблица46[[#This Row],['#]],Baza[Win],">0")/C14*100,"") ->  | I14: =IF(SUMIFS(Baza[KO$],Baza[Date],Таблица46[[#This Row],['#]])=0,"",SUMIFS(Baza[KO$],Baza[Date],Таблица46[[#This Row],['#]])) ->  | J14: =IF(SUMIFS(Baza[WIN$],Baza[Date],Таблица46[[#This Row],['#]])=0,"",SUMIFS(Baza[WIN$],Baza[Date],Таблица46[[#This Row],['#]])) -> 
B15: =IFERROR(INDEX(Baza[Date],SMALL(IF(SMALL(IF(COUNTIF($B$2:$B14,Baza[Date])=0,COUNTIF(Baza[Date],"<"&Baza[Date])+1,""),1)=COUNTIF(Baza[Date],"<"&Baza[Date])+1,ROW(Baza[Date])-MIN(ROW(Baza[Date]))+1),1)),"") ->  | C15: =IF(Таблица46[[#This Row],['#]]="","",COUNTIFS(Baza[Date],Таблица46[[#This Row],['#]])+SUMIFS(Baza[R],Baza[Date],Таблица46[[#This Row],['#]])) ->  | D15: =IF(Таблица46[[#This Row],['#]]="","",SUMIFS(Baza[B$],Baza[Date],Таблица46[[#This Row],['#]])) ->  | F15: =IFERROR(AVERAGEIFS(Baza[AFS],Baza[Date],Таблица46[[#This Row],['#]])+(AVERAGEIFS(Baza[AFS],Baza[Date],Таблица46[[#This Row],['#]])*0.2),"") ->  | H15: =IFERROR(COUNTIFS(Baza[Date],Таблица46[[#This Row],['#]],Baza[Win],">0")/C15*100,"") ->  | I15: =IF(SUMIFS(Baza[KO$],Baza[Date],Таблица46[[#This Row],['#]])=0,"",SUMIFS(Baza[KO$],Baza[Date],Таблица46[[#This Row],['#]])) ->  | J15: =IF(SUMIFS(Baza[WIN$],Baza[Date],Таблица46[[#This Row],['#]])=0,"",SUMIFS(Baza[WIN$],Baza[Date],Таблица46[[#This Row],['#]])) -> 
B16: =IFERROR(INDEX(Baza[Date],SMALL(IF(SMALL(IF(COUNTIF($B$2:$B15,Baza[Date])=0,COUNTIF(Baza[Date],"<"&Baza[Date])+1,""),1)=COUNTIF(Baza[Date],"<"&Baza[Date])+1,ROW(Baza[Date])-MIN(ROW(Baza[Date]))+1),1)),"") ->  | C16: =IF(Таблица46[[#This Row],['#]]="","",COUNTIFS(Baza[Date],Таблица46[[#This Row],['#]])+SUMIFS(Baza[R],Baza[Date],Таблица46[[#This Row],['#]])) ->  | D16: =IF(Таблица46[[#This Row],['#]]="","",SUMIFS(Baza[B$],Baza[Date],Таблица46[[#This Row],['#]])) ->  | F16: =IFERROR(AVERAGEIFS(Baza[AFS],Baza[Date],Таблица46[[#This Row],['#]])+(AVERAGEIFS(Baza[AFS],Baza[Date],Таблица46[[#This Row],['#]])*0.2),"") ->  | H16: =IFERROR(COUNTIFS(Baza[Date],Таблица46[[#This Row],['#]],Baza[Win],">0")/C16*100,"") ->  | I16: =IF(SUMIFS(Baza[KO$],Baza[Date],Таблица46[[#This Row],['#]])=0,"",SUMIFS(Baza[KO$],Baza[Date],Таблица46[[#This Row],['#]])) ->  | J16: =IF(SUMIFS(Baza[WIN$],Baza[Date],Таблица46[[#This Row],['#]])=0,"",SUMIFS(Baza[WIN$],Baza[Date],Таблица46[[#This Row],['#]])) -> 
B17: =IFERROR(INDEX(Baza[Date],SMALL(IF(SMALL(IF(COUNTIF($B$2:$B16,Baza[Date])=0,COUNTIF(Baza[Date],"<"&Baza[Date])+1,""),1)=COUNTIF(Baza[Date],"<"&Baza[Date])+1,ROW(Baza[Date])-MIN(ROW(Baza[Date]))+1),1)),"") ->  | C17: =IF(Таблица46[[#This Row],['#]]="","",COUNTIFS(Baza[Date],Таблица46[[#This Row],['#]])+SUMIFS(Baza[R],Baza[Date],Таблица46[[#This Row],['#]])) ->  | D17: =IF(Таблица46[[#This Row],['#]]="","",SUMIFS(Baza[B$],Baza[Date],Таблица46[[#This Row],['#]])) ->  | F17: =IFERROR(AVERAGEIFS(Baza[AFS],Baza[Date],Таблица46[[#This Row],['#]])+(AVERAGEIFS(Baza[AFS],Baza[Date],Таблица46[[#This Row],['#]])*0.2),"") ->  | H17: =IFERROR(COUNTIFS(Baza[Date],Таблица46[[#This Row],['#]],Baza[Win],">0")/C17*100,"") ->  | I17: =IF(SUMIFS(Baza[KO$],Baza[Date],Таблица46[[#This Row],['#]])=0,"",SUMIFS(Baza[KO$],Baza[Date],Таблица46[[#This Row],['#]])) ->  | J17: =IF(SUMIFS(Baza[WIN$],Baza[Date],Таблица46[[#This Row],['#]])=0,"",SUMIFS(Baza[WIN$],Baza[Date],Таблица46[[#This Row],['#]])) -> 
B18: =IFERROR(INDEX(Baza[Date],SMALL(IF(SMALL(IF(COUNTIF($B$2:$B17,Baza[Date])=0,COUNTIF(Baza[Date],"<"&Baza[Date])+1,""),1)=COUNTIF(Baza[Date],"<"&Baza[Date])+1,ROW(Baza[Date])-MIN(ROW(Baza[Date]))+1),1)),"") ->  | C18: =IF(Таблица46[[#This Row],['#]]="","",COUNTIFS(Baza[Date],Таблица46[[#This Row],['#]])+SUMIFS(Baza[R],Baza[Date],Таблица46[[#This Row],['#]])) ->  | D18: =IF(Таблица46[[#This Row],['#]]="","",SUMIFS(Baza[B$],Baza[Date],Таблица46[[#This Row],['#]])) ->  | F18: =IFERROR(AVERAGEIFS(Baza[AFS],Baza[Date],Таблица46[[#This Row],['#]])+(AVERAGEIFS(Baza[AFS],Baza[Date],Таблица46[[#This Row],['#]])*0.2),"") ->  | H18: =IFERROR(COUNTIFS(Baza[Date],Таблица46[[#This Row],['#]],Baza[Win],">0")/C18*100,"") ->  | I18: =IF(SUMIFS(Baza[KO$],Baza[Date],Таблица46[[#This Row],['#]])=0,"",SUMIFS(Baza[KO$],Baza[Date],Таблица46[[#This Row],['#]])) ->  | J18: =IF(SUMIFS(Baza[WIN$],Baza[Date],Таблица46[[#This Row],['#]])=0,"",SUMIFS(Baza[WIN$],Baza[Date],Таблица46[[#This Row],['#]])) -> 
B19: =IFERROR(INDEX(Baza[Date],SMALL(IF(SMALL(IF(COUNTIF($B$2:$B18,Baza[Date])=0,COUNTIF(Baza[Date],"<"&Baza[Date])+1,""),1)=COUNTIF(Baza[Date],"<"&Baza[Date])+1,ROW(Baza[Date])-MIN(ROW(Baza[Date]))+1),1)),"") ->  | C19: =IF(Таблица46[[#This Row],['#]]="","",COUNTIFS(Baza[Date],Таблица46[[#This Row],['#]])+SUMIFS(Baza[R],Baza[Date],Таблица46[[#This Row],['#]])) ->  | D19: =IF(Таблица46[[#This Row],['#]]="","",SUMIFS(Baza[B$],Baza[Date],Таблица46[[#This Row],['#]])) ->  | F19: =IFERROR(AVERAGEIFS(Baza[AFS],Baza[Date],Таблица46[[#This Row],['#]])+(AVERAGEIFS(Baza[AFS],Baza[Date],Таблица46[[#This Row],['#]])*0.2),"") ->  | H19: =IFERROR(COUNTIFS(Baza[Date],Таблица46[[#This Row],['#]],Baza[Win],">0")/C19*100,"") ->  | I19: =IF(SUMIFS(Baza[KO$],Baza[Date],Таблица46[[#This Row],['#]])=0,"",SUMIFS(Baza[KO$],Baza[Date],Таблица46[[#This Row],['#]])) ->  | J19: =IF(SUMIFS(Baza[WIN$],Baza[Date],Таблица46[[#This Row],['#]])=0,"",SUMIFS(Baza[WIN$],Baza[Date],Таблица46[[#This Row],['#]])) -> 
B20: =IFERROR(INDEX(Baza[Date],SMALL(IF(SMALL(IF(COUNTIF($B$2:$B19,Baza[Date])=0,COUNTIF(Baza[Date],"<"&Baza[Date])+1,""),1)=COUNTIF(Baza[Date],"<"&Baza[Date])+1,ROW(Baza[Date])-MIN(ROW(Baza[Date]))+1),1)),"") ->  | C20: =IF(Таблица46[[#This Row],['#]]="","",COUNTIFS(Baza[Date],Таблица46[[#This Row],['#]])+SUMIFS(Baza[R],Baza[Date],Таблица46[[#This Row],['#]])) ->  | D20: =IF(Таблица46[[#This Row],['#]]="","",SUMIFS(Baza[B$],Baza[Date],Таблица46[[#This Row],['#]])) ->  | F20: =IFERROR(AVERAGEIFS(Baza[AFS],Baza[Date],Таблица46[[#This Row],['#]])+(AVERAGEIFS(Baza[AFS],Baza[Date],Таблица46[[#This Row],['#]])*0.2),"") ->  | H20: =IFERROR(COUNTIFS(Baza[Date],Таблица46[[#This Row],['#]],Baza[Win],">0")/C20*100,"") ->  | I20: =IF(SUMIFS(Baza[KO$],Baza[Date],Таблица46[[#This Row],['#]])=0,"",SUMIFS(Baza[KO$],Baza[Date],Таблица46[[#This Row],['#]])) ->  | J20: =IF(SUMIFS(Baza[WIN$],Baza[Date],Таблица46[[#This Row],['#]])=0,"",SUMIFS(Baza[WIN$],Baza[Date],Таблица46[[#This Row],['#]])) -> 
B21: =IFERROR(INDEX(Baza[Date],SMALL(IF(SMALL(IF(COUNTIF($B$2:$B20,Baza[Date])=0,COUNTIF(Baza[Date],"<"&Baza[Date])+1,""),1)=COUNTIF(Baza[Date],"<"&Baza[Date])+1,ROW(Baza[Date])-MIN(ROW(Baza[Date]))+1),1)),"") ->  | C21: =IF(Таблица46[[#This Row],['#]]="","",COUNTIFS(Baza[Date],Таблица46[[#This Row],['#]])+SUMIFS(Baza[R],Baza[Date],Таблица46[[#This Row],['#]])) ->  | D21: =IF(Таблица46[[#This Row],['#]]="","",SUMIFS(Baza[B$],Baza[Date],Таблица46[[#This Row],['#]])) ->  | F21: =IFERROR(AVERAGEIFS(Baza[AFS],Baza[Date],Таблица46[[#This Row],['#]])+(AVERAGEIFS(Baza[AFS],Baza[Date],Таблица46[[#This Row],['#]])*0.2),"") ->  | H21: =IFERROR(COUNTIFS(Baza[Date],Таблица46[[#This Row],['#]],Baza[Win],">0")/C21*100,"") ->  | I21: =IF(SUMIFS(Baza[KO$],Baza[Date],Таблица46[[#This Row],['#]])=0,"",SUMIFS(Baza[KO$],Baza[Date],Таблица46[[#This Row],['#]])) ->  | J21: =IF(SUMIFS(Baza[WIN$],Baza[Date],Таблица46[[#This Row],['#]])=0,"",SUMIFS(Baza[WIN$],Baza[Date],Таблица46[[#This Row],['#]])) -> 
B22: =IFERROR(INDEX(Baza[Date],SMALL(IF(SMALL(IF(COUNTIF($B$2:$B21,Baza[Date])=0,COUNTIF(Baza[Date],"<"&Baza[Date])+1,""),1)=COUNTIF(Baza[Date],"<"&Baza[Date])+1,ROW(Baza[Date])-MIN(ROW(Baza[Date]))+1),1)),"") ->  | C22: =IF(Таблица46[[#This Row],['#]]="","",COUNTIFS(Baza[Date],Таблица46[[#This Row],['#]])+SUMIFS(Baza[R],Baza[Date],Таблица46[[#This Row],['#]])) ->  | D22: =IF(Таблица46[[#This Row],['#]]="","",SUMIFS(Baza[B$],Baza[Date],Таблица46[[#This Row],['#]])) ->  | F22: =IFERROR(AVERAGEIFS(Baza[AFS],Baza[Date],Таблица46[[#This Row],['#]])+(AVERAGEIFS(Baza[AFS],Baza[Date],Таблица46[[#This Row],['#]])*0.2),"") ->  | H22: =IFERROR(COUNTIFS(Baza[Date],Таблица46[[#This Row],['#]],Baza[Win],">0")/C22*100,"") ->  | I22: =IF(SUMIFS(Baza[KO$],Baza[Date],Таблица46[[#This Row],['#]])=0,"",SUMIFS(Baza[KO$],Baza[Date],Таблица46[[#This Row],['#]])) ->  | J22: =IF(SUMIFS(Baza[WIN$],Baza[Date],Таблица46[[#This Row],['#]])=0,"",SUMIFS(Baza[WIN$],Baza[Date],Таблица46[[#This Row],['#]])) -> 
B23: =IFERROR(INDEX(Baza[Date],SMALL(IF(SMALL(IF(COUNTIF($B$2:$B22,Baza[Date])=0,COUNTIF(Baza[Date],"<"&Baza[Date])+1,""),1)=COUNTIF(Baza[Date],"<"&Baza[Date])+1,ROW(Baza[Date])-MIN(ROW(Baza[Date]))+1),1)),"") ->  | C23: =IF(Таблица46[[#This Row],['#]]="","",COUNTIFS(Baza[Date],Таблица46[[#This Row],['#]])+SUMIFS(Baza[R],Baza[Date],Таблица46[[#This Row],['#]])) ->  | D23: =IF(Таблица46[[#This Row],['#]]="","",SUMIFS(Baza[B$],Baza[Date],Таблица46[[#This Row],['#]])) ->  | F23: =IFERROR(AVERAGEIFS(Baza[AFS],Baza[Date],Таблица46[[#This Row],['#]])+(AVERAGEIFS(Baza[AFS],Baza[Date],Таблица46[[#This Row],['#]])*0.2),"") ->  | H23: =IFERROR(COUNTIFS(Baza[Date],Таблица46[[#This Row],['#]],Baza[Win],">0")/C23*100,"") ->  | I23: =IF(SUMIFS(Baza[KO$],Baza[Date],Таблица46[[#This Row],['#]])=0,"",SUMIFS(Baza[KO$],Baza[Date],Таблица46[[#This Row],['#]])) ->  | J23: =IF(SUMIFS(Baza[WIN$],Baza[Date],Таблица46[[#This Row],['#]])=0,"",SUMIFS(Baza[WIN$],Baza[Date],Таблица46[[#This Row],['#]])) -> 
B24: =IFERROR(INDEX(Baza[Date],SMALL(IF(SMALL(IF(COUNTIF($B$2:$B23,Baza[Date])=0,COUNTIF(Baza[Date],"<"&Baza[Date])+1,""),1)=COUNTIF(Baza[Date],"<"&Baza[Date])+1,ROW(Baza[Date])-MIN(ROW(Baza[Date]))+1),1)),"") ->  | C24: =IF(Таблица46[[#This Row],['#]]="","",COUNTIFS(Baza[Date],Таблица46[[#This Row],['#]])+SUMIFS(Baza[R],Baza[Date],Таблица46[[#This Row],['#]])) ->  | D24: =IF(Таблица46[[#This Row],['#]]="","",SUMIFS(Baza[B$],Baza[Date],Таблица46[[#This Row],['#]])) ->  | F24: =IFERROR(AVERAGEIFS(Baza[AFS],Baza[Date],Таблица46[[#This Row],['#]])+(AVERAGEIFS(Baza[AFS],Baza[Date],Таблица46[[#This Row],['#]])*0.2),"") ->  | H24: =IFERROR(COUNTIFS(Baza[Date],Таблица46[[#This Row],['#]],Baza[Win],">0")/C24*100,"") ->  | I24: =IF(SUMIFS(Baza[KO$],Baza[Date],Таблица46[[#This Row],['#]])=0,"",SUMIFS(Baza[KO$],Baza[Date],Таблица46[[#This Row],['#]])) ->  | J24: =IF(SUMIFS(Baza[WIN$],Baza[Date],Таблица46[[#This Row],['#]])=0,"",SUMIFS(Baza[WIN$],Baza[Date],Таблица46[[#This Row],['#]])) -> 
B25: =IFERROR(INDEX(Baza[Date],SMALL(IF(SMALL(IF(COUNTIF($B$2:$B24,Baza[Date])=0,COUNTIF(Baza[Date],"<"&Baza[Date])+1,""),1)=COUNTIF(Baza[Date],"<"&Baza[Date])+1,ROW(Baza[Date])-MIN(ROW(Baza[Date]))+1),1)),"") ->  | C25: =IF(Таблица46[[#This Row],['#]]="","",COUNTIFS(Baza[Date],Таблица46[[#This Row],['#]])+SUMIFS(Baza[R],Baza[Date],Таблица46[[#This Row],['#]])) ->  | D25: =IF(Таблица46[[#This Row],['#]]="","",SUMIFS(Baza[B$],Baza[Date],Таблица46[[#This Row],['#]])) ->  | F25: =IFERROR(AVERAGEIFS(Baza[AFS],Baza[Date],Таблица46[[#This Row],['#]])+(AVERAGEIFS(Baza[AFS],Baza[Date],Таблица46[[#This Row],['#]])*0.2),"") ->  | H25: =IFERROR(COUNTIFS(Baza[Date],Таблица46[[#This Row],['#]],Baza[Win],">0")/C25*100,"") ->  | I25: =IF(SUMIFS(Baza[KO$],Baza[Date],Таблица46[[#This Row],['#]])=0,"",SUMIFS(Baza[KO$],Baza[Date],Таблица46[[#This Row],['#]])) ->  | J25: =IF(SUMIFS(Baza[WIN$],Baza[Date],Таблица46[[#This Row],['#]])=0,"",SUMIFS(Baza[WIN$],Baza[Date],Таблица46[[#This Row],['#]])) -> 
B26: =IFERROR(INDEX(Baza[Date],SMALL(IF(SMALL(IF(COUNTIF($B$2:$B25,Baza[Date])=0,COUNTIF(Baza[Date],"<"&Baza[Date])+1,""),1)=COUNTIF(Baza[Date],"<"&Baza[Date])+1,ROW(Baza[Date])-MIN(ROW(Baza[Date]))+1),1)),"") ->  | C26: =IF(Таблица46[[#This Row],['#]]="","",COUNTIFS(Baza[Date],Таблица46[[#This Row],['#]])+SUMIFS(Baza[R],Baza[Date],Таблица46[[#This Row],['#]])) ->  | D26: =IF(Таблица46[[#This Row],['#]]="","",SUMIFS(Baza[B$],Baza[Date],Таблица46[[#This Row],['#]])) ->  | F26: =IFERROR(AVERAGEIFS(Baza[AFS],Baza[Date],Таблица46[[#This Row],['#]])+(AVERAGEIFS(Baza[AFS],Baza[Date],Таблица46[[#This Row],['#]])*0.2),"") ->  | H26: =IFERROR(COUNTIFS(Baza[Date],Таблица46[[#This Row],['#]],Baza[Win],">0")/C26*100,"") ->  | I26: =IF(SUMIFS(Baza[KO$],Baza[Date],Таблица46[[#This Row],['#]])=0,"",SUMIFS(Baza[KO$],Baza[Date],Таблица46[[#This Row],['#]])) ->  | J26: =IF(SUMIFS(Baza[WIN$],Baza[Date],Таблица46[[#This Row],['#]])=0,"",SUMIFS(Baza[WIN$],Baza[Date],Таблица46[[#This Row],['#]])) -> 
B27: =IFERROR(INDEX(Baza[Date],SMALL(IF(SMALL(IF(COUNTIF($B$2:$B26,Baza[Date])=0,COUNTIF(Baza[Date],"<"&Baza[Date])+1,""),1)=COUNTIF(Baza[Date],"<"&Baza[Date])+1,ROW(Baza[Date])-MIN(ROW(Baza[Date]))+1),1)),"") ->  | C27: =IF(Таблица46[[#This Row],['#]]="","",COUNTIFS(Baza[Date],Таблица46[[#This Row],['#]])+SUMIFS(Baza[R],Baza[Date],Таблица46[[#This Row],['#]])) ->  | D27: =IF(Таблица46[[#This Row],['#]]="","",SUMIFS(Baza[B$],Baza[Date],Таблица46[[#This Row],['#]])) ->  | F27: =IFERROR(AVERAGEIFS(Baza[AFS],Baza[Date],Таблица46[[#This Row],['#]])+(AVERAGEIFS(Baza[AFS],Baza[Date],Таблица46[[#This Row],['#]])*0.2),"") ->  | H27: =IFERROR(COUNTIFS(Baza[Date],Таблица46[[#This Row],['#]],Baza[Win],">0")/C27*100,"") ->  | I27: =IF(SUMIFS(Baza[KO$],Baza[Date],Таблица46[[#This Row],['#]])=0,"",SUMIFS(Baza[KO$],Baza[Date],Таблица46[[#This Row],['#]])) ->  | J27: =IF(SUMIFS(Baza[WIN$],Baza[Date],Таблица46[[#This Row],['#]])=0,"",SUMIFS(Baza[WIN$],Baza[Date],Таблица46[[#This Row],['#]])) -> 
B28: =IFERROR(INDEX(Baza[Date],SMALL(IF(SMALL(IF(COUNTIF($B$2:$B27,Baza[Date])=0,COUNTIF(Baza[Date],"<"&Baza[Date])+1,""),1)=COUNTIF(Baza[Date],"<"&Baza[Date])+1,ROW(Baza[Date])-MIN(ROW(Baza[Date]))+1),1)),"") ->  | C28: =IF(Таблица46[[#This Row],['#]]="","",COUNTIFS(Baza[Date],Таблица46[[#This Row],['#]])+SUMIFS(Baza[R],Baza[Date],Таблица46[[#This Row],['#]])) ->  | D28: =IF(Таблица46[[#This Row],['#]]="","",SUMIFS(Baza[B$],Baza[Date],Таблица46[[#This Row],['#]])) ->  | F28: =IFERROR(AVERAGEIFS(Baza[AFS],Baza[Date],Таблица46[[#This Row],['#]])+(AVERAGEIFS(Baza[AFS],Baza[Date],Таблица46[[#This Row],['#]])*0.2),"") ->  | H28: =IFERROR(COUNTIFS(Baza[Date],Таблица46[[#This Row],['#]],Baza[Win],">0")/C28*100,"") ->  | I28: =IF(SUMIFS(Baza[KO$],Baza[Date],Таблица46[[#This Row],['#]])=0,"",SUMIFS(Baza[KO$],Baza[Date],Таблица46[[#This Row],['#]])) ->  | J28: =IF(SUMIFS(Baza[WIN$],Baza[Date],Таблица46[[#This Row],['#]])=0,"",SUMIFS(Baza[WIN$],Baza[Date],Таблица46[[#This Row],['#]])) -> 
B29: =IFERROR(INDEX(Baza[Date],SMALL(IF(SMALL(IF(COUNTIF($B$2:$B28,Baza[Date])=0,COUNTIF(Baza[Date],"<"&Baza[Date])+1,""),1)=COUNTIF(Baza[Date],"<"&Baza[Date])+1,ROW(Baza[Date])-MIN(ROW(Baza[Date]))+1),1)),"") ->  | C29: =IF(Таблица46[[#This Row],['#]]="","",COUNTIFS(Baza[Date],Таблица46[[#This Row],['#]])+SUMIFS(Baza[R],Baza[Date],Таблица46[[#This Row],['#]])) ->  | D29: =IF(Таблица46[[#This Row],['#]]="","",SUMIFS(Baza[B$],Baza[Date],Таблица46[[#This Row],['#]])) ->  | F29: =IFERROR(AVERAGEIFS(Baza[AFS],Baza[Date],Таблица46[[#This Row],['#]])+(AVERAGEIFS(Baza[AFS],Baza[Date],Таблица46[[#This Row],['#]])*0.2),"") ->  | H29: =IFERROR(COUNTIFS(Baza[Date],Таблица46[[#This Row],['#]],Baza[Win],">0")/C29*100,"") ->  | I29: =IF(SUMIFS(Baza[KO$],Baza[Date],Таблица46[[#This Row],['#]])=0,"",SUMIFS(Baza[KO$],Baza[Date],Таблица46[[#This Row],['#]])) ->  | J29: =IF(SUMIFS(Baza[WIN$],Baza[Date],Таблица46[[#This Row],['#]])=0,"",SUMIFS(Baza[WIN$],Baza[Date],Таблица46[[#This Row],['#]])) -> 
B30: =IFERROR(INDEX(Baza[Date],SMALL(IF(SMALL(IF(COUNTIF($B$2:$B29,Baza[Date])=0,COUNTIF(Baza[Date],"<"&Baza[Date])+1,""),1)=COUNTIF(Baza[Date],"<"&Baza[Date])+1,ROW(Baza[Date])-MIN(ROW(Baza[Date]))+1),1)),"") ->  | C30: =IF(Таблица46[[#This Row],['#]]="","",COUNTIFS(Baza[Date],Таблица46[[#This Row],['#]])+SUMIFS(Baza[R],Baza[Date],Таблица46[[#This Row],['#]])) ->  | D30: =IF(Таблица46[[#This Row],['#]]="","",SUMIFS(Baza[B$],Baza[Date],Таблица46[[#This Row],['#]])) ->  | F30: =IFERROR(AVERAGEIFS(Baza[AFS],Baza[Date],Таблица46[[#This Row],['#]])+(AVERAGEIFS(Baza[AFS],Baza[Date],Таблица46[[#This Row],['#]])*0.2),"") ->  | H30: =IFERROR(COUNTIFS(Baza[Date],Таблица46[[#This Row],['#]],Baza[Win],">0")/C30*100,"") ->  | I30: =IF(SUMIFS(Baza[KO$],Baza[Date],Таблица46[[#This Row],['#]])=0,"",SUMIFS(Baza[KO$],Baza[Date],Таблица46[[#This Row],['#]])) ->  | J30: =IF(SUMIFS(Baza[WIN$],Baza[Date],Таблица46[[#This Row],['#]])=0,"",SUMIFS(Baza[WIN$],Baza[Date],Таблица46[[#This Row],['#]])) -> 
B31: =IFERROR(INDEX(Baza[Date],SMALL(IF(SMALL(IF(COUNTIF($B$2:$B30,Baza[Date])=0,COUNTIF(Baza[Date],"<"&Baza[Date])+1,""),1)=COUNTIF(Baza[Date],"<"&Baza[Date])+1,ROW(Baza[Date])-MIN(ROW(Baza[Date]))+1),1)),"") ->  | C31: =IF(Таблица46[[#This Row],['#]]="","",COUNTIFS(Baza[Date],Таблица46[[#This Row],['#]])+SUMIFS(Baza[R],Baza[Date],Таблица46[[#This Row],['#]])) ->  | D31: =IF(Таблица46[[#This Row],['#]]="","",SUMIFS(Baza[B$],Baza[Date],Таблица46[[#This Row],['#]])) ->  | F31: =IFERROR(AVERAGEIFS(Baza[AFS],Baza[Date],Таблица46[[#This Row],['#]])+(AVERAGEIFS(Baza[AFS],Baza[Date],Таблица46[[#This Row],['#]])*0.2),"") ->  | H31: =IFERROR(COUNTIFS(Baza[Date],Таблица46[[#This Row],['#]],Baza[Win],">0")/C31*100,"") ->  | I31: =IF(SUMIFS(Baza[KO$],Baza[Date],Таблица46[[#This Row],['#]])=0,"",SUMIFS(Baza[KO$],Baza[Date],Таблица46[[#This Row],['#]])) ->  | J31: =IF(SUMIFS(Baza[WIN$],Baza[Date],Таблица46[[#This Row],['#]])=0,"",SUMIFS(Baza[WIN$],Baza[Date],Таблица46[[#This Row],['#]])) -> 
B32: =IFERROR(INDEX(Baza[Date],SMALL(IF(SMALL(IF(COUNTIF($B$2:$B31,Baza[Date])=0,COUNTIF(Baza[Date],"<"&Baza[Date])+1,""),1)=COUNTIF(Baza[Date],"<"&Baza[Date])+1,ROW(Baza[Date])-MIN(ROW(Baza[Date]))+1),1)),"") ->  | C32: =IF(Таблица46[[#This Row],['#]]="","",COUNTIFS(Baza[Date],Таблица46[[#This Row],['#]])+SUMIFS(Baza[R],Baza[Date],Таблица46[[#This Row],['#]])) ->  | D32: =IF(Таблица46[[#This Row],['#]]="","",SUMIFS(Baza[B$],Baza[Date],Таблица46[[#This Row],['#]])) ->  | F32: =IFERROR(AVERAGEIFS(Baza[AFS],Baza[Date],Таблица46[[#This Row],['#]])+(AVERAGEIFS(Baza[AFS],Baza[Date],Таблица46[[#This Row],['#]])*0.2),"") ->  | H32: =IFERROR(COUNTIFS(Baza[Date],Таблица46[[#This Row],['#]],Baza[Win],">0")/C32*100,"") ->  | I32: =IF(SUMIFS(Baza[KO$],Baza[Date],Таблица46[[#This Row],['#]])=0,"",SUMIFS(Baza[KO$],Baza[Date],Таблица46[[#This Row],['#]])) ->  | J32: =IF(SUMIFS(Baza[WIN$],Baza[Date],Таблица46[[#This Row],['#]])=0,"",SUMIFS(Baza[WIN$],Baza[Date],Таблица46[[#This Row],['#]])) -> 
B33: =IFERROR(INDEX(Baza[Date],SMALL(IF(SMALL(IF(COUNTIF($B$2:$B32,Baza[Date])=0,COUNTIF(Baza[Date],"<"&Baza[Date])+1,""),1)=COUNTIF(Baza[Date],"<"&Baza[Date])+1,ROW(Baza[Date])-MIN(ROW(Baza[Date]))+1),1)),"") ->  | C33: =IF(Таблица46[[#This Row],['#]]="","",COUNTIFS(Baza[Date],Таблица46[[#This Row],['#]])+SUMIFS(Baza[R],Baza[Date],Таблица46[[#This Row],['#]])) ->  | D33: =IF(Таблица46[[#This Row],['#]]="","",SUMIFS(Baza[B$],Baza[Date],Таблица46[[#This Row],['#]])) ->  | F33: =IFERROR(AVERAGEIFS(Baza[AFS],Baza[Date],Таблица46[[#This Row],['#]])+(AVERAGEIFS(Baza[AFS],Baza[Date],Таблица46[[#This Row],['#]])*0.2),"") ->  | H33: =IFERROR(COUNTIFS(Baza[Date],Таблица46[[#This Row],['#]],Baza[Win],">0")/C33*100,"") ->  | I33: =IF(SUMIFS(Baza[KO$],Baza[Date],Таблица46[[#This Row],['#]])=0,"",SUMIFS(Baza[KO$],Baza[Date],Таблица46[[#This Row],['#]])) ->  | J33: =IF(SUMIFS(Baza[WIN$],Baza[Date],Таблица46[[#This Row],['#]])=0,"",SUMIFS(Baza[WIN$],Baza[Date],Таблица46[[#This Row],['#]])) -> 
B34: =IFERROR(INDEX(Baza[Date],SMALL(IF(SMALL(IF(COUNTIF($B$2:$B33,Baza[Date])=0,COUNTIF(Baza[Date],"<"&Baza[Date])+1,""),1)=COUNTIF(Baza[Date],"<"&Baza[Date])+1,ROW(Baza[Date])-MIN(ROW(Baza[Date]))+1),1)),"") ->  | C34: =IF(Таблица46[[#This Row],['#]]="","",COUNTIFS(Baza[Date],Таблица46[[#This Row],['#]])+SUMIFS(Baza[R],Baza[Date],Таблица46[[#This Row],['#]])) ->  | D34: =IF(Таблица46[[#This Row],['#]]="","",SUMIFS(Baza[B$],Baza[Date],Таблица46[[#This Row],['#]])) ->  | F34: =IFERROR(AVERAGEIFS(Baza[AFS],Baza[Date],Таблица46[[#This Row],['#]])+(AVERAGEIFS(Baza[AFS],Baza[Date],Таблица46[[#This Row],['#]])*0.2),"") ->  | H34: =IFERROR(COUNTIFS(Baza[Date],Таблица46[[#This Row],['#]],Baza[Win],">0")/C34*100,"") ->  | I34: =IF(SUMIFS(Baza[KO$],Baza[Date],Таблица46[[#This Row],['#]])=0,"",SUMIFS(Baza[KO$],Baza[Date],Таблица46[[#This Row],['#]])) ->  | J34: =IF(SUMIFS(Baza[WIN$],Baza[Date],Таблица46[[#This Row],['#]])=0,"",SUMIFS(Baza[WIN$],Baza[Date],Таблица46[[#This Row],['#]])) -> 
B35: =IFERROR(INDEX(Baza[Date],SMALL(IF(SMALL(IF(COUNTIF($B$2:$B34,Baza[Date])=0,COUNTIF(Baza[Date],"<"&Baza[Date])+1,""),1)=COUNTIF(Baza[Date],"<"&Baza[Date])+1,ROW(Baza[Date])-MIN(ROW(Baza[Date]))+1),1)),"") ->  | C35: =IF(Таблица46[[#This Row],['#]]="","",COUNTIFS(Baza[Date],Таблица46[[#This Row],['#]])+SUMIFS(Baza[R],Baza[Date],Таблица46[[#This Row],['#]])) ->  | D35: =IF(Таблица46[[#This Row],['#]]="","",SUMIFS(Baza[B$],Baza[Date],Таблица46[[#This Row],['#]])) ->  | F35: =IFERROR(AVERAGEIFS(Baza[AFS],Baza[Date],Таблица46[[#This Row],['#]])+(AVERAGEIFS(Baza[AFS],Baza[Date],Таблица46[[#This Row],['#]])*0.2),"") ->  | G35: =IFERROR(K35/D35*100,"") ->  | H35: =IFERROR(COUNTIFS(Baza[Date],Таблица46[[#This Row],['#]],Baza[Win],">0")/C35*100,"") ->  | I35: =IF(SUMIFS(Baza[KO$],Baza[Date],Таблица46[[#This Row],['#]])=0,"",SUMIFS(Baza[KO$],Baza[Date],Таблица46[[#This Row],['#]])) ->  | J35: =IF(SUMIFS(Baza[WIN$],Baza[Date],Таблица46[[#This Row],['#]])=0,"",SUMIFS(Baza[WIN$],Baza[Date],Таблица46[[#This Row],['#]])) ->  | K35: =IFERROR(IF(J35="",0,J35)+IF(I35="",0,I35)-D35,"") -> 
B36: =IFERROR(INDEX(Baza[Date],SMALL(IF(SMALL(IF(COUNTIF($B$2:$B35,Baza[Date])=0,COUNTIF(Baza[Date],"<"&Baza[Date])+1,""),1)=COUNTIF(Baza[Date],"<"&Baza[Date])+1,ROW(Baza[Date])-MIN(ROW(Baza[Date]))+1),1)),"") ->  | C36: =IF(Таблица46[[#This Row],['#]]="","",COUNTIFS(Baza[Date],Таблица46[[#This Row],['#]])+SUMIFS(Baza[R],Baza[Date],Таблица46[[#This Row],['#]])) ->  | D36: =IF(Таблица46[[#This Row],['#]]="","",SUMIFS(Baza[B$],Baza[Date],Таблица46[[#This Row],['#]])) ->  | F36: =IFERROR(AVERAGEIFS(Baza[AFS],Baza[Date],Таблица46[[#This Row],['#]])+(AVERAGEIFS(Baza[AFS],Baza[Date],Таблица46[[#This Row],['#]])*0.2),"") ->  | H36: =IFERROR(COUNTIFS(Baza[Date],Таблица46[[#This Row],['#]],Baza[Win],">0")/C36*100,"") ->  | I36: =IF(SUMIFS(Baza[KO$],Baza[Date],Таблица46[[#This Row],['#]])=0,"",SUMIFS(Baza[KO$],Baza[Date],Таблица46[[#This Row],['#]])) ->  | J36: =IF(SUMIFS(Baza[WIN$],Baza[Date],Таблица46[[#This Row],['#]])=0,"",SUMIFS(Baza[WIN$],Baza[Date],Таблица46[[#This Row],['#]])) -> 
B37: =IFERROR(INDEX(Baza[Date],SMALL(IF(SMALL(IF(COUNTIF($B$2:$B36,Baza[Date])=0,COUNTIF(Baza[Date],"<"&Baza[Date])+1,""),1)=COUNTIF(Baza[Date],"<"&Baza[Date])+1,ROW(Baza[Date])-MIN(ROW(Baza[Date]))+1),1)),"") ->  | C37: =IF(Таблица46[[#This Row],['#]]="","",COUNTIFS(Baza[Date],Таблица46[[#This Row],['#]])+SUMIFS(Baza[R],Baza[Date],Таблица46[[#This Row],['#]])) ->  | D37: =IF(Таблица46[[#This Row],['#]]="","",SUMIFS(Baza[B$],Baza[Date],Таблица46[[#This Row],['#]])) ->  | F37: =IFERROR(AVERAGEIFS(Baza[AFS],Baza[Date],Таблица46[[#This Row],['#]])+(AVERAGEIFS(Baza[AFS],Baza[Date],Таблица46[[#This Row],['#]])*0.2),"") ->  | H37: =IFERROR(COUNTIFS(Baza[Date],Таблица46[[#This Row],['#]],Baza[Win],">0")/C37*100,"") ->  | I37: =IF(SUMIFS(Baza[KO$],Baza[Date],Таблица46[[#This Row],['#]])=0,"",SUMIFS(Baza[KO$],Baza[Date],Таблица46[[#This Row],['#]])) ->  | J37: =IF(SUMIFS(Baza[WIN$],Baza[Date],Таблица46[[#This Row],['#]])=0,"",SUMIFS(Baza[WIN$],Baza[Date],Таблица46[[#This Row],['#]])) -> 
B38: =IFERROR(INDEX(Baza[Date],SMALL(IF(SMALL(IF(COUNTIF($B$2:$B37,Baza[Date])=0,COUNTIF(Baza[Date],"<"&Baza[Date])+1,""),1)=COUNTIF(Baza[Date],"<"&Baza[Date])+1,ROW(Baza[Date])-MIN(ROW(Baza[Date]))+1),1)),"") ->  | C38: =IF(Таблица46[[#This Row],['#]]="","",COUNTIFS(Baza[Date],Таблица46[[#This Row],['#]])+SUMIFS(Baza[R],Baza[Date],Таблица46[[#This Row],['#]])) ->  | D38: =IF(Таблица46[[#This Row],['#]]="","",SUMIFS(Baza[B$],Baza[Date],Таблица46[[#This Row],['#]])) ->  | F38: =IFERROR(AVERAGEIFS(Baza[AFS],Baza[Date],Таблица46[[#This Row],['#]])+(AVERAGEIFS(Baza[AFS],Baza[Date],Таблица46[[#This Row],['#]])*0.2),"") ->  | H38: =IFERROR(COUNTIFS(Baza[Date],Таблица46[[#This Row],['#]],Baza[Win],">0")/C38*100,"") ->  | I38: =IF(SUMIFS(Baza[KO$],Baza[Date],Таблица46[[#This Row],['#]])=0,"",SUMIFS(Baza[KO$],Baza[Date],Таблица46[[#This Row],['#]])) ->  | J38: =IF(SUMIFS(Baza[WIN$],Baza[Date],Таблица46[[#This Row],['#]])=0,"",SUMIFS(Baza[WIN$],Baza[Date],Таблица46[[#This Row],['#]])) -> 
B39: =IFERROR(INDEX(Baza[Date],SMALL(IF(SMALL(IF(COUNTIF($B$2:$B38,Baza[Date])=0,COUNTIF(Baza[Date],"<"&Baza[Date])+1,""),1)=COUNTIF(Baza[Date],"<"&Baza[Date])+1,ROW(Baza[Date])-MIN(ROW(Baza[Date]))+1),1)),"") ->  | C39: =IF(Таблица46[[#This Row],['#]]="","",COUNTIFS(Baza[Date],Таблица46[[#This Row],['#]])+SUMIFS(Baza[R],Baza[Date],Таблица46[[#This Row],['#]])) ->  | D39: =IF(Таблица46[[#This Row],['#]]="","",SUMIFS(Baza[B$],Baza[Date],Таблица46[[#This Row],['#]])) ->  | F39: =IFERROR(AVERAGEIFS(Baza[AFS],Baza[Date],Таблица46[[#This Row],['#]])+(AVERAGEIFS(Baza[AFS],Baza[Date],Таблица46[[#This Row],['#]])*0.2),"") ->  | H39: =IFERROR(COUNTIFS(Baza[Date],Таблица46[[#This Row],['#]],Baza[Win],">0")/C39*100,"") ->  | I39: =IF(SUMIFS(Baza[KO$],Baza[Date],Таблица46[[#This Row],['#]])=0,"",SUMIFS(Baza[KO$],Baza[Date],Таблица46[[#This Row],['#]])) ->  | J39: =IF(SUMIFS(Baza[WIN$],Baza[Date],Таблица46[[#This Row],['#]])=0,"",SUMIFS(Baza[WIN$],Baza[Date],Таблица46[[#This Row],['#]])) -> 
B40: =IFERROR(INDEX(Baza[Date],SMALL(IF(SMALL(IF(COUNTIF($B$2:$B39,Baza[Date])=0,COUNTIF(Baza[Date],"<"&Baza[Date])+1,""),1)=COUNTIF(Baza[Date],"<"&Baza[Date])+1,ROW(Baza[Date])-MIN(ROW(Baza[Date]))+1),1)),"") ->  | C40: =IF(Таблица46[[#This Row],['#]]="","",COUNTIFS(Baza[Date],Таблица46[[#This Row],['#]])+SUMIFS(Baza[R],Baza[Date],Таблица46[[#This Row],['#]])) ->  | D40: =IF(Таблица46[[#This Row],['#]]="","",SUMIFS(Baza[B$],Baza[Date],Таблица46[[#This Row],['#]])) ->  | F40: =IFERROR(AVERAGEIFS(Baza[AFS],Baza[Date],Таблица46[[#This Row],['#]])+(AVERAGEIFS(Baza[AFS],Baza[Date],Таблица46[[#This Row],['#]])*0.2),"") ->  | H40: =IFERROR(COUNTIFS(Baza[Date],Таблица46[[#This Row],['#]],Baza[Win],">0")/C40*100,"") ->  | I40: =IF(SUMIFS(Baza[KO$],Baza[Date],Таблица46[[#This Row],['#]])=0,"",SUMIFS(Baza[KO$],Baza[Date],Таблица46[[#This Row],['#]])) ->  | J40: =IF(SUMIFS(Baza[WIN$],Baza[Date],Таблица46[[#This Row],['#]])=0,"",SUMIFS(Baza[WIN$],Baza[Date],Таблица46[[#This Row],['#]])) -> 
B41: =IFERROR(INDEX(Baza[Date],SMALL(IF(SMALL(IF(COUNTIF($B$2:$B40,Baza[Date])=0,COUNTIF(Baza[Date],"<"&Baza[Date])+1,""),1)=COUNTIF(Baza[Date],"<"&Baza[Date])+1,ROW(Baza[Date])-MIN(ROW(Baza[Date]))+1),1)),"") ->  | C41: =IF(Таблица46[[#This Row],['#]]="","",COUNTIFS(Baza[Date],Таблица46[[#This Row],['#]])+SUMIFS(Baza[R],Baza[Date],Таблица46[[#This Row],['#]])) ->  | D41: =IF(Таблица46[[#This Row],['#]]="","",SUMIFS(Baza[B$],Baza[Date],Таблица46[[#This Row],['#]])) ->  | F41: =IFERROR(AVERAGEIFS(Baza[AFS],Baza[Date],Таблица46[[#This Row],['#]])+(AVERAGEIFS(Baza[AFS],Baza[Date],Таблица46[[#This Row],['#]])*0.2),"") ->  | H41: =IFERROR(COUNTIFS(Baza[Date],Таблица46[[#This Row],['#]],Baza[Win],">0")/C41*100,"") ->  | I41: =IF(SUMIFS(Baza[KO$],Baza[Date],Таблица46[[#This Row],['#]])=0,"",SUMIFS(Baza[KO$],Baza[Date],Таблица46[[#This Row],['#]])) ->  | J41: =IF(SUMIFS(Baza[WIN$],Baza[Date],Таблица46[[#This Row],['#]])=0,"",SUMIFS(Baza[WIN$],Baza[Date],Таблица46[[#This Row],['#]])) -> 
B42: =IFERROR(INDEX(Baza[Date],SMALL(IF(SMALL(IF(COUNTIF($B$2:$B41,Baza[Date])=0,COUNTIF(Baza[Date],"<"&Baza[Date])+1,""),1)=COUNTIF(Baza[Date],"<"&Baza[Date])+1,ROW(Baza[Date])-MIN(ROW(Baza[Date]))+1),1)),"") ->  | C42: =IF(Таблица46[[#This Row],['#]]="","",COUNTIFS(Baza[Date],Таблица46[[#This Row],['#]])+SUMIFS(Baza[R],Baza[Date],Таблица46[[#This Row],['#]])) ->  | D42: =IF(Таблица46[[#This Row],['#]]="","",SUMIFS(Baza[B$],Baza[Date],Таблица46[[#This Row],['#]])) ->  | F42: =IFERROR(AVERAGEIFS(Baza[AFS],Baza[Date],Таблица46[[#This Row],['#]])+(AVERAGEIFS(Baza[AFS],Baza[Date],Таблица46[[#This Row],['#]])*0.2),"") ->  | H42: =IFERROR(COUNTIFS(Baza[Date],Таблица46[[#This Row],['#]],Baza[Win],">0")/C42*100,"") ->  | I42: =IF(SUMIFS(Baza[KO$],Baza[Date],Таблица46[[#This Row],['#]])=0,"",SUMIFS(Baza[KO$],Baza[Date],Таблица46[[#This Row],['#]])) ->  | J42: =IF(SUMIFS(Baza[WIN$],Baza[Date],Таблица46[[#This Row],['#]])=0,"",SUMIFS(Baza[WIN$],Baza[Date],Таблица46[[#This Row],['#]])) -> 
B43: =IFERROR(INDEX(Baza[Date],SMALL(IF(SMALL(IF(COUNTIF($B$2:$B42,Baza[Date])=0,COUNTIF(Baza[Date],"<"&Baza[Date])+1,""),1)=COUNTIF(Baza[Date],"<"&Baza[Date])+1,ROW(Baza[Date])-MIN(ROW(Baza[Date]))+1),1)),"") ->  | C43: =IF(Таблица46[[#This Row],['#]]="","",COUNTIFS(Baza[Date],Таблица46[[#This Row],['#]])+SUMIFS(Baza[R],Baza[Date],Таблица46[[#This Row],['#]])) ->  | D43: =IF(Таблица46[[#This Row],['#]]="","",SUMIFS(Baza[B$],Baza[Date],Таблица46[[#This Row],['#]])) ->  | F43: =IFERROR(AVERAGEIFS(Baza[AFS],Baza[Date],Таблица46[[#This Row],['#]])+(AVERAGEIFS(Baza[AFS],Baza[Date],Таблица46[[#This Row],['#]])*0.2),"") ->  | H43: =IFERROR(COUNTIFS(Baza[Date],Таблица46[[#This Row],['#]],Baza[Win],">0")/C43*100,"") ->  | I43: =IF(SUMIFS(Baza[KO$],Baza[Date],Таблица46[[#This Row],['#]])=0,"",SUMIFS(Baza[KO$],Baza[Date],Таблица46[[#This Row],['#]])) ->  | J43: =IF(SUMIFS(Baza[WIN$],Baza[Date],Таблица46[[#This Row],['#]])=0,"",SUMIFS(Baza[WIN$],Baza[Date],Таблица46[[#This Row],['#]])) -> 
B44: =IFERROR(INDEX(Baza[Date],SMALL(IF(SMALL(IF(COUNTIF($B$2:$B43,Baza[Date])=0,COUNTIF(Baza[Date],"<"&Baza[Date])+1,""),1)=COUNTIF(Baza[Date],"<"&Baza[Date])+1,ROW(Baza[Date])-MIN(ROW(Baza[Date]))+1),1)),"") ->  | C44: =IF(Таблица46[[#This Row],['#]]="","",COUNTIFS(Baza[Date],Таблица46[[#This Row],['#]])+SUMIFS(Baza[R],Baza[Date],Таблица46[[#This Row],['#]])) ->  | D44: =IF(Таблица46[[#This Row],['#]]="","",SUMIFS(Baza[B$],Baza[Date],Таблица46[[#This Row],['#]])) ->  | F44: =IFERROR(AVERAGEIFS(Baza[AFS],Baza[Date],Таблица46[[#This Row],['#]])+(AVERAGEIFS(Baza[AFS],Baza[Date],Таблица46[[#This Row],['#]])*0.2),"") ->  | H44: =IFERROR(COUNTIFS(Baza[Date],Таблица46[[#This Row],['#]],Baza[Win],">0")/C44*100,"") ->  | I44: =IF(SUMIFS(Baza[KO$],Baza[Date],Таблица46[[#This Row],['#]])=0,"",SUMIFS(Baza[KO$],Baza[Date],Таблица46[[#This Row],['#]])) ->  | J44: =IF(SUMIFS(Baza[WIN$],Baza[Date],Таблица46[[#This Row],['#]])=0,"",SUMIFS(Baza[WIN$],Baza[Date],Таблица46[[#This Row],['#]])) -> 
B45: =IFERROR(INDEX(Baza[Date],SMALL(IF(SMALL(IF(COUNTIF($B$2:$B44,Baza[Date])=0,COUNTIF(Baza[Date],"<"&Baza[Date])+1,""),1)=COUNTIF(Baza[Date],"<"&Baza[Date])+1,ROW(Baza[Date])-MIN(ROW(Baza[Date]))+1),1)),"") ->  | C45: =IF(Таблица46[[#This Row],['#]]="","",COUNTIFS(Baza[Date],Таблица46[[#This Row],['#]])+SUMIFS(Baza[R],Baza[Date],Таблица46[[#This Row],['#]])) ->  | D45: =IF(Таблица46[[#This Row],['#]]="","",SUMIFS(Baza[B$],Baza[Date],Таблица46[[#This Row],['#]])) ->  | F45: =IFERROR(AVERAGEIFS(Baza[AFS],Baza[Date],Таблица46[[#This Row],['#]])+(AVERAGEIFS(Baza[AFS],Baza[Date],Таблица46[[#This Row],['#]])*0.2),"") ->  | H45: =IFERROR(COUNTIFS(Baza[Date],Таблица46[[#This Row],['#]],Baza[Win],">0")/C45*100,"") ->  | I45: =IF(SUMIFS(Baza[KO$],Baza[Date],Таблица46[[#This Row],['#]])=0,"",SUMIFS(Baza[KO$],Baza[Date],Таблица46[[#This Row],['#]])) ->  | J45: =IF(SUMIFS(Baza[WIN$],Baza[Date],Таблица46[[#This Row],['#]])=0,"",SUMIFS(Baza[WIN$],Baza[Date],Таблица46[[#This Row],['#]])) -> 
B46: =IFERROR(INDEX(Baza[Date],SMALL(IF(SMALL(IF(COUNTIF($B$2:$B45,Baza[Date])=0,COUNTIF(Baza[Date],"<"&Baza[Date])+1,""),1)=COUNTIF(Baza[Date],"<"&Baza[Date])+1,ROW(Baza[Date])-MIN(ROW(Baza[Date]))+1),1)),"") ->  | C46: =IF(Таблица46[[#This Row],['#]]="","",COUNTIFS(Baza[Date],Таблица46[[#This Row],['#]])+SUMIFS(Baza[R],Baza[Date],Таблица46[[#This Row],['#]])) ->  | D46: =IF(Таблица46[[#This Row],['#]]="","",SUMIFS(Baza[B$],Baza[Date],Таблица46[[#This Row],['#]])) ->  | F46: =IFERROR(AVERAGEIFS(Baza[AFS],Baza[Date],Таблица46[[#This Row],['#]])+(AVERAGEIFS(Baza[AFS],Baza[Date],Таблица46[[#This Row],['#]])*0.2),"") ->  | H46: =IFERROR(COUNTIFS(Baza[Date],Таблица46[[#This Row],['#]],Baza[Win],">0")/C46*100,"") ->  | I46: =IF(SUMIFS(Baza[KO$],Baza[Date],Таблица46[[#This Row],['#]])=0,"",SUMIFS(Baza[KO$],Baza[Date],Таблица46[[#This Row],['#]])) ->  | J46: =IF(SUMIFS(Baza[WIN$],Baza[Date],Таблица46[[#This Row],['#]])=0,"",SUMIFS(Baza[WIN$],Baza[Date],Таблица46[[#This Row],['#]])) -> 
B47: =IFERROR(INDEX(Baza[Date],SMALL(IF(SMALL(IF(COUNTIF($B$2:$B46,Baza[Date])=0,COUNTIF(Baza[Date],"<"&Baza[Date])+1,""),1)=COUNTIF(Baza[Date],"<"&Baza[Date])+1,ROW(Baza[Date])-MIN(ROW(Baza[Date]))+1),1)),"") ->  | C47: =IF(Таблица46[[#This Row],['#]]="","",COUNTIFS(Baza[Date],Таблица46[[#This Row],['#]])+SUMIFS(Baza[R],Baza[Date],Таблица46[[#This Row],['#]])) ->  | D47: =IF(Таблица46[[#This Row],['#]]="","",SUMIFS(Baza[B$],Baza[Date],Таблица46[[#This Row],['#]])) ->  | F47: =IFERROR(AVERAGEIFS(Baza[AFS],Baza[Date],Таблица46[[#This Row],['#]])+(AVERAGEIFS(Baza[AFS],Baza[Date],Таблица46[[#This Row],['#]])*0.2),"") ->  | H47: =IFERROR(COUNTIFS(Baza[Date],Таблица46[[#This Row],['#]],Baza[Win],">0")/C47*100,"") ->  | I47: =IF(SUMIFS(Baza[KO$],Baza[Date],Таблица46[[#This Row],['#]])=0,"",SUMIFS(Baza[KO$],Baza[Date],Таблица46[[#This Row],['#]])) ->  | J47: =IF(SUMIFS(Baza[WIN$],Baza[Date],Таблица46[[#This Row],['#]])=0,"",SUMIFS(Baza[WIN$],Baza[Date],Таблица46[[#This Row],['#]])) -> 
B48: =IFERROR(INDEX(Baza[Date],SMALL(IF(SMALL(IF(COUNTIF($B$2:$B47,Baza[Date])=0,COUNTIF(Baza[Date],"<"&Baza[Date])+1,""),1)=COUNTIF(Baza[Date],"<"&Baza[Date])+1,ROW(Baza[Date])-MIN(ROW(Baza[Date]))+1),1)),"") ->  | C48: =IF(Таблица46[[#This Row],['#]]="","",COUNTIFS(Baza[Date],Таблица46[[#This Row],['#]])+SUMIFS(Baza[R],Baza[Date],Таблица46[[#This Row],['#]])) ->  | D48: =IF(Таблица46[[#This Row],['#]]="","",SUMIFS(Baza[B$],Baza[Date],Таблица46[[#This Row],['#]])) ->  | F48: =IFERROR(AVERAGEIFS(Baza[AFS],Baza[Date],Таблица46[[#This Row],['#]])+(AVERAGEIFS(Baza[AFS],Baza[Date],Таблица46[[#This Row],['#]])*0.2),"") ->  | H48: =IFERROR(COUNTIFS(Baza[Date],Таблица46[[#This Row],['#]],Baza[Win],">0")/C48*100,"") ->  | I48: =IF(SUMIFS(Baza[KO$],Baza[Date],Таблица46[[#This Row],['#]])=0,"",SUMIFS(Baza[KO$],Baza[Date],Таблица46[[#This Row],['#]])) ->  | J48: =IF(SUMIFS(Baza[WIN$],Baza[Date],Таблица46[[#This Row],['#]])=0,"",SUMIFS(Baza[WIN$],Baza[Date],Таблица46[[#This Row],['#]])) -> 
B49: =IFERROR(INDEX(Baza[Date],SMALL(IF(SMALL(IF(COUNTIF($B$2:$B48,Baza[Date])=0,COUNTIF(Baza[Date],"<"&Baza[Date])+1,""),1)=COUNTIF(Baza[Date],"<"&Baza[Date])+1,ROW(Baza[Date])-MIN(ROW(Baza[Date]))+1),1)),"") ->  | C49: =IF(Таблица46[[#This Row],['#]]="","",COUNTIFS(Baza[Date],Таблица46[[#This Row],['#]])+SUMIFS(Baza[R],Baza[Date],Таблица46[[#This Row],['#]])) ->  | D49: =IF(Таблица46[[#This Row],['#]]="","",SUMIFS(Baza[B$],Baza[Date],Таблица46[[#This Row],['#]])) ->  | F49: =IFERROR(AVERAGEIFS(Baza[AFS],Baza[Date],Таблица46[[#This Row],['#]])+(AVERAGEIFS(Baza[AFS],Baza[Date],Таблица46[[#This Row],['#]])*0.2),"") ->  | H49: =IFERROR(COUNTIFS(Baza[Date],Таблица46[[#This Row],['#]],Baza[Win],">0")/C49*100,"") ->  | I49: =IF(SUMIFS(Baza[KO$],Baza[Date],Таблица46[[#This Row],['#]])=0,"",SUMIFS(Baza[KO$],Baza[Date],Таблица46[[#This Row],['#]])) ->  | J49: =IF(SUMIFS(Baza[WIN$],Baza[Date],Таблица46[[#This Row],['#]])=0,"",SUMIFS(Baza[WIN$],Baza[Date],Таблица46[[#This Row],['#]])) -> 
B50: =IFERROR(INDEX(Baza[Date],SMALL(IF(SMALL(IF(COUNTIF($B$2:$B49,Baza[Date])=0,COUNTIF(Baza[Date],"<"&Baza[Date])+1,""),1)=COUNTIF(Baza[Date],"<"&Baza[Date])+1,ROW(Baza[Date])-MIN(ROW(Baza[Date]))+1),1)),"") ->  | C50: =IF(Таблица46[[#This Row],['#]]="","",COUNTIFS(Baza[Date],Таблица46[[#This Row],['#]])+SUMIFS(Baza[R],Baza[Date],Таблица46[[#This Row],['#]])) ->  | D50: =IF(Таблица46[[#This Row],['#]]="","",SUMIFS(Baza[B$],Baza[Date],Таблица46[[#This Row],['#]])) ->  | F50: =IFERROR(AVERAGEIFS(Baza[AFS],Baza[Date],Таблица46[[#This Row],['#]])+(AVERAGEIFS(Baza[AFS],Baza[Date],Таблица46[[#This Row],['#]])*0.2),"") ->  | H50: =IFERROR(COUNTIFS(Baza[Date],Таблица46[[#This Row],['#]],Baza[Win],">0")/C50*100,"") ->  | I50: =IF(SUMIFS(Baza[KO$],Baza[Date],Таблица46[[#This Row],['#]])=0,"",SUMIFS(Baza[KO$],Baza[Date],Таблица46[[#This Row],['#]])) ->  | J50: =IF(SUMIFS(Baza[WIN$],Baza[Date],Таблица46[[#This Row],['#]])=0,"",SUMIFS(Baza[WIN$],Baza[Date],Таблица46[[#This Row],['#]])) -> 
B51: =IFERROR(INDEX(Baza[Date],SMALL(IF(SMALL(IF(COUNTIF($B$2:$B50,Baza[Date])=0,COUNTIF(Baza[Date],"<"&Baza[Date])+1,""),1)=COUNTIF(Baza[Date],"<"&Baza[Date])+1,ROW(Baza[Date])-MIN(ROW(Baza[Date]))+1),1)),"") ->  | C51: =IF(Таблица46[[#This Row],['#]]="","",COUNTIFS(Baza[Date],Таблица46[[#This Row],['#]])+SUMIFS(Baza[R],Baza[Date],Таблица46[[#This Row],['#]])) ->  | D51: =IF(Таблица46[[#This Row],['#]]="","",SUMIFS(Baza[B$],Baza[Date],Таблица46[[#This Row],['#]])) ->  | F51: =IFERROR(AVERAGEIFS(Baza[AFS],Baza[Date],Таблица46[[#This Row],['#]])+(AVERAGEIFS(Baza[AFS],Baza[Date],Таблица46[[#This Row],['#]])*0.2),"") ->  | H51: =IFERROR(COUNTIFS(Baza[Date],Таблица46[[#This Row],['#]],Baza[Win],">0")/C51*100,"") ->  | I51: =IF(SUMIFS(Baza[KO$],Baza[Date],Таблица46[[#This Row],['#]])=0,"",SUMIFS(Baza[KO$],Baza[Date],Таблица46[[#This Row],['#]])) ->  | J51: =IF(SUMIFS(Baza[WIN$],Baza[Date],Таблица46[[#This Row],['#]])=0,"",SUMIFS(Baza[WIN$],Baza[Date],Таблица46[[#This Row],['#]])) -> 
B52: =IFERROR(INDEX(Baza[Date],SMALL(IF(SMALL(IF(COUNTIF($B$2:$B51,Baza[Date])=0,COUNTIF(Baza[Date],"<"&Baza[Date])+1,""),1)=COUNTIF(Baza[Date],"<"&Baza[Date])+1,ROW(Baza[Date])-MIN(ROW(Baza[Date]))+1),1)),"") ->  | C52: =IF(Таблица46[[#This Row],['#]]="","",COUNTIFS(Baza[Date],Таблица46[[#This Row],['#]])+SUMIFS(Baza[R],Baza[Date],Таблица46[[#This Row],['#]])) ->  | D52: =IF(Таблица46[[#This Row],['#]]="","",SUMIFS(Baza[B$],Baza[Date],Таблица46[[#This Row],['#]])) ->  | F52: =IFERROR(AVERAGEIFS(Baza[AFS],Baza[Date],Таблица46[[#This Row],['#]])+(AVERAGEIFS(Baza[AFS],Baza[Date],Таблица46[[#This Row],['#]])*0.2),"") ->  | H52: =IFERROR(COUNTIFS(Baza[Date],Таблица46[[#This Row],['#]],Baza[Win],">0")/C52*100,"") ->  | I52: =IF(SUMIFS(Baza[KO$],Baza[Date],Таблица46[[#This Row],['#]])=0,"",SUMIFS(Baza[KO$],Baza[Date],Таблица46[[#This Row],['#]])) ->  | J52: =IF(SUMIFS(Baza[WIN$],Baza[Date],Таблица46[[#This Row],['#]])=0,"",SUMIFS(Baza[WIN$],Baza[Date],Таблица46[[#This Row],['#]])) -> 
B53: =IFERROR(INDEX(Baza[Date],SMALL(IF(SMALL(IF(COUNTIF($B$2:$B52,Baza[Date])=0,COUNTIF(Baza[Date],"<"&Baza[Date])+1,""),1)=COUNTIF(Baza[Date],"<"&Baza[Date])+1,ROW(Baza[Date])-MIN(ROW(Baza[Date]))+1),1)),"") ->  | C53: =IF(Таблица46[[#This Row],['#]]="","",COUNTIFS(Baza[Date],Таблица46[[#This Row],['#]])+SUMIFS(Baza[R],Baza[Date],Таблица46[[#This Row],['#]])) ->  | D53: =IF(Таблица46[[#This Row],['#]]="","",SUMIFS(Baza[B$],Baza[Date],Таблица46[[#This Row],['#]])) ->  | F53: =IFERROR(AVERAGEIFS(Baza[AFS],Baza[Date],Таблица46[[#This Row],['#]])+(AVERAGEIFS(Baza[AFS],Baza[Date],Таблица46[[#This Row],['#]])*0.2),"") ->  | H53: =IFERROR(COUNTIFS(Baza[Date],Таблица46[[#This Row],['#]],Baza[Win],">0")/C53*100,"") ->  | I53: =IF(SUMIFS(Baza[KO$],Baza[Date],Таблица46[[#This Row],['#]])=0,"",SUMIFS(Baza[KO$],Baza[Date],Таблица46[[#This Row],['#]])) ->  | J53: =IF(SUMIFS(Baza[WIN$],Baza[Date],Таблица46[[#This Row],['#]])=0,"",SUMIFS(Baza[WIN$],Baza[Date],Таблица46[[#This Row],['#]])) -> 
B54: =IFERROR(INDEX(Baza[Date],SMALL(IF(SMALL(IF(COUNTIF($B$2:$B53,Baza[Date])=0,COUNTIF(Baza[Date],"<"&Baza[Date])+1,""),1)=COUNTIF(Baza[Date],"<"&Baza[Date])+1,ROW(Baza[Date])-MIN(ROW(Baza[Date]))+1),1)),"") ->  | C54: =IF(Таблица46[[#This Row],['#]]="","",COUNTIFS(Baza[Date],Таблица46[[#This Row],['#]])+SUMIFS(Baza[R],Baza[Date],Таблица46[[#This Row],['#]])) ->  | D54: =IF(Таблица46[[#This Row],['#]]="","",SUMIFS(Baza[B$],Baza[Date],Таблица46[[#This Row],['#]])) ->  | F54: =IFERROR(AVERAGEIFS(Baza[AFS],Baza[Date],Таблица46[[#This Row],['#]])+(AVERAGEIFS(Baza[AFS],Baza[Date],Таблица46[[#This Row],['#]])*0.2),"") ->  | H54: =IFERROR(COUNTIFS(Baza[Date],Таблица46[[#This Row],['#]],Baza[Win],">0")/C54*100,"") ->  | I54: =IF(SUMIFS(Baza[KO$],Baza[Date],Таблица46[[#This Row],['#]])=0,"",SUMIFS(Baza[KO$],Baza[Date],Таблица46[[#This Row],['#]])) ->  | J54: =IF(SUMIFS(Baza[WIN$],Baza[Date],Таблица46[[#This Row],['#]])=0,"",SUMIFS(Baza[WIN$],Baza[Date],Таблица46[[#This Row],['#]])) -> 
B55: =IFERROR(INDEX(Baza[Date],SMALL(IF(SMALL(IF(COUNTIF($B$2:$B54,Baza[Date])=0,COUNTIF(Baza[Date],"<"&Baza[Date])+1,""),1)=COUNTIF(Baza[Date],"<"&Baza[Date])+1,ROW(Baza[Date])-MIN(ROW(Baza[Date]))+1),1)),"") ->  | C55: =IF(Таблица46[[#This Row],['#]]="","",COUNTIFS(Baza[Date],Таблица46[[#This Row],['#]])+SUMIFS(Baza[R],Baza[Date],Таблица46[[#This Row],['#]])) ->  | D55: =IF(Таблица46[[#This Row],['#]]="","",SUMIFS(Baza[B$],Baza[Date],Таблица46[[#This Row],['#]])) ->  | F55: =IFERROR(AVERAGEIFS(Baza[AFS],Baza[Date],Таблица46[[#This Row],['#]])+(AVERAGEIFS(Baza[AFS],Baza[Date],Таблица46[[#This Row],['#]])*0.2),"") ->  | H55: =IFERROR(COUNTIFS(Baza[Date],Таблица46[[#This Row],['#]],Baza[Win],">0")/C55*100,"") ->  | I55: =IF(SUMIFS(Baza[KO$],Baza[Date],Таблица46[[#This Row],['#]])=0,"",SUMIFS(Baza[KO$],Baza[Date],Таблица46[[#This Row],['#]])) ->  | J55: =IF(SUMIFS(Baza[WIN$],Baza[Date],Таблица46[[#This Row],['#]])=0,"",SUMIFS(Baza[WIN$],Baza[Date],Таблица46[[#This Row],['#]])) -> 
B56: =IFERROR(INDEX(Baza[Date],SMALL(IF(SMALL(IF(COUNTIF($B$2:$B55,Baza[Date])=0,COUNTIF(Baza[Date],"<"&Baza[Date])+1,""),1)=COUNTIF(Baza[Date],"<"&Baza[Date])+1,ROW(Baza[Date])-MIN(ROW(Baza[Date]))+1),1)),"") ->  | C56: =IF(Таблица46[[#This Row],['#]]="","",COUNTIFS(Baza[Date],Таблица46[[#This Row],['#]])+SUMIFS(Baza[R],Baza[Date],Таблица46[[#This Row],['#]])) ->  | D56: =IF(Таблица46[[#This Row],['#]]="","",SUMIFS(Baza[B$],Baza[Date],Таблица46[[#This Row],['#]])) ->  | F56: =IFERROR(AVERAGEIFS(Baza[AFS],Baza[Date],Таблица46[[#This Row],['#]])+(AVERAGEIFS(Baza[AFS],Baza[Date],Таблица46[[#This Row],['#]])*0.2),"") ->  | H56: =IFERROR(COUNTIFS(Baza[Date],Таблица46[[#This Row],['#]],Baza[Win],">0")/C56*100,"") ->  | I56: =IF(SUMIFS(Baza[KO$],Baza[Date],Таблица46[[#This Row],['#]])=0,"",SUMIFS(Baza[KO$],Baza[Date],Таблица46[[#This Row],['#]])) ->  | J56: =IF(SUMIFS(Baza[WIN$],Baza[Date],Таблица46[[#This Row],['#]])=0,"",SUMIFS(Baza[WIN$],Baza[Date],Таблица46[[#This Row],['#]])) -> 
B57: =IFERROR(INDEX(Baza[Date],SMALL(IF(SMALL(IF(COUNTIF($B$2:$B56,Baza[Date])=0,COUNTIF(Baza[Date],"<"&Baza[Date])+1,""),1)=COUNTIF(Baza[Date],"<"&Baza[Date])+1,ROW(Baza[Date])-MIN(ROW(Baza[Date]))+1),1)),"") ->  | C57: =IF(Таблица46[[#This Row],['#]]="","",COUNTIFS(Baza[Date],Таблица46[[#This Row],['#]])+SUMIFS(Baza[R],Baza[Date],Таблица46[[#This Row],['#]])) ->  | D57: =IF(Таблица46[[#This Row],['#]]="","",SUMIFS(Baza[B$],Baza[Date],Таблица46[[#This Row],['#]])) ->  | F57: =IFERROR(AVERAGEIFS(Baza[AFS],Baza[Date],Таблица46[[#This Row],['#]])+(AVERAGEIFS(Baza[AFS],Baza[Date],Таблица46[[#This Row],['#]])*0.2),"") ->  | H57: =IFERROR(COUNTIFS(Baza[Date],Таблица46[[#This Row],['#]],Baza[Win],">0")/C57*100,"") ->  | I57: =IF(SUMIFS(Baza[KO$],Baza[Date],Таблица46[[#This Row],['#]])=0,"",SUMIFS(Baza[KO$],Baza[Date],Таблица46[[#This Row],['#]])) ->  | J57: =IF(SUMIFS(Baza[WIN$],Baza[Date],Таблица46[[#This Row],['#]])=0,"",SUMIFS(Baza[WIN$],Baza[Date],Таблица46[[#This Row],['#]])) -> 
B58: =IFERROR(INDEX(Baza[Date],SMALL(IF(SMALL(IF(COUNTIF($B$2:$B57,Baza[Date])=0,COUNTIF(Baza[Date],"<"&Baza[Date])+1,""),1)=COUNTIF(Baza[Date],"<"&Baza[Date])+1,ROW(Baza[Date])-MIN(ROW(Baza[Date]))+1),1)),"") ->  | C58: =IF(Таблица46[[#This Row],['#]]="","",COUNTIFS(Baza[Date],Таблица46[[#This Row],['#]])+SUMIFS(Baza[R],Baza[Date],Таблица46[[#This Row],['#]])) ->  | D58: =IF(Таблица46[[#This Row],['#]]="","",SUMIFS(Baza[B$],Baza[Date],Таблица46[[#This Row],['#]])) ->  | F58: =IFERROR(AVERAGEIFS(Baza[AFS],Baza[Date],Таблица46[[#This Row],['#]])+(AVERAGEIFS(Baza[AFS],Baza[Date],Таблица46[[#This Row],['#]])*0.2),"") ->  | H58: =IFERROR(COUNTIFS(Baza[Date],Таблица46[[#This Row],['#]],Baza[Win],">0")/C58*100,"") ->  | I58: =IF(SUMIFS(Baza[KO$],Baza[Date],Таблица46[[#This Row],['#]])=0,"",SUMIFS(Baza[KO$],Baza[Date],Таблица46[[#This Row],['#]])) ->  | J58: =IF(SUMIFS(Baza[WIN$],Baza[Date],Таблица46[[#This Row],['#]])=0,"",SUMIFS(Baza[WIN$],Baza[Date],Таблица46[[#This Row],['#]])) -> 
B59: =IFERROR(INDEX(Baza[Date],SMALL(IF(SMALL(IF(COUNTIF($B$2:$B58,Baza[Date])=0,COUNTIF(Baza[Date],"<"&Baza[Date])+1,""),1)=COUNTIF(Baza[Date],"<"&Baza[Date])+1,ROW(Baza[Date])-MIN(ROW(Baza[Date]))+1),1)),"") ->  | C59: =IF(Таблица46[[#This Row],['#]]="","",COUNTIFS(Baza[Date],Таблица46[[#This Row],['#]])+SUMIFS(Baza[R],Baza[Date],Таблица46[[#This Row],['#]])) ->  | D59: =IF(Таблица46[[#This Row],['#]]="","",SUMIFS(Baza[B$],Baza[Date],Таблица46[[#This Row],['#]])) ->  | F59: =IFERROR(AVERAGEIFS(Baza[AFS],Baza[Date],Таблица46[[#This Row],['#]])+(AVERAGEIFS(Baza[AFS],Baza[Date],Таблица46[[#This Row],['#]])*0.2),"") ->  | H59: =IFERROR(COUNTIFS(Baza[Date],Таблица46[[#This Row],['#]],Baza[Win],">0")/C59*100,"") ->  | I59: =IF(SUMIFS(Baza[KO$],Baza[Date],Таблица46[[#This Row],['#]])=0,"",SUMIFS(Baza[KO$],Baza[Date],Таблица46[[#This Row],['#]])) ->  | J59: =IF(SUMIFS(Baza[WIN$],Baza[Date],Таблица46[[#This Row],['#]])=0,"",SUMIFS(Baza[WIN$],Baza[Date],Таблица46[[#This Row],['#]])) -> 
B60: =IFERROR(INDEX(Baza[Date],SMALL(IF(SMALL(IF(COUNTIF($B$2:$B59,Baza[Date])=0,COUNTIF(Baza[Date],"<"&Baza[Date])+1,""),1)=COUNTIF(Baza[Date],"<"&Baza[Date])+1,ROW(Baza[Date])-MIN(ROW(Baza[Date]))+1),1)),"") ->  | C60: =IF(Таблица46[[#This Row],['#]]="","",COUNTIFS(Baza[Date],Таблица46[[#This Row],['#]])+SUMIFS(Baza[R],Baza[Date],Таблица46[[#This Row],['#]])) ->  | D60: =IF(Таблица46[[#This Row],['#]]="","",SUMIFS(Baza[B$],Baza[Date],Таблица46[[#This Row],['#]])) ->  | F60: =IFERROR(AVERAGEIFS(Baza[AFS],Baza[Date],Таблица46[[#This Row],['#]])+(AVERAGEIFS(Baza[AFS],Baza[Date],Таблица46[[#This Row],['#]])*0.2),"") ->  | H60: =IFERROR(COUNTIFS(Baza[Date],Таблица46[[#This Row],['#]],Baza[Win],">0")/C60*100,"") ->  | I60: =IF(SUMIFS(Baza[KO$],Baza[Date],Таблица46[[#This Row],['#]])=0,"",SUMIFS(Baza[KO$],Baza[Date],Таблица46[[#This Row],['#]])) ->  | J60: =IF(SUMIFS(Baza[WIN$],Baza[Date],Таблица46[[#This Row],['#]])=0,"",SUMIFS(Baza[WIN$],Baza[Date],Таблица46[[#This Row],['#]])) -> 
B61: =IFERROR(INDEX(Baza[Date],SMALL(IF(SMALL(IF(COUNTIF($B$2:$B60,Baza[Date])=0,COUNTIF(Baza[Date],"<"&Baza[Date])+1,""),1)=COUNTIF(Baza[Date],"<"&Baza[Date])+1,ROW(Baza[Date])-MIN(ROW(Baza[Date]))+1),1)),"") ->  | C61: =IF(Таблица46[[#This Row],['#]]="","",COUNTIFS(Baza[Date],Таблица46[[#This Row],['#]])+SUMIFS(Baza[R],Baza[Date],Таблица46[[#This Row],['#]])) ->  | D61: =IF(Таблица46[[#This Row],['#]]="","",SUMIFS(Baza[B$],Baza[Date],Таблица46[[#This Row],['#]])) ->  | F61: =IFERROR(AVERAGEIFS(Baza[AFS],Baza[Date],Таблица46[[#This Row],['#]])+(AVERAGEIFS(Baza[AFS],Baza[Date],Таблица46[[#This Row],['#]])*0.2),"") ->  | H61: =IFERROR(COUNTIFS(Baza[Date],Таблица46[[#This Row],['#]],Baza[Win],">0")/C61*100,"") ->  | I61: =IF(SUMIFS(Baza[KO$],Baza[Date],Таблица46[[#This Row],['#]])=0,"",SUMIFS(Baza[KO$],Baza[Date],Таблица46[[#This Row],['#]])) ->  | J61: =IF(SUMIFS(Baza[WIN$],Baza[Date],Таблица46[[#This Row],['#]])=0,"",SUMIFS(Baza[WIN$],Baza[Date],Таблица46[[#This Row],['#]])) -> 
B62: =IFERROR(INDEX(Baza[Date],SMALL(IF(SMALL(IF(COUNTIF($B$2:$B61,Baza[Date])=0,COUNTIF(Baza[Date],"<"&Baza[Date])+1,""),1)=COUNTIF(Baza[Date],"<"&Baza[Date])+1,ROW(Baza[Date])-MIN(ROW(Baza[Date]))+1),1)),"") ->  | C62: =IF(Таблица46[[#This Row],['#]]="","",COUNTIFS(Baza[Date],Таблица46[[#This Row],['#]])+SUMIFS(Baza[R],Baza[Date],Таблица46[[#This Row],['#]])) ->  | D62: =IF(Таблица46[[#This Row],['#]]="","",SUMIFS(Baza[B$],Baza[Date],Таблица46[[#This Row],['#]])) ->  | F62: =IFERROR(AVERAGEIFS(Baza[AFS],Baza[Date],Таблица46[[#This Row],['#]])+(AVERAGEIFS(Baza[AFS],Baza[Date],Таблица46[[#This Row],['#]])*0.2),"") ->  | H62: =IFERROR(COUNTIFS(Baza[Date],Таблица46[[#This Row],['#]],Baza[Win],">0")/C62*100,"") ->  | I62: =IF(SUMIFS(Baza[KO$],Baza[Date],Таблица46[[#This Row],['#]])=0,"",SUMIFS(Baza[KO$],Baza[Date],Таблица46[[#This Row],['#]])) ->  | J62: =IF(SUMIFS(Baza[WIN$],Baza[Date],Таблица46[[#This Row],['#]])=0,"",SUMIFS(Baza[WIN$],Baza[Date],Таблица46[[#This Row],['#]])) -> 
B63: =IFERROR(INDEX(Baza[Date],SMALL(IF(SMALL(IF(COUNTIF($B$2:$B62,Baza[Date])=0,COUNTIF(Baza[Date],"<"&Baza[Date])+1,""),1)=COUNTIF(Baza[Date],"<"&Baza[Date])+1,ROW(Baza[Date])-MIN(ROW(Baza[Date]))+1),1)),"") ->  | C63: =IF(Таблица46[[#This Row],['#]]="","",COUNTIFS(Baza[Date],Таблица46[[#This Row],['#]])+SUMIFS(Baza[R],Baza[Date],Таблица46[[#This Row],['#]])) ->  | D63: =IF(Таблица46[[#This Row],['#]]="","",SUMIFS(Baza[B$],Baza[Date],Таблица46[[#This Row],['#]])) ->  | F63: =IFERROR(AVERAGEIFS(Baza[AFS],Baza[Date],Таблица46[[#This Row],['#]])+(AVERAGEIFS(Baza[AFS],Baza[Date],Таблица46[[#This Row],['#]])*0.2),"") ->  | H63: =IFERROR(COUNTIFS(Baza[Date],Таблица46[[#This Row],['#]],Baza[Win],">0")/C63*100,"") ->  | I63: =IF(SUMIFS(Baza[KO$],Baza[Date],Таблица46[[#This Row],['#]])=0,"",SUMIFS(Baza[KO$],Baza[Date],Таблица46[[#This Row],['#]])) ->  | J63: =IF(SUMIFS(Baza[WIN$],Baza[Date],Таблица46[[#This Row],['#]])=0,"",SUMIFS(Baza[WIN$],Baza[Date],Таблица46[[#This Row],['#]])) -> 
B64: =IFERROR(INDEX(Baza[Date],SMALL(IF(SMALL(IF(COUNTIF($B$2:$B63,Baza[Date])=0,COUNTIF(Baza[Date],"<"&Baza[Date])+1,""),1)=COUNTIF(Baza[Date],"<"&Baza[Date])+1,ROW(Baza[Date])-MIN(ROW(Baza[Date]))+1),1)),"") ->  | C64: =IF(Таблица46[[#This Row],['#]]="","",COUNTIFS(Baza[Date],Таблица46[[#This Row],['#]])+SUMIFS(Baza[R],Baza[Date],Таблица46[[#This Row],['#]])) ->  | D64: =IF(Таблица46[[#This Row],['#]]="","",SUMIFS(Baza[B$],Baza[Date],Таблица46[[#This Row],['#]])) ->  | F64: =IFERROR(AVERAGEIFS(Baza[AFS],Baza[Date],Таблица46[[#This Row],['#]])+(AVERAGEIFS(Baza[AFS],Baza[Date],Таблица46[[#This Row],['#]])*0.2),"") ->  | H64: =IFERROR(COUNTIFS(Baza[Date],Таблица46[[#This Row],['#]],Baza[Win],">0")/C64*100,"") ->  | I64: =IF(SUMIFS(Baza[KO$],Baza[Date],Таблица46[[#This Row],['#]])=0,"",SUMIFS(Baza[KO$],Baza[Date],Таблица46[[#This Row],['#]])) ->  | J64: =IF(SUMIFS(Baza[WIN$],Baza[Date],Таблица46[[#This Row],['#]])=0,"",SUMIFS(Baza[WIN$],Baza[Date],Таблица46[[#This Row],['#]])) -> 
B65: =IFERROR(INDEX(Baza[Date],SMALL(IF(SMALL(IF(COUNTIF($B$2:$B64,Baza[Date])=0,COUNTIF(Baza[Date],"<"&Baza[Date])+1,""),1)=COUNTIF(Baza[Date],"<"&Baza[Date])+1,ROW(Baza[Date])-MIN(ROW(Baza[Date]))+1),1)),"") ->  | C65: =IF(Таблица46[[#This Row],['#]]="","",COUNTIFS(Baza[Date],Таблица46[[#This Row],['#]])+SUMIFS(Baza[R],Baza[Date],Таблица46[[#This Row],['#]])) ->  | D65: =IF(Таблица46[[#This Row],['#]]="","",SUMIFS(Baza[B$],Baza[Date],Таблица46[[#This Row],['#]])) ->  | F65: =IFERROR(AVERAGEIFS(Baza[AFS],Baza[Date],Таблица46[[#This Row],['#]])+(AVERAGEIFS(Baza[AFS],Baza[Date],Таблица46[[#This Row],['#]])*0.2),"") ->  | H65: =IFERROR(COUNTIFS(Baza[Date],Таблица46[[#This Row],['#]],Baza[Win],">0")/C65*100,"") ->  | I65: =IF(SUMIFS(Baza[KO$],Baza[Date],Таблица46[[#This Row],['#]])=0,"",SUMIFS(Baza[KO$],Baza[Date],Таблица46[[#This Row],['#]])) ->  | J65: =IF(SUMIFS(Baza[WIN$],Baza[Date],Таблица46[[#This Row],['#]])=0,"",SUMIFS(Baza[WIN$],Baza[Date],Таблица46[[#This Row],['#]])) -> 
B66: =IFERROR(INDEX(Baza[Date],SMALL(IF(SMALL(IF(COUNTIF($B$2:$B65,Baza[Date])=0,COUNTIF(Baza[Date],"<"&Baza[Date])+1,""),1)=COUNTIF(Baza[Date],"<"&Baza[Date])+1,ROW(Baza[Date])-MIN(ROW(Baza[Date]))+1),1)),"") ->  | C66: =IF(Таблица46[[#This Row],['#]]="","",COUNTIFS(Baza[Date],Таблица46[[#This Row],['#]])+SUMIFS(Baza[R],Baza[Date],Таблица46[[#This Row],['#]])) ->  | D66: =IF(Таблица46[[#This Row],['#]]="","",SUMIFS(Baza[B$],Baza[Date],Таблица46[[#This Row],['#]])) ->  | F66: =IFERROR(AVERAGEIFS(Baza[AFS],Baza[Date],Таблица46[[#This Row],['#]])+(AVERAGEIFS(Baza[AFS],Baza[Date],Таблица46[[#This Row],['#]])*0.2),"") ->  | H66: =IFERROR(COUNTIFS(Baza[Date],Таблица46[[#This Row],['#]],Baza[Win],">0")/C66*100,"") ->  | I66: =IF(SUMIFS(Baza[KO$],Baza[Date],Таблица46[[#This Row],['#]])=0,"",SUMIFS(Baza[KO$],Baza[Date],Таблица46[[#This Row],['#]])) ->  | J66: =IF(SUMIFS(Baza[WIN$],Baza[Date],Таблица46[[#This Row],['#]])=0,"",SUMIFS(Baza[WIN$],Baza[Date],Таблица46[[#This Row],['#]])) -> 
B67: =IFERROR(INDEX(Baza[Date],SMALL(IF(SMALL(IF(COUNTIF($B$2:$B66,Baza[Date])=0,COUNTIF(Baza[Date],"<"&Baza[Date])+1,""),1)=COUNTIF(Baza[Date],"<"&Baza[Date])+1,ROW(Baza[Date])-MIN(ROW(Baza[Date]))+1),1)),"") ->  | C67: =IF(Таблица46[[#This Row],['#]]="","",COUNTIFS(Baza[Date],Таблица46[[#This Row],['#]])+SUMIFS(Baza[R],Baza[Date],Таблица46[[#This Row],['#]])) ->  | D67: =IF(Таблица46[[#This Row],['#]]="","",SUMIFS(Baza[B$],Baza[Date],Таблица46[[#This Row],['#]])) ->  | E67: =IFERROR(D67/C67,"") ->  | F67: =IFERROR(AVERAGEIFS(Baza[AFS],Baza[Date],Таблица46[[#This Row],['#]])+(AVERAGEIFS(Baza[AFS],Baza[Date],Таблица46[[#This Row],['#]])*0.2),"") ->  | G67: =IFERROR(K67/D67*100,"") ->  | H67: =IFERROR(COUNTIFS(Baza[Date],Таблица46[[#This Row],['#]],Baza[Win],">0")/C67*100,"") ->  | I67: =IF(SUMIFS(Baza[KO$],Baza[Date],Таблица46[[#This Row],['#]])=0,"",SUMIFS(Baza[KO$],Baza[Date],Таблица46[[#This Row],['#]])) ->  | J67: =IF(SUMIFS(Baza[WIN$],Baza[Date],Таблица46[[#This Row],['#]])=0,"",SUMIFS(Baza[WIN$],Baza[Date],Таблица46[[#This Row],['#]])) ->  | K67: =IFERROR(IF(J67="",0,J67)+IF(I67="",0,I67)-D67,"") -> 
B68: =IFERROR(INDEX(Baza[Date],SMALL(IF(SMALL(IF(COUNTIF($B$2:$B67,Baza[Date])=0,COUNTIF(Baza[Date],"<"&Baza[Date])+1,""),1)=COUNTIF(Baza[Date],"<"&Baza[Date])+1,ROW(Baza[Date])-MIN(ROW(Baza[Date]))+1),1)),"") ->  | C68: =IF(Таблица46[[#This Row],['#]]="","",COUNTIFS(Baza[Date],Таблица46[[#This Row],['#]])+SUMIFS(Baza[R],Baza[Date],Таблица46[[#This Row],['#]])) ->  | D68: =IF(Таблица46[[#This Row],['#]]="","",SUMIFS(Baza[B$],Baza[Date],Таблица46[[#This Row],['#]])) ->  | F68: =IFERROR(AVERAGEIFS(Baza[AFS],Baza[Date],Таблица46[[#This Row],['#]])+(AVERAGEIFS(Baza[AFS],Baza[Date],Таблица46[[#This Row],['#]])*0.2),"") ->  | H68: =IFERROR(COUNTIFS(Baza[Date],Таблица46[[#This Row],['#]],Baza[Win],">0")/C68*100,"") ->  | I68: =IF(SUMIFS(Baza[KO$],Baza[Date],Таблица46[[#This Row],['#]])=0,"",SUMIFS(Baza[KO$],Baza[Date],Таблица46[[#This Row],['#]])) ->  | J68: =IF(SUMIFS(Baza[WIN$],Baza[Date],Таблица46[[#This Row],['#]])=0,"",SUMIFS(Baza[WIN$],Baza[Date],Таблица46[[#This Row],['#]])) -> 
B69: =IFERROR(INDEX(Baza[Date],SMALL(IF(SMALL(IF(COUNTIF($B$2:$B68,Baza[Date])=0,COUNTIF(Baza[Date],"<"&Baza[Date])+1,""),1)=COUNTIF(Baza[Date],"<"&Baza[Date])+1,ROW(Baza[Date])-MIN(ROW(Baza[Date]))+1),1)),"") ->  | C69: =IF(Таблица46[[#This Row],['#]]="","",COUNTIFS(Baza[Date],Таблица46[[#This Row],['#]])+SUMIFS(Baza[R],Baza[Date],Таблица46[[#This Row],['#]])) ->  | D69: =IF(Таблица46[[#This Row],['#]]="","",SUMIFS(Baza[B$],Baza[Date],Таблица46[[#This Row],['#]])) ->  | F69: =IFERROR(AVERAGEIFS(Baza[AFS],Baza[Date],Таблица46[[#This Row],['#]])+(AVERAGEIFS(Baza[AFS],Baza[Date],Таблица46[[#This Row],['#]])*0.2),"") ->  | H69: =IFERROR(COUNTIFS(Baza[Date],Таблица46[[#This Row],['#]],Baza[Win],">0")/C69*100,"") ->  | I69: =IF(SUMIFS(Baza[KO$],Baza[Date],Таблица46[[#This Row],['#]])=0,"",SUMIFS(Baza[KO$],Baza[Date],Таблица46[[#This Row],['#]])) ->  | J69: =IF(SUMIFS(Baza[WIN$],Baza[Date],Таблица46[[#This Row],['#]])=0,"",SUMIFS(Baza[WIN$],Baza[Date],Таблица46[[#This Row],['#]])) -> 
B70: =IFERROR(INDEX(Baza[Date],SMALL(IF(SMALL(IF(COUNTIF($B$2:$B69,Baza[Date])=0,COUNTIF(Baza[Date],"<"&Baza[Date])+1,""),1)=COUNTIF(Baza[Date],"<"&Baza[Date])+1,ROW(Baza[Date])-MIN(ROW(Baza[Date]))+1),1)),"") ->  | C70: =IF(Таблица46[[#This Row],['#]]="","",COUNTIFS(Baza[Date],Таблица46[[#This Row],['#]])+SUMIFS(Baza[R],Baza[Date],Таблица46[[#This Row],['#]])) ->  | D70: =IF(Таблица46[[#This Row],['#]]="","",SUMIFS(Baza[B$],Baza[Date],Таблица46[[#This Row],['#]])) ->  | F70: =IFERROR(AVERAGEIFS(Baza[AFS],Baza[Date],Таблица46[[#This Row],['#]])+(AVERAGEIFS(Baza[AFS],Baza[Date],Таблица46[[#This Row],['#]])*0.2),"") ->  | H70: =IFERROR(COUNTIFS(Baza[Date],Таблица46[[#This Row],['#]],Baza[Win],">0")/C70*100,"") ->  | I70: =IF(SUMIFS(Baza[KO$],Baza[Date],Таблица46[[#This Row],['#]])=0,"",SUMIFS(Baza[KO$],Baza[Date],Таблица46[[#This Row],['#]])) ->  | J70: =IF(SUMIFS(Baza[WIN$],Baza[Date],Таблица46[[#This Row],['#]])=0,"",SUMIFS(Baza[WIN$],Baza[Date],Таблица46[[#This Row],['#]])) -> 
B71: =IFERROR(INDEX(Baza[Date],SMALL(IF(SMALL(IF(COUNTIF($B$2:$B70,Baza[Date])=0,COUNTIF(Baza[Date],"<"&Baza[Date])+1,""),1)=COUNTIF(Baza[Date],"<"&Baza[Date])+1,ROW(Baza[Date])-MIN(ROW(Baza[Date]))+1),1)),"") ->  | C71: =IF(Таблица46[[#This Row],['#]]="","",COUNTIFS(Baza[Date],Таблица46[[#This Row],['#]])+SUMIFS(Baza[R],Baza[Date],Таблица46[[#This Row],['#]])) ->  | D71: =IF(Таблица46[[#This Row],['#]]="","",SUMIFS(Baza[B$],Baza[Date],Таблица46[[#This Row],['#]])) ->  | F71: =IFERROR(AVERAGEIFS(Baza[AFS],Baza[Date],Таблица46[[#This Row],['#]])+(AVERAGEIFS(Baza[AFS],Baza[Date],Таблица46[[#This Row],['#]])*0.2),"") ->  | H71: =IFERROR(COUNTIFS(Baza[Date],Таблица46[[#This Row],['#]],Baza[Win],">0")/C71*100,"") ->  | I71: =IF(SUMIFS(Baza[KO$],Baza[Date],Таблица46[[#This Row],['#]])=0,"",SUMIFS(Baza[KO$],Baza[Date],Таблица46[[#This Row],['#]])) ->  | J71: =IF(SUMIFS(Baza[WIN$],Baza[Date],Таблица46[[#This Row],['#]])=0,"",SUMIFS(Baza[WIN$],Baza[Date],Таблица46[[#This Row],['#]])) -> 
B72: =IFERROR(INDEX(Baza[Date],SMALL(IF(SMALL(IF(COUNTIF($B$2:$B71,Baza[Date])=0,COUNTIF(Baza[Date],"<"&Baza[Date])+1,""),1)=COUNTIF(Baza[Date],"<"&Baza[Date])+1,ROW(Baza[Date])-MIN(ROW(Baza[Date]))+1),1)),"") ->  | C72: =IF(Таблица46[[#This Row],['#]]="","",COUNTIFS(Baza[Date],Таблица46[[#This Row],['#]])+SUMIFS(Baza[R],Baza[Date],Таблица46[[#This Row],['#]])) ->  | D72: =IF(Таблица46[[#This Row],['#]]="","",SUMIFS(Baza[B$],Baza[Date],Таблица46[[#This Row],['#]])) ->  | F72: =IFERROR(AVERAGEIFS(Baza[AFS],Baza[Date],Таблица46[[#This Row],['#]])+(AVERAGEIFS(Baza[AFS],Baza[Date],Таблица46[[#This Row],['#]])*0.2),"") ->  | H72: =IFERROR(COUNTIFS(Baza[Date],Таблица46[[#This Row],['#]],Baza[Win],">0")/C72*100,"") ->  | I72: =IF(SUMIFS(Baza[KO$],Baza[Date],Таблица46[[#This Row],['#]])=0,"",SUMIFS(Baza[KO$],Baza[Date],Таблица46[[#This Row],['#]])) ->  | J72: =IF(SUMIFS(Baza[WIN$],Baza[Date],Таблица46[[#This Row],['#]])=0,"",SUMIFS(Baza[WIN$],Baza[Date],Таблица46[[#This Row],['#]])) -> 
B73: =IFERROR(INDEX(Baza[Date],SMALL(IF(SMALL(IF(COUNTIF($B$2:$B72,Baza[Date])=0,COUNTIF(Baza[Date],"<"&Baza[Date])+1,""),1)=COUNTIF(Baza[Date],"<"&Baza[Date])+1,ROW(Baza[Date])-MIN(ROW(Baza[Date]))+1),1)),"") ->  | C73: =IF(Таблица46[[#This Row],['#]]="","",COUNTIFS(Baza[Date],Таблица46[[#This Row],['#]])+SUMIFS(Baza[R],Baza[Date],Таблица46[[#This Row],['#]])) ->  | D73: =IF(Таблица46[[#This Row],['#]]="","",SUMIFS(Baza[B$],Baza[Date],Таблица46[[#This Row],['#]])) ->  | F73: =IFERROR(AVERAGEIFS(Baza[AFS],Baza[Date],Таблица46[[#This Row],['#]])+(AVERAGEIFS(Baza[AFS],Baza[Date],Таблица46[[#This Row],['#]])*0.2),"") ->  | H73: =IFERROR(COUNTIFS(Baza[Date],Таблица46[[#This Row],['#]],Baza[Win],">0")/C73*100,"") ->  | I73: =IF(SUMIFS(Baza[KO$],Baza[Date],Таблица46[[#This Row],['#]])=0,"",SUMIFS(Baza[KO$],Baza[Date],Таблица46[[#This Row],['#]])) ->  | J73: =IF(SUMIFS(Baza[WIN$],Baza[Date],Таблица46[[#This Row],['#]])=0,"",SUMIFS(Baza[WIN$],Baza[Date],Таблица46[[#This Row],['#]])) -> 
B74: =IFERROR(INDEX(Baza[Date],SMALL(IF(SMALL(IF(COUNTIF($B$2:$B73,Baza[Date])=0,COUNTIF(Baza[Date],"<"&Baza[Date])+1,""),1)=COUNTIF(Baza[Date],"<"&Baza[Date])+1,ROW(Baza[Date])-MIN(ROW(Baza[Date]))+1),1)),"") ->  | C74: =IF(Таблица46[[#This Row],['#]]="","",COUNTIFS(Baza[Date],Таблица46[[#This Row],['#]])+SUMIFS(Baza[R],Baza[Date],Таблица46[[#This Row],['#]])) ->  | D74: =IF(Таблица46[[#This Row],['#]]="","",SUMIFS(Baza[B$],Baza[Date],Таблица46[[#This Row],['#]])) ->  | F74: =IFERROR(AVERAGEIFS(Baza[AFS],Baza[Date],Таблица46[[#This Row],['#]])+(AVERAGEIFS(Baza[AFS],Baza[Date],Таблица46[[#This Row],['#]])*0.2),"") ->  | H74: =IFERROR(COUNTIFS(Baza[Date],Таблица46[[#This Row],['#]],Baza[Win],">0")/C74*100,"") ->  | I74: =IF(SUMIFS(Baza[KO$],Baza[Date],Таблица46[[#This Row],['#]])=0,"",SUMIFS(Baza[KO$],Baza[Date],Таблица46[[#This Row],['#]])) ->  | J74: =IF(SUMIFS(Baza[WIN$],Baza[Date],Таблица46[[#This Row],['#]])=0,"",SUMIFS(Baza[WIN$],Baza[Date],Таблица46[[#This Row],['#]])) -> 
B75: =IFERROR(INDEX(Baza[Date],SMALL(IF(SMALL(IF(COUNTIF($B$2:$B74,Baza[Date])=0,COUNTIF(Baza[Date],"<"&Baza[Date])+1,""),1)=COUNTIF(Baza[Date],"<"&Baza[Date])+1,ROW(Baza[Date])-MIN(ROW(Baza[Date]))+1),1)),"") ->  | C75: =IF(Таблица46[[#This Row],['#]]="","",COUNTIFS(Baza[Date],Таблица46[[#This Row],['#]])+SUMIFS(Baza[R],Baza[Date],Таблица46[[#This Row],['#]])) ->  | D75: =IF(Таблица46[[#This Row],['#]]="","",SUMIFS(Baza[B$],Baza[Date],Таблица46[[#This Row],['#]])) ->  | F75: =IFERROR(AVERAGEIFS(Baza[AFS],Baza[Date],Таблица46[[#This Row],['#]])+(AVERAGEIFS(Baza[AFS],Baza[Date],Таблица46[[#This Row],['#]])*0.2),"") ->  | H75: =IFERROR(COUNTIFS(Baza[Date],Таблица46[[#This Row],['#]],Baza[Win],">0")/C75*100,"") ->  | I75: =IF(SUMIFS(Baza[KO$],Baza[Date],Таблица46[[#This Row],['#]])=0,"",SUMIFS(Baza[KO$],Baza[Date],Таблица46[[#This Row],['#]])) ->  | J75: =IF(SUMIFS(Baza[WIN$],Baza[Date],Таблица46[[#This Row],['#]])=0,"",SUMIFS(Baza[WIN$],Baza[Date],Таблица46[[#This Row],['#]])) -> 
B76: =IFERROR(INDEX(Baza[Date],SMALL(IF(SMALL(IF(COUNTIF($B$2:$B75,Baza[Date])=0,COUNTIF(Baza[Date],"<"&Baza[Date])+1,""),1)=COUNTIF(Baza[Date],"<"&Baza[Date])+1,ROW(Baza[Date])-MIN(ROW(Baza[Date]))+1),1)),"") ->  | C76: =IF(Таблица46[[#This Row],['#]]="","",COUNTIFS(Baza[Date],Таблица46[[#This Row],['#]])+SUMIFS(Baza[R],Baza[Date],Таблица46[[#This Row],['#]])) ->  | D76: =IF(Таблица46[[#This Row],['#]]="","",SUMIFS(Baza[B$],Baza[Date],Таблица46[[#This Row],['#]])) ->  | F76: =IFERROR(AVERAGEIFS(Baza[AFS],Baza[Date],Таблица46[[#This Row],['#]])+(AVERAGEIFS(Baza[AFS],Baza[Date],Таблица46[[#This Row],['#]])*0.2),"") ->  | H76: =IFERROR(COUNTIFS(Baza[Date],Таблица46[[#This Row],['#]],Baza[Win],">0")/C76*100,"") ->  | I76: =IF(SUMIFS(Baza[KO$],Baza[Date],Таблица46[[#This Row],['#]])=0,"",SUMIFS(Baza[KO$],Baza[Date],Таблица46[[#This Row],['#]])) ->  | J76: =IF(SUMIFS(Baza[WIN$],Baza[Date],Таблица46[[#This Row],['#]])=0,"",SUMIFS(Baza[WIN$],Baza[Date],Таблица46[[#This Row],['#]])) -> 
B77: =IFERROR(INDEX(Baza[Date],SMALL(IF(SMALL(IF(COUNTIF($B$2:$B76,Baza[Date])=0,COUNTIF(Baza[Date],"<"&Baza[Date])+1,""),1)=COUNTIF(Baza[Date],"<"&Baza[Date])+1,ROW(Baza[Date])-MIN(ROW(Baza[Date]))+1),1)),"") ->  | C77: =IF(Таблица46[[#This Row],['#]]="","",COUNTIFS(Baza[Date],Таблица46[[#This Row],['#]])+SUMIFS(Baza[R],Baza[Date],Таблица46[[#This Row],['#]])) ->  | D77: =IF(Таблица46[[#This Row],['#]]="","",SUMIFS(Baza[B$],Baza[Date],Таблица46[[#This Row],['#]])) ->  | F77: =IFERROR(AVERAGEIFS(Baza[AFS],Baza[Date],Таблица46[[#This Row],['#]])+(AVERAGEIFS(Baza[AFS],Baza[Date],Таблица46[[#This Row],['#]])*0.2),"") ->  | H77: =IFERROR(COUNTIFS(Baza[Date],Таблица46[[#This Row],['#]],Baza[Win],">0")/C77*100,"") ->  | I77: =IF(SUMIFS(Baza[KO$],Baza[Date],Таблица46[[#This Row],['#]])=0,"",SUMIFS(Baza[KO$],Baza[Date],Таблица46[[#This Row],['#]])) ->  | J77: =IF(SUMIFS(Baza[WIN$],Baza[Date],Таблица46[[#This Row],['#]])=0,"",SUMIFS(Baza[WIN$],Baza[Date],Таблица46[[#This Row],['#]])) -> 
B78: =IFERROR(INDEX(Baza[Date],SMALL(IF(SMALL(IF(COUNTIF($B$2:$B77,Baza[Date])=0,COUNTIF(Baza[Date],"<"&Baza[Date])+1,""),1)=COUNTIF(Baza[Date],"<"&Baza[Date])+1,ROW(Baza[Date])-MIN(ROW(Baza[Date]))+1),1)),"") ->  | C78: =IF(Таблица46[[#This Row],['#]]="","",COUNTIFS(Baza[Date],Таблица46[[#This Row],['#]])+SUMIFS(Baza[R],Baza[Date],Таблица46[[#This Row],['#]])) ->  | D78: =IF(Таблица46[[#This Row],['#]]="","",SUMIFS(Baza[B$],Baza[Date],Таблица46[[#This Row],['#]])) ->  | F78: =IFERROR(AVERAGEIFS(Baza[AFS],Baza[Date],Таблица46[[#This Row],['#]])+(AVERAGEIFS(Baza[AFS],Baza[Date],Таблица46[[#This Row],['#]])*0.2),"") ->  | H78: =IFERROR(COUNTIFS(Baza[Date],Таблица46[[#This Row],['#]],Baza[Win],">0")/C78*100,"") ->  | I78: =IF(SUMIFS(Baza[KO$],Baza[Date],Таблица46[[#This Row],['#]])=0,"",SUMIFS(Baza[KO$],Baza[Date],Таблица46[[#This Row],['#]])) ->  | J78: =IF(SUMIFS(Baza[WIN$],Baza[Date],Таблица46[[#This Row],['#]])=0,"",SUMIFS(Baza[WIN$],Baza[Date],Таблица46[[#This Row],['#]])) -> 
B79: =IFERROR(INDEX(Baza[Date],SMALL(IF(SMALL(IF(COUNTIF($B$2:$B78,Baza[Date])=0,COUNTIF(Baza[Date],"<"&Baza[Date])+1,""),1)=COUNTIF(Baza[Date],"<"&Baza[Date])+1,ROW(Baza[Date])-MIN(ROW(Baza[Date]))+1),1)),"") ->  | C79: =IF(Таблица46[[#This Row],['#]]="","",COUNTIFS(Baza[Date],Таблица46[[#This Row],['#]])+SUMIFS(Baza[R],Baza[Date],Таблица46[[#This Row],['#]])) ->  | D79: =IF(Таблица46[[#This Row],['#]]="","",SUMIFS(Baza[B$],Baza[Date],Таблица46[[#This Row],['#]])) ->  | F79: =IFERROR(AVERAGEIFS(Baza[AFS],Baza[Date],Таблица46[[#This Row],['#]])+(AVERAGEIFS(Baza[AFS],Baza[Date],Таблица46[[#This Row],['#]])*0.2),"") ->  | H79: =IFERROR(COUNTIFS(Baza[Date],Таблица46[[#This Row],['#]],Baza[Win],">0")/C79*100,"") ->  | I79: =IF(SUMIFS(Baza[KO$],Baza[Date],Таблица46[[#This Row],['#]])=0,"",SUMIFS(Baza[KO$],Baza[Date],Таблица46[[#This Row],['#]])) ->  | J79: =IF(SUMIFS(Baza[WIN$],Baza[Date],Таблица46[[#This Row],['#]])=0,"",SUMIFS(Baza[WIN$],Baza[Date],Таблица46[[#This Row],['#]])) -> 
B80: =IFERROR(INDEX(Baza[Date],SMALL(IF(SMALL(IF(COUNTIF($B$2:$B79,Baza[Date])=0,COUNTIF(Baza[Date],"<"&Baza[Date])+1,""),1)=COUNTIF(Baza[Date],"<"&Baza[Date])+1,ROW(Baza[Date])-MIN(ROW(Baza[Date]))+1),1)),"") ->  | C80: =IF(Таблица46[[#This Row],['#]]="","",COUNTIFS(Baza[Date],Таблица46[[#This Row],['#]])+SUMIFS(Baza[R],Baza[Date],Таблица46[[#This Row],['#]])) ->  | D80: =IF(Таблица46[[#This Row],['#]]="","",SUMIFS(Baza[B$],Baza[Date],Таблица46[[#This Row],['#]])) ->  | F80: =IFERROR(AVERAGEIFS(Baza[AFS],Baza[Date],Таблица46[[#This Row],['#]])+(AVERAGEIFS(Baza[AFS],Baza[Date],Таблица46[[#This Row],['#]])*0.2),"") ->  | H80: =IFERROR(COUNTIFS(Baza[Date],Таблица46[[#This Row],['#]],Baza[Win],">0")/C80*100,"") ->  | I80: =IF(SUMIFS(Baza[KO$],Baza[Date],Таблица46[[#This Row],['#]])=0,"",SUMIFS(Baza[KO$],Baza[Date],Таблица46[[#This Row],['#]])) ->  | J80: =IF(SUMIFS(Baza[WIN$],Baza[Date],Таблица46[[#This Row],['#]])=0,"",SUMIFS(Baza[WIN$],Baza[Date],Таблица46[[#This Row],['#]])) -> 

Sheet TOT
C27: =SUM(C30:C36) -> 31 | D27: 48.94 | E27: =D27/C27 -> 1.578709677 | F27: =IFERROR(AVERAGE(Baza[AFS])+(AVERAGE(Baza[AFS])*0.2),"") -> 467.7209887 | G27: =IFERROR(K27/D27*100,"") -> 112.6693911 | H27: =IFERROR(COUNTIFS(Baza[Win],">0")/C27*100,"") -> 22.58064516 | I27: 7.16 | J27: 96.9204 | K27: =SUM(K30:K36) -> 55.1404
B29: X | C29: Games | D29: Buy-in | E29: ABI | F29: AFS | G29: ROI | H29: ITM | I29: Bounty | J29: WIN | K29: PROF
A30: PS | B30: PokerStars | C30: =COUNTIFS(Baza[Room],A30)+SUMIFS(Baza[R],Baza[Room],A30) -> 6 | D30: =SUMIFS(Baza[B$],Baza[Room],A30) -> 8.8 | E30: =IFERROR(D30/C30,"") -> 1.466666667 | F30: =IFERROR(AVERAGEIFS(Baza[AFS],Baza[Room],A30)+(AVERAGEIFS(Baza[AFS],Baza[Room],A30)*0.2),"") -> 1196.969697 | G30: =IFERROR(K30/D30*100,"") -> 141.1363636 | H30: =IFERROR(COUNTIFS(Baza[Room],A30,Baza[Win],">0")/C30*100,"") -> 66.66666667 | I30: =IF(SUMIFS(Baza[KO$],Baza[Room],A30)=0,"",SUMIFS(Baza[KO$],Baza[Room],A30)) ->  | J30: =IF(SUMIFS(Baza[WIN$],Baza[Room],A30)=0,"",SUMIFS(Baza[WIN$],Baza[Room],A30)) -> 21.22 | K30: =IFERROR(IF(J30="",0,J30)+IF(I30="",0,I30)-D30,"") -> 12.42
A31: ES | B31: PokerStars.es | C31: =COUNTIFS(Baza[Room],A31)+SUMIFS(Baza[R],Baza[Room],A31) -> 0 | D31: =SUMIFS(Baza[B$],Baza[Room],A31) -> 0 | F31: =IFERROR(AVERAGEIFS(Baza[AFS],Baza[Room],A31)+(AVERAGEIFS(Baza[AFS],Baza[Room],A31)*0.2),"") ->  | G31: =IFERROR(K31/D31*100,"") ->  | H31: =IFERROR(COUNTIFS(Baza[Room],A31,Baza[Win],">0")/C31*100,"") ->  | I31: =IF(SUMIFS(Baza[KO$],Baza[Room],A31)=0,"",SUMIFS(Baza[KO$],Baza[Room],A31)) ->  | J31: =IF(SUMIFS(Baza[WIN$],Baza[Room],A31)=0,"",SUMIFS(Baza[WIN$],Baza[Room],A31)) ->  | K31: =IFERROR(IF(J31="",0,J31)+IF(I31="",0,I31)-D31,"") -> 0
A32: PAC | B32: 888Poker | C32: =COUNTIFS(Baza[Room],A32)+SUMIFS(Baza[R],Baza[Room],A32) -> 5 | D32: =SUMIFS(Baza[B$],Baza[Room],A32) -> 7.5 | E32: 1.5 | F32: =IFERROR(AVERAGEIFS(Baza[AFS],Baza[Room],A32)+(AVERAGEIFS(Baza[AFS],Baza[Room],A32)*0.2),"") -> 294.5454545 | G32: -96.66666667 | H32: =IFERROR(COUNTIFS(Baza[Room],A32,Baza[Win],">0")/C32*100,"") -> 0 | I32: =IF(SUMIFS(Baza[KO$],Baza[Room],A32)=0,"",SUMIFS(Baza[KO$],Baza[Room],A32)) -> 0.25 | J32: =IF(SUMIFS(Baza[WIN$],Baza[Room],A32)=0,"",SUMIFS(Baza[WIN$],Baza[Room],A32)) ->  | K32: -7.25
A33: PK | B33: PokerKing | C33: =COUNTIFS(Baza[Room],A33)+SUMIFS(Baza[R],Baza[Room],A33) -> 0 | D33: =SUMIFS(Baza[B$],Baza[Room],A33) -> 0 | F33: =IFERROR(AVERAGEIFS(Baza[AFS],Baza[Room],A33)+(AVERAGEIFS(Baza[AFS],Baza[Room],A33)*0.2),"") ->  | H33: =IFERROR(COUNTIFS(Baza[Room],A33,Baza[Win],">0")/C33*100,"") ->  | I33: =IF(SUMIFS(Baza[KO$],Baza[Room],A33)=0,"",SUMIFS(Baza[KO$],Baza[Room],A33)) ->  | J33: =IF(SUMIFS(Baza[WIN$],Baza[Room],A33)=0,"",SUMIFS(Baza[WIN$],Baza[Room],A33)) ->  | K33: 0
A34: WN | B34: Winamax | C34: =COUNTIFS(Baza[Room],A34)+SUMIFS(Baza[R],Baza[Room],A34) -> 5 | D34: =SUMIFS(Baza[B$],Baza[Room],A34) -> 7.84 | E34: 1.568 | F34: =IFERROR(AVERAGEIFS(Baza[AFS],Baza[Room],A34)+(AVERAGEIFS(Baza[AFS],Baza[Room],A34)*0.2),"") -> 180 | G34: 798.8571429 | H34: =IFERROR(COUNTIFS(Baza[Room],A34,Baza[Win],">0")/C34*100,"") -> 20 | I34: =IF(SUMIFS(Baza[KO$],Baza[Room],A34)=0,"",SUMIFS(Baza[KO$],Baza[Room],A34)) ->  | J34: =IF(SUMIFS(Baza[WIN$],Baza[Room],A34)=0,"",SUMIFS(Baza[WIN$],Baza[Room],A34)) -> 70.4704 | K34: 62.6304
A35: PP | B35: PartyPoker | C35: =COUNTIFS(Baza[Room],A35)+SUMIFS(Baza[R],Baza[Room],A35) -> 10 | D35: =SUMIFS(Baza[B$],Baza[Room],A35) -> 16.5 | E35: 1.65 | F35: =IFERROR(AVERAGEIFS(Baza[AFS],Baza[Room],A35)+(AVERAGEIFS(Baza[AFS],Baza[Room],A35)*0.2),"") -> 140.9090909 | G35: -84.12121212 | H35: =IFERROR(COUNTIFS(Baza[Room],A35,Baza[Win],">0")/C35*100,"") -> 10 | I35: =IF(SUMIFS(Baza[KO$],Baza[Room],A35)=0,"",SUMIFS(Baza[KO$],Baza[Room],A35)) -> 1.37 | J35: =IF(SUMIFS(Baza[WIN$],Baza[Room],A35)=0,"",SUMIFS(Baza[WIN$],Baza[Room],A35)) -> 1.25 | K35: -13.88
A36: GG | B36: GGPoker | C36: =COUNTIFS(Baza[Room],A36)+SUMIFS(Baza[R],Baza[Room],A36) -> 5 | D36: =SUMIFS(Baza[B$],Baza[Room],A36) -> 8.3 | E36: 1.66 | F36: =IFERROR(AVERAGEIFS(Baza[AFS],Baza[Room],A36)+(AVERAGEIFS(Baza[AFS],Baza[Room],A36)*0.2),"") -> 707.1428571 | G36: 14.69879518 | H36: =IFERROR(COUNTIFS(Baza[Room],A36,Baza[Win],">0")/C36*100,"") -> 20 | I36: =IF(SUMIFS(Baza[KO$],Baza[Room],A36)=0,"",SUMIFS(Baza[KO$],Baza[Room],A36)) -> 5.54 | J36: =IF(SUMIFS(Baza[WIN$],Baza[Room],A36)=0,"",SUMIFS(Baza[WIN$],Baza[Room],A36)) -> 3.98 | K36: 1.22
B38: X | C38: Games | D38: Buy-in | E38: ABI | F38: AFS | G38: ROI | H38: ITM | I38: Bounty | J38: WIN | K38: PROF
B39: январь | C39: =COUNTIFS(Baza[M],B39)+SUMIFS(Baza[R],Baza[M],B39) -> 31 | D39: =SUMIFS(Baza[B$],Baza[M],B39) -> 48.94 | E39: =IFERROR(D39/C39,"") -> 1.578709677 | F39: =IFERROR(AVERAGEIFS(Baza[AFS],Baza[M],B39)+(AVERAGEIFS(Baza[AFS],Baza[M],B39)*0.2),"") -> 467.7209887 | G39: =IFERROR(K39/D39*100,"") -> 112.6693911 | H39: =IFERROR(COUNTIFS(Baza[M],B39,Baza[Win],">0")/C39*100,"") -> 22.58064516 | I39: =IF(SUMIFS(Baza[KO$],Baza[M],B39)=0,"",SUMIFS(Baza[KO$],Baza[M],B39)) -> 7.16 | J39: =IF(SUMIFS(Baza[WIN$],Baza[M],B39)=0,"",SUMIFS(Baza[WIN$],Baza[M],B39)) -> 96.9204 | K39: =IFERROR(IF(J39="",0,J39)+IF(I39="",0,I39)-D39,"") -> 55.1404
B40: февраль | C40: =COUNTIFS(Baza[M],B40)+SUMIFS(Baza[R],Baza[M],B40) -> 0 | D40: =SUMIFS(Baza[B$],Baza[M],B40) -> 0 | E40: =IFERROR(D40/C40,"") ->  | F40: =IFERROR(AVERAGEIFS(Baza[AFS],Baza[M],B40)+(AVERAGEIFS(Baza[AFS],Baza[M],B40)*0.2),"") ->  | G40: =IFERROR(K40/D40*100,"") ->  | H40: =IFERROR(COUNTIFS(Baza[M],B40,Baza[Win],">0")/C40*100,"") ->  | I40: =IF(SUMIFS(Baza[KO$],Baza[M],B40)=0,"",SUMIFS(Baza[KO$],Baza[M],B40)) ->  | J40: =IF(SUMIFS(Baza[WIN$],Baza[M],B40)=0,"",SUMIFS(Baza[WIN$],Baza[M],B40)) ->  | K40: =IFERROR(IF(J40="",0,J40)+IF(I40="",0,I40)-D40,"") -> 0
B41: март | C41: =COUNTIFS(Baza[M],B41)+SUMIFS(Baza[R],Baza[M],B41) -> 0 | D41: =SUMIFS(Baza[B$],Baza[M],B41) -> 0 | F41: =IFERROR(AVERAGEIFS(Baza[AFS],Baza[M],B41)+(AVERAGEIFS(Baza[AFS],Baza[M],B41)*0.2),"") ->  | H41: =IFERROR(COUNTIFS(Baza[M],B41,Baza[Win],">0")/C41*100,"") ->  | I41: =IF(SUMIFS(Baza[KO$],Baza[M],B41)=0,"",SUMIFS(Baza[KO$],Baza[M],B41)) ->  | J41: =IF(SUMIFS(Baza[WIN$],Baza[M],B41)=0,"",SUMIFS(Baza[WIN$],Baza[M],B41)) ->  | K41: 0
B42: апрель | C42: =COUNTIFS(Baza[M],B42)+SUMIFS(Baza[R],Baza[M],B42) -> 0 | D42: =SUMIFS(Baza[B$],Baza[M],B42) -> 0 | F42: =IFERROR(AVERAGEIFS(Baza[AFS],Baza[M],B42)+(AVERAGEIFS(Baza[AFS],Baza[M],B42)*0.2),"") ->  | H42: =IFERROR(COUNTIFS(Baza[M],B42,Baza[Win],">0")/C42*100,"") ->  | I42: =IF(SUMIFS(Baza[KO$],Baza[M],B42)=0,"",SUMIFS(Baza[KO$],Baza[M],B42)) ->  | J42: =IF(SUMIFS(Baza[WIN$],Baza[M],B42)=0,"",SUMIFS(Baza[WIN$],Baza[M],B42)) ->  | K42: 0
B43: май | C43: =COUNTIFS(Baza[M],B43)+SUMIFS(Baza[R],Baza[M],B43) -> 0 | D43: =SUMIFS(Baza[B$],Baza[M],B43) -> 0 | F43: =IFERROR(AVERAGEIFS(Baza[AFS],Baza[M],B43)+(AVERAGEIFS(Baza[AFS],Baza[M],B43)*0.2),"") ->  | H43: =IFERROR(COUNTIFS(Baza[M],B43,Baza[Win],">0")/C43*100,"") ->  | I43: =IF(SUMIFS(Baza[KO$],Baza[M],B43)=0,"",SUMIFS(Baza[KO$],Baza[M],B43)) ->  | J43: =IF(SUMIFS(Baza[WIN$],Baza[M],B43)=0,"",SUMIFS(Baza[WIN$],Baza[M],B43)) ->  | K43: 0
B44: июнь | C44: =COUNTIFS(Baza[M],B44)+SUMIFS(Baza[R],Baza[M],B44) -> 0 | D44: =SUMIFS(Baza[B$],Baza[M],B44) -> 0 | F44: =IFERROR(AVERAGEIFS(Baza[AFS],Baza[M],B44)+(AVERAGEIFS(Baza[AFS],Baza[M],B44)*0.2),"") ->  | H44: =IFERROR(COUNTIFS(Baza[M],B44,Baza[Win],">0")/C44*100,"") ->  | I44: =IF(SUMIFS(Baza[KO$],Baza[M],B44)=0,"",SUMIFS(Baza[KO$],Baza[M],B44)) ->  | J44: =IF(SUMIFS(Baza[WIN$],Baza[M],B44)=0,"",SUMIFS(Baza[WIN$],Baza[M],B44)) ->  | K44: 0
B45: июль | C45: =COUNTIFS(Baza[M],B45)+SUMIFS(Baza[R],Baza[M],B45) -> 0 | D45: =SUMIFS(Baza[B$],Baza[M],B45) -> 0 | F45: =IFERROR(AVERAGEIFS(Baza[AFS],Baza[M],B45)+(AVERAGEIFS(Baza[AFS],Baza[M],B45)*0.2),"") ->  | H45: =IFERROR(COUNTIFS(Baza[M],B45,Baza[Win],">0")/C45*100,"") ->  | I45: =IF(SUMIFS(Baza[KO$],Baza[M],B45)=0,"",SUMIFS(Baza[KO$],Baza[M],B45)) ->  | J45: =IF(SUMIFS(Baza[WIN$],Baza[M],B45)=0,"",SUMIFS(Baza[WIN$],Baza[M],B45)) ->  | K45: 0
B46: август | C46: =COUNTIFS(Baza[M],B46)+SUMIFS(Baza[R],Baza[M],B46) -> 0 | D46: =SUMIFS(Baza[B$],Baza[M],B46) -> 0 | F46: =IFERROR(AVERAGEIFS(Baza[AFS],Baza[M],B46)+(AVERAGEIFS(Baza[AFS],Baza[M],B46)*0.2),"") ->  | H46: =IFERROR(COUNTIFS(Baza[M],B46,Baza[Win],">0")/C46*100,"") ->  | I46: =IF(SUMIFS(Baza[KO$],Baza[M],B46)=0,"",SUMIFS(Baza[KO$],Baza[M],B46)) ->  | J46: =IF(SUMIFS(Baza[WIN$],Baza[M],B46)=0,"",SUMIFS(Baza[WIN$],Baza[M],B46)) ->  | K46: 0
B47: сентябрь | C47: =COUNTIFS(Baza[M],B47)+SUMIFS(Baza[R],Baza[M],B47) -> 0 | D47: =SUMIFS(Baza[B$],Baza[M],B47) -> 0 | F47: =IFERROR(AVERAGEIFS(Baza[AFS],Baza[M],B47)+(AVERAGEIFS(Baza[AFS],Baza[M],B47)*0.2),"") ->  | H47: =IFERROR(COUNTIFS(Baza[M],B47,Baza[Win],">0")/C47*100,"") ->  | I47: =IF(SUMIFS(Baza[KO$],Baza[M],B47)=0,"",SUMIFS(Baza[KO$],Baza[M],B47)) ->  | J47: =IF(SUMIFS(Baza[WIN$],Baza[M],B47)=0,"",SUMIFS(Baza[WIN$],Baza[M],B47)) ->  | K47: 0
B48: октябрь | C48: =COUNTIFS(Baza[M],B48)+SUMIFS(Baza[R],Baza[M],B48) -> 0 | D48: =SUMIFS(Baza[B$],Baza[M],B48) -> 0 | F48: =IFERROR(AVERAGEIFS(Baza[AFS],Baza[M],B48)+(AVERAGEIFS(Baza[AFS],Baza[M],B48)*0.2),"") ->  | H48: =IFERROR(COUNTIFS(Baza[M],B48,Baza[Win],">0")/C48*100,"") ->  | I48: =IF(SUMIFS(Baza[KO$],Baza[M],B48)=0,"",SUMIFS(Baza[KO$],Baza[M],B48)) ->  | J48: =IF(SUMIFS(Baza[WIN$],Baza[M],B48)=0,"",SUMIFS(Baza[WIN$],Baza[M],B48)) ->  | K48: 0
B49: ноябрь | C49: =COUNTIFS(Baza[M],B49)+SUMIFS(Baza[R],Baza[M],B49) -> 0 | D49: =SUMIFS(Baza[B$],Baza[M],B49) -> 0 | F49: =IFERROR(AVERAGEIFS(Baza[AFS],Baza[M],B49)+(AVERAGEIFS(Baza[AFS],Baza[M],B49)*0.2),"") ->  | H49: =IFERROR(COUNTIFS(Baza[M],B49,Baza[Win],">0")/C49*100,"") ->  | I49: =IF(SUMIFS(Baza[KO$],Baza[M],B49)=0,"",SUMIFS(Baza[KO$],Baza[M],B49)) ->  | J49: =IF(SUMIFS(Baza[WIN$],Baza[M],B49)=0,"",SUMIFS(Baza[WIN$],Baza[M],B49)) ->  | K49: 0
B50: декабрь | C50: =COUNTIFS(Baza[M],B50)+SUMIFS(Baza[R],Baza[M],B50) -> 0 | D50: =SUMIFS(Baza[B$],Baza[M],B50) -> 0 | F50: =IFERROR(AVERAGEIFS(Baza[AFS],Baza[M],B50)+(AVERAGEIFS(Baza[AFS],Baza[M],B50)*0.2),"") ->  | H50: =IFERROR(COUNTIFS(Baza[M],B50,Baza[Win],">0")/C50*100,"") ->  | I50: =IF(SUMIFS(Baza[KO$],Baza[M],B50)=0,"",SUMIFS(Baza[KO$],Baza[M],B50)) ->  | J50: =IF(SUMIFS(Baza[WIN$],Baza[M],B50)=0,"",SUMIFS(Baza[WIN$],Baza[M],B50)) ->  | K50: 0
B52: X | C52: Games | D52: Buy-in | E52: ABI | F52: AFS | G52: ROI | H52: ITM | I52: Bounty | J52: WIN | K52: PROF
B53: понедельник | C53: =COUNTIFS(Baza[DN],B53)+SUMIFS(Baza[R],Baza[DN],B53) -> 0 | D53: =SUMIFS(Baza[B$],Baza[DN],B53) -> 0 | E53: =IFERROR(D53/C53,"") ->  | F53: =IFERROR(AVERAGEIFS(Baza[AFS],Baza[DN],B53)+(AVERAGEIFS(Baza[AFS],Baza[DN],B53)*0.2),"") ->  | G53: =IFERROR(K53/D53*100,"") ->  | H53: =IFERROR(COUNTIFS(Baza[DN],B53,Baza[Win],">0")/C53*100,"") ->  | I53: =IF(SUMIFS(Baza[KO$],Baza[DN],B53)=0,"",SUMIFS(Baza[KO$],Baza[DN],B53)) ->  | J53: =IF(SUMIFS(Baza[WIN$],Baza[DN],B53)=0,"",SUMIFS(Baza[WIN$],Baza[DN],B53)) ->  | K53: =IFERROR(IF(J53="",0,J53)+IF(I53="",0,I53)-D53,"") -> 0
B54: вторник | C54: =COUNTIFS(Baza[DN],B54)+SUMIFS(Baza[R],Baza[DN],B54) -> 0 | D54: =SUMIFS(Baza[B$],Baza[DN],B54) -> 0 | E54: =IFERROR(D54/C54,"") ->  | F54: =IFERROR(AVERAGEIFS(Baza[AFS],Baza[DN],B54)+(AVERAGEIFS(Baza[AFS],Baza[DN],B54)*0.2),"") ->  | G54: =IFERROR(K54/D54*100,"") ->  | H54: =IFERROR(COUNTIFS(Baza[DN],B54,Baza[Win],">0")/C54*100,"") ->  | I54: =IF(SUMIFS(Baza[KO$],Baza[DN],B54)=0,"",SUMIFS(Baza[KO$],Baza[DN],B54)) ->  | J54: =IF(SUMIFS(Baza[WIN$],Baza[DN],B54)=0,"",SUMIFS(Baza[WIN$],Baza[DN],B54)) ->  | K54: =IFERROR(IF(J54="",0,J54)+IF(I54="",0,I54)-D54,"") -> 0
B55: среда | C55: =COUNTIFS(Baza[DN],B55)+SUMIFS(Baza[R],Baza[DN],B55) -> 0 | D55: =SUMIFS(Baza[B$],Baza[DN],B55) -> 0 | F55: =IFERROR(AVERAGEIFS(Baza[AFS],Baza[DN],B55)+(AVERAGEIFS(Baza[AFS],Baza[DN],B55)*0.2),"") ->  | H55: =IFERROR(COUNTIFS(Baza[DN],B55,Baza[Win],">0")/C55*100,"") ->  | I55: =IF(SUMIFS(Baza[KO$],Baza[DN],B55)=0,"",SUMIFS(Baza[KO$],Baza[DN],B55)) ->  | J55: =IF(SUMIFS(Baza[WIN$],Baza[DN],B55)=0,"",SUMIFS(Baza[WIN$],Baza[DN],B55)) ->  | K55: 0
B56: четверг | C56: =COUNTIFS(Baza[DN],B56)+SUMIFS(Baza[R],Baza[DN],B56) -> 0 | D56: =SUMIFS(Baza[B$],Baza[DN],B56) -> 0 | F56: =IFERROR(AVERAGEIFS(Baza[AFS],Baza[DN],B56)+(AVERAGEIFS(Baza[AFS],Baza[DN],B56)*0.2),"") ->  | H56: =IFERROR(COUNTIFS(Baza[DN],B56,Baza[Win],">0")/C56*100,"") ->  | I56: =IF(SUMIFS(Baza[KO$],Baza[DN],B56)=0,"",SUMIFS(Baza[KO$],Baza[DN],B56)) ->  | J56: =IF(SUMIFS(Baza[WIN$],Baza[DN],B56)=0,"",SUMIFS(Baza[WIN$],Baza[DN],B56)) ->  | K56: 0
B57: пятница | C57: =COUNTIFS(Baza[DN],B57)+SUMIFS(Baza[R],Baza[DN],B57) -> 22 | D57: =SUMIFS(Baza[B$],Baza[DN],B57) -> 31.38 | E57: 1.426363636 | F57: =IFERROR(AVERAGEIFS(Baza[AFS],Baza[DN],B57)+(AVERAGEIFS(Baza[AFS],Baza[DN],B57)*0.2),"") -> 494.0082645 | G57: -8.891013384 | H57: =IFERROR(COUNTIFS(Baza[DN],B57,Baza[Win],">0")/C57*100,"") -> 22.72727273 | I57: =IF(SUMIFS(Baza[KO$],Baza[DN],B57)=0,"",SUMIFS(Baza[KO$],Baza[DN],B57)) -> 6.66 | J57: =IF(SUMIFS(Baza[WIN$],Baza[DN],B57)=0,"",SUMIFS(Baza[WIN$],Baza[DN],B57)) -> 21.93 | K57: -2.79
B58: суббота | C58: =COUNTIFS(Baza[DN],B58)+SUMIFS(Baza[R],Baza[DN],B58) -> 9 | D58: =SUMIFS(Baza[B$],Baza[DN],B58) -> 17.56 | E58: 1.951111111 | F58: =IFERROR(AVERAGEIFS(Baza[AFS],Baza[DN],B58)+(AVERAGEIFS(Baza[AFS],Baza[DN],B58)*0.2),"") -> 403.4632035 | G58: 329.8997722 | H58: =IFERROR(COUNTIFS(Baza[DN],B58,Baza[Win],">0")/C58*100,"") -> 22.22222222 | I58: =IF(SUMIFS(Baza[KO$],Baza[DN],B58)=0,"",SUMIFS(Baza[KO$],Baza[DN],B58)) -> 0.5 | J58: =IF(SUMIFS(Baza[WIN$],Baza[DN],B58)=0,"",SUMIFS(Baza[WIN$],Baza[DN],B58)) -> 74.9904 | K58: 57.9304
B59: воскресенье | C59: =COUNTIFS(Baza[DN],B59)+SUMIFS(Baza[R],Baza[DN],B59) -> 0 | D59: =SUMIFS(Baza[B$],Baza[DN],B59) -> 0 | F59: =IFERROR(AVERAGEIFS(Baza[AFS],Baza[DN],B59)+(AVERAGEIFS(Baza[AFS],Baza[DN],B59)*0.2),"") ->  | H59: =IFERROR(COUNTIFS(Baza[DN],B59,Baza[Win],">0")/C59*100,"") ->  | I59: =IF(SUMIFS(Baza[KO$],Baza[DN],B59)=0,"",SUMIFS(Baza[KO$],Baza[DN],B59)) ->  | J59: =IF(SUMIFS(Baza[WIN$],Baza[DN],B59)=0,"",SUMIFS(Baza[WIN$],Baza[DN],B59)) ->  | K59: 0
B61: # | C61: Games | D61: Buy-in | E61: ABI | F61: AFS | G61: ROI | H61: ITM | I61: Bounty | J61: WIN | K61: PROF
B62: =IFERROR(INDEX(Baza[B],SMALL(IF(SMALL(IF(COUNTIF($B$61:$B61,Baza[B])=0,COUNTIF(Baza[B],"<"&Baza[B])+1,""),1)=COUNTIF(Baza[B],"<"&Baza[B])+1,ROW(Baza[B])-MIN(ROW(Baza[B]))+1),1)),"") -> 1 | C62: =IF(Таблица6[[#This Row],['#]]="","",COUNTIFS(Baza[B],Таблица6[[#This Row],['#]])+SUMIFS(Baza[R],Baza[B],Таблица6[[#This Row],['#]])) -> 5 | D62: =IF(Таблица6[[#This Row],['#]]="","",SUMIFS(Baza[B$],Baza[B],Таблица6[[#This Row],['#]])) -> 5.36 | E62: =IFERROR(D62/C62,"") -> 1.072 | F62: =IFERROR(AVERAGEIFS(Baza[AFS],Baza[B],Таблица6[[#This Row],['#]])+(AVERAGEIFS(Baza[AFS],Baza[B],Таблица6[[#This Row],['#]])*0.2),"") -> 252 | G62: =IFERROR(K62/D62*100,"") -> 1214.746269 | H62: =IFERROR(COUNTIFS(Baza[B],Таблица6[[#This Row],['#]],Baza[Win],">0")/C62*100,"") -> 20 | I62: =IF(SUMIFS(Baza[KO$],Baza[B],Таблица6[[#This Row],['#]])=0,"",SUMIFS(Baza[KO$],Baza[B],Таблица6[[#This Row],['#]])) ->  | J62: =IF(SUMIFS(Baza[WIN$],Baza[B],Таблица6[[#This Row],['#]])=0,"",SUMIFS(Baza[WIN$],Baza[B],Таблица6[[#This Row],['#]])) -> 70.4704 | K62: =IFERROR(IF(J62="",0,J62)+IF(I62="",0,I62)-D62,"") -> 65.1104
B63: =IFERROR(INDEX(Baza[B],SMALL(IF(SMALL(IF(COUNTIF($B$61:$B62,Baza[B])=0,COUNTIF(Baza[B],"<"&Baza[B])+1,""),1)=COUNTIF(Baza[B],"<"&Baza[B])+1,ROW(Baza[B])-MIN(ROW(Baza[B]))+1),1)),"") -> 1.05 | C63: =IF(Таблица6[[#This Row],['#]]="","",COUNTIFS(Baza[B],Таблица6[[#This Row],['#]])+SUMIFS(Baza[R],Baza[B],Таблица6[[#This Row],['#]])) -> 2 | D63: =IF(Таблица6[[#This Row],['#]]="","",SUMIFS(Baza[B$],Baza[B],Таблица6[[#This Row],['#]])) -> 2.1 | E63: 1.05 | F63: =IFERROR(AVERAGEIFS(Baza[AFS],Baza[B],Таблица6[[#This Row],['#]])+(AVERAGEIFS(Baza[AFS],Baza[B],Таблица6[[#This Row],['#]])*0.2),"") -> 857.1428571 | G63: =IFERROR(K63/D63*100,"") -> 329.5238095 | H63: =IFERROR(COUNTIFS(Baza[B],Таблица6[[#This Row],['#]],Baza[Win],">0")/C63*100,"") -> 50 | I63: =IF(SUMIFS(Baza[KO$],Baza[B],Таблица6[[#This Row],['#]])=0,"",SUMIFS(Baza[KO$],Baza[B],Таблица6[[#This Row],['#]])) -> 5.04 | J63: =IF(SUMIFS(Baza[WIN$],Baza[B],Таблица6[[#This Row],['#]])=0,"",SUMIFS(Baza[WIN$],Baza[B],Таблица6[[#This Row],['#]])) -> 3.98 | K63: =IFERROR(IF(J63="",0,J63)+IF(I63="",0,I63)-D63,"") -> 6.92
B64: =IFERROR(INDEX(Baza[B],SMALL(IF(SMALL(IF(COUNTIF($B$61:$B63,Baza[B])=0,COUNTIF(Baza[B],"<"&Baza[B])+1,""),1)=COUNTIF(Baza[B],"<"&Baza[B])+1,ROW(Baza[B])-MIN(ROW(Baza[B]))+1),1)),"") -> 1.1 | C64: =IF(Таблица6[[#This Row],['#]]="","",COUNTIFS(Baza[B],Таблица6[[#This Row],['#]])+SUMIFS(Baza[R],Baza[B],Таблица6[[#This Row],['#]])) -> 12 | D64: =IF(Таблица6[[#This Row],['#]]="","",SUMIFS(Baza[B$],Baza[B],Таблица6[[#This Row],['#]])) -> 13.2 | E64: 1.1 | F64: =IFERROR(AVERAGEIFS(Baza[AFS],Baza[B],Таблица6[[#This Row],['#]])+(AVERAGEIFS(Baza[AFS],Baza[B],Таблица6[[#This Row],['#]])*0.2),"") -> 665.9090909 | G64: =IFERROR(K64/D64*100,"") -> 82.5 | H64: =IFERROR(COUNTIFS(Baza[B],Таблица6[[#This Row],['#]],Baza[Win],">0")/C64*100,"") -> 41.66666667 | I64: =IF(SUMIFS(Baza[KO$],Baza[B],Таблица6[[#This Row],['#]])=0,"",SUMIFS(Baza[KO$],Baza[B],Таблица6[[#This Row],['#]])) -> 1.62 | J64: =IF(SUMIFS(Baza[WIN$],Baza[B],Таблица6[[#This Row],['#]])=0,"",SUMIFS(Baza[WIN$],Baza[B],Таблица6[[#This Row],['#]])) -> 22.47 | K64: =IFERROR(IF(J64="",0,J64)+IF(I64="",0,I64)-D64,"") -> 10.89
B65: =IFERROR(INDEX(Baza[B],SMALL(IF(SMALL(IF(COUNTIF($B$61:$B64,Baza[B])=0,COUNTIF(Baza[B],"<"&Baza[B])+1,""),1)=COUNTIF(Baza[B],"<"&Baza[B])+1,ROW(Baza[B])-MIN(ROW(Baza[B]))+1),1)),"") -> 2 | C65: =IF(Таблица6[[#This Row],['#]]="","",COUNTIFS(Baza[B],Таблица6[[#This Row],['#]])+SUMIFS(Baza[R],Baza[B],Таблица6[[#This Row],['#]])) -> 3 | D65: =IF(Таблица6[[#This Row],['#]]="","",SUMIFS(Baza[B$],Baza[B],Таблица6[[#This Row],['#]])) -> 6.48 | E65: 2.16 | F65: =IFERROR(AVERAGEIFS(Baza[AFS],Baza[B],Таблица6[[#This Row],['#]])+(AVERAGEIFS(Baza[AFS],Baza[B],Таблица6[[#This Row],['#]])*0.2),"") -> 230 | G65: =IFERROR(K65/D65*100,"") -> -100 | H65: =IFERROR(COUNTIFS(Baza[B],Таблица6[[#This Row],['#]],Baza[Win],">0")/C65*100,"") -> 0 | I65: =IF(SUMIFS(Baza[KO$],Baza[B],Таблица6[[#This Row],['#]])=0,"",SUMIFS(Baza[KO$],Baza[B],Таблица6[[#This Row],['#]])) ->  | J65: =IF(SUMIFS(Baza[WIN$],Baza[B],Таблица6[[#This Row],['#]])=0,"",SUMIFS(Baza[WIN$],Baza[B],Таблица6[[#This Row],['#]])) ->  | K65: =IFERROR(IF(J65="",0,J65)+IF(I65="",0,I65)-D65,"") -> -6.48
B66: =IFERROR(INDEX(Baza[B],SMALL(IF(SMALL(IF(COUNTIF($B$61:$B65,Baza[B])=0,COUNTIF(Baza[B],"<"&Baza[B])+1,""),1)=COUNTIF(Baza[B],"<"&Baza[B])+1,ROW(Baza[B])-MIN(ROW(Baza[B]))+1),1)),"") -> 2.1 | C66: =IF(Таблица6[[#This Row],['#]]="","",COUNTIFS(Baza[B],Таблица6[[#This Row],['#]])+SUMIFS(Baza[R],Baza[B],Таблица6[[#This Row],['#]])) -> 2 | D66: =IF(Таблица6[[#This Row],['#]]="","",SUMIFS(Baza[B$],Baza[B],Таблица6[[#This Row],['#]])) -> 4.2 | E66: =IFERROR(D66/C66,"") -> 2.1 | F66: =IFERROR(AVERAGEIFS(Baza[AFS],Baza[B],Таблица6[[#This Row],['#]])+(AVERAGEIFS(Baza[AFS],Baza[B],Таблица6[[#This Row],['#]])*0.2),"") -> 685.7142857 | G66: =IFERROR(K66/D66*100,"") -> -88.0952381 | H66: =IFERROR(COUNTIFS(Baza[B],Таблица6[[#This Row],['#]],Baza[Win],">0")/C66*100,"") -> 0 | I66: =IF(SUMIFS(Baza[KO$],Baza[B],Таблица6[[#This Row],['#]])=0,"",SUMIFS(Baza[KO$],Baza[B],Таблица6[[#This Row],['#]])) -> 0.5 | J66: =IF(SUMIFS(Baza[WIN$],Baza[B],Таблица6[[#This Row],['#]])=0,"",SUMIFS(Baza[WIN$],Baza[B],Таблица6[[#This Row],['#]])) ->  | K66: =IFERROR(IF(J66="",0,J66)+IF(I66="",0,I66)-D66,"") -> -3.7
B67: =IFERROR(INDEX(Baza[B],SMALL(IF(SMALL(IF(COUNTIF($B$61:$B66,Baza[B])=0,COUNTIF(Baza[B],"<"&Baza[B])+1,""),1)=COUNTIF(Baza[B],"<"&Baza[B])+1,ROW(Baza[B])-MIN(ROW(Baza[B]))+1),1)),"") -> 2.2 | C67: =IF(Таблица6[[#This Row],['#]]="","",COUNTIFS(Baza[B],Таблица6[[#This Row],['#]])+SUMIFS(Baza[R],Baza[B],Таблица6[[#This Row],['#]])) -> 5 | D67: =IF(Таблица6[[#This Row],['#]]="","",SUMIFS(Baza[B$],Baza[B],Таблица6[[#This Row],['#]])) -> 11 | E67: 2.2 | F67: =IFERROR(AVERAGEIFS(Baza[AFS],Baza[B],Таблица6[[#This Row],['#]])+(AVERAGEIFS(Baza[AFS],Baza[B],Таблица6[[#This Row],['#]])*0.2),"") -> 185.4545455 | G67: -100 | H67: =IFERROR(COUNTIFS(Baza[B],Таблица6[[#This Row],['#]],Baza[Win],">0")/C67*100,"") -> 0 | I67: =IF(SUMIFS(Baza[KO$],Baza[B],Таблица6[[#This Row],['#]])=0,"",SUMIFS(Baza[KO$],Baza[B],Таблица6[[#This Row],['#]])) ->  | J67: =IF(SUMIFS(Baza[WIN$],Baza[B],Таблица6[[#This Row],['#]])=0,"",SUMIFS(Baza[WIN$],Baza[B],Таблица6[[#This Row],['#]])) ->  | K67: -11
B68: =IFERROR(INDEX(Baza[B],SMALL(IF(SMALL(IF(COUNTIF($B$61:$B67,Baza[B])=0,COUNTIF(Baza[B],"<"&Baza[B])+1,""),1)=COUNTIF(Baza[B],"<"&Baza[B])+1,ROW(Baza[B])-MIN(ROW(Baza[B]))+1),1)),"") -> 3.3 | C68: =IF(Таблица6[[#This Row],['#]]="","",COUNTIFS(Baza[B],Таблица6[[#This Row],['#]])+SUMIFS(Baza[R],Baza[B],Таблица6[[#This Row],['#]])) -> 2 | D68: =IF(Таблица6[[#This Row],['#]]="","",SUMIFS(Baza[B$],Baza[B],Таблица6[[#This Row],['#]])) -> 6.6 | E68: 3.3 | F68: =IFERROR(AVERAGEIFS(Baza[AFS],Baza[B],Таблица6[[#This Row],['#]])+(AVERAGEIFS(Baza[AFS],Baza[B],Таблица6[[#This Row],['#]])*0.2),"") -> 272.7272727 | G68: -100 | H68: =IFERROR(COUNTIFS(Baza[B],Таблица6[[#This Row],['#]],Baza[Win],">0")/C68*100,"") -> 0 | I68: =IF(SUMIFS(Baza[KO$],Baza[B],Таблица6[[#This Row],['#]])=0,"",SUMIFS(Baza[KO$],Baza[B],Таблица6[[#This Row],['#]])) ->  | J68: =IF(SUMIFS(Baza[WIN$],Baza[B],Таблица6[[#This Row],['#]])=0,"",SUMIFS(Baza[WIN$],Baza[B],Таблица6[[#This Row],['#]])) ->  | K68: -6.6
B69: =IFERROR(INDEX(Baza[B],SMALL(IF(SMALL(IF(COUNTIF($B$61:$B68,Baza[B])=0,COUNTIF(Baza[B],"<"&Baza[B])+1,""),1)=COUNTIF(Baza[B],"<"&Baza[B])+1,ROW(Baza[B])-MIN(ROW(Baza[B]))+1),1)),"") ->  | C69: =IF(Таблица6[[#This Row],['#]]="","",COUNTIFS(Baza[B],Таблица6[[#This Row],['#]])+SUMIFS(Baza[R],Baza[B],Таблица6[[#This Row],['#]])) ->  | D69: =IF(Таблица6[[#This Row],['#]]="","",SUMIFS(Baza[B$],Baza[B],Таблица6[[#This Row],['#]])) ->  | F69: =IFERROR(AVERAGEIFS(Baza[AFS],Baza[B],Таблица6[[#This Row],['#]])+(AVERAGEIFS(Baza[AFS],Baza[B],Таблица6[[#This Row],['#]])*0.2),"") ->  | H69: =IFERROR(COUNTIFS(Baza[B],Таблица6[[#This Row],['#]],Baza[Win],">0")/C69*100,"") ->  | I69: =IF(SUMIFS(Baza[KO$],Baza[B],Таблица6[[#This Row],['#]])=0,"",SUMIFS(Baza[KO$],Baza[B],Таблица6[[#This Row],['#]])) ->  | J69: =IF(SUMIFS(Baza[WIN$],Baza[B],Таблица6[[#This Row],['#]])=0,"",SUMIFS(Baza[WIN$],Baza[B],Таблица6[[#This Row],['#]])) -> 
B70: =IFERROR(INDEX(Baza[B],SMALL(IF(SMALL(IF(COUNTIF($B$61:$B69,Baza[B])=0,COUNTIF(Baza[B],"<"&Baza[B])+1,""),1)=COUNTIF(Baza[B],"<"&Baza[B])+1,ROW(Baza[B])-MIN(ROW(Baza[B]))+1),1)),"") ->  | C70: =IF(Таблица6[[#This Row],['#]]="","",COUNTIFS(Baza[B],Таблица6[[#This Row],['#]])+SUMIFS(Baza[R],Baza[B],Таблица6[[#This Row],['#]])) ->  | D70: =IF(Таблица6[[#This Row],['#]]="","",SUMIFS(Baza[B$],Baza[B],Таблица6[[#This Row],['#]])) ->  | F70: =IFERROR(AVERAGEIFS(Baza[AFS],Baza[B],Таблица6[[#This Row],['#]])+(AVERAGEIFS(Baza[AFS],Baza[B],Таблица6[[#This Row],['#]])*0.2),"") ->  | H70: =IFERROR(COUNTIFS(Baza[B],Таблица6[[#This Row],['#]],Baza[Win],">0")/C70*100,"") ->  | I70: =IF(SUMIFS(Baza[KO$],Baza[B],Таблица6[[#This Row],['#]])=0,"",SUMIFS(Baza[KO$],Baza[B],Таблица6[[#This Row],['#]])) ->  | J70: =IF(SUMIFS(Baza[WIN$],Baza[B],Таблица6[[#This Row],['#]])=0,"",SUMIFS(Baza[WIN$],Baza[B],Таблица6[[#This Row],['#]])) -> 
B71: =IFERROR(INDEX(Baza[B],SMALL(IF(SMALL(IF(COUNTIF($B$61:$B70,Baza[B])=0,COUNTIF(Baza[B],"<"&Baza[B])+1,""),1)=COUNTIF(Baza[B],"<"&Baza[B])+1,ROW(Baza[B])-MIN(ROW(Baza[B]))+1),1)),"") ->  | C71: =IF(Таблица6[[#This Row],['#]]="","",COUNTIFS(Baza[B],Таблица6[[#This Row],['#]])+SUMIFS(Baza[R],Baza[B],Таблица6[[#This Row],['#]])) ->  | D71: =IF(Таблица6[[#This Row],['#]]="","",SUMIFS(Baza[B$],Baza[B],Таблица6[[#This Row],['#]])) ->  | F71: =IFERROR(AVERAGEIFS(Baza[AFS],Baza[B],Таблица6[[#This Row],['#]])+(AVERAGEIFS(Baza[AFS],Baza[B],Таблица6[[#This Row],['#]])*0.2),"") ->  | H71: =IFERROR(COUNTIFS(Baza[B],Таблица6[[#This Row],['#]],Baza[Win],">0")/C71*100,"") ->  | I71: =IF(SUMIFS(Baza[KO$],Baza[B],Таблица6[[#This Row],['#]])=0,"",SUMIFS(Baza[KO$],Baza[B],Таблица6[[#This Row],['#]])) ->  | J71: =IF(SUMIFS(Baza[WIN$],Baza[B],Таблица6[[#This Row],['#]])=0,"",SUMIFS(Baza[WIN$],Baza[B],Таблица6[[#This Row],['#]])) -> 
B72: =IFERROR(INDEX(Baza[B],SMALL(IF(SMALL(IF(COUNTIF($B$61:$B71,Baza[B])=0,COUNTIF(Baza[B],"<"&Baza[B])+1,""),1)=COUNTIF(Baza[B],"<"&Baza[B])+1,ROW(Baza[B])-MIN(ROW(Baza[B]))+1),1)),"") ->  | C72: =IF(Таблица6[[#This Row],['#]]="","",COUNTIFS(Baza[B],Таблица6[[#This Row],['#]])+SUMIFS(Baza[R],Baza[B],Таблица6[[#This Row],['#]])) ->  | D72: =IF(Таблица6[[#This Row],['#]]="","",SUMIFS(Baza[B$],Baza[B],Таблица6[[#This Row],['#]])) ->  | F72: =IFERROR(AVERAGEIFS(Baza[AFS],Baza[B],Таблица6[[#This Row],['#]])+(AVERAGEIFS(Baza[AFS],Baza[B],Таблица6[[#This Row],['#]])*0.2),"") ->  | H72: =IFERROR(COUNTIFS(Baza[B],Таблица6[[#This Row],['#]],Baza[Win],">0")/C72*100,"") ->  | I72: =IF(SUMIFS(Baza[KO$],Baza[B],Таблица6[[#This Row],['#]])=0,"",SUMIFS(Baza[KO$],Baza[B],Таблица6[[#This Row],['#]])) ->  | J72: =IF(SUMIFS(Baza[WIN$],Baza[B],Таблица6[[#This Row],['#]])=0,"",SUMIFS(Baza[WIN$],Baza[B],Таблица6[[#This Row],['#]])) -> 
B73: =IFERROR(INDEX(Baza[B],SMALL(IF(SMALL(IF(COUNTIF($B$61:$B72,Baza[B])=0,COUNTIF(Baza[B],"<"&Baza[B])+1,""),1)=COUNTIF(Baza[B],"<"&Baza[B])+1,ROW(Baza[B])-MIN(ROW(Baza[B]))+1),1)),"") ->  | C73: =IF(Таблица6[[#This Row],['#]]="","",COUNTIFS(Baza[B],Таблица6[[#This Row],['#]])+SUMIFS(Baza[R],Baza[B],Таблица6[[#This Row],['#]])) ->  | D73: =IF(Таблица6[[#This Row],['#]]="","",SUMIFS(Baza[B$],Baza[B],Таблица6[[#This Row],['#]])) ->  | F73: =IFERROR(AVERAGEIFS(Baza[AFS],Baza[B],Таблица6[[#This Row],['#]])+(AVERAGEIFS(Baza[AFS],Baza[B],Таблица6[[#This Row],['#]])*0.2),"") ->  | H73: =IFERROR(COUNTIFS(Baza[B],Таблица6[[#This Row],['#]],Baza[Win],">0")/C73*100,"") ->  | I73: =IF(SUMIFS(Baza[KO$],Baza[B],Таблица6[[#This Row],['#]])=0,"",SUMIFS(Baza[KO$],Baza[B],Таблица6[[#This Row],['#]])) ->  | J73: =IF(SUMIFS(Baza[WIN$],Baza[B],Таблица6[[#This Row],['#]])=0,"",SUMIFS(Baza[WIN$],Baza[B],Таблица6[[#This Row],['#]])) -> 
B74: =IFERROR(INDEX(Baza[B],SMALL(IF(SMALL(IF(COUNTIF($B$61:$B73,Baza[B])=0,COUNTIF(Baza[B],"<"&Baza[B])+1,""),1)=COUNTIF(Baza[B],"<"&Baza[B])+1,ROW(Baza[B])-MIN(ROW(Baza[B]))+1),1)),"") ->  | C74: =IF(Таблица6[[#This Row],['#]]="","",COUNTIFS(Baza[B],Таблица6[[#This Row],['#]])+SUMIFS(Baza[R],Baza[B],Таблица6[[#This Row],['#]])) ->  | D74: =IF(Таблица6[[#This Row],['#]]="","",SUMIFS(Baza[B$],Baza[B],Таблица6[[#This Row],['#]])) ->  | F74: =IFERROR(AVERAGEIFS(Baza[AFS],Baza[B],Таблица6[[#This Row],['#]])+(AVERAGEIFS(Baza[AFS],Baza[B],Таблица6[[#This Row],['#]])*0.2),"") ->  | H74: =IFERROR(COUNTIFS(Baza[B],Таблица6[[#This Row],['#]],Baza[Win],">0")/C74*100,"") ->  | I74: =IF(SUMIFS(Baza[KO$],Baza[B],Таблица6[[#This Row],['#]])=0,"",SUMIFS(Baza[KO$],Baza[B],Таблица6[[#This Row],['#]])) ->  | J74: =IF(SUMIFS(Baza[WIN$],Baza[B],Таблица6[[#This Row],['#]])=0,"",SUMIFS(Baza[WIN$],Baza[B],Таблица6[[#This Row],['#]])) -> 
B75: =IFERROR(INDEX(Baza[B],SMALL(IF(SMALL(IF(COUNTIF($B$61:$B74,Baza[B])=0,COUNTIF(Baza[B],"<"&Baza[B])+1,""),1)=COUNTIF(Baza[B],"<"&Baza[B])+1,ROW(Baza[B])-MIN(ROW(Baza[B]))+1),1)),"") ->  | C75: =IF(Таблица6[[#This Row],['#]]="","",COUNTIFS(Baza[B],Таблица6[[#This Row],['#]])+SUMIFS(Baza[R],Baza[B],Таблица6[[#This Row],['#]])) ->  | D75: =IF(Таблица6[[#This Row],['#]]="","",SUMIFS(Baza[B$],Baza[B],Таблица6[[#This Row],['#]])) ->  | F75: =IFERROR(AVERAGEIFS(Baza[AFS],Baza[B],Таблица6[[#This Row],['#]])+(AVERAGEIFS(Baza[AFS],Baza[B],Таблица6[[#This Row],['#]])*0.2),"") ->  | H75: =IFERROR(COUNTIFS(Baza[B],Таблица6[[#This Row],['#]],Baza[Win],">0")/C75*100,"") ->  | I75: =IF(SUMIFS(Baza[KO$],Baza[B],Таблица6[[#This Row],['#]])=0,"",SUMIFS(Baza[KO$],Baza[B],Таблица6[[#This Row],['#]])) ->  | J75: =IF(SUMIFS(Baza[WIN$],Baza[B],Таблица6[[#This Row],['#]])=0,"",SUMIFS(Baza[WIN$],Baza[B],Таблица6[[#This Row],['#]])) -> 
B76: =IFERROR(INDEX(Baza[B],SMALL(IF(SMALL(IF(COUNTIF($B$61:$B75,Baza[B])=0,COUNTIF(Baza[B],"<"&Baza[B])+1,""),1)=COUNTIF(Baza[B],"<"&Baza[B])+1,ROW(Baza[B])-MIN(ROW(Baza[B]))+1),1)),"") ->  | C76: =IF(Таблица6[[#This Row],['#]]="","",COUNTIFS(Baza[B],Таблица6[[#This Row],['#]])+SUMIFS(Baza[R],Baza[B],Таблица6[[#This Row],['#]])) ->  | D76: =IF(Таблица6[[#This Row],['#]]="","",SUMIFS(Baza[B$],Baza[B],Таблица6[[#This Row],['#]])) ->  | F76: =IFERROR(AVERAGEIFS(Baza[AFS],Baza[B],Таблица6[[#This Row],['#]])+(AVERAGEIFS(Baza[AFS],Baza[B],Таблица6[[#This Row],['#]])*0.2),"") ->  | H76: =IFERROR(COUNTIFS(Baza[B],Таблица6[[#This Row],['#]],Baza[Win],">0")/C76*100,"") ->  | I76: =IF(SUMIFS(Baza[KO$],Baza[B],Таблица6[[#This Row],['#]])=0,"",SUMIFS(Baza[KO$],Baza[B],Таблица6[[#This Row],['#]])) ->  | J76: =IF(SUMIFS(Baza[WIN$],Baza[B],Таблица6[[#This Row],['#]])=0,"",SUMIFS(Baza[WIN$],Baza[B],Таблица6[[#This Row],['#]])) -> 
B77: =IFERROR(INDEX(Baza[B],SMALL(IF(SMALL(IF(COUNTIF($B$61:$B76,Baza[B])=0,COUNTIF(Baza[B],"<"&Baza[B])+1,""),1)=COUNTIF(Baza[B],"<"&Baza[B])+1,ROW(Baza[B])-MIN(ROW(Baza[B]))+1),1)),"") ->  | C77: =IF(Таблица6[[#This Row],['#]]="","",COUNTIFS(Baza[B],Таблица6[[#This Row],['#]])+SUMIFS(Baza[R],Baza[B],Таблица6[[#This Row],['#]])) ->  | D77: =IF(Таблица6[[#This Row],['#]]="","",SUMIFS(Baza[B$],Baza[B],Таблица6[[#This Row],['#]])) ->  | F77: =IFERROR(AVERAGEIFS(Baza[AFS],Baza[B],Таблица6[[#This Row],['#]])+(AVERAGEIFS(Baza[AFS],Baza[B],Таблица6[[#This Row],['#]])*0.2),"") ->  | H77: =IFERROR(COUNTIFS(Baza[B],Таблица6[[#This Row],['#]],Baza[Win],">0")/C77*100,"") ->  | I77: =IF(SUMIFS(Baza[KO$],Baza[B],Таблица6[[#This Row],['#]])=0,"",SUMIFS(Baza[KO$],Baza[B],Таблица6[[#This Row],['#]])) ->  | J77: =IF(SUMIFS(Baza[WIN$],Baza[B],Таблица6[[#This Row],['#]])=0,"",SUMIFS(Baza[WIN$],Baza[B],Таблица6[[#This Row],['#]])) -> 
B78: =IFERROR(INDEX(Baza[B],SMALL(IF(SMALL(IF(COUNTIF($B$61:$B77,Baza[B])=0,COUNTIF(Baza[B],"<"&Baza[B])+1,""),1)=COUNTIF(Baza[B],"<"&Baza[B])+1,ROW(Baza[B])-MIN(ROW(Baza[B]))+1),1)),"") ->  | C78: =IF(Таблица6[[#This Row],['#]]="","",COUNTIFS(Baza[B],Таблица6[[#This Row],['#]])+SUMIFS(Baza[R],Baza[B],Таблица6[[#This Row],['#]])) ->  | D78: =IF(Таблица6[[#This Row],['#]]="","",SUMIFS(Baza[B$],Baza[B],Таблица6[[#This Row],['#]])) ->  | F78: =IFERROR(AVERAGEIFS(Baza[AFS],Baza[B],Таблица6[[#This Row],['#]])+(AVERAGEIFS(Baza[AFS],Baza[B],Таблица6[[#This Row],['#]])*0.2),"") ->  | H78: =IFERROR(COUNTIFS(Baza[B],Таблица6[[#This Row],['#]],Baza[Win],">0")/C78*100,"") ->  | I78: =IF(SUMIFS(Baza[KO$],Baza[B],Таблица6[[#This Row],['#]])=0,"",SUMIFS(Baza[KO$],Baza[B],Таблица6[[#This Row],['#]])) ->  | J78: =IF(SUMIFS(Baza[WIN$],Baza[B],Таблица6[[#This Row],['#]])=0,"",SUMIFS(Baza[WIN$],Baza[B],Таблица6[[#This Row],['#]])) -> 
B79: =IFERROR(INDEX(Baza[B],SMALL(IF(SMALL(IF(COUNTIF($B$61:$B78,Baza[B])=0,COUNTIF(Baza[B],"<"&Baza[B])+1,""),1)=COUNTIF(Baza[B],"<"&Baza[B])+1,ROW(Baza[B])-MIN(ROW(Baza[B]))+1),1)),"") ->  | C79: =IF(Таблица6[[#This Row],['#]]="","",COUNTIFS(Baza[B],Таблица6[[#This Row],['#]])+SUMIFS(Baza[R],Baza[B],Таблица6[[#This Row],['#]])) ->  | D79: =IF(Таблица6[[#This Row],['#]]="","",SUMIFS(Baza[B$],Baza[B],Таблица6[[#This Row],['#]])) ->  | F79: =IFERROR(AVERAGEIFS(Baza[AFS],Baza[B],Таблица6[[#This Row],['#]])+(AVERAGEIFS(Baza[AFS],Baza[B],Таблица6[[#This Row],['#]])*0.2),"") ->  | H79: =IFERROR(COUNTIFS(Baza[B],Таблица6[[#This Row],['#]],Baza[Win],">0")/C79*100,"") ->  | I79: =IF(SUMIFS(Baza[KO$],Baza[B],Таблица6[[#This Row],['#]])=0,"",SUMIFS(Baza[KO$],Baza[B],Таблица6[[#This Row],['#]])) ->  | J79: =IF(SUMIFS(Baza[WIN$],Baza[B],Таблица6[[#This Row],['#]])=0,"",SUMIFS(Baza[WIN$],Baza[B],Таблица6[[#This Row],['#]])) -> 
B80: =IFERROR(INDEX(Baza[B],SMALL(IF(SMALL(IF(COUNTIF($B$61:$B79,Baza[B])=0,COUNTIF(Baza[B],"<"&Baza[B])+1,""),1)=COUNTIF(Baza[B],"<"&Baza[B])+1,ROW(Baza[B])-MIN(ROW(Baza[B]))+1),1)),"") ->  | C80: =IF(Таблица6[[#This Row],['#]]="","",COUNTIFS(Baza[B],Таблица6[[#This Row],['#]])+SUMIFS(Baza[R],Baza[B],Таблица6[[#This Row],['#]])) ->  | D80: =IF(Таблица6[[#This Row],['#]]="","",SUMIFS(Baza[B$],Baza[B],Таблица6[[#This Row],['#]])) ->  | F80: =IFERROR(AVERAGEIFS(Baza[AFS],Baza[B],Таблица6[[#This Row],['#]])+(AVERAGEIFS(Baza[AFS],Baza[B],Таблица6[[#This Row],['#]])*0.2),"") ->  | H80: =IFERROR(COUNTIFS(Baza[B],Таблица6[[#This Row],['#]],Baza[Win],">0")/C80*100,"") ->  | I80: =IF(SUMIFS(Baza[KO$],Baza[B],Таблица6[[#This Row],['#]])=0,"",SUMIFS(Baza[KO$],Baza[B],Таблица6[[#This Row],['#]])) ->  | J80: =IF(SUMIFS(Baza[WIN$],Baza[B],Таблица6[[#This Row],['#]])=0,"",SUMIFS(Baza[WIN$],Baza[B],Таблица6[[#This Row],['#]])) -> 
B81: =IFERROR(INDEX(Baza[B],SMALL(IF(SMALL(IF(COUNTIF($B$61:$B80,Baza[B])=0,COUNTIF(Baza[B],"<"&Baza[B])+1,""),1)=COUNTIF(Baza[B],"<"&Baza[B])+1,ROW(Baza[B])-MIN(ROW(Baza[B]))+1),1)),"") ->  | C81: =IF(Таблица6[[#This Row],['#]]="","",COUNTIFS(Baza[B],Таблица6[[#This Row],['#]])+SUMIFS(Baza[R],Baza[B],Таблица6[[#This Row],['#]])) ->  | D81: =IF(Таблица6[[#This Row],['#]]="","",SUMIFS(Baza[B$],Baza[B],Таблица6[[#This Row],['#]])) ->  | F81: =IFERROR(AVERAGEIFS(Baza[AFS],Baza[B],Таблица6[[#This Row],['#]])+(AVERAGEIFS(Baza[AFS],Baza[B],Таблица6[[#This Row],['#]])*0.2),"") ->  | H81: =IFERROR(COUNTIFS(Baza[B],Таблица6[[#This Row],['#]],Baza[Win],">0")/C81*100,"") ->  | I81: =IF(SUMIFS(Baza[KO$],Baza[B],Таблица6[[#This Row],['#]])=0,"",SUMIFS(Baza[KO$],Baza[B],Таблица6[[#This Row],['#]])) ->  | J81: =IF(SUMIFS(Baza[WIN$],Baza[B],Таблица6[[#This Row],['#]])=0,"",SUMIFS(Baza[WIN$],Baza[B],Таблица6[[#This Row],['#]])) -> 
B82: =IFERROR(INDEX(Baza[B],SMALL(IF(SMALL(IF(COUNTIF($B$61:$B81,Baza[B])=0,COUNTIF(Baza[B],"<"&Baza[B])+1,""),1)=COUNTIF(Baza[B],"<"&Baza[B])+1,ROW(Baza[B])-MIN(ROW(Baza[B]))+1),1)),"") ->  | C82: =IF(Таблица6[[#This Row],['#]]="","",COUNTIFS(Baza[B],Таблица6[[#This Row],['#]])+SUMIFS(Baza[R],Baza[B],Таблица6[[#This Row],['#]])) ->  | D82: =IF(Таблица6[[#This Row],['#]]="","",SUMIFS(Baza[B$],Baza[B],Таблица6[[#This Row],['#]])) ->  | F82: =IFERROR(AVERAGEIFS(Baza[AFS],Baza[B],Таблица6[[#This Row],['#]])+(AVERAGEIFS(Baza[AFS],Baza[B],Таблица6[[#This Row],['#]])*0.2),"") ->  | H82: =IFERROR(COUNTIFS(Baza[B],Таблица6[[#This Row],['#]],Baza[Win],">0")/C82*100,"") ->  | I82: =IF(SUMIFS(Baza[KO$],Baza[B],Таблица6[[#This Row],['#]])=0,"",SUMIFS(Baza[KO$],Baza[B],Таблица6[[#This Row],['#]])) ->  | J82: =IF(SUMIFS(Baza[WIN$],Baza[B],Таблица6[[#This Row],['#]])=0,"",SUMIFS(Baza[WIN$],Baza[B],Таблица6[[#This Row],['#]])) -> 
B83: =IFERROR(INDEX(Baza[B],SMALL(IF(SMALL(IF(COUNTIF($B$61:$B82,Baza[B])=0,COUNTIF(Baza[B],"<"&Baza[B])+1,""),1)=COUNTIF(Baza[B],"<"&Baza[B])+1,ROW(Baza[B])-MIN(ROW(Baza[B]))+1),1)),"") ->  | C83: =IF(Таблица6[[#This Row],['#]]="","",COUNTIFS(Baza[B],Таблица6[[#This Row],['#]])+SUMIFS(Baza[R],Baza[B],Таблица6[[#This Row],['#]])) ->  | D83: =IF(Таблица6[[#This Row],['#]]="","",SUMIFS(Baza[B$],Baza[B],Таблица6[[#This Row],['#]])) ->  | F83: =IFERROR(AVERAGEIFS(Baza[AFS],Baza[B],Таблица6[[#This Row],['#]])+(AVERAGEIFS(Baza[AFS],Baza[B],Таблица6[[#This Row],['#]])*0.2),"") ->  | H83: =IFERROR(COUNTIFS(Baza[B],Таблица6[[#This Row],['#]],Baza[Win],">0")/C83*100,"") ->  | I83: =IF(SUMIFS(Baza[KO$],Baza[B],Таблица6[[#This Row],['#]])=0,"",SUMIFS(Baza[KO$],Baza[B],Таблица6[[#This Row],['#]])) ->  | J83: =IF(SUMIFS(Baza[WIN$],Baza[B],Таблица6[[#This Row],['#]])=0,"",SUMIFS(Baza[WIN$],Baza[B],Таблица6[[#This Row],['#]])) -> 
B84: =IFERROR(INDEX(Baza[B],SMALL(IF(SMALL(IF(COUNTIF($B$61:$B83,Baza[B])=0,COUNTIF(Baza[B],"<"&Baza[B])+1,""),1)=COUNTIF(Baza[B],"<"&Baza[B])+1,ROW(Baza[B])-MIN(ROW(Baza[B]))+1),1)),"") ->  | C84: =IF(Таблица6[[#This Row],['#]]="","",COUNTIFS(Baza[B],Таблица6[[#This Row],['#]])+SUMIFS(Baza[R],Baza[B],Таблица6[[#This Row],['#]])) ->  | D84: =IF(Таблица6[[#This Row],['#]]="","",SUMIFS(Baza[B$],Baza[B],Таблица6[[#This Row],['#]])) ->  | F84: =IFERROR(AVERAGEIFS(Baza[AFS],Baza[B],Таблица6[[#This Row],['#]])+(AVERAGEIFS(Baza[AFS],Baza[B],Таблица6[[#This Row],['#]])*0.2),"") ->  | H84: =IFERROR(COUNTIFS(Baza[B],Таблица6[[#This Row],['#]],Baza[Win],">0")/C84*100,"") ->  | I84: =IF(SUMIFS(Baza[KO$],Baza[B],Таблица6[[#This Row],['#]])=0,"",SUMIFS(Baza[KO$],Baza[B],Таблица6[[#This Row],['#]])) ->  | J84: =IF(SUMIFS(Baza[WIN$],Baza[B],Таблица6[[#This Row],['#]])=0,"",SUMIFS(Baza[WIN$],Baza[B],Таблица6[[#This Row],['#]])) -> 
B85: =IFERROR(INDEX(Baza[B],SMALL(IF(SMALL(IF(COUNTIF($B$61:$B84,Baza[B])=0,COUNTIF(Baza[B],"<"&Baza[B])+1,""),1)=COUNTIF(Baza[B],"<"&Baza[B])+1,ROW(Baza[B])-MIN(ROW(Baza[B]))+1),1)),"") ->  | C85: =IF(Таблица6[[#This Row],['#]]="","",COUNTIFS(Baza[B],Таблица6[[#This Row],['#]])+SUMIFS(Baza[R],Baza[B],Таблица6[[#This Row],['#]])) ->  | D85: =IF(Таблица6[[#This Row],['#]]="","",SUMIFS(Baza[B$],Baza[B],Таблица6[[#This Row],['#]])) ->  | F85: =IFERROR(AVERAGEIFS(Baza[AFS],Baza[B],Таблица6[[#This Row],['#]])+(AVERAGEIFS(Baza[AFS],Baza[B],Таблица6[[#This Row],['#]])*0.2),"") ->  | H85: =IFERROR(COUNTIFS(Baza[B],Таблица6[[#This Row],['#]],Baza[Win],">0")/C85*100,"") ->  | I85: =IF(SUMIFS(Baza[KO$],Baza[B],Таблица6[[#This Row],['#]])=0,"",SUMIFS(Baza[KO$],Baza[B],Таблица6[[#This Row],['#]])) ->  | J85: =IF(SUMIFS(Baza[WIN$],Baza[B],Таблица6[[#This Row],['#]])=0,"",SUMIFS(Baza[WIN$],Baza[B],Таблица6[[#This Row],['#]])) -> 
B86: =IFERROR(INDEX(Baza[B],SMALL(IF(SMALL(IF(COUNTIF($B$61:$B85,Baza[B])=0,COUNTIF(Baza[B],"<"&Baza[B])+1,""),1)=COUNTIF(Baza[B],"<"&Baza[B])+1,ROW(Baza[B])-MIN(ROW(Baza[B]))+1),1)),"") ->  | C86: =IF(Таблица6[[#This Row],['#]]="","",COUNTIFS(Baza[B],Таблица6[[#This Row],['#]])+SUMIFS(Baza[R],Baza[B],Таблица6[[#This Row],['#]])) ->  | D86: =IF(Таблица6[[#This Row],['#]]="","",SUMIFS(Baza[B$],Baza[B],Таблица6[[#This Row],['#]])) ->  | F86: =IFERROR(AVERAGEIFS(Baza[AFS],Baza[B],Таблица6[[#This Row],['#]])+(AVERAGEIFS(Baza[AFS],Baza[B],Таблица6[[#This Row],['#]])*0.2),"") ->  | H86: =IFERROR(COUNTIFS(Baza[B],Таблица6[[#This Row],['#]],Baza[Win],">0")/C86*100,"") ->  | I86: =IF(SUMIFS(Baza[KO$],Baza[B],Таблица6[[#This Row],['#]])=0,"",SUMIFS(Baza[KO$],Baza[B],Таблица6[[#This Row],['#]])) ->  | J86: =IF(SUMIFS(Baza[WIN$],Baza[B],Таблица6[[#This Row],['#]])=0,"",SUMIFS(Baza[WIN$],Baza[B],Таблица6[[#This Row],['#]])) -> 
B87: =IFERROR(INDEX(Baza[B],SMALL(IF(SMALL(IF(COUNTIF($B$61:$B86,Baza[B])=0,COUNTIF(Baza[B],"<"&Baza[B])+1,""),1)=COUNTIF(Baza[B],"<"&Baza[B])+1,ROW(Baza[B])-MIN(ROW(Baza[B]))+1),1)),"") ->  | C87: =IF(Таблица6[[#This Row],['#]]="","",COUNTIFS(Baza[B],Таблица6[[#This Row],['#]])+SUMIFS(Baza[R],Baza[B],Таблица6[[#This Row],['#]])) ->  | D87: =IF(Таблица6[[#This Row],['#]]="","",SUMIFS(Baza[B$],Baza[B],Таблица6[[#This Row],['#]])) ->  | F87: =IFERROR(AVERAGEIFS(Baza[AFS],Baza[B],Таблица6[[#This Row],['#]])+(AVERAGEIFS(Baza[AFS],Baza[B],Таблица6[[#This Row],['#]])*0.2),"") ->  | H87: =IFERROR(COUNTIFS(Baza[B],Таблица6[[#This Row],['#]],Baza[Win],">0")/C87*100,"") ->  | I87: =IF(SUMIFS(Baza[KO$],Baza[B],Таблица6[[#This Row],['#]])=0,"",SUMIFS(Baza[KO$],Baza[B],Таблица6[[#This Row],['#]])) ->  | J87: =IF(SUMIFS(Baza[WIN$],Baza[B],Таблица6[[#This Row],['#]])=0,"",SUMIFS(Baza[WIN$],Baza[B],Таблица6[[#This Row],['#]])) -> 
B88: =IFERROR(INDEX(Baza[B],SMALL(IF(SMALL(IF(COUNTIF($B$61:$B87,Baza[B])=0,COUNTIF(Baza[B],"<"&Baza[B])+1,""),1)=COUNTIF(Baza[B],"<"&Baza[B])+1,ROW(Baza[B])-MIN(ROW(Baza[B]))+1),1)),"") ->  | C88: =IF(Таблица6[[#This Row],['#]]="","",COUNTIFS(Baza[B],Таблица6[[#This Row],['#]])+SUMIFS(Baza[R],Baza[B],Таблица6[[#This Row],['#]])) ->  | D88: =IF(Таблица6[[#This Row],['#]]="","",SUMIFS(Baza[B$],Baza[B],Таблица6[[#This Row],['#]])) ->  | F88: =IFERROR(AVERAGEIFS(Baza[AFS],Baza[B],Таблица6[[#This Row],['#]])+(AVERAGEIFS(Baza[AFS],Baza[B],Таблица6[[#This Row],['#]])*0.2),"") ->  | H88: =IFERROR(COUNTIFS(Baza[B],Таблица6[[#This Row],['#]],Baza[Win],">0")/C88*100,"") ->  | I88: =IF(SUMIFS(Baza[KO$],Baza[B],Таблица6[[#This Row],['#]])=0,"",SUMIFS(Baza[KO$],Baza[B],Таблица6[[#This Row],['#]])) ->  | J88: =IF(SUMIFS(Baza[WIN$],Baza[B],Таблица6[[#This Row],['#]])=0,"",SUMIFS(Baza[WIN$],Baza[B],Таблица6[[#This Row],['#]])) -> 
B89: =IFERROR(INDEX(Baza[B],SMALL(IF(SMALL(IF(COUNTIF($B$61:$B88,Baza[B])=0,COUNTIF(Baza[B],"<"&Baza[B])+1,""),1)=COUNTIF(Baza[B],"<"&Baza[B])+1,ROW(Baza[B])-MIN(ROW(Baza[B]))+1),1)),"") ->  | C89: =IF(Таблица6[[#This Row],['#]]="","",COUNTIFS(Baza[B],Таблица6[[#This Row],['#]])+SUMIFS(Baza[R],Baza[B],Таблица6[[#This Row],['#]])) ->  | D89: =IF(Таблица6[[#This Row],['#]]="","",SUMIFS(Baza[B$],Baza[B],Таблица6[[#This Row],['#]])) ->  | F89: =IFERROR(AVERAGEIFS(Baza[AFS],Baza[B],Таблица6[[#This Row],['#]])+(AVERAGEIFS(Baza[AFS],Baza[B],Таблица6[[#This Row],['#]])*0.2),"") ->  | H89: =IFERROR(COUNTIFS(Baza[B],Таблица6[[#This Row],['#]],Baza[Win],">0")/C89*100,"") ->  | I89: =IF(SUMIFS(Baza[KO$],Baza[B],Таблица6[[#This Row],['#]])=0,"",SUMIFS(Baza[KO$],Baza[B],Таблица6[[#This Row],['#]])) ->  | J89: =IF(SUMIFS(Baza[WIN$],Baza[B],Таблица6[[#This Row],['#]])=0,"",SUMIFS(Baza[WIN$],Baza[B],Таблица6[[#This Row],['#]])) -> 
B90: =IFERROR(INDEX(Baza[B],SMALL(IF(SMALL(IF(COUNTIF($B$61:$B89,Baza[B])=0,COUNTIF(Baza[B],"<"&Baza[B])+1,""),1)=COUNTIF(Baza[B],"<"&Baza[B])+1,ROW(Baza[B])-MIN(ROW(Baza[B]))+1),1)),"") ->  | C90: =IF(Таблица6[[#This Row],['#]]="","",COUNTIFS(Baza[B],Таблица6[[#This Row],['#]])+SUMIFS(Baza[R],Baza[B],Таблица6[[#This Row],['#]])) ->  | D90: =IF(Таблица6[[#This Row],['#]]="","",SUMIFS(Baza[B$],Baza[B],Таблица6[[#This Row],['#]])) ->  | F90: =IFERROR(AVERAGEIFS(Baza[AFS],Baza[B],Таблица6[[#This Row],['#]])+(AVERAGEIFS(Baza[AFS],Baza[B],Таблица6[[#This Row],['#]])*0.2),"") ->  | H90: =IFERROR(COUNTIFS(Baza[B],Таблица6[[#This Row],['#]],Baza[Win],">0")/C90*100,"") ->  | I90: =IF(SUMIFS(Baza[KO$],Baza[B],Таблица6[[#This Row],['#]])=0,"",SUMIFS(Baza[KO$],Baza[B],Таблица6[[#This Row],['#]])) ->  | J90: =IF(SUMIFS(Baza[WIN$],Baza[B],Таблица6[[#This Row],['#]])=0,"",SUMIFS(Baza[WIN$],Baza[B],Таблица6[[#This Row],['#]])) -> 
B91: =IFERROR(INDEX(Baza[B],SMALL(IF(SMALL(IF(COUNTIF($B$61:$B90,Baza[B])=0,COUNTIF(Baza[B],"<"&Baza[B])+1,""),1)=COUNTIF(Baza[B],"<"&Baza[B])+1,ROW(Baza[B])-MIN(ROW(Baza[B]))+1),1)),"") ->  | C91: =IF(Таблица6[[#This Row],['#]]="","",COUNTIFS(Baza[B],Таблица6[[#This Row],['#]])+SUMIFS(Baza[R],Baza[B],Таблица6[[#This Row],['#]])) ->  | D91: =IF(Таблица6[[#This Row],['#]]="","",SUMIFS(Baza[B$],Baza[B],Таблица6[[#This Row],['#]])) ->  | F91: =IFERROR(AVERAGEIFS(Baza[AFS],Baza[B],Таблица6[[#This Row],['#]])+(AVERAGEIFS(Baza[AFS],Baza[B],Таблица6[[#This Row],['#]])*0.2),"") ->  | H91: =IFERROR(COUNTIFS(Baza[B],Таблица6[[#This Row],['#]],Baza[Win],">0")/C91*100,"") ->  | I91: =IF(SUMIFS(Baza[KO$],Baza[B],Таблица6[[#This Row],['#]])=0,"",SUMIFS(Baza[KO$],Baza[B],Таблица6[[#This Row],['#]])) ->  | J91: =IF(SUMIFS(Baza[WIN$],Baza[B],Таблица6[[#This Row],['#]])=0,"",SUMIFS(Baza[WIN$],Baza[B],Таблица6[[#This Row],['#]])) -> 
B92: =IFERROR(INDEX(Baza[B],SMALL(IF(SMALL(IF(COUNTIF($B$61:$B91,Baza[B])=0,COUNTIF(Baza[B],"<"&Baza[B])+1,""),1)=COUNTIF(Baza[B],"<"&Baza[B])+1,ROW(Baza[B])-MIN(ROW(Baza[B]))+1),1)),"") ->  | C92: =IF(Таблица6[[#This Row],['#]]="","",COUNTIFS(Baza[B],Таблица6[[#This Row],['#]])+SUMIFS(Baza[R],Baza[B],Таблица6[[#This Row],['#]])) ->  | D92: =IF(Таблица6[[#This Row],['#]]="","",SUMIFS(Baza[B$],Baza[B],Таблица6[[#This Row],['#]])) ->  | F92: =IFERROR(AVERAGEIFS(Baza[AFS],Baza[B],Таблица6[[#This Row],['#]])+(AVERAGEIFS(Baza[AFS],Baza[B],Таблица6[[#This Row],['#]])*0.2),"") ->  | H92: =IFERROR(COUNTIFS(Baza[B],Таблица6[[#This Row],['#]],Baza[Win],">0")/C92*100,"") ->  | I92: =IF(SUMIFS(Baza[KO$],Baza[B],Таблица6[[#This Row],['#]])=0,"",SUMIFS(Baza[KO$],Baza[B],Таблица6[[#This Row],['#]])) ->  | J92: =IF(SUMIFS(Baza[WIN$],Baza[B],Таблица6[[#This Row],['#]])=0,"",SUMIFS(Baza[WIN$],Baza[B],Таблица6[[#This Row],['#]])) -> 
B93: =IFERROR(INDEX(Baza[B],SMALL(IF(SMALL(IF(COUNTIF($B$61:$B92,Baza[B])=0,COUNTIF(Baza[B],"<"&Baza[B])+1,""),1)=COUNTIF(Baza[B],"<"&Baza[B])+1,ROW(Baza[B])-MIN(ROW(Baza[B]))+1),1)),"") ->  | C93: =IF(Таблица6[[#This Row],['#]]="","",COUNTIFS(Baza[B],Таблица6[[#This Row],['#]])+SUMIFS(Baza[R],Baza[B],Таблица6[[#This Row],['#]])) ->  | D93: =IF(Таблица6[[#This Row],['#]]="","",SUMIFS(Baza[B$],Baza[B],Таблица6[[#This Row],['#]])) ->  | F93: =IFERROR(AVERAGEIFS(Baza[AFS],Baza[B],Таблица6[[#This Row],['#]])+(AVERAGEIFS(Baza[AFS],Baza[B],Таблица6[[#This Row],['#]])*0.2),"") ->  | H93: =IFERROR(COUNTIFS(Baza[B],Таблица6[[#This Row],['#]],Baza[Win],">0")/C93*100,"") ->  | I93: =IF(SUMIFS(Baza[KO$],Baza[B],Таблица6[[#This Row],['#]])=0,"",SUMIFS(Baza[KO$],Baza[B],Таблица6[[#This Row],['#]])) ->  | J93: =IF(SUMIFS(Baza[WIN$],Baza[B],Таблица6[[#This Row],['#]])=0,"",SUMIFS(Baza[WIN$],Baza[B],Таблица6[[#This Row],['#]])) -> 
B94: =IFERROR(INDEX(Baza[B],SMALL(IF(SMALL(IF(COUNTIF($B$61:$B93,Baza[B])=0,COUNTIF(Baza[B],"<"&Baza[B])+1,""),1)=COUNTIF(Baza[B],"<"&Baza[B])+1,ROW(Baza[B])-MIN(ROW(Baza[B]))+1),1)),"") ->  | C94: =IF(Таблица6[[#This Row],['#]]="","",COUNTIFS(Baza[B],Таблица6[[#This Row],['#]])+SUMIFS(Baza[R],Baza[B],Таблица6[[#This Row],['#]])) ->  | D94: =IF(Таблица6[[#This Row],['#]]="","",SUMIFS(Baza[B$],Baza[B],Таблица6[[#This Row],['#]])) ->  | F94: =IFERROR(AVERAGEIFS(Baza[AFS],Baza[B],Таблица6[[#This Row],['#]])+(AVERAGEIFS(Baza[AFS],Baza[B],Таблица6[[#This Row],['#]])*0.2),"") ->  | H94: =IFERROR(COUNTIFS(Baza[B],Таблица6[[#This Row],['#]],Baza[Win],">0")/C94*100,"") ->  | I94: =IF(SUMIFS(Baza[KO$],Baza[B],Таблица6[[#This Row],['#]])=0,"",SUMIFS(Baza[KO$],Baza[B],Таблица6[[#This Row],['#]])) ->  | J94: =IF(SUMIFS(Baza[WIN$],Baza[B],Таблица6[[#This Row],['#]])=0,"",SUMIFS(Baza[WIN$],Baza[B],Таблица6[[#This Row],['#]])) -> 
B95: =IFERROR(INDEX(Baza[B],SMALL(IF(SMALL(IF(COUNTIF($B$61:$B94,Baza[B])=0,COUNTIF(Baza[B],"<"&Baza[B])+1,""),1)=COUNTIF(Baza[B],"<"&Baza[B])+1,ROW(Baza[B])-MIN(ROW(Baza[B]))+1),1)),"") ->  | C95: =IF(Таблица6[[#This Row],['#]]="","",COUNTIFS(Baza[B],Таблица6[[#This Row],['#]])+SUMIFS(Baza[R],Baza[B],Таблица6[[#This Row],['#]])) ->  | D95: =IF(Таблица6[[#This Row],['#]]="","",SUMIFS(Baza[B$],Baza[B],Таблица6[[#This Row],['#]])) ->  | F95: =IFERROR(AVERAGEIFS(Baza[AFS],Baza[B],Таблица6[[#This Row],['#]])+(AVERAGEIFS(Baza[AFS],Baza[B],Таблица6[[#This Row],['#]])*0.2),"") ->  | H95: =IFERROR(COUNTIFS(Baza[B],Таблица6[[#This Row],['#]],Baza[Win],">0")/C95*100,"") ->  | I95: =IF(SUMIFS(Baza[KO$],Baza[B],Таблица6[[#This Row],['#]])=0,"",SUMIFS(Baza[KO$],Baza[B],Таблица6[[#This Row],['#]])) ->  | J95: =IF(SUMIFS(Baza[WIN$],Baza[B],Таблица6[[#This Row],['#]])=0,"",SUMIFS(Baza[WIN$],Baza[B],Таблица6[[#This Row],['#]])) -> 
B96: =IFERROR(INDEX(Baza[B],SMALL(IF(SMALL(IF(COUNTIF($B$61:$B95,Baza[B])=0,COUNTIF(Baza[B],"<"&Baza[B])+1,""),1)=COUNTIF(Baza[B],"<"&Baza[B])+1,ROW(Baza[B])-MIN(ROW(Baza[B]))+1),1)),"") ->  | C96: =IF(Таблица6[[#This Row],['#]]="","",COUNTIFS(Baza[B],Таблица6[[#This Row],['#]])+SUMIFS(Baza[R],Baza[B],Таблица6[[#This Row],['#]])) ->  | D96: =IF(Таблица6[[#This Row],['#]]="","",SUMIFS(Baza[B$],Baza[B],Таблица6[[#This Row],['#]])) ->  | F96: =IFERROR(AVERAGEIFS(Baza[AFS],Baza[B],Таблица6[[#This Row],['#]])+(AVERAGEIFS(Baza[AFS],Baza[B],Таблица6[[#This Row],['#]])*0.2),"") ->  | H96: =IFERROR(COUNTIFS(Baza[B],Таблица6[[#This Row],['#]],Baza[Win],">0")/C96*100,"") ->  | I96: =IF(SUMIFS(Baza[KO$],Baza[B],Таблица6[[#This Row],['#]])=0,"",SUMIFS(Baza[KO$],Baza[B],Таблица6[[#This Row],['#]])) ->  | J96: =IF(SUMIFS(Baza[WIN$],Baza[B],Таблица6[[#This Row],['#]])=0,"",SUMIFS(Baza[WIN$],Baza[B],Таблица6[[#This Row],['#]])) -> 
B97: =IFERROR(INDEX(Baza[B],SMALL(IF(SMALL(IF(COUNTIF($B$61:$B96,Baza[B])=0,COUNTIF(Baza[B],"<"&Baza[B])+1,""),1)=COUNTIF(Baza[B],"<"&Baza[B])+1,ROW(Baza[B])-MIN(ROW(Baza[B]))+1),1)),"") ->  | C97: =IF(Таблица6[[#This Row],['#]]="","",COUNTIFS(Baza[B],Таблица6[[#This Row],['#]])+SUMIFS(Baza[R],Baza[B],Таблица6[[#This Row],['#]])) ->  | D97: =IF(Таблица6[[#This Row],['#]]="","",SUMIFS(Baza[B$],Baza[B],Таблица6[[#This Row],['#]])) ->  | F97: =IFERROR(AVERAGEIFS(Baza[AFS],Baza[B],Таблица6[[#This Row],['#]])+(AVERAGEIFS(Baza[AFS],Baza[B],Таблица6[[#This Row],['#]])*0.2),"") ->  | H97: =IFERROR(COUNTIFS(Baza[B],Таблица6[[#This Row],['#]],Baza[Win],">0")/C97*100,"") ->  | I97: =IF(SUMIFS(Baza[KO$],Baza[B],Таблица6[[#This Row],['#]])=0,"",SUMIFS(Baza[KO$],Baza[B],Таблица6[[#This Row],['#]])) ->  | J97: =IF(SUMIFS(Baza[WIN$],Baza[B],Таблица6[[#This Row],['#]])=0,"",SUMIFS(Baza[WIN$],Baza[B],Таблица6[[#This Row],['#]])) -> 
B98: =IFERROR(INDEX(Baza[B],SMALL(IF(SMALL(IF(COUNTIF($B$61:$B97,Baza[B])=0,COUNTIF(Baza[B],"<"&Baza[B])+1,""),1)=COUNTIF(Baza[B],"<"&Baza[B])+1,ROW(Baza[B])-MIN(ROW(Baza[B]))+1),1)),"") ->  | C98: =IF(Таблица6[[#This Row],['#]]="","",COUNTIFS(Baza[B],Таблица6[[#This Row],['#]])+SUMIFS(Baza[R],Baza[B],Таблица6[[#This Row],['#]])) ->  | D98: =IF(Таблица6[[#This Row],['#]]="","",SUMIFS(Baza[B$],Baza[B],Таблица6[[#This Row],['#]])) ->  | F98: =IFERROR(AVERAGEIFS(Baza[AFS],Baza[B],Таблица6[[#This Row],['#]])+(AVERAGEIFS(Baza[AFS],Baza[B],Таблица6[[#This Row],['#]])*0.2),"") ->  | H98: =IFERROR(COUNTIFS(Baza[B],Таблица6[[#This Row],['#]],Baza[Win],">0")/C98*100,"") ->  | I98: =IF(SUMIFS(Baza[KO$],Baza[B],Таблица6[[#This Row],['#]])=0,"",SUMIFS(Baza[KO$],Baza[B],Таблица6[[#This Row],['#]])) ->  | J98: =IF(SUMIFS(Baza[WIN$],Baza[B],Таблица6[[#This Row],['#]])=0,"",SUMIFS(Baza[WIN$],Baza[B],Таблица6[[#This Row],['#]])) -> 
B99: =IFERROR(INDEX(Baza[B],SMALL(IF(SMALL(IF(COUNTIF($B$61:$B98,Baza[B])=0,COUNTIF(Baza[B],"<"&Baza[B])+1,""),1)=COUNTIF(Baza[B],"<"&Baza[B])+1,ROW(Baza[B])-MIN(ROW(Baza[B]))+1),1)),"") ->  | C99: =IF(Таблица6[[#This Row],['#]]="","",COUNTIFS(Baza[B],Таблица6[[#This Row],['#]])+SUMIFS(Baza[R],Baza[B],Таблица6[[#This Row],['#]])) ->  | D99: =IF(Таблица6[[#This Row],['#]]="","",SUMIFS(Baza[B$],Baza[B],Таблица6[[#This Row],['#]])) ->  | F99: =IFERROR(AVERAGEIFS(Baza[AFS],Baza[B],Таблица6[[#This Row],['#]])+(AVERAGEIFS(Baza[AFS],Baza[B],Таблица6[[#This Row],['#]])*0.2),"") ->  | H99: =IFERROR(COUNTIFS(Baza[B],Таблица6[[#This Row],['#]],Baza[Win],">0")/C99*100,"") ->  | I99: =IF(SUMIFS(Baza[KO$],Baza[B],Таблица6[[#This Row],['#]])=0,"",SUMIFS(Baza[KO$],Baza[B],Таблица6[[#This Row],['#]])) ->  | J99: =IF(SUMIFS(Baza[WIN$],Baza[B],Таблица6[[#This Row],['#]])=0,"",SUMIFS(Baza[WIN$],Baza[B],Таблица6[[#This Row],['#]])) -> 
B100: =IFERROR(INDEX(Baza[B],SMALL(IF(SMALL(IF(COUNTIF($B$61:$B99,Baza[B])=0,COUNTIF(Baza[B],"<"&Baza[B])+1,""),1)=COUNTIF(Baza[B],"<"&Baza[B])+1,ROW(Baza[B])-MIN(ROW(Baza[B]))+1),1)),"") ->  | C100: =IF(Таблица6[[#This Row],['#]]="","",COUNTIFS(Baza[B],Таблица6[[#This Row],['#]])+SUMIFS(Baza[R],Baza[B],Таблица6[[#This Row],['#]])) ->  | D100: =IF(Таблица6[[#This Row],['#]]="","",SUMIFS(Baza[B$],Baza[B],Таблица6[[#This Row],['#]])) ->  | F100: =IFERROR(AVERAGEIFS(Baza[AFS],Baza[B],Таблица6[[#This Row],['#]])+(AVERAGEIFS(Baza[AFS],Baza[B],Таблица6[[#This Row],['#]])*0.2),"") ->  | H100: =IFERROR(COUNTIFS(Baza[B],Таблица6[[#This Row],['#]],Baza[Win],">0")/C100*100,"") ->  | I100: =IF(SUMIFS(Baza[KO$],Baza[B],Таблица6[[#This Row],['#]])=0,"",SUMIFS(Baza[KO$],Baza[B],Таблица6[[#This Row],['#]])) ->  | J100: =IF(SUMIFS(Baza[WIN$],Baza[B],Таблица6[[#This Row],['#]])=0,"",SUMIFS(Baza[WIN$],Baza[B],Таблица6[[#This Row],['#]])) -> 
B101: =IFERROR(INDEX(Baza[B],SMALL(IF(SMALL(IF(COUNTIF($B$61:$B100,Baza[B])=0,COUNTIF(Baza[B],"<"&Baza[B])+1,""),1)=COUNTIF(Baza[B],"<"&Baza[B])+1,ROW(Baza[B])-MIN(ROW(Baza[B]))+1),1)),"") ->  | C101: =IF(Таблица6[[#This Row],['#]]="","",COUNTIFS(Baza[B],Таблица6[[#This Row],['#]])+SUMIFS(Baza[R],Baza[B],Таблица6[[#This Row],['#]])) ->  | D101: =IF(Таблица6[[#This Row],['#]]="","",SUMIFS(Baza[B$],Baza[B],Таблица6[[#This Row],['#]])) ->  | F101: =IFERROR(AVERAGEIFS(Baza[AFS],Baza[B],Таблица6[[#This Row],['#]])+(AVERAGEIFS(Baza[AFS],Baza[B],Таблица6[[#This Row],['#]])*0.2),"") ->  | H101: =IFERROR(COUNTIFS(Baza[B],Таблица6[[#This Row],['#]],Baza[Win],">0")/C101*100,"") ->  | I101: =IF(SUMIFS(Baza[KO$],Baza[B],Таблица6[[#This Row],['#]])=0,"",SUMIFS(Baza[KO$],Baza[B],Таблица6[[#This Row],['#]])) ->  | J101: =IF(SUMIFS(Baza[WIN$],Baza[B],Таблица6[[#This Row],['#]])=0,"",SUMIFS(Baza[WIN$],Baza[B],Таблица6[[#This Row],['#]])) -> 

Sheet SETKA
I2: T | J2: Turbo
I3: H | J3: Hyper
I4: - | J4: Regular
I5: …
J7: K | K7: PKO, KO
J8: - | K8: Regular
J9: …
K11: S | L11: Series
K12: P | L12: Phased
K13: P1 | L13: Phased day 1
K14: P2 | L14: Phased day 2
K15: Z | L15: Zoom
K16: …
M18: Bounty
N20: Win
P22: re-entry
A23: =IFERROR(INDEX(#REF!,MATCH(0,IF(TRUE=#REF!,0,1)+COUNTIF(#REF!,#REF!),0)),"") -> 
A24: =IFERROR(INDEX(#REF!,MATCH(0,IF(TRUE=#REF!,0,1)+COUNTIF(#REF!,#REF!),0)),"") ->  | C24: 1 | D24: 2 | E24: 3 | F24: 4 | G24: 5 | H24: 6 | I24: 7 | J24: 8 | K24: 9 | L24: 10 | M24: 11 | N24: 12 | O24: 13 | P24: 14 | Q24: 15
A25: =IFERROR(INDEX(#REF!,MATCH(0,IF(TRUE=#REF!,0,1)+COUNTIF(#REF!,#REF!),0)),"") ->  | C25: 11:00:00 | D25: 10:30:00 | E25: 5.25 | F25: GG | G25: Bounty Hunters | H25: 8 | I25: - | J25: K | K25: - | L25: 2500 | P25: - | Q25: FALSE
A26: =IFERROR(INDEX(#REF!,MATCH(0,IF(TRUE=#REF!,0,1)+COUNTIF(#REF!,#REF!),0)),"") ->  | C26: 11:15:00 | D26: 11:15:00 | E26: 2.2 | F26: PP | G26: Deepstack | H26: 8 | I26: - | J26: - | K26: - | L26: 300 | P26: - | Q26: FALSE
A27: =IFERROR(INDEX(#REF!,MATCH(0,IF(TRUE=#REF!,0,1)+COUNTIF(#REF!,#REF!),0)),"") ->  | C27: 11:30:00 | D27: 11:30:00 | E27: 2.1 | F27: GG | G27: Bounty Hunters | H27: 8 | I27: - | J27: K | K27: - | L27: 1200 | P27: - | Q27: FALSE
A28: =IFERROR(INDEX(#REF!,MATCH(0,IF(TRUE=#REF!,0,1)+COUNTIF(#REF!,#REF!),0)),"") ->  | C28: 11:30:00 | D28: 11:30:00 | E28: 3.3 | F28: PP | G28: Bounty Hunter | H28: 8 | I28: - | J28: K | K28: - | L28: 500 | P28: - | Q28: FALSE
A29: =IFERROR(INDEX(#REF!,MATCH(0,IF(TRUE=#REF!,0,1)+COUNTIF(#REF!,#REF!),0)),"") ->  | C29: 11:40:00 | D29: 11:40:00 | E29: 3.3 | F29: PS | G29: GTD | H29: 9 | I29: - | J29: - | K29: - | L29: 750 | P29: - | Q29: FALSE
A30: =IFERROR(INDEX(#REF!,MATCH(0,IF(TRUE=#REF!,0,1)+COUNTIF(#REF!,#REF!),0)),"") ->  | C30: 12:00:00 | D30: 12:00:00 | E30: 1.1 | F30: PP | G30: Deepstack | H30: 8 | I30: - | J30: - | K30: - | L30: 200 | P30: - | Q30: FALSE
A31: =IFERROR(INDEX(#REF!,MATCH(0,IF(TRUE=#REF!,0,1)+COUNTIF(#REF!,#REF!),0)),"") ->  | C31: 12:40:00 | D31: 12:00:00 | E31: 1.1 | F31: PS | G31: Big | H31: 9 | I31: - | J31: - | K31: - | L31: 1000 | P31: - | Q31: FALSE
A32: =IFERROR(INDEX(#REF!,MATCH(0,IF(TRUE=#REF!,0,1)+COUNTIF(#REF!,#REF!),0)),"") ->  | C32: 12:00:00 | D32: 12:00:00 | E32: 2 | F32: WN | G32: Monster Stack | H32: 6 | I32: - | J32: - | K32: - | L32: 200 | P32: - | Q32: FALSE
A33: =IFERROR(INDEX(#REF!,MATCH(0,IF(TRUE=#REF!,0,1)+COUNTIF(#REF!,#REF!),0)),"") ->  | C33: 12:16:00 | D33: 12:00:00 | E33: 5 | F33: GG | G33: Big | H33: 8 | I33: - | J33: - | K33: - | L33: 1500 | P33: - | Q33: FALSE
A34: =IFERROR(INDEX(#REF!,MATCH(0,IF(TRUE=#REF!,0,1)+COUNTIF(#REF!,#REF!),0)),"") ->  | C34: 12:00:00 | D34: 12:00:00 | E34: 5 | F34: WN | G34: Monster Stack | H34: 6 | I34: - | J34: - | K34: - | L34: 600 | P34: - | Q34: FALSE
A35: =IFERROR(INDEX(#REF!,MATCH(0,IF(TRUE=#REF!,0,1)+COUNTIF(#REF!,#REF!),0)),"") ->  | C35: 12:20:00 | D35: 12:20:00 | E35: 5.5 | F35: PS | G35: 30% Progressive KO | H35: 9 | I35: - | J35: K | K35: - | L35: 2500 | P35: - | Q35: FALSE
A36: =IFERROR(INDEX(#REF!,MATCH(0,IF(TRUE=#REF!,0,1)+COUNTIF(#REF!,#REF!),0)),"") ->  | C36: 12:30:00 | D36: 12:30:00 | E36: 1.05 | F36: GG | G36: Bounty Hunters | H36: 8 | I36: - | J36: K | K36: - | L36: 750 | P36: - | Q36: FALSE
A37: =IFERROR(INDEX(#REF!,MATCH(0,IF(TRUE=#REF!,0,1)+COUNTIF(#REF!,#REF!),0)),"") ->  | P37: - | Q37: FALSE
A38: =IFERROR(INDEX(#REF!,MATCH(0,IF(TRUE=#REF!,0,1)+COUNTIF(#REF!,#REF!),0)),"") ->  | P38: - | Q38: FALSE
A39: =IFERROR(INDEX(#REF!,MATCH(0,IF(TRUE=#REF!,0,1)+COUNTIF(#REF!,#REF!),0)),"") ->  | P39: - | Q39: FALSE
A40: =IFERROR(INDEX(#REF!,MATCH(0,IF(TRUE=#REF!,0,1)+COUNTIF(#REF!,#REF!),0)),"") ->  | P40: - | Q40: FALSE
A41: =IFERROR(INDEX(#REF!,MATCH(0,IF(TRUE=#REF!,0,1)+COUNTIF(#REF!,#REF!),0)),"") ->  | P41: - | Q41: FALSE
A42: =IFERROR(INDEX(#REF!,MATCH(0,IF(TRUE=#REF!,0,1)+COUNTIF(#REF!,#REF!),0)),"") ->  | P42: - | Q42: FALSE
A43: =IFERROR(INDEX(#REF!,MATCH(0,IF(TRUE=#REF!,0,1)+COUNTIF(#REF!,#REF!),0)),"") ->  | P43: - | Q43: FALSE
A44: =IFERROR(INDEX(#REF!,MATCH(0,IF(TRUE=#REF!,0,1)+COUNTIF(#REF!,#REF!),0)),"") ->  | P44: - | Q44: FALSE
A45: =IFERROR(INDEX(#REF!,MATCH(0,IF(TRUE=#REF!,0,1)+COUNTIF(#REF!,#REF!),0)),"") ->  | P45: - | Q45: FALSE
A46: =IFERROR(INDEX(#REF!,MATCH(0,IF(TRUE=#REF!,0,1)+COUNTIF(#REF!,#REF!),0)),"") ->  | P46: - | Q46: FALSE
A47: =IFERROR(INDEX(#REF!,MATCH(0,IF(TRUE=#REF!,0,1)+COUNTIF(#REF!,#REF!),0)),"") ->  | P47: - | Q47: FALSE
A48: =IFERROR(INDEX(#REF!,MATCH(0,IF(TRUE=#REF!,0,1)+COUNTIF(#REF!,#REF!),0)),"") ->  | P48: - | Q48: FALSE
A49: =IFERROR(INDEX(#REF!,MATCH(0,IF(TRUE=#REF!,0,1)+COUNTIF(#REF!,#REF!),0)),"") ->  | P49: - | Q49: FALSE
A50: =IFERROR(INDEX(#REF!,MATCH(0,IF(TRUE=#REF!,0,1)+COUNTIF(#REF!,#REF!),0)),"") ->  | P50: - | Q50: FALSE
A51: =IFERROR(INDEX(#REF!,MATCH(0,IF(TRUE=#REF!,0,1)+COUNTIF(#REF!,#REF!),0)),"") ->  | P51: - | Q51: FALSE
A52: =IFERROR(INDEX(#REF!,MATCH(0,IF(TRUE=#REF!,0,1)+COUNTIF(#REF!,#REF!),0)),"") ->  | P52: - | Q52: FALSE
A53: =IFERROR(INDEX(#REF!,MATCH(0,IF(TRUE=#REF!,0,1)+COUNTIF(#REF!,#REF!),0)),"") ->  | P53: - | Q53: FALSE
A54: =IFERROR(INDEX(#REF!,MATCH(0,IF(TRUE=#REF!,0,1)+COUNTIF(#REF!,#REF!),0)),"") ->  | P54: - | Q54: FALSE
A55: =IFERROR(INDEX(#REF!,MATCH(0,IF(TRUE=#REF!,0,1)+COUNTIF(#REF!,#REF!),0)),"") ->  | P55: - | Q55: FALSE
A56: =IFERROR(INDEX(#REF!,MATCH(0,IF(TRUE=#REF!,0,1)+COUNTIF(#REF!,#REF!),0)),"") ->  | P56: - | Q56: FALSE
A57: =IFERROR(INDEX(#REF!,MATCH(0,IF(TRUE=#REF!,0,1)+COUNTIF(#REF!,#REF!),0)),"") ->  | P57: - | Q57: FALSE
A58: =IFERROR(INDEX(#REF!,MATCH(0,IF(TRUE=#REF!,0,1)+COUNTIF(#REF!,#REF!),0)),"") ->  | P58: - | Q58: FALSE
A59: =IFERROR(INDEX(#REF!,MATCH(0,IF(TRUE=#REF!,0,1)+COUNTIF(#REF!,#REF!),0)),"") ->  | P59: - | Q59: FALSE
A60: =IFERROR(INDEX(#REF!,MATCH(0,IF(TRUE=#REF!,0,1)+COUNTIF(#REF!,#REF!),0)),"") ->  | P60: - | Q60: FALSE
A61: =IFERROR(INDEX(#REF!,MATCH(0,IF(TRUE=#REF!,0,1)+COUNTIF(#REF!,#REF!),0)),"") ->  | P61: - | Q61: FALSE
A62: =IFERROR(INDEX(#REF!,MATCH(0,IF(TRUE=#REF!,0,1)+COUNTIF(#REF!,#REF!),0)),"") ->  | P62: - | Q62: FALSE
A63: =IFERROR(INDEX(#REF!,MATCH(0,IF(TRUE=#REF!,0,1)+COUNTIF(#REF!,#REF!),0)),"") ->  | P63: - | Q63: FALSE
A64: =IFERROR(INDEX(#REF!,MATCH(0,IF(TRUE=#REF!,0,1)+COUNTIF(#REF!,#REF!),0)),"") ->  | P64: - | Q64: FALSE
A65: =IFERROR(INDEX(#REF!,MATCH(0,IF(TRUE=#REF!,0,1)+COUNTIF(#REF!,#REF!),0)),"") ->  | P65: - | Q65: FALSE
A66: =IFERROR(INDEX(#REF!,MATCH(0,IF(TRUE=#REF!,0,1)+COUNTIF(#REF!,#REF!),0)),"") ->  | P66: - | Q66: FALSE
A67: =IFERROR(INDEX(#REF!,MATCH(0,IF(TRUE=#REF!,0,1)+COUNTIF(#REF!,#REF!),0)),"") ->  | P67: - | Q67: FALSE
A68: =IFERROR(INDEX(#REF!,MATCH(0,IF(TRUE=#REF!,0,1)+COUNTIF(#REF!,#REF!),0)),"") ->  | P68: - | Q68: FALSE
A69: =IFERROR(INDEX(#REF!,MATCH(0,IF(TRUE=#REF!,0,1)+COUNTIF(#REF!,#REF!),0)),"") ->  | P69: - | Q69: FALSE
A70: =IFERROR(INDEX(#REF!,MATCH(0,IF(TRUE=#REF!,0,1)+COUNTIF(#REF!,#REF!),0)),"") ->  | P70: - | Q70: FALSE
A71: =IFERROR(INDEX(#REF!,MATCH(0,IF(TRUE=#REF!,0,1)+COUNTIF(#REF!,#REF!),0)),"") ->  | P71: - | Q71: FALSE
A72: =IFERROR(INDEX(#REF!,MATCH(0,IF(TRUE=#REF!,0,1)+COUNTIF(#REF!,#REF!),0)),"") ->  | P72: - | Q72: FALSE
A73: =IFERROR(INDEX(#REF!,MATCH(0,IF(TRUE=#REF!,0,1)+COUNTIF(#REF!,#REF!),0)),"") ->  | P73: - | Q73: FALSE
A74: =IFERROR(INDEX(#REF!,MATCH(0,IF(TRUE=#REF!,0,1)+COUNTIF(#REF!,#REF!),0)),"") ->  | P74: - | Q74: FALSE
A75: =IFERROR(INDEX(#REF!,MATCH(0,IF(TRUE=#REF!,0,1)+COUNTIF(#REF!,#REF!),0)),"") ->  | P75: - | Q75: FALSE
A76: =IFERROR(INDEX(#REF!,MATCH(0,IF(TRUE=#REF!,0,1)+COUNTIF(#REF!,#REF!),0)),"") ->  | P76: - | Q76: FALSE
A77: =IFERROR(INDEX(#REF!,MATCH(0,IF(TRUE=#REF!,0,1)+COUNTIF(#REF!,#REF!),0)),"") ->  | P77: - | Q77: FALSE
A78: =IFERROR(INDEX(#REF!,MATCH(0,IF(TRUE=#REF!,0,1)+COUNTIF(#REF!,#REF!),0)),"") ->  | P78: - | Q78: FALSE
A79: =IFERROR(INDEX(#REF!,MATCH(0,IF(TRUE=#REF!,0,1)+COUNTIF(#REF!,#REF!),0)),"") ->  | P79: - | Q79: FALSE
A80: =IFERROR(INDEX(#REF!,MATCH(0,IF(TRUE=#REF!,0,1)+COUNTIF(#REF!,#REF!),0)),"") ->  | P80: - | Q80: FALSE
A81: =IFERROR(INDEX(#REF!,MATCH(0,IF(TRUE=#REF!,0,1)+COUNTIF(#REF!,#REF!),0)),"") ->  | P81: - | Q81: FALSE
A82: =IFERROR(INDEX(#REF!,MATCH(0,IF(TRUE=#REF!,0,1)+COUNTIF(#REF!,#REF!),0)),"") ->  | P82: - | Q82: FALSE
A83: =IFERROR(INDEX(#REF!,MATCH(0,IF(TRUE=#REF!,0,1)+COUNTIF(#REF!,#REF!),0)),"") ->  | P83: - | Q83: FALSE
A84: =IFERROR(INDEX(#REF!,MATCH(0,IF(TRUE=#REF!,0,1)+COUNTIF(#REF!,#REF!),0)),"") ->  | P84: - | Q84: FALSE
A85: =IFERROR(INDEX(#REF!,MATCH(0,IF(TRUE=#REF!,0,1)+COUNTIF(#REF!,#REF!),0)),"") ->  | P85: - | Q85: FALSE
A86: =IFERROR(INDEX(#REF!,MATCH(0,IF(TRUE=#REF!,0,1)+COUNTIF(#REF!,#REF!),0)),"") ->  | P86: - | Q86: FALSE
A87: =IFERROR(INDEX(#REF!,MATCH(0,IF(TRUE=#REF!,0,1)+COUNTIF(#REF!,#REF!),0)),"") ->  | P87: - | Q87: FALSE
A88: =IFERROR(INDEX(#REF!,MATCH(0,IF(TRUE=#REF!,0,1)+COUNTIF(#REF!,#REF!),0)),"") ->  | P88: - | Q88: FALSE
A89: =IFERROR(INDEX(#REF!,MATCH(0,IF(TRUE=#REF!,0,1)+COUNTIF(#REF!,#REF!),0)),"") ->  | P89: - | Q89: FALSE
A90: =IFERROR(INDEX(#REF!,MATCH(0,IF(TRUE=#REF!,0,1)+COUNTIF(#REF!,#REF!),0)),"") ->  | P90: - | Q90: FALSE
A91: =IFERROR(INDEX(#REF!,MATCH(0,IF(TRUE=#REF!,0,1)+COUNTIF(#REF!,#REF!),0)),"") ->  | P91: - | Q91: FALSE
A92: =IFERROR(INDEX(#REF!,MATCH(0,IF(TRUE=#REF!,0,1)+COUNTIF(#REF!,#REF!),0)),"") ->  | P92: - | Q92: FALSE
A93: =IFERROR(INDEX(#REF!,MATCH(0,IF(TRUE=#REF!,0,1)+COUNTIF(#REF!,#REF!),0)),"") ->  | P93: - | Q93: FALSE
A94: =IFERROR(INDEX(#REF!,MATCH(0,IF(TRUE=#REF!,0,1)+COUNTIF(#REF!,#REF!),0)),"") ->  | P94: - | Q94: FALSE
A95: =IFERROR(INDEX(#REF!,MATCH(0,IF(TRUE=#REF!,0,1)+COUNTIF(#REF!,#REF!),0)),"") ->  | P95: - | Q95: FALSE
A96: =IFERROR(INDEX(#REF!,MATCH(0,IF(TRUE=#REF!,0,1)+COUNTIF(#REF!,#REF!),0)),"") ->  | P96: - | Q96: FALSE
A97: =IFERROR(INDEX(#REF!,MATCH(0,IF(TRUE=#REF!,0,1)+COUNTIF(#REF!,#REF!),0)),"") ->  | P97: - | Q97: FALSE
A98: =IFERROR(INDEX(#REF!,MATCH(0,IF(TRUE=#REF!,0,1)+COUNTIF(#REF!,#REF!),0)),"") ->  | P98: - | Q98: FALSE
A99: =IFERROR(INDEX(#REF!,MATCH(0,IF(TRUE=#REF!,0,1)+COUNTIF(#REF!,#REF!),0)),"") ->  | P99: - | Q99: FALSE
A100: =IFERROR(INDEX(#REF!,MATCH(0,IF(TRUE=#REF!,0,1)+COUNTIF(#REF!,#REF!),0)),"") ->  | P100: - | Q100: FALSE
A101: =IFERROR(INDEX(#REF!,MATCH(0,IF(TRUE=#REF!,0,1)+COUNTIF(#REF!,#REF!),0)),"") ->  | P101: - | Q101: FALSE
A102: =IFERROR(INDEX(#REF!,MATCH(0,IF(TRUE=#REF!,0,1)+COUNTIF(#REF!,#REF!),0)),"") ->  | P102: - | Q102: FALSE
A103: =IFERROR(INDEX(#REF!,MATCH(0,IF(TRUE=#REF!,0,1)+COUNTIF(#REF!,#REF!),0)),"") ->  | P103: - | Q103: FALSE
A104: =IFERROR(INDEX(#REF!,MATCH(0,IF(TRUE=#REF!,0,1)+COUNTIF(#REF!,#REF!),0)),"") ->  | P104: - | Q104: FALSE
A105: =IFERROR(INDEX(#REF!,MATCH(0,IF(TRUE=#REF!,0,1)+COUNTIF(#REF!,#REF!),0)),"") ->  | P105: - | Q105: FALSE
A106: =IFERROR(INDEX(#REF!,MATCH(0,IF(TRUE=#REF!,0,1)+COUNTIF(#REF!,#REF!),0)),"") ->  | P106: - | Q106: FALSE
A107: =IFERROR(INDEX(#REF!,MATCH(0,IF(TRUE=#REF!,0,1)+COUNTIF(#REF!,#REF!),0)),"") ->  | P107: - | Q107: FALSE
A108: =IFERROR(INDEX(#REF!,MATCH(0,IF(TRUE=#REF!,0,1)+COUNTIF(#REF!,#REF!),0)),"") ->  | P108: - | Q108: FALSE
A109: =IFERROR(INDEX(#REF!,MATCH(0,IF(TRUE=#REF!,0,1)+COUNTIF(#REF!,#REF!),0)),"") ->  | P109: - | Q109: FALSE
A110: =IFERROR(INDEX(#REF!,MATCH(0,IF(TRUE=#REF!,0,1)+COUNTIF(#REF!,#REF!),0)),"") ->  | P110: - | Q110: FALSE
A111: =IFERROR(INDEX(#REF!,MATCH(0,IF(TRUE=#REF!,0,1)+COUNTIF(#REF!,#REF!),0)),"") ->  | P111: - | Q111: FALSE
A112: =IFERROR(INDEX(#REF!,MATCH(0,IF(TRUE=#REF!,0,1)+COUNTIF(#REF!,#REF!),0)),"") ->  | P112: - | Q112: FALSE
A113: =IFERROR(INDEX(#REF!,MATCH(0,IF(TRUE=#REF!,0,1)+COUNTIF(#REF!,#REF!),0)),"") ->  | P113: - | Q113: FALSE
A114: =IFERROR(INDEX(#REF!,MATCH(0,IF(TRUE=#REF!,0,1)+COUNTIF(#REF!,#REF!),0)),"") ->  | P114: - | Q114: FALSE
A115: =IFERROR(INDEX(#REF!,MATCH(0,IF(TRUE=#REF!,0,1)+COUNTIF(#REF!,#REF!),0)),"") ->  | P115: - | Q115: FALSE
A116: =IFERROR(INDEX(#REF!,MATCH(0,IF(TRUE=#REF!,0,1)+COUNTIF(#REF!,#REF!),0)),"") ->  | P116: - | Q116: FALSE
A117: =IFERROR(INDEX(#REF!,MATCH(0,IF(TRUE=#REF!,0,1)+COUNTIF(#REF!,#REF!),0)),"") ->  | P117: - | Q117: FALSE
A118: =IFERROR(INDEX(#REF!,MATCH(0,IF(TRUE=#REF!,0,1)+COUNTIF(#REF!,#REF!),0)),"") ->  | P118: - | Q118: FALSE
A119: =IFERROR(INDEX(#REF!,MATCH(0,IF(TRUE=#REF!,0,1)+COUNTIF(#REF!,#REF!),0)),"") ->  | P119: - | Q119: FALSE
A120: =IFERROR(INDEX(#REF!,MATCH(0,IF(TRUE=#REF!,0,1)+COUNTIF(#REF!,#REF!),0)),"") ->  | P120: - | Q120: FALSE
A121: =IFERROR(INDEX(#REF!,MATCH(0,IF(TRUE=#REF!,0,1)+COUNTIF(#REF!,#REF!),0)),"") ->  | P121: - | Q121: FALSE
A122: =IFERROR(INDEX(#REF!,MATCH(0,IF(TRUE=#REF!,0,1)+COUNTIF(#REF!,#REF!),0)),"") ->  | P122: - | Q122: FALSE
A123: =IFERROR(INDEX(#REF!,MATCH(0,IF(TRUE=#REF!,0,1)+COUNTIF(#REF!,#REF!),0)),"") ->  | P123: - | Q123: FALSE
A124: =IFERROR(INDEX(#REF!,MATCH(0,IF(TRUE=#REF!,0,1)+COUNTIF(#REF!,#REF!),0)),"") ->  | P124: - | Q124: FALSE
A125: =IFERROR(INDEX(#REF!,MATCH(0,IF(TRUE=#REF!,0,1)+COUNTIF(#REF!,#REF!),0)),"") ->  | P125: - | Q125: FALSE
A126: =IFERROR(INDEX(#REF!,MATCH(0,IF(TRUE=#REF!,0,1)+COUNTIF(#REF!,#REF!),0)),"") ->  | P126: - | Q126: FALSE
A127: =IFERROR(INDEX(#REF!,MATCH(0,IF(TRUE=#REF!,0,1)+COUNTIF(#REF!,#REF!),0)),"") ->  | P127: - | Q127: FALSE
A128: =IFERROR(INDEX(#REF!,MATCH(0,IF(TRUE=#REF!,0,1)+COUNTIF(#REF!,#REF!),0)),"") ->  | P128: - | Q128: FALSE
A129: =IFERROR(INDEX(#REF!,MATCH(0,IF(TRUE=#REF!,0,1)+COUNTIF(#REF!,#REF!),0)),"") ->  | P129: - | Q129: FALSE
A130: =IFERROR(INDEX(#REF!,MATCH(0,IF(TRUE=#REF!,0,1)+COUNTIF(#REF!,#REF!),0)),"") ->  | P130: - | Q130: FALSE
A131: =IFERROR(INDEX(#REF!,MATCH(0,IF(TRUE=#REF!,0,1)+COUNTIF(#REF!,#REF!),0)),"") ->  | P131: - | Q131: FALSE
A132: =IFERROR(INDEX(#REF!,MATCH(0,IF(TRUE=#REF!,0,1)+COUNTIF(#REF!,#REF!),0)),"") ->  | P132: - | Q132: FALSE
A133: =IFERROR(INDEX(#REF!,MATCH(0,IF(TRUE=#REF!,0,1)+COUNTIF(#REF!,#REF!),0)),"") ->  | P133: - | Q133: FALSE
A134: =IFERROR(INDEX(#REF!,MATCH(0,IF(TRUE=#REF!,0,1)+COUNTIF(#REF!,#REF!),0)),"") ->  | P134: - | Q134: FALSE
A135: =IFERROR(INDEX(#REF!,MATCH(0,IF(TRUE=#REF!,0,1)+COUNTIF(#REF!,#REF!),0)),"") ->  | P135: - | Q135: FALSE
A136: =IFERROR(INDEX(#REF!,MATCH(0,IF(TRUE=#REF!,0,1)+COUNTIF(#REF!,#REF!),0)),"") ->  | P136: - | Q136: FALSE
A137: =IFERROR(INDEX(#REF!,MATCH(0,IF(TRUE=#REF!,0,1)+COUNTIF(#REF!,#REF!),0)),"") ->  | P137: - | Q137: FALSE
A138: =IFERROR(INDEX(#REF!,MATCH(0,IF(TRUE=#REF!,0,1)+COUNTIF(#REF!,#REF!),0)),"") ->  | P138: - | Q138: FALSE
A139: =IFERROR(INDEX(#REF!,MATCH(0,IF(TRUE=#REF!,0,1)+COUNTIF(#REF!,#REF!),0)),"") ->  | P139: - | Q139: FALSE
A140: =IFERROR(INDEX(#REF!,MATCH(0,IF(TRUE=#REF!,0,1)+COUNTIF(#REF!,#REF!),0)),"") ->  | P140: - | Q140: FALSE
A141: =IFERROR(INDEX(#REF!,MATCH(0,IF(TRUE=#REF!,0,1)+COUNTIF(#REF!,#REF!),0)),"") ->  | P141: - | Q141: FALSE
A142: =IFERROR(INDEX(#REF!,MATCH(0,IF(TRUE=#REF!,0,1)+COUNTIF(#REF!,#REF!),0)),"") ->  | P142: - | Q142: FALSE
A143: =IFERROR(INDEX(#REF!,MATCH(0,IF(TRUE=#REF!,0,1)+COUNTIF(#REF!,#REF!),0)),"") ->  | P143: - | Q143: FALSE
A144: =IFERROR(INDEX(#REF!,MATCH(0,IF(TRUE=#REF!,0,1)+COUNTIF(#REF!,#REF!),0)),"") ->  | P144: - | Q144: FALSE
A145: =IFERROR(INDEX(#REF!,MATCH(0,IF(TRUE=#REF!,0,1)+COUNTIF(#REF!,#REF!),0)),"") ->  | P145: - | Q145: FALSE
A146: =IFERROR(INDEX(#REF!,MATCH(0,IF(TRUE=#REF!,0,1)+COUNTIF(#REF!,#REF!),0)),"") ->  | P146: - | Q146: FALSE
A147: =IFERROR(INDEX(#REF!,MATCH(0,IF(TRUE=#REF!,0,1)+COUNTIF(#REF!,#REF!),0)),"") ->  | P147: - | Q147: FALSE
A148: =IFERROR(INDEX(#REF!,MATCH(0,IF(TRUE=#REF!,0,1)+COUNTIF(#REF!,#REF!),0)),"") ->  | P148: - | Q148: FALSE
A149: =IFERROR(INDEX(#REF!,MATCH(0,IF(TRUE=#REF!,0,1)+COUNTIF(#REF!,#REF!),0)),"") ->  | P149: - | Q149: FALSE
A150: =IFERROR(INDEX(#REF!,MATCH(0,IF(TRUE=#REF!,0,1)+COUNTIF(#REF!,#REF!),0)),"") ->  | P150: - | Q150: FALSE
A151: =IFERROR(INDEX(#REF!,MATCH(0,IF(TRUE=#REF!,0,1)+COUNTIF(#REF!,#REF!),0)),"") ->  | P151: - | Q151: FALSE
A152: =IFERROR(INDEX(#REF!,MATCH(0,IF(TRUE=#REF!,0,1)+COUNTIF(#REF!,#REF!),0)),"") ->  | P152: - | Q152: FALSE
A153: =IFERROR(INDEX(#REF!,MATCH(0,IF(TRUE=#REF!,0,1)+COUNTIF(#REF!,#REF!),0)),"") ->  | P153: - | Q153: FALSE
A154: =IFERROR(INDEX(#REF!,MATCH(0,IF(TRUE=#REF!,0,1)+COUNTIF(#REF!,#REF!),0)),"") ->  | P154: - | Q154: FALSE
A155: =IFERROR(INDEX(#REF!,MATCH(0,IF(TRUE=#REF!,0,1)+COUNTIF(#REF!,#REF!),0)),"") ->  | P155: - | Q155: FALSE
A156: =IFERROR(INDEX(#REF!,MATCH(0,IF(TRUE=#REF!,0,1)+COUNTIF(#REF!,#REF!),0)),"") ->  | P156: - | Q156: FALSE
A157: =IFERROR(INDEX(#REF!,MATCH(0,IF(TRUE=#REF!,0,1)+COUNTIF(#REF!,#REF!),0)),"") ->  | P157: - | Q157: FALSE
A158: =IFERROR(INDEX(#REF!,MATCH(0,IF(TRUE=#REF!,0,1)+COUNTIF(#REF!,#REF!),0)),"") ->  | P158: - | Q158: FALSE
A159: =IFERROR(INDEX(#REF!,MATCH(0,IF(TRUE=#REF!,0,1)+COUNTIF(#REF!,#REF!),0)),"") ->  | P159: - | Q159: FALSE
A160: =IFERROR(INDEX(#REF!,MATCH(0,IF(TRUE=#REF!,0,1)+COUNTIF(#REF!,#REF!),0)),"") ->  | P160: - | Q160: FALSE
A161: =IFERROR(INDEX(#REF!,MATCH(0,IF(TRUE=#REF!,0,1)+COUNTIF(#REF!,#REF!),0)),"") ->  | P161: - | Q161: FALSE
A162: =IFERROR(INDEX(#REF!,MATCH(0,IF(TRUE=#REF!,0,1)+COUNTIF(#REF!,#REF!),0)),"") ->  | P162: - | Q162: FALSE
A163: =IFERROR(INDEX(#REF!,MATCH(0,IF(TRUE=#REF!,0,1)+COUNTIF(#REF!,#REF!),0)),"") ->  | P163: - | Q163: FALSE
A164: =IFERROR(INDEX(#REF!,MATCH(0,IF(TRUE=#REF!,0,1)+COUNTIF(#REF!,#REF!),0)),"") ->  | P164: - | Q164: FALSE
A165: =IFERROR(INDEX(#REF!,MATCH(0,IF(TRUE=#REF!,0,1)+COUNTIF(#REF!,#REF!),0)),"") ->  | P165: - | Q165: FALSE
A166: =IFERROR(INDEX(#REF!,MATCH(0,IF(TRUE=#REF!,0,1)+COUNTIF(#REF!,#REF!),0)),"") ->  | P166: - | Q166: FALSE
A167: =IFERROR(INDEX(#REF!,MATCH(0,IF(TRUE=#REF!,0,1)+COUNTIF(#REF!,#REF!),0)),"") ->  | P167: - | Q167: FALSE
A168: =IFERROR(INDEX(#REF!,MATCH(0,IF(TRUE=#REF!,0,1)+COUNTIF(#REF!,#REF!),0)),"") ->  | P168: - | Q168: FALSE
A169: =IFERROR(INDEX(#REF!,MATCH(0,IF(TRUE=#REF!,0,1)+COUNTIF(#REF!,#REF!),0)),"") ->  | P169: - | Q169: FALSE
A170: =IFERROR(INDEX(#REF!,MATCH(0,IF(TRUE=#REF!,0,1)+COUNTIF(#REF!,#REF!),0)),"") ->  | P170: - | Q170: FALSE
A171: =IFERROR(INDEX(#REF!,MATCH(0,IF(TRUE=#REF!,0,1)+COUNTIF(#REF!,#REF!),0)),"") ->  | P171: - | Q171: FALSE
A172: =IFERROR(INDEX(#REF!,MATCH(0,IF(TRUE=#REF!,0,1)+COUNTIF(#REF!,#REF!),0)),"") ->  | P172: - | Q172: FALSE
A173: =IFERROR(INDEX(#REF!,MATCH(0,IF(TRUE=#REF!,0,1)+COUNTIF(#REF!,#REF!),0)),"") ->  | P173: - | Q173: FALSE
A174: =IFERROR(INDEX(#REF!,MATCH(0,IF(TRUE=#REF!,0,1)+COUNTIF(#REF!,#REF!),0)),"") ->  | P174: - | Q174: FALSE
A175: =IFERROR(INDEX(#REF!,MATCH(0,IF(TRUE=#REF!,0,1)+COUNTIF(#REF!,#REF!),0)),"") ->  | P175: - | Q175: FALSE
A176: =IFERROR(INDEX(#REF!,MATCH(0,IF(TRUE=#REF!,0,1)+COUNTIF(#REF!,#REF!),0)),"") ->  | P176: - | Q176: FALSE
A177: =IFERROR(INDEX(#REF!,MATCH(0,IF(TRUE=#REF!,0,1)+COUNTIF(#REF!,#REF!),0)),"") ->  | P177: - | Q177: FALSE
A178: =IFERROR(INDEX(#REF!,MATCH(0,IF(TRUE=#REF!,0,1)+COUNTIF(#REF!,#REF!),0)),"") ->  | P178: - | Q178: FALSE
A179: =IFERROR(INDEX(#REF!,MATCH(0,IF(TRUE=#REF!,0,1)+COUNTIF(#REF!,#REF!),0)),"") ->  | P179: - | Q179: FALSE
A180: =IFERROR(INDEX(#REF!,MATCH(0,IF(TRUE=#REF!,0,1)+COUNTIF(#REF!,#REF!),0)),"") ->  | P180: - | Q180: FALSE
A181: =IFERROR(INDEX(#REF!,MATCH(0,IF(TRUE=#REF!,0,1)+COUNTIF(#REF!,#REF!),0)),"") ->  | P181: - | Q181: FALSE
A182: =IFERROR(INDEX(#REF!,MATCH(0,IF(TRUE=#REF!,0,1)+COUNTIF(#REF!,#REF!),0)),"") ->  | P182: - | Q182: FALSE
A183: =IFERROR(INDEX(#REF!,MATCH(0,IF(TRUE=#REF!,0,1)+COUNTIF(#REF!,#REF!),0)),"") ->  | P183: - | Q183: FALSE
A184: =IFERROR(INDEX(#REF!,MATCH(0,IF(TRUE=#REF!,0,1)+COUNTIF(#REF!,#REF!),0)),"") ->  | P184: - | Q184: FALSE
A185: =IFERROR(INDEX(#REF!,MATCH(0,IF(TRUE=#REF!,0,1)+COUNTIF(#REF!,#REF!),0)),"") ->  | P185: - | Q185: FALSE
A186: =IFERROR(INDEX(#REF!,MATCH(0,IF(TRUE=#REF!,0,1)+COUNTIF(#REF!,#REF!),0)),"") ->  | P186: - | Q186: FALSE
A187: =IFERROR(INDEX(#REF!,MATCH(0,IF(TRUE=#REF!,0,1)+COUNTIF(#REF!,#REF!),0)),"") ->  | P187: - | Q187: FALSE
A188: =IFERROR(INDEX(#REF!,MATCH(0,IF(TRUE=#REF!,0,1)+COUNTIF(#REF!,#REF!),0)),"") ->  | P188: - | Q188: FALSE
A189: =IFERROR(INDEX(#REF!,MATCH(0,IF(TRUE=#REF!,0,1)+COUNTIF(#REF!,#REF!),0)),"") ->  | P189: - | Q189: FALSE
A190: =IFERROR(INDEX(#REF!,MATCH(0,IF(TRUE=#REF!,0,1)+COUNTIF(#REF!,#REF!),0)),"") ->  | P190: - | Q190: FALSE
A191: =IFERROR(INDEX(#REF!,MATCH(0,IF(TRUE=#REF!,0,1)+COUNTIF(#REF!,#REF!),0)),"") ->  | P191: - | Q191: FALSE
A192: =IFERROR(INDEX(#REF!,MATCH(0,IF(TRUE=#REF!,0,1)+COUNTIF(#REF!,#REF!),0)),"") ->  | P192: - | Q192: FALSE
A193: =IFERROR(INDEX(#REF!,MATCH(0,IF(TRUE=#REF!,0,1)+COUNTIF(#REF!,#REF!),0)),"") ->  | P193: - | Q193: FALSE
A194: =IFERROR(INDEX(#REF!,MATCH(0,IF(TRUE=#REF!,0,1)+COUNTIF(#REF!,#REF!),0)),"") ->  | P194: - | Q194: FALSE
A195: =IFERROR(INDEX(#REF!,MATCH(0,IF(TRUE=#REF!,0,1)+COUNTIF(#REF!,#REF!),0)),"") ->  | P195: - | Q195: FALSE
A196: =IFERROR(INDEX(#REF!,MATCH(0,IF(TRUE=#REF!,0,1)+COUNTIF(#REF!,#REF!),0)),"") ->  | P196: - | Q196: FALSE
A197: =IFERROR(INDEX(#REF!,MATCH(0,IF(TRUE=#REF!,0,1)+COUNTIF(#REF!,#REF!),0)),"") ->  | P197: - | Q197: FALSE
A198: =IFERROR(INDEX(#REF!,MATCH(0,IF(TRUE=#REF!,0,1)+COUNTIF(#REF!,#REF!),0)),"") ->  | P198: - | Q198: FALSE
A199: =IFERROR(INDEX(#REF!,MATCH(0,IF(TRUE=#REF!,0,1)+COUNTIF(#REF!,#REF!),0)),"") ->  | P199: - | Q199: FALSE
A200: =IFERROR(INDEX(#REF!,MATCH(0,IF(TRUE=#REF!,0,1)+COUNTIF(#REF!,#REF!),0)),"") ->  | P200: - | Q200: FALSE
A201: =IFERROR(INDEX(#REF!,MATCH(0,IF(TRUE=#REF!,0,1)+COUNTIF(#REF!,#REF!),0)),"") ->  | P201: - | Q201: FALSE
A202: =IFERROR(INDEX(#REF!,MATCH(0,IF(TRUE=#REF!,0,1)+COUNTIF(#REF!,#REF!),0)),"") ->  | P202: - | Q202: FALSE
A203: =IFERROR(INDEX(#REF!,MATCH(0,IF(TRUE=#REF!,0,1)+COUNTIF(#REF!,#REF!),0)),"") ->  | P203: - | Q203: FALSE
A204: =IFERROR(INDEX(#REF!,MATCH(0,IF(TRUE=#REF!,0,1)+COUNTIF(#REF!,#REF!),0)),"") ->  | P204: - | Q204: FALSE
A205: =IFERROR(INDEX(#REF!,MATCH(0,IF(TRUE=#REF!,0,1)+COUNTIF(#REF!,#REF!),0)),"") ->  | P205: - | Q205: FALSE
A206: =IFERROR(INDEX(#REF!,MATCH(0,IF(TRUE=#REF!,0,1)+COUNTIF(#REF!,#REF!),0)),"") ->  | P206: - | Q206: FALSE
... 18 more rows
